Workbook

Sheet hátizsák
B1: *minden esetben csak a tárgy/szörny sorszámát # és a darabszámokat kell megadni, a többit a kereső leválogatja
S2: képlet erő * 2 + 10 + tárgybónusz + hátas | V2: van
B3: agamennon #5811 hátizsákja | V3: nincs
B5: adatok, hátas | G5: hátizsák mérete
B6: módosított erő: | E6: 33 | G6: teherbírás alap | H6: =E6*2+10+E11 -> 106 | I6: kg
G7: tárhely alap | H7: 150 | I7: tárhely
G8: teherbírás bónusz | H8: =SUM(H15:H28) -> 19 | I8: kg
B9: sherpa | G9: tárhely bónusz | H9: =SUM(I15:I28) -> 20 | I9: tárhely | S9: # | T9: Málhás állatok | U9: Teherbírás (kg) | V9: Kaja | W9: ID (TVP)
B10: # szörny | D10: a sherpa neve | E10: teherbírás | G10: TEHERBÍRÁS | H10: =H6+H8 -> 125 | I10: kg | S10: 10 | T10: vadász tatu | U10: 2 | V10: 1 | W10: 20
B11: 7168 | D11: =IF($B$11=10,"vadász tatu",IF($B$11=14,"rambó bogár",IF($B$11=15,"démontetű",IF($B$11=26,"királygík",IF($B$11=31,"woor-antilop",IF($B$11=49,"zombi",IF($B$11=61,"hegyi rák",IF($B$11=89,"sörényes ubuk",IF($B$11=92,"púpos burástya",IF($B$11=111,"ragyás burástya",IF($B$11=112,"sóhajtó dorony",IF($B$11=115,"törpemammut",IF($B$11=118,"trappoló dinymák",IF($B$11=137,"karmos tankány",IF($B$11=153,"quwarg királynő",IF($B$11=204,"bazaltelementál",IF($B$11=229,"orbitális mackósajt",IF($B$11=240,"sivatagidoareg",IF($B$11=297,"Thargodan csontváz",IF($B$11=355,"nektoraf",IF($B$11=362,"ryuku ostromteknős",IF($B$11=549,"eszement trappolo",IF($B$11=753,"érzőszívű dromedár",IF($B$11=859,"mutáns hegyitroll",IF($B$11=7168,"hegyi szamár",IF($B$11=7317,"púpnélküli dromedár")))))))))))))))))))))))))) -> hegyi szamár | E11: =IF($B$11=10,"2",IF($B$11=14,"?",IF($B$11=15,"2",IF($B$11=26,"3",IF($B$11=31,"5",IF($B$11=49,"8",IF($B$11=61,"4",IF($B$11=89,"6",IF($B$11=92,"6",IF($B$11=111,"10",IF($B$11=112,"10",IF($B$11=115,"20",IF($B$11=118,"13",IF($B$11=137,"16",IF($B$11=153,"20",IF($B$11=204,"35",IF($B$11=229,"25",IF($B$11=240,"40",IF($B$11=297,"35",IF($B$11=355,"25",IF($B$11=362,"41",IF($B$11=549,"60",IF($B$11=753,"40",IF($B$11=859,"90",IF($B$11=7168,"30",IF($B$11=7317,"160")))))))))))))))))))))))))) -> 30 | G11: TÁRHELY | H11: =H7+H9 -> 170 | I11: tárhely | S11: 14 | T11: rambó bogár | U11: ? | V11: 1 | W11: 20
S12: 15 | T12: démontetű | U12: 2 | V12: ? | W12: ?
B13: bónusztárgy | S13: 26 | T13: királygyík | U13: 3 | V13: 1 | W13: 20
C14: bónuszt adó tárgy | D14: van/nincs | E14: db száma | F14: teher bónusz | G14: tárhely bónusz | H14: teher bónusz összesen | I14: tárhely bónusz összesen | J14: kiló | K14: tárhely | S14: 31 | T14: woor-antilop | U14: 5 | V14: 2 | W14: 20
B15: #1694 | C15: apró zsákocska | D15: nincs | E15: 1 | F15: =IF($D15="van",$J15,IF($D15="nincs",0)) -> 0 | G15: =IF($D15="van",$K15,IF($D15="nincs",0)) -> 0 | H15: =E15*F15 -> 0 | I15: =E15*G15 -> 0 | J15: 5 | K15: 10 | S15: 49 | T15: zombi | U15: 8 | V15: 0 | W15: 20
B16: #734 | C16: bunthar zsák; max 1 db | D16: nincs | E16: 1 | F16: 0 | G16: 0 | H16: =E16*F16 -> 0 | I16: =E16*G16 -> 0 | J16: 0 | K16: 25 | S16: 61 | T16: hegyi rák | U16: 4 | V16: 1 | W16: 30
B17: #1326 | C17: draken buborék; max 30 db | D17: nincs | E17: 1 | F17: 0 | G17: 0 | H17: =E17*F17 -> 0 | I17: =E17*G17 -> 0 | J17: 0 | K17: 1 | S17: 89 | T17: sörényes ubuk | U17: 6 | V17: 1 | W17: 50
B18: #1637 | C18: hajóláda | D18: nincs | E18: 1 | F18: 0 | G18: 0 | H18: 0 | I18: 0 | J18: 14 | K18: 20 | S18: 92 | T18: púpos burástya | U18: 6 | V18: 2 | W18: 50
B19: #876 | C19: Krossan párnája | D19: nincs | E19: 1 | F19: 0 | G19: 0 | H19: 0 | I19: 0 | J19: 10 | K19: 0 | S19: 111 | T19: ragyás burástya | U19: 10 | V19: 2 | W19: 90
B20: #1560 | C20: légiós hátizsák; max 1 db | D20: nincs | E20: 1 | F20: 0 | G20: 0 | H20: 0 | I20: 0 | J20: 25 | K20: 0 | S20: 112 | T20: sóhajtó dorony | U20: 10 | V20: 3 | W20: 70
B21: #1757 | C21: leviatán gumó | D21: nincs | E21: 1 | F21: 0 | G21: 0 | H21: 0 | I21: 0 | J21: 10 | K21: 0 | S21: 115 | T21: törpemammut | U21: 20 | V21: 4 | W21: 80
B22: #735 | C22: mágikus hátizsák | D22: nincs | E22: 1 | F22: 0 | G22: 0 | H22: 0 | I22: 0 | J22: 0 | K22: 49 | S22: 118 | T22: trappoló dinymák | U22: 13 | V22: amniosz | W22: 70
B23: #1218 | C23: megbűvölt utazóláda | D23: van | E23: 1 | F23: 14 | G23: 20 | H23: 14 | I23: 20 | J23: 14 | K23: 20 | S23: 137 | T23: karmos tankány | U23: 16 | V23: 2 | W23: 90
B24: #1172 | C24: oldalzsák | D24: nincs | E24: 1 | F24: 0 | G24: 0 | H24: 0 | I24: 0 | J24: 0 | K24: 50 | S24: 153 | T24: quwarg királynő | U24: 20 | V24: 2 | W24: 140
B25: #1117 | C25: párducbőr övtáska | D25: van | E25: 1 | F25: 5 | G25: 0 | H25: 5 | I25: 0 | J25: 5 | K25: 0 | S25: 204 | T25: bazaltelementál | U25: 35 | V25: szög.kő | W25: ?
B26: #1969 | C26: sámántarisznya; max 1 db; KF! | D26: nincs | E26: 1 | F26: 0 | G26: 0 | H26: 0 | I26: 0 | J26: 0 | K26: 5 | S26: 229 | T26: orbitális mackósajt | U26: 25 | V26: 1 | W26: 220
B27: #1936 | C27: sziránusz erszény; max 1 db | D27: nincs | E27: 1 | F27: 0 | G27: 0 | H27: 0 | I27: 0 | J27: 30 | K27: 30 | S27: 240 | T27: sivatagi doareg | U27: 40 | V27: 3 | W27: 200
B28: #1981 | C28: yetibőr zsák; csak ha van hátasod! | D28: nincs | E28: 1 | F28: 0 | G28: 0 | H28: 0 | I28: 0 | J28: 40 | K28: 0 | S28: 297 | T28: Thargodan csontváz | U28: 35 | V28: - | W28: 130
S29: 355 | T29: nektoraf | U29: 25 | V29: 2 | W29: 80
S30: 362 | T30: ryuku ostromteknős | U30: 41 | V30: 8 | W30: 150
B31: partíció | D31: súly (kg) | E31: érték (ap) | F31: megtrh (%) | H31: vagyon | S31: 549 | T31: eszement trappoló | U31: 60 | V31: 1 | W31: 390
B32: fegyverek | D32: =fegyverek!J160 -> 16.25 | E32: =fegyverek!K160 -> 230 | F32: =fegyverek!L160 -> 0.13 | S32: 753 | T32: érző szívű dromedár | U32: 40 | V32: 1 | W32: 100
B33: pajzsok, páncélok, ruhák | D33: ='pajzsok,páncélok,ruhák'!J237 -> 8.34 | E33: ='pajzsok,páncélok,ruhák'!K237 -> 555 | F33: ='pajzsok,páncélok,ruhák'!L237 -> 0.06672 | H33: fegyver | I33: =E32 -> 230 | S33: 859 | T33: mutáns hegyitroll | U33: 90 | V33: ? | W33: 520
B34: ékszerek | D34: =ékszerek!J240 -> 1.72 | E34: =ékszerek!K240 -> 2040 | F34: =ékszerek!L240 -> 0.01376 | H34: páncél | I34: =E33 -> 555 | S34: 7168 | T34: hegyi szamár | U34: 30 | V34: 2 | W34: 70
B35: löttyök, porok, tartók | D35: ='löttyök, porok, tartók'!J96 -> 6.19 | E35: ='löttyök, porok, tartók'!K96 -> 331 | F35: ='löttyök, porok, tartók'!L96 -> 0.04952 | H35: ékszer | I35: =E34 -> 2040 | S35: 7317 | T35: púpnélküli dromedár | U35: 160 | W35: 800
B36: eszközök | D36: =eszközök!J105 -> 26.22 | E36: =eszközök!K105 -> 7907 | F36: =eszközök!L105 -> 0.20976 | H36: lötty, por, tartó | I36: 331
B37: egyéb bigyók | D37: ='egyéb bigyók'!J105 -> 21.16 | E37: ='egyéb bigyók'!K105 -> 531 | F37: ='egyéb bigyók'!L105 -> 0.16928 | H37: eszköz | I37: 7907
B38: ÖSSZES | D38: =SUM(D32:D37) -> 79.88 | E38: =SUM(E32:E37) -> 11594 | F38: =SUM(F32:F37) -> 0.63904 | H38: egyéb bigyók | I38: 531
H39: BANK | I39: =E43 -> 677
H40: BANK $ | I40: 13991
B41: BANK | H41: KP | I41: 6260
B42: teljes súly (kg) | E42: =BANK!J105 -> 111.8 | F42: kg
B43: Teljes érték (ap) | E43: =BANK!K105 -> 677 | F43: ap | H43: BANK+KP (ap) | I43: =I41+I40 -> 20251
B44: ha a zsákodba lenne (%) | E44: =BANK!L105 -> 0.8944 | F44: ap | H44: ÖSSZES (ap) | I44: =SUM(I33:I41) -> 32522
B46: tárgyhelyek | H46: alarm
B47: tárgyhelyek, hátizsák | D47: max. | E47: aktuális | F47: van még | H47: =IF(F38<=100%,"minden OK",IF(F38>100%,"túl vagy terhelve!!!")) -> minden OK
D48: =H11 -> 170 | E48: =fegyverek!I160+'pajzsok,páncélok,ruhák'!I237+ékszerek!I240+'löttyök, porok, tartók'!I96+eszközök!I105+'egyéb bigyók'!I105 -> 93 | F48: =D48-E48 -> 77 | H48: =IF(F48>=11,"minden OK",IF(F48<11,"mindjárt beteleik a zsákod!!!")) -> minden OK
B49: bank tárhely | D49: 12 | E49: =BANK!I105 -> 11 | F49: =D49-E49 -> 1 | H49: =IF(F49=0,"tele a BANK!!!",IF(F49>0,"minden OK")) -> minden OK

Sheet fegyverek
D3: szúrófegyverek
D4: tárhely | E4: # tágy | F4: tárgy neve | G4: súly/db | H4: ap/db | I4: készlet | J4: tétel súlya | K4: tétel értéke | L4: zsákban foglalt % | R4: # | S4: Tárgy | T4: Súly | U4: EA | V4: Egyéb
B5: =IF(I5>0,1,IF(I5=0,0)) -> 1 | D5: 1. | E5: 182 | F5: =INDEX($R$5:$U$2046,$E5,2) -> vashegyű lándzsa | G5: =INDEX($R$5:U2046,$E5,3) -> 2 | H5: =INDEX($R$5:V2046,$E5,4) -> 18 | I5: 1 | J5: =G5*I5 -> 2 | K5: =H5*I5 -> 18 | L5: =$J5/hátizsák!$H$10 -> 0.016 | R5: 1 | S5: deus ex machina | T5: 0.1 | U5: 25 | V5: megmenti az életed, ha meghalnál
B6: =IF(I6>0,1,IF(I6=0,0)) -> 0 | D6: 2. | E6: 225 | F6: orgyilkos tőr | G6: =INDEX($R$5:U2050,$E6,3) -> 0.1 | H6: =INDEX($R$5:V2050,$E6,4) -> 8 | I6: 0 | J6: =G6*I6 -> 0 | K6: =H6*I6 -> 0 | L6: =$J6/hátizsák!$H$10 -> 0 | R6: 2 | S6: kaja | T6: 0.3 | U6: 1 | V6: -
B7: 0 | D7: 3. | E7: 7 | F7: kőhegyű lándzsa | G7: =INDEX($R$5:U2051,$E7,3) -> 3.5 | H7: =INDEX($R$5:V2051,$E7,4) -> 1 | I7: 0 | J7: 0 | K7: 0 | L7: =$J7/hátizsák!$H$10 -> 0 | R7: 3 | S7: vizestömlő | T7: 0.2 | U7: 7 | V7: 20 víz tárolására
B8: 0 | D8: 4. | E8: 7 | F8: kőhegyű lándzsa | G8: =INDEX($R$5:U2052,$E8,3) -> 3.5 | H8: =INDEX($R$5:V2052,$E8,4) -> 1 | I8: 0 | J8: 0 | K8: 0 | L8: =$J8/hátizsák!$H$10 -> 0 | R8: 4 | S8: bot | T8: 3 | U8: 0 | V8: típus: ütő, sebzés: 1d6
B9: 0 | D9: 5. | E9: 7 | F9: kőhegyű lándzsa | G9: =INDEX($R$5:U2053,$E9,3) -> 3.5 | H9: =INDEX($R$5:V2053,$E9,4) -> 1 | I9: 0 | J9: 0 | K9: 0 | L9: =$J9/hátizsák!$H$10 -> 0 | R9: 5 | S9: bunkó | T9: 5 | U9: 0 | V9: típus: ütő, sebzés: 1d6
B10: 0 | D10: 6. | E10: 7 | F10: kőhegyű lándzsa | G10: =INDEX($R$5:U2054,$E10,3) -> 3.5 | H10: =INDEX($R$5:V2054,$E10,4) -> 1 | I10: 0 | J10: 0 | K10: 0 | L10: =$J10/hátizsák!$H$10 -> 0 | R10: 6 | S10: kőkés | T10: 0.5 | U10: 0 | V10: típus: vágó (balkezes), sebzés: 1d4
B11: 0 | D11: 7. | E11: 7 | F11: kőhegyű lándzsa | G11: =INDEX($R$5:U2055,$E11,3) -> 3.5 | H11: =INDEX($R$5:V2055,$E11,4) -> 1 | I11: 0 | J11: 0 | K11: 0 | L11: =$J11/hátizsák!$H$10 -> 0 | R11: 7 | S11: kőhegyű lándzsa | T11: 3.5 | U11: 1 | V11: típus: szúró, sebzés: 2d4+2
B12: 0 | D12: 8. | E12: 7 | F12: kőhegyű lándzsa | G12: =INDEX($R$5:U2056,$E12,3) -> 3.5 | H12: =INDEX($R$5:V2056,$E12,4) -> 1 | I12: 0 | J12: 0 | K12: 0 | L12: =$J12/hátizsák!$H$10 -> 0 | R12: 8 | S12: szöges bunkó | T12: 5.2 | U12: 10 | V12: típus: ütő, sebzés: 3d6+2
B13: 0 | D13: 9. | E13: 7 | F13: kőhegyű lándzsa | G13: =INDEX($R$5:U2057,$E13,3) -> 3.5 | H13: =INDEX($R$5:V2057,$E13,4) -> 1 | I13: 0 | J13: 0 | K13: 0 | L13: =$J13/hátizsák!$H$10 -> 0 | R13: 9 | S13: bunkósbot | T13: 3.5 | U13: 1 | V13: típus: ütő, sebzés: 2d4+2
B14: 0 | D14: 10. | E14: 7 | F14: kőhegyű lándzsa | G14: =INDEX($R$5:U2058,$E14,3) -> 3.5 | H14: =INDEX($R$5:V2058,$E14,4) -> 1 | I14: 0 | J14: 0 | K14: 0 | L14: =$J14/hátizsák!$H$10 -> 0 | R14: 10 | S14: dárda | T14: 2 | U14: 1 | V14: típus: dobó (szúró), sebzés: 1d6, +1 vadászat
B15: 0 | D15: 11. | E15: 7 | F15: kőhegyű lándzsa | G15: =INDEX($R$5:U2059,$E15,3) -> 3.5 | H15: =INDEX($R$5:V2059,$E15,4) -> 1 | I15: 0 | J15: 0 | K15: 0 | L15: =$J15/hátizsák!$H$10 -> 0 | R15: 11 | S15: csontkés | T15: 0.3 | U15: 2 | V15: típus: szúró (balkezes), sebzés: 1d4+3
B16: 0 | D16: 12. | E16: 7 | F16: kőhegyű lándzsa | G16: =INDEX($R$5:U2060,$E16,3) -> 3.5 | H16: =INDEX($R$5:V2060,$E16,4) -> 1 | I16: 0 | J16: 0 | K16: 0 | L16: =$J16/hátizsák!$H$10 -> 0 | R16: 12 | S16: csontszurony | T16: 3.3 | U16: 2 | V16: típus: szúró, sebzés: 3d4+2
B17: 0 | D17: 13. | E17: 7 | F17: kőhegyű lándzsa | G17: =INDEX($R$5:U2061,$E17,3) -> 3.5 | H17: =INDEX($R$5:V2061,$E17,4) -> 1 | I17: 0 | J17: 0 | K17: 0 | L17: =$J17/hátizsák!$H$10 -> 0 | R17: 13 | S17: kőkalapács | T17: 1 | U17: 0 | V17: típus: ütő (balkezes), sebzés: 1d6
B18: 0 | D18: 14. | E18: 7 | F18: kőhegyű lándzsa | G18: =INDEX($R$5:U2062,$E18,3) -> 3.5 | H18: =INDEX($R$5:V2062,$E18,4) -> 1 | I18: 0 | J18: 0 | K18: 0 | L18: =$J18/hátizsák!$H$10 -> 0 | R18: 14 | S18: sünmedve tüske | T18: 0.03 | U18: 1 | V18: -
B19: 0 | D19: 15. | E19: 7 | F19: kőhegyű lándzsa | G19: =INDEX($R$5:U2063,$E19,3) -> 3.5 | H19: =INDEX($R$5:V2063,$E19,4) -> 1 | I19: 0 | J19: 0 | K19: 0 | L19: =$J19/hátizsák!$H$10 -> 0 | R19: 15 | S19: vadász tatu bőr | T19: 1 | U19: 1 | V19: -
B20: 0 | D20: 16. | E20: 7 | F20: kőhegyű lándzsa | G20: =INDEX($R$5:U2064,$E20,3) -> 3.5 | H20: =INDEX($R$5:V2064,$E20,4) -> 1 | I20: 0 | J20: 0 | K20: 0 | L20: =$J20/hátizsák!$H$10 -> 0 | R20: 16 | S20: bordacsont | T20: 0.4 | U20: 2 | V20: áldozati tárgy Leahnak
B21: 0 | D21: 17. | E21: 7 | F21: kőhegyű lándzsa | G21: =INDEX($R$5:U2065,$E21,3) -> 3.5 | H21: =INDEX($R$5:V2065,$E21,4) -> 1 | I21: 0 | J21: 0 | K21: 0 | L21: =$J21/hátizsák!$H$10 -> 0 | R21: 17 | S21: szögletes kő | T21: 0.5 | U21: 0 | V21: -
B22: 0 | D22: 18. | E22: 7 | F22: kőhegyű lándzsa | G22: =INDEX($R$5:U2066,$E22,3) -> 3.5 | H22: =INDEX($R$5:V2066,$E22,4) -> 1 | I22: 0 | J22: 0 | K22: 0 | L22: =$J22/hátizsák!$H$10 -> 0 | R22: 18 | S22: parittya | T22: 0.1 | U22: 0 | V22: típus: lőfegyver
B23: 0 | D23: 19. | E23: 7 | F23: kőhegyű lándzsa | G23: =INDEX($R$5:U2067,$E23,3) -> 3.5 | H23: =INDEX($R$5:V2067,$E23,4) -> 1 | I23: 0 | J23: 0 | K23: 0 | L23: =$J23/hátizsák!$H$10 -> 0 | R23: 19 | S23: kerek kő | T23: 0.15 | U23: 0 | V23: típus: lövedék (ütő), sebzés: 1d4
B24: 0 | D24: 20. | E24: 7 | F24: kőhegyű lándzsa | G24: =INDEX($R$5:U2068,$E24,3) -> 3.5 | H24: =INDEX($R$5:V2068,$E24,4) -> 1 | I24: 0 | J24: 0 | K24: 0 | L24: =$J24/hátizsák!$H$10 -> 0 | R24: 20 | S24: fúvócső | T24: 0.1 | U24: 4 | V24: típus: lőfegyver, +2 támadás
F25: ÖSSZESEN | G25: lefoglalt tárhely: | I25: =SUM(B5:B24) -> 1 | J25: =SUM(J5:J24) -> 2 | K25: =SUM(K5:K24) -> 18 | L25: =$J25/hátizsák!$H$10 -> 0.016 | R25: 21 | S25: ormánygőte csont | T25: 0.2 | U25: 3 | V25: -
R26: 22 | S26: tüske | T26: 0.03 | U26: 0 | V26: típus: lövedék (szúró), sebzés: 1d3
R27: 23 | S27: mérgezett tüske | T27: 0.03 | U27: 1 | V27: típus: lövedék (szúró), sebzés: 1d3+4
R28: 24 | S28: kavadu lebeny | T28: 0.2 | U28: 2 | V28: -
D29: vágófegyverek | R29: 25 | S29: kavadu iszák | T29: 0.1 | U29: 2 | V29: 10 gyenge méreg tárolására
D30: tárhely | E30: # tágy | F30: tárgy neve | G30: súly/db | H30: ap/db | I30: készlet | J30: tétel súlya | K30: tétel értéke | L30: zsákban foglalt % | R30: 26 | S30: gyenge méreg | T30: 0.01 | U30: 1 | V30: áldozati tárgy Dornodonnak
B31: =IF(I31>0,1,IF(I31=0,0)) -> 1 | D31: 1. | E31: 6 | F31: =INDEX($R$5:$U$2046,$E31,2) -> kőkés | G31: =INDEX($R$5:U2075,$E31,3) -> 0.5 | H31: =INDEX($R$5:V2075,$E31,4) -> 0 | I31: 1 | J31: =G31*I31 -> 0.5 | K31: =H31*I31 -> 0 | L31: =$J31/hátizsák!$H$10 -> 0.004 | R31: 27 | S31: víz | T31: 0.01 | U31: 0 | V31: -
B32: =IF(I32>0,1,IF(I32=0,0)) -> 0 | D32: 2. | E32: 6 | F32: kőkés | G32: =INDEX($R$5:U2076,$E32,3) -> 0.5 | H32: =INDEX($R$5:V2076,$E32,4) -> 0 | I32: 0 | J32: =G32*I32 -> 0 | K32: =H32*I32 -> 0 | L32: =$J32/hátizsák!$H$10 -> 0 | R32: 28 | S32: ököl | T32: - | U32: 0 | V32: típus: ütő, sebzés: 1d3
B33: 0 | D33: 3. | E33: 6 | F33: kőkés | G33: =INDEX($R$5:U2077,$E33,3) -> 0.5 | H33: =INDEX($R$5:V2077,$E33,4) -> 0 | I33: 0 | J33: 0 | K33: 0 | L33: =$J33/hátizsák!$H$10 -> 0 | R33: 29 | S33: smirglilevél | T33: 0.05 | U33: 0 | V33: -
B34: 0 | D34: 4. | E34: 6 | F34: kőkés | G34: =INDEX($R$5:U2078,$E34,3) -> 0.5 | H34: =INDEX($R$5:V2078,$E34,4) -> 0 | I34: 0 | J34: 0 | K34: 0 | L34: =$J34/hátizsák!$H$10 -> 0 | R34: 30 | S34: varányszem | T34: 0.02 | U34: 1 | V34: -
B35: 0 | D35: 5. | E35: 6 | F35: kőkés | G35: =INDEX($R$5:U2079,$E35,3) -> 0.5 | H35: =INDEX($R$5:V2079,$E35,4) -> 0 | I35: 0 | J35: 0 | K35: 0 | L35: =$J35/hátizsák!$H$10 -> 0 | R35: 31 | S35: smirglibokor | T35: - | U35: 0 | V35: -
B36: 0 | D36: 6. | E36: 6 | F36: kőkés | G36: =INDEX($R$5:U2080,$E36,3) -> 0.5 | H36: =INDEX($R$5:V2080,$E36,4) -> 0 | I36: 0 | J36: 0 | K36: 0 | L36: =$J36/hátizsák!$H$10 -> 0 | R36: 32 | S36: szeksztáns | T36: 0.2 | U36: 20 | V36: abszolút koordináta meghatározására
B37: 0 | D37: 7. | E37: 6 | F37: kőkés | G37: =INDEX($R$5:U2081,$E37,3) -> 0.5 | H37: =INDEX($R$5:V2081,$E37,4) -> 0 | I37: 0 | J37: 0 | K37: 0 | L37: =$J37/hátizsák!$H$10 -> 0 | R37: 33 | S37: lapockacsont | T37: 1 | U37: 4 | V37: -
B38: 0 | D38: 8. | E38: 6 | F38: kőkés | G38: =INDEX($R$5:U2082,$E38,3) -> 0.5 | H38: =INDEX($R$5:V2082,$E38,4) -> 0 | I38: 0 | J38: 0 | K38: 0 | L38: =$J38/hátizsák!$H$10 -> 0 | R38: 34 | S38: ásó | T38: 3 | U38: 5 | V38: típus: ütő, sebzés: 1d2
B39: 0 | D39: 9. | E39: 6 | F39: kőkés | G39: =INDEX($R$5:U2083,$E39,3) -> 0.5 | H39: =INDEX($R$5:V2083,$E39,4) -> 0 | I39: 0 | J39: 0 | K39: 0 | L39: =$J39/hátizsák!$H$10 -> 0 | R39: 35 | S39: tűzbokor | T39: - | U39: 0 | V39: -
B40: 0 | D40: 10. | E40: 6 | F40: kőkés | G40: =INDEX($R$5:U2084,$E40,3) -> 0.5 | H40: =INDEX($R$5:V2084,$E40,4) -> 0 | I40: 0 | J40: 0 | K40: 0 | L40: =$J40/hátizsák!$H$10 -> 0 | R40: 36 | S40: fáklya | T40: 0.3 | U40: 0 | V40: áldozati tárgy Tharrnak
B41: 0 | D41: 11. | E41: 6 | F41: kőkés | G41: =INDEX($R$5:U2085,$E41,3) -> 0.5 | H41: =INDEX($R$5:V2085,$E41,4) -> 0 | I41: 0 | J41: 0 | K41: 0 | L41: =$J41/hátizsák!$H$10 -> 0 | R41: 37 | S41: drótszőr | T41: 0.05 | U41: 2 | V41: -
B42: 0 | D42: 12. | E42: 6 | F42: kőkés | G42: =INDEX($R$5:U2086,$E42,3) -> 0.5 | H42: =INDEX($R$5:V2086,$E42,4) -> 0 | I42: 0 | J42: 0 | K42: 0 | L42: =$J42/hátizsák!$H$10 -> 0 | R42: 38 | S42: gumifa | T42: - | U42: 0 | V42: -
B43: 0 | D43: 13. | E43: 6 | F43: kőkés | G43: =INDEX($R$5:U2087,$E43,3) -> 0.5 | H43: =INDEX($R$5:V2087,$E43,4) -> 0 | I43: 0 | J43: 0 | K43: 0 | L43: =$J43/hátizsák!$H$10 -> 0 | R43: 39 | S43: zárnyitó készlet | T43: 0.2 | U43: 12 | V43: -
B44: 0 | D44: 14. | E44: 6 | F44: kőkés | G44: =INDEX($R$5:U2088,$E44,3) -> 0.5 | H44: =INDEX($R$5:V2088,$E44,4) -> 0 | I44: 0 | J44: 0 | K44: 0 | L44: =$J44/hátizsák!$H$10 -> 0 | R44: 40 | S44: kis vaskulcs | T44: 0.08 | U44: 3 | V44: -
B45: 0 | D45: 15. | E45: 6 | F45: kőkés | G45: =INDEX($R$5:U2089,$E45,3) -> 0.5 | H45: =INDEX($R$5:V2089,$E45,4) -> 0 | I45: 0 | J45: 0 | K45: 0 | L45: =$J45/hátizsák!$H$10 -> 0 | R45: 41 | S45: grákóbőr | T45: 0.1 | U45: 3 | V45: -
B46: 0 | D46: 16. | E46: 6 | F46: kőkés | G46: =INDEX($R$5:U2090,$E46,3) -> 0.5 | H46: =INDEX($R$5:V2090,$E46,4) -> 0 | I46: 0 | J46: 0 | K46: 0 | L46: =$J46/hátizsák!$H$10 -> 0 | R46: 42 | S46: távcső | T46: 0.2 | U46: 16 | V46: -
B47: 0 | D47: 17. | E47: 6 | F47: kőkés | G47: =INDEX($R$5:U2091,$E47,3) -> 0.5 | H47: =INDEX($R$5:V2091,$E47,4) -> 0 | I47: 0 | J47: 0 | K47: 0 | L47: =$J47/hátizsák!$H$10 -> 0 | R47: 43 | S47: tükör | T47: 0.3 | U47: 0 | V47: -
B48: 0 | D48: 18. | E48: 6 | F48: kőkés | G48: =INDEX($R$5:U2092,$E48,3) -> 0.5 | H48: =INDEX($R$5:V2092,$E48,4) -> 0 | I48: 0 | J48: 0 | K48: 0 | L48: =$J48/hátizsák!$H$10 -> 0 | R48: 44 | S48: királygyík bőr | T48: 1 | U48: 3 | V48: -
B49: 0 | D49: 19. | E49: 6 | F49: kőkés | G49: =INDEX($R$5:U2093,$E49,3) -> 0.5 | H49: =INDEX($R$5:V2093,$E49,4) -> 0 | I49: 0 | J49: 0 | K49: 0 | L49: =$J49/hátizsák!$H$10 -> 0 | R49: 45 | S49: kis bőrpajzs | T49: 2 | U49: 5 | V49: +1 AC
B50: 0 | D50: 20. | E50: 6 | F50: kőkés | G50: =INDEX($R$5:U2094,$E50,3) -> 0.5 | H50: =INDEX($R$5:V2094,$E50,4) -> 0 | I50: 0 | J50: 0 | K50: 0 | L50: =$J50/hátizsák!$H$10 -> 0 | R50: 46 | S50: krómkaktusz | T50: - | U50: 0 | V50: -
F51: ÖSSZESEN | G51: lefoglalt tárhely: | I51: =SUM(B31:B50) -> 1 | J51: =SUM(J31:J50) -> 0.5 | K51: =SUM(K31:K50) -> 0 | L51: =SUM(L31:L50) -> 0.004 | R51: 47 | S51: surranó kígyó bőr | T51: 0.2 | U51: 2 | V51: -
R52: 48 | S52: antilopbőr | T52: 2 | U52: 3 | V52: -
R53: 49 | S53: kígyóbőr kesztyű | T53: 0.3 | U53: 5 | V53: +1 AC
R54: 50 | S54: arany | T54: 0 | U54: 0 | V54: -
D55: ütőfegyverek | R55: 51 | S55: bőrpáncél | T55: 3 | U55: 5 | V55: +2 AC
D56: tárhely | E56: # tágy | F56: tárgy neve | G56: súly/db | H56: ap/db | I56: készlet | J56: tétel súlya | K56: tétel értéke | L56: zsákban foglalt % | R56: 52 | S56: patak | T56: - | U56: 0 | V56: -
B57: =IF(I57>0,1,IF(I57=0,0)) -> 1 | D57: 1. | E57: 13 | F57: =INDEX($R$5:$U$2046,$E57,2) -> kőkalapács | G57: =INDEX($R$5:U2101,$E57,3) -> 1 | H57: =INDEX($R$5:V2101,$E57,4) -> 0 | I57: 1 | J57: =G57*I57 -> 1 | K57: =H57*I57 -> 0 | L57: =$J57/hátizsák!$H$10 -> 0.008 | R57: 53 | S57: tavacska | T57: - | U57: 0 | V57: -
B58: =IF(I58>0,1,IF(I58=0,0)) -> 1 | D58: 2. | E58: 174 | F58: harci kalapács | G58: =INDEX($R$5:U2102,$E58,3) -> 2.2 | H58: =INDEX($R$5:V2102,$E58,4) -> 20 | I58: 1 | J58: =G58*I58 -> 2.2 | K58: =H58*I58 -> 20 | L58: =$J58/hátizsák!$H$10 -> 0.0176 | R58: 54 | S58: szökőkút | T58: - | U58: 0 | V58: -
B59: 1 | D59: 3. | E59: 1526 | F59: Mallon botja | G59: =INDEX($R$5:U2103,$E59,3) -> 9 | H59: =INDEX($R$5:V2103,$E59,4) -> 180 | I59: 1 | J59: 9 | K59: 180 | L59: =$J59/hátizsák!$H$10 -> 0.072 | R59: 55 | S59: mákrózsa bokor | T59: - | U59: 0 | V59: -
B60: 0 | D60: 4. | E60: 13 | F60: kőkalapács | G60: =INDEX($R$5:U2104,$E60,3) -> 1 | H60: =INDEX($R$5:V2104,$E60,4) -> 0 | I60: 0 | J60: 0 | K60: 0 | L60: =$J60/hátizsák!$H$10 -> 0 | R60: 56 | S60: mákrózsa virág | T60: 0.2 | U60: 0 | V60: áldozati tárgy Eleniosnak
B61: 0 | D61: 5. | E61: 13 | F61: kőkalapács | G61: =INDEX($R$5:U2105,$E61,3) -> 1 | H61: =INDEX($R$5:V2105,$E61,4) -> 0 | I61: 0 | J61: 0 | K61: 0 | L61: =$J61/hátizsák!$H$10 -> 0 | R61: 57 | S61: bőrsisak | T61: 1 | U61: 5 | V61: +1 AC
B62: 0 | D62: 6. | E62: 13 | F62: kőkalapács | G62: =INDEX($R$5:U2106,$E62,3) -> 1 | H62: =INDEX($R$5:V2106,$E62,4) -> 0 | I62: 0 | J62: 0 | K62: 0 | L62: =$J62/hátizsák!$H$10 -> 0 | R62: 58 | S62: ködmangócserje | T62: - | U62: 0 | V62: -
B63: 0 | D63: 7. | E63: 13 | F63: kőkalapács | G63: =INDEX($R$5:U2107,$E63,3) -> 1 | H63: =INDEX($R$5:V2107,$E63,4) -> 0 | I63: 0 | J63: 0 | K63: 0 | L63: =$J63/hátizsák!$H$10 -> 0 | R63: 59 | S63: ködmangó | T63: - | U63: 0 | V63: -
B64: 0 | D64: 8. | E64: 13 | F64: kőkalapács | G64: =INDEX($R$5:U2108,$E64,3) -> 1 | H64: =INDEX($R$5:V2108,$E64,4) -> 0 | I64: 0 | J64: 0 | K64: 0 | L64: =$J64/hátizsák!$H$10 -> 0 | R64: 60 | S64: ködkapu | T64: - | U64: 0 | V64: -
B65: 0 | D65: 9. | E65: 13 | F65: kőkalapács | G65: =INDEX($R$5:U2109,$E65,3) -> 1 | H65: =INDEX($R$5:V2109,$E65,4) -> 0 | I65: 0 | J65: 0 | K65: 0 | L65: =$J65/hátizsák!$H$10 -> 0 | R65: 61 | S65: árnyéksár | T65: - | U65: 0 | V65: -
B66: 0 | D66: 10. | E66: 13 | F66: kőkalapács | G66: =INDEX($R$5:U2110,$E66,3) -> 1 | H66: =INDEX($R$5:V2110,$E66,4) -> 0 | I66: 0 | J66: 0 | K66: 0 | L66: =$J66/hátizsák!$H$10 -> 0 | R66: 62 | S66: ködcsillag | T66: - | U66: 0 | V66: -
B67: 0 | D67: 11. | E67: 13 | F67: kőkalapács | G67: =INDEX($R$5:U2111,$E67,3) -> 1 | H67: =INDEX($R$5:V2111,$E67,4) -> 0 | I67: 0 | J67: 0 | K67: 0 | L67: =$J67/hátizsák!$H$10 -> 0 | R67: 63 | S67: tigroszlán fog | T67: 0.05 | U67: 1 | V67: -
B68: 0 | D68: 12. | E68: 13 | F68: kőkalapács | G68: =INDEX($R$5:U2112,$E68,3) -> 1 | H68: =INDEX($R$5:V2112,$E68,4) -> 0 | I68: 0 | J68: 0 | K68: 0 | L68: =$J68/hátizsák!$H$10 -> 0 | R68: 64 | S68: csontszablya | T68: 1.5 | U68: 2 | V68: típus: vágó (balkezes), sebzés: 1d8, áldozati tárgy Dornodonnak
B69: 0 | D69: 13. | E69: 13 | F69: kőkalapács | G69: =INDEX($R$5:U2113,$E69,3) -> 1 | H69: =INDEX($R$5:V2113,$E69,4) -> 0 | I69: 0 | J69: 0 | K69: 0 | L69: =$J69/hátizsák!$H$10 -> 0 | R69: 65 | S69: szöges páncél | T69: 3.4 | U69: 24 | V69: +4 AC
B70: 0 | D70: 14. | E70: 13 | F70: kőkalapács | G70: =INDEX($R$5:U2114,$E70,3) -> 1 | H70: =INDEX($R$5:V2114,$E70,4) -> 0 | I70: 0 | J70: 0 | K70: 0 | L70: =$J70/hátizsák!$H$10 -> 0 | R70: 66 | S70: szöges bőrpajzs | T70: 2.2 | U70: 16 | V70: +2 AC
B71: 0 | D71: 15. | E71: 13 | F71: kőkalapács | G71: =INDEX($R$5:U2115,$E71,3) -> 1 | H71: =INDEX($R$5:V2115,$E71,4) -> 0 | I71: 0 | J71: 0 | K71: 0 | L71: =$J71/hátizsák!$H$10 -> 0 | R71: 67 | S71: kék orchideacserje | T71: - | U71: 0 | V71: -
B72: 0 | D72: 16. | E72: 13 | F72: kőkalapács | G72: =INDEX($R$5:U2116,$E72,3) -> 1 | H72: =INDEX($R$5:V2116,$E72,4) -> 0 | I72: 0 | J72: 0 | K72: 0 | L72: =$J72/hátizsák!$H$10 -> 0 | R72: 68 | S72: kék orchidea | T72: 0.08 | U72: 4 | V72: -
B73: 0 | D73: 17. | E73: 13 | F73: kőkalapács | G73: =INDEX($R$5:U2117,$E73,3) -> 1 | H73: =INDEX($R$5:V2117,$E73,4) -> 0 | I73: 0 | J73: 0 | K73: 0 | L73: =$J73/hátizsák!$H$10 -> 0 | R73: 69 | S73: szárnyas hernyó | T73: 0.1 | U73: 2 | V73: áldozati tárgy Sherannak
B74: 0 | D74: 18. | E74: 13 | F74: kőkalapács | G74: =INDEX($R$5:U2118,$E74,3) -> 1 | H74: =INDEX($R$5:V2118,$E74,4) -> 0 | I74: 0 | J74: 0 | K74: 0 | L74: =$J74/hátizsák!$H$10 -> 0 | R74: 70 | S74: rézdarab | T74: 0.3 | U74: 1 | V74: -
B75: 0 | D75: 19. | E75: 13 | F75: kőkalapács | G75: =INDEX($R$5:U2119,$E75,3) -> 1 | H75: =INDEX($R$5:V2119,$E75,4) -> 0 | I75: 0 | J75: 0 | K75: 0 | L75: =$J75/hátizsák!$H$10 -> 0 | R75: 71 | S75: rézpáncél | T75: 5.4 | U75: 24 | V75: +5 AC
B76: 0 | D76: 20. | E76: 13 | F76: kőkalapács | G76: =INDEX($R$5:U2120,$E76,3) -> 1 | H76: =INDEX($R$5:V2120,$E76,4) -> 0 | I76: 0 | J76: 0 | K76: 0 | L76: =$J76/hátizsák!$H$10 -> 0 | R76: 72 | S76: rézsisak | T76: 0.9 | U76: 7 | V76: +2 AC
F77: ÖSSZESEN | G77: lefoglalt tárhely: | I77: =SUM(B57:B76) -> 3 | J77: =SUM(J57:J76) -> 12.2 | K77: =SUM(K57:K76) -> 200 | L77: =SUM(L57:L76) -> 0.0976 | R77: 73 | S77: rézpajzs | T77: 1.5 | U77: 14 | V77: +3 AC
R78: 74 | S78: csontkulcs | T78: 0.06 | U78: 4 | V78: -
R79: 75 | S79: rézkulcs | T79: 0.08 | U79: 6 | V79: -
R80: 76 | S80: bronzkulcs | T80: 0.1 | U80: 9 | V80: -
D81: lőfegyverek | R81: 77 | S81: rát-fa | T81: - | U81: 0 | V81: másznivaló, min. mászás: 0
D82: tárhely | E82: # tágy | F82: tárgy neve | G82: súly/db | H82: ap/db | I82: készlet | J82: tétel súlya | K82: tétel értéke | L82: zsákban foglalt % | R82: 78 | S82: mászókarom | T82: 0.2 | U82: 10 | V82: +4 sebzés ököllel
B83: =IF(I83>0,1,IF(I83=0,0)) -> 1 | D83: 1. | E83: 20 | F83: =INDEX($R$5:$U$2046,$E83,2) -> fúvócső | G83: =INDEX($R$5:U2127,$E83,3) -> 0.1 | H83: =INDEX($R$5:V2127,$E83,4) -> 4 | I83: 1 | J83: =G83*I83 -> 0.1 | K83: =H83*I83 -> 4 | L83: =$J83/hátizsák!$H$10 -> 0.0008 | R83: 79 | S83: korongfa | T83: - | U83: 0 | V83: másznivaló, min. mászás: ?
B84: 1 | D84: 2. | E84: 107 | F84: rövid íj | G84: =INDEX($R$5:U2128,$E84,3) -> 1 | H84: =INDEX($R$5:V2128,$E84,4) -> 8 | I84: 1 | J84: =G84*I84 -> 1 | K84: =H84*I84 -> 8 | L84: =$J84/hátizsák!$H$10 -> 0.008 | R84: 80 | S84: lapkorong | T84: 0.08 | U84: 2 | V84: -
B85: 0 | D85: 3. | E85: 20 | F85: fúvócső | G85: =INDEX($R$5:U2129,$E85,3) -> 0.1 | H85: =INDEX($R$5:V2129,$E85,4) -> 4 | I85: 0 | J85: 0 | K85: 0 | L85: =$J85/hátizsák!$H$10 -> 0 | R85: 81 | S85: mérleg | T85: 0.24 | U85: 8 | V85: áldozati tárgy Fairlightnak
B86: 0 | D86: 4. | E86: 20 | F86: fúvócső | G86: =INDEX($R$5:U2130,$E86,3) -> 0.1 | H86: =INDEX($R$5:V2130,$E86,4) -> 4 | I86: 0 | J86: 0 | K86: 0 | L86: =$J86/hátizsák!$H$10 -> 0 | R86: 82 | S86: zöld üveg | T86: 0.1 | U86: 3 | V86: 20 ragasztó tárolására
B87: 0 | D87: 5. | E87: 20 | F87: fúvócső | G87: =INDEX($R$5:U2131,$E87,3) -> 0.1 | H87: =INDEX($R$5:V2131,$E87,4) -> 4 | I87: 0 | J87: 0 | K87: 0 | L87: =$J87/hátizsák!$H$10 -> 0 | R87: 83 | S87: ragasztó | T87: 0.01 | U87: 1 | V87: áldozati tárgy Eleniosnak
B88: 0 | D88: 6. | E88: 20 | F88: fúvócső | G88: =INDEX($R$5:U2132,$E88,3) -> 0.1 | H88: =INDEX($R$5:V2132,$E88,4) -> 4 | I88: 0 | J88: 0 | K88: 0 | L88: =$J88/hátizsák!$H$10 -> 0 | R88: 84 | S88: díszes rézpajzs | T88: 3 | U88: 2 | V88: +4 AC
B89: 0 | D89: 7. | E89: 20 | F89: fúvócső | G89: =INDEX($R$5:U2133,$E89,3) -> 0.1 | H89: =INDEX($R$5:V2133,$E89,4) -> 4 | I89: 0 | J89: 0 | K89: 0 | L89: =$J89/hátizsák!$H$10 -> 0 | R89: 85 | S89: óndarab | T89: 0.3 | U89: 0 | V89: -
B90: 0 | D90: 8. | E90: 20 | F90: fúvócső | G90: =INDEX($R$5:U2134,$E90,3) -> 0.1 | H90: =INDEX($R$5:V2134,$E90,4) -> 4 | I90: 0 | J90: 0 | K90: 0 | L90: =$J90/hátizsák!$H$10 -> 0 | R90: 86 | S90: olvasztókemence | T90: - | U90: 0 | V90: -
B91: 0 | D91: 9. | E91: 20 | F91: fúvócső | G91: =INDEX($R$5:U2135,$E91,3) -> 0.1 | H91: =INDEX($R$5:V2135,$E91,4) -> 4 | I91: 0 | J91: 0 | K91: 0 | L91: =$J91/hátizsák!$H$10 -> 0 | R91: 87 | S91: bronzhegyű lándzsa | T91: 3 | U91: 10 | V91: típus: szúró, sebzés: 3d6+3
B92: 0 | D92: 10. | E92: 20 | F92: fúvócső | G92: =INDEX($R$5:U2136,$E92,3) -> 0.1 | H92: =INDEX($R$5:V2136,$E92,4) -> 4 | I92: 0 | J92: 0 | K92: 0 | L92: =$J92/hátizsák!$H$10 -> 0 | R92: 88 | S92: bronzsisak | T92: 1.2 | U92: 9 | V92: +3 AC
B93: 0 | D93: 11. | E93: 20 | F93: fúvócső | G93: =INDEX($R$5:U2137,$E93,3) -> 0.1 | H93: =INDEX($R$5:V2137,$E93,4) -> 4 | I93: 0 | J93: 0 | K93: 0 | L93: =$J93/hátizsák!$H$10 -> 0 | R93: 89 | S93: bronzpajzs | T93: 2 | U93: 16 | V93: +5 AC
B94: 0 | D94: 12. | E94: 20 | F94: fúvócső | G94: =INDEX($R$5:U2138,$E94,3) -> 0.1 | H94: =INDEX($R$5:V2138,$E94,4) -> 4 | I94: 0 | J94: 0 | K94: 0 | L94: =$J94/hátizsák!$H$10 -> 0 | R94: 90 | S94: bronzpáncél | T94: 7 | U94: 32 | V94: +7 AC
B95: 0 | D95: 13. | E95: 20 | F95: fúvócső | G95: =INDEX($R$5:U2139,$E95,3) -> 0.1 | H95: =INDEX($R$5:V2139,$E95,4) -> 4 | I95: 0 | J95: 0 | K95: 0 | L95: =$J95/hátizsák!$H$10 -> 0 | R95: 91 | S95: manilla-fa | T95: - | U95: 0 | V95: -
B96: 0 | D96: 14. | E96: 20 | F96: fúvócső | G96: =INDEX($R$5:U2140,$E96,3) -> 0.1 | H96: =INDEX($R$5:V2140,$E96,4) -> 4 | I96: 0 | J96: 0 | K96: 0 | L96: =$J96/hátizsák!$H$10 -> 0 | R96: 92 | S96: kötél | T96: 1 | U96: 1 | V96: -
B97: 0 | D97: 15. | E97: 20 | F97: fúvócső | G97: =INDEX($R$5:U2141,$E97,3) -> 0.1 | H97: =INDEX($R$5:V2141,$E97,4) -> 4 | I97: 0 | J97: 0 | K97: 0 | L97: =$J97/hátizsák!$H$10 -> 0 | R97: 93 | S97: mély kút | T97: - | U97: 0 | V97: másznivaló, min. mászás: 2
B98: 0 | D98: 16. | E98: 20 | F98: fúvócső | G98: =INDEX($R$5:U2142,$E98,3) -> 0.1 | H98: =INDEX($R$5:V2142,$E98,4) -> 4 | I98: 0 | J98: 0 | K98: 0 | L98: =$J98/hátizsák!$H$10 -> 0 | R98: 94 | S98: bronzhegyű nyíl | T98: 0.08 | U98: 5 | V98: típus: lövedék (szúró), sebzés: 2d6+4
B99: 0 | D99: 17. | E99: 20 | F99: fúvócső | G99: =INDEX($R$5:U2143,$E99,3) -> 0.1 | H99: =INDEX($R$5:V2143,$E99,4) -> 4 | I99: 0 | J99: 0 | K99: 0 | L99: =$J99/hátizsák!$H$10 -> 0 | R99: 95 | S99: bakkura bőr | T99: 0.4 | U99: 2 | V99: -
B100: 0 | D100: 18. | E100: 20 | F100: fúvócső | G100: =INDEX($R$5:U2144,$E100,3) -> 0.1 | H100: =INDEX($R$5:V2144,$E100,4) -> 4 | I100: 0 | J100: 0 | K100: 0 | L100: =$J100/hátizsák!$H$10 -> 0 | R100: 96 | S100: bakkura csizma | T100: 1.2 | U100: 11 | V100: +2 AC
B101: 0 | D101: 19. | E101: 20 | F101: fúvócső | G101: =INDEX($R$5:U2145,$E101,3) -> 0.1 | H101: =INDEX($R$5:V2145,$E101,4) -> 4 | I101: 0 | J101: 0 | K101: 0 | L101: =$J101/hátizsák!$H$10 -> 0 | R101: 97 | S101: rákpáncél | T101: 0.4 | U101: 4 | V101: -
B102: 0 | D102: 20. | E102: 20 | F102: fúvócső | G102: =INDEX($R$5:U2146,$E102,3) -> 0.1 | H102: =INDEX($R$5:V2146,$E102,4) -> 4 | I102: 0 | J102: 0 | K102: 0 | L102: =$J102/hátizsák!$H$10 -> 0 | R102: 98 | S102: rákpajzs | T102: 0.8 | U102: 10 | V102: +4 AC
F103: ÖSSZESEN | G103: lefoglalt tárhely: | I103: =SUM(B83:B102) -> 2 | J103: =SUM(J83:J102) -> 1.1 | K103: =SUM(K83:K102) -> 12 | L103: =SUM(L83:L102) -> 0.0088 | R103: 99 | S103: fekete gyöngy | T103: 0.01 | U103: 6 | V103: áldozati tárgy Leahnak
R104: 100 | S104: aranyló ugarhéj | T104: 0.1 | U104: 4 | V104: 10 tinta tárolására, áldozati tárgy Raiának
R105: 101 | S105: tinta | T105: 0.01 | U105: 1 | V105: -
R106: 102 | S106: vízionár szem | T106: 0.03 | U106: 3 | V106: áldozati tárgy Eleniosnak
D107: lövedékek | R107: 103 | S107: magszim bél | T107: 0.08 | U107: 5 | V107: -
D108: tárhely | E108: # tágy | F108: tárgy neve | G108: súly/db | H108: ap/db | I108: készlet | J108: tétel súlya | K108: tétel értéke | L108: zsákban foglalt % | R108: 104 | S108: fémrúd | T108: 2 | U108: 8 | V108: -
B109: =IF(I109>0,1,IF(I109=0,0)) -> 1 | D109: 1. | E109: 22 | F109: =INDEX($R$5:$U$2046,$E109,2) -> tüske | G109: =INDEX($R$5:U2153,$E109,3) -> 0.03 | H109: =INDEX($R$5:V2153,$E109,4) -> 0 | I109: 15 | J109: =G109*I109 -> 0.45 | K109: =H109*I109 -> 0 | L109: =$J109/hátizsák!$H$10 -> 0.0036 | R109: 105 | S109: evaporőr háj | T109: 0.2 | U109: 5 | V109: -
B110: =IF(I110>0,1,IF(I110=0,0)) -> 0 | D110: 2. | E110: 19 | F110: kerek kő | G110: =INDEX($R$5:U2154,$E110,3) -> 0.15 | H110: =INDEX($R$5:V2154,$E110,4) -> 0 | I110: 0 | J110: =G110*I110 -> 0 | K110: =H110*I110 -> 0 | L110: =$J110/hátizsák!$H$10 -> 0 | R110: 106 | S110: fabontó | T110: 0.1 | U110: 5 | V110: -
B111: 0 | D111: 3. | E111: 19 | F111: kerek kő | G111: =INDEX($R$5:U2155,$E111,3) -> 0.15 | H111: =INDEX($R$5:V2155,$E111,4) -> 0 | I111: 0 | J111: 0 | K111: 0 | L111: =$J111/hátizsák!$H$10 -> 0 | R111: 107 | S111: rövid íj | T111: 1 | U111: 8 | V111: típus: lőfegyver, +2 vadászat
B112: 0 | D112: 4. | E112: 19 | F112: kerek kő | G112: =INDEX($R$5:U2156,$E112,3) -> 0.15 | H112: =INDEX($R$5:V2156,$E112,4) -> 0 | I112: 0 | J112: 0 | K112: 0 | L112: =$J112/hátizsák!$H$10 -> 0 | R112: 108 | S112: nyílvessző | T112: 0.1 | U112: 1 | V112: típus: lövedék (szúró), sebzés: 1d8+2
B113: 0 | D113: 5. | E113: 19 | F113: kerek kő | G113: =INDEX($R$5:U2157,$E113,3) -> 0.15 | H113: =INDEX($R$5:V2157,$E113,4) -> 0 | I113: 0 | J113: 0 | K113: 0 | L113: =$J113/hátizsák!$H$10 -> 0 | R113: 109 | S113: vapárcserje | T113: - | U113: 0 | V113: -
B114: 0 | D114: 6. | E114: 19 | F114: kerek kő | G114: =INDEX($R$5:U2158,$E114,3) -> 0.15 | H114: =INDEX($R$5:V2158,$E114,4) -> 0 | I114: 0 | J114: 0 | K114: 0 | L114: =$J114/hátizsák!$H$10 -> 0 | R114: 110 | S114: vapárág | T114: 2 | U114: 10 | V114: -
B115: 0 | D115: 7. | E115: 19 | F115: kerek kő | G115: =INDEX($R$5:U2159,$E115,3) -> 0.15 | H115: =INDEX($R$5:V2159,$E115,4) -> 0 | I115: 0 | J115: 0 | K115: 0 | L115: =$J115/hátizsák!$H$10 -> 0 | R115: 111 | S115: hosszú íj | T115: 2 | U115: 20 | V115: típus: lőfegyver, +2 támadás
B116: 0 | D116: 8. | E116: 19 | F116: kerek kő | G116: =INDEX($R$5:U2160,$E116,3) -> 0.15 | H116: =INDEX($R$5:V2160,$E116,4) -> 0 | I116: 0 | J116: 0 | K116: 0 | L116: =$J116/hátizsák!$H$10 -> 0 | R116: 112 | S116: madártoll | T116: 0.01 | U116: 1 | V116: áldozati tárgy Raiának
B117: 0 | D117: 9. | E117: 19 | F117: kerek kő | G117: =INDEX($R$5:U2161,$E117,3) -> 0.15 | H117: =INDEX($R$5:V2161,$E117,4) -> 0 | I117: 0 | J117: 0 | K117: 0 | L117: =$J117/hátizsák!$H$10 -> 0 | R117: 113 | S117: xantusz-kaktusz | T117: - | U117: 0 | V117: -
B118: 0 | D118: 10. | E118: 19 | F118: kerek kő | G118: =INDEX($R$5:U2162,$E118,3) -> 0.15 | H118: =INDEX($R$5:V2162,$E118,4) -> 0 | I118: 0 | J118: 0 | K118: 0 | L118: =$J118/hátizsák!$H$10 -> 0 | R118: 114 | S118: kaktusztüske | T118: 0.02 | U118: 0 | V118: áldozati tárgy Fairlightnak
B119: 0 | D119: 11. | E119: 19 | F119: kerek kő | G119: =INDEX($R$5:U2163,$E119,3) -> 0.15 | H119: =INDEX($R$5:V2163,$E119,4) -> 0 | I119: 0 | J119: 0 | K119: 0 | L119: =$J119/hátizsák!$H$10 -> 0 | R119: 115 | S119: móricserje | T119: - | U119: 0 | V119: -
B120: 0 | D120: 12. | E120: 19 | F120: kerek kő | G120: =INDEX($R$5:U2164,$E120,3) -> 0.15 | H120: =INDEX($R$5:V2164,$E120,4) -> 0 | I120: 0 | J120: 0 | K120: 0 | L120: =$J120/hátizsák!$H$10 -> 0 | R120: 116 | S120: móri gyümölcs | T120: 0.1 | U120: 0 | V120: áldozati tárgy Sherannak
B121: 0 | D121: 13. | E121: 19 | F121: kerek kő | G121: =INDEX($R$5:U2165,$E121,3) -> 0.15 | H121: =INDEX($R$5:V2165,$E121,4) -> 0 | I121: 0 | J121: 0 | K121: 0 | L121: =$J121/hátizsák!$H$10 -> 0 | R121: 117 | S121: ezüst nyaklánc | T121: 0.1 | U121: 10 | V121: ékszer
B122: 0 | D122: 14. | E122: 19 | F122: kerek kő | G122: =INDEX($R$5:U2166,$E122,3) -> 0.15 | H122: =INDEX($R$5:V2166,$E122,4) -> 0 | I122: 0 | J122: 0 | K122: 0 | L122: =$J122/hátizsák!$H$10 -> 0 | R122: 118 | S122: púderszikla | T122: - | U122: 0 | V122: -
B123: 0 | D123: 15. | E123: 19 | F123: kerek kő | G123: =INDEX($R$5:U2167,$E123,3) -> 0.15 | H123: =INDEX($R$5:V2167,$E123,4) -> 0 | I123: 0 | J123: 0 | K123: 0 | L123: =$J123/hátizsák!$H$10 -> 0 | R123: 119 | S123: púderkő | T123: 0.1 | U123: 0 | V123: áldozati tárgy Raiának
B124: 0 | D124: 16. | E124: 19 | F124: kerek kő | G124: =INDEX($R$5:U2168,$E124,3) -> 0.15 | H124: =INDEX($R$5:V2168,$E124,4) -> 0 | I124: 0 | J124: 0 | K124: 0 | L124: =$J124/hátizsák!$H$10 -> 0 | R124: 120 | S124: tábla | T124: - | U124: 10 | V124: maximum 70 betűnyi szöveg
B125: 0 | D125: 17. | E125: 19 | F125: kerek kő | G125: =INDEX($R$5:U2169,$E125,3) -> 0.15 | H125: =INDEX($R$5:V2169,$E125,4) -> 0 | I125: 0 | J125: 0 | K125: 0 | L125: =$J125/hátizsák!$H$10 -> 0 | R125: 121 | S125: jellempróba | T125: - | U125: 0 | V125: -
B126: 0 | D126: 18. | E126: 19 | F126: kerek kő | G126: =INDEX($R$5:U2170,$E126,3) -> 0.15 | H126: =INDEX($R$5:V2170,$E126,4) -> 0 | I126: 0 | J126: 0 | K126: 0 | L126: =$J126/hátizsák!$H$10 -> 0 | R126: 122 | S126: dözmöng szív | T126: 0.08 | U126: 3 | V126: -
B127: 0 | D127: 19. | E127: 19 | F127: kerek kő | G127: =INDEX($R$5:U2171,$E127,3) -> 0.15 | H127: =INDEX($R$5:V2171,$E127,4) -> 0 | I127: 0 | J127: 0 | K127: 0 | L127: =$J127/hátizsák!$H$10 -> 0 | R127: 123 | S127: göcsörtös bunkó | T127: 3.5 | U127: 8 | V127: típus: ütő, sebzés: 2d8+4, min. fsz.: 5
B128: 0 | D128: 20. | E128: 19 | F128: kerek kő | G128: =INDEX($R$5:U2172,$E128,3) -> 0.15 | H128: =INDEX($R$5:V2172,$E128,4) -> 0 | I128: 0 | J128: 0 | K128: 0 | L128: =$J128/hátizsák!$H$10 -> 0 | R128: 124 | S128: rókafarok | T128: 0.5 | U128: 3 | V128: áldozati tárgy Sherannak
F129: ÖSSZESEN | G129: lefoglalt tárhely: | I129: =SUM(B109:B128) -> 1 | J129: =SUM(J109:J128) -> 0.45 | K129: =SUM(K109:K128) -> 0 | L129: =SUM(L109:L128) -> 0.0036 | R129: 125 | S129: mandibulapenge | T129: 0.5 | U129: 3 | V129: -
R130: 126 | S130: bronzpenge | T130: 2 | U130: 12 | V130: típus: vágó, sebzés: 2d6+2
R131: 127 | S131: mandibulakasza | T131: 3.5 | U131: 25 | V131: típus: vágó, sebzés: 3d6+3
R132: 128 | S132: sallank karom | T132: 0.15 | U132: 2 | V132: áldozati tárgy Tharrnak
D133: dobófegyverek | R133: 129 | S133: sallank nyíl | T133: 0.25 | U133: 3 | V133: típus: lövedék (szúró), sebzés: 2d8+2
D134: tárhely | E134: # tágy | F134: tárgy neve | G134: súly/db | H134: ap/db | I134: készlet | J134: tétel súlya | K134: tétel értéke | L134: zsákban foglalt % | R134: 130 | S134: hebrencs állkapocs | T134: 0.4 | U134: 4 | V134: -
B135: =IF(I135>0,1,IF(I135=0,0)) -> 0 | D135: 1. | E135: 10 | F135: =INDEX($R$5:$U$2046,$E135,2) -> dárda | G135: =INDEX($R$5:U2179,$E135,3) -> 2 | H135: =INDEX($R$5:V2179,$E135,4) -> 1 | I135: 0 | J135: =G135*I135 -> 0 | K135: =H135*I135 -> 0 | L135: =$J135/hátizsák!$H$10 -> 0 | R135: 131 | S135: ubuk tüske | T135: 0.05 | U135: 1 | V135: típus: lövedék (szúró), sebzés: 1d8
B136: =IF(I136>0,1,IF(I136=0,0)) -> 0 | D136: 2. | E136: 10 | F136: dárda | G136: =INDEX($R$5:U2180,$E136,3) -> 2 | H136: =INDEX($R$5:V2180,$E136,4) -> 1 | I136: 0 | J136: =G136*I136 -> 0 | K136: =H136*I136 -> 0 | L136: =$J136/hátizsák!$H$10 -> 0 | R136: 132 | S136: hóhérbimbó | T136: - | U136: 0 | V136: -
B137: 0 | D137: 3. | E137: 10 | F137: dárda | G137: =INDEX($R$5:U2181,$E137,3) -> 2 | H137: =INDEX($R$5:V2181,$E137,4) -> 1 | I137: 0 | J137: 0 | K137: 0 | L137: =$J137/hátizsák!$H$10 -> 0 | R137: 133 | S137: csuklyavirág | T137: 0.05 | U137: 1 | V137: áldozati tárgy Leahnak
B138: 0 | D138: 4. | E138: 10 | F138: dárda | G138: =INDEX($R$5:U2182,$E138,3) -> 2 | H138: =INDEX($R$5:V2182,$E138,4) -> 1 | I138: 0 | J138: 0 | K138: 0 | L138: =$J138/hátizsák!$H$10 -> 0 | R138: 134 | S138: gyöngymangó bokor | T138: - | U138: 0 | V138: -
B139: 0 | D139: 5. | E139: 10 | F139: dárda | G139: =INDEX($R$5:U2183,$E139,3) -> 2 | H139: =INDEX($R$5:V2183,$E139,4) -> 1 | I139: 0 | J139: 0 | K139: 0 | L139: =$J139/hátizsák!$H$10 -> 0 | R139: 135 | S139: gyöngymangó | T139: 0.1 | U139: 2 | V139: -
B140: 0 | D140: 6. | E140: 10 | F140: dárda | G140: =INDEX($R$5:U2184,$E140,3) -> 2 | H140: =INDEX($R$5:V2184,$E140,4) -> 1 | I140: 0 | J140: 0 | K140: 0 | L140: =$J140/hátizsák!$H$10 -> 0 | R140: 136 | S140: rúnakő | T140: - | U140: 0 | V140: kapcsolat az istenekkel
B141: 0 | D141: 7. | E141: 10 | F141: dárda | G141: =INDEX($R$5:U2185,$E141,3) -> 2 | H141: =INDEX($R$5:V2185,$E141,4) -> 1 | I141: 0 | J141: 0 | K141: 0 | L141: =$J141/hátizsák!$H$10 -> 0 | R141: 137 | S141: mérgezett ubuktüske | T141: 0.05 | U141: 2 | V141: típus: lövedék (szúró), sebzés: 1d8+4
B142: 0 | D142: 8. | E142: 10 | F142: dárda | G142: =INDEX($R$5:U2186,$E142,3) -> 2 | H142: =INDEX($R$5:V2186,$E142,4) -> 1 | I142: 0 | J142: 0 | K142: 0 | L142: =$J142/hátizsák!$H$10 -> 0 | R142: 138 | S142: ubuk dobónyíl | T142: 0.15 | U142: 5 | V142: típus: dobó (szúró), sebzés: 1d8+6
B143: 0 | D143: 9. | E143: 10 | F143: dárda | G143: =INDEX($R$5:U2187,$E143,3) -> 2 | H143: =INDEX($R$5:V2187,$E143,4) -> 1 | I143: 0 | J143: 0 | K143: 0 | L143: =$J143/hátizsák!$H$10 -> 0 | R143: 139 | S143: koponya szimbólum | T143: 0.05 | U143: 10 | V143: csak Leah hívei hordhatják, +4 mentődobás halál és hideg ellen
B144: 0 | D144: 10. | E144: 10 | F144: dárda | G144: =INDEX($R$5:U2188,$E144,3) -> 2 | H144: =INDEX($R$5:V2188,$E144,4) -> 1 | I144: 0 | J144: 0 | K144: 0 | L144: =$J144/hátizsák!$H$10 -> 0 | R144: 140 | S144: denevér szimbólum | T144: 0.04 | U144: 10 | V144: csak Dornodon hívei hordhatják, +2 iq
B145: 0 | D145: 11. | E145: 10 | F145: dárda | G145: =INDEX($R$5:U2189,$E145,3) -> 2 | H145: =INDEX($R$5:V2189,$E145,4) -> 1 | I145: 0 | J145: 0 | K145: 0 | L145: =$J145/hátizsák!$H$10 -> 0 | R145: 141 | S145: nap szimbólum | T145: 0.05 | U145: 10 | V145: csak Raia hívei hordhatják, +4 mentődobás energia ellen
B146: 0 | D146: 12. | E146: 10 | F146: dárda | G146: =INDEX($R$5:U2190,$E146,3) -> 2 | H146: =INDEX($R$5:V2190,$E146,4) -> 1 | I146: 0 | J146: 0 | K146: 0 | L146: =$J146/hátizsák!$H$10 -> 0 | R146: 142 | S146: szem szimbólum | T146: 0.03 | U146: 12 | V146: csak Elenios hívei hordhatják, +4 mentődobás mentális támadás ellen
B147: 0 | D147: 13. | E147: 10 | F147: dárda | G147: =INDEX($R$5:U2191,$E147,3) -> 2 | H147: =INDEX($R$5:V2191,$E147,4) -> 1 | I147: 0 | J147: 0 | K147: 0 | L147: =$J147/hátizsák!$H$10 -> 0 | R147: 143 | S147: virág szimbólum | T147: 0.03 | U147: 8 | V147: csak Sheran hívei hordhatják, +2 eg.
B148: 0 | D148: 14. | E148: 10 | F148: dárda | G148: =INDEX($R$5:U2192,$E148,3) -> 2 | H148: =INDEX($R$5:V2192,$E148,4) -> 1 | I148: 0 | J148: 0 | K148: 0 | L148: =$J148/hátizsák!$H$10 -> 0 | R148: 144 | S148: két kard szimbólum | T148: 0.06 | U148: 10 | V148: csak Tharr hívei hordhatják, +2 erő
B149: 0 | D149: 15. | E149: 10 | F149: dárda | G149: =INDEX($R$5:U2193,$E149,3) -> 2 | H149: =INDEX($R$5:V2193,$E149,4) -> 1 | I149: 0 | J149: 0 | K149: 0 | L149: =$J149/hátizsák!$H$10 -> 0 | R149: 145 | S149: villám szimbólum | T149: 0.04 | U149: 10 | V149: csak Fairlight hívei hordhatják, +2 ügy.
B150: 0 | D150: 16. | E150: 10 | F150: dárda | G150: =INDEX($R$5:U2194,$E150,3) -> 2 | H150: =INDEX($R$5:V2194,$E150,4) -> 1 | I150: 0 | J150: 0 | K150: 0 | L150: =$J150/hátizsák!$H$10 -> 0 | R150: 146 | S150: oltár | T150: - | U150: 0 | V150: imádkozáshoz
B151: 0 | D151: 17. | E151: 10 | F151: dárda | G151: =INDEX($R$5:U2195,$E151,3) -> 2 | H151: =INDEX($R$5:V2195,$E151,4) -> 1 | I151: 0 | J151: 0 | K151: 0 | L151: =$J151/hátizsák!$H$10 -> 0 | R151: 147 | S151: hebrencs csapda | T151: 0.45 | U151: 15 | V151: -
B152: 0 | D152: 18. | E152: 10 | F152: dárda | G152: =INDEX($R$5:U2196,$E152,3) -> 2 | H152: =INDEX($R$5:V2196,$E152,4) -> 1 | I152: 0 | J152: 0 | K152: 0 | L152: =$J152/hátizsák!$H$10 -> 0 | R152: 148 | S152: mocsári penke | T152: 0.01 | U152: 1 | V152: -
B153: 0 | D153: 19. | E153: 10 | F153: dárda | G153: =INDEX($R$5:U2197,$E153,3) -> 2 | H153: =INDEX($R$5:V2197,$E153,4) -> 1 | I153: 0 | J153: 0 | K153: 0 | L153: =$J153/hátizsák!$H$10 -> 0 | R153: 149 | S153: grok-képződmény | T153: - | U153: 0 | V153: másznivaló, min. mászás: 3
B154: 0 | D154: 20. | E154: 10 | F154: dárda | G154: =INDEX($R$5:U2198,$E154,3) -> 2 | H154: =INDEX($R$5:V2198,$E154,4) -> 1 | I154: 0 | J154: 0 | K154: 0 | L154: =$J154/hátizsák!$H$10 -> 0 | R154: 150 | S154: szent jogar | T154: 0.08 | U154: 50 | V154: jó jelleműeket max. ép.-be gyógyít
F155: ÖSSZESEN | G155: lefoglalt tárhely: | I155: =SUM(B135:B154) -> 0 | J155: =SUM(J135:J154) -> 0 | K155: =SUM(K135:K154) -> 0 | L155: =SUM(L135:L154) -> 0 | R155: 151 | S155: szvó-ektoplazma | T155: 0.05 | U155: 10 | V155: -
R156: 152 | S156: vasérc | T156: 0.2 | U156: 2 | V156: -
R157: 153 | S157: pirkit | T157: 0.05 | U157: 2 | V157: -
R158: 154 | S158: mély szakadék | T158: - | U158: 0 | V158: másznivaló, min. mászás: 5
D159: fegyverek összesen | R159: 155 | S159: vaskohó | T159: - | U159: 0 | V159: -
I160: =I155+I129+I103+I77+I51+I25 -> 8 | J160: =J155+J129+J103+J77+J51+J25 -> 16.25 | K160: =K155+K129+K103+K77+K51+K25 -> 230 | L160: 0.13 | R160: 156 | S160: világítótorony | T160: - | U160: 0 | V160: maximum 10 mező távolságra történő információ átadásra
R161: 157 | S161: nyu-shuriken | T161: 0.05 | U161: 12 | V161: típus: dobó (szúró), sebzés: 3d4+2, +3 támadás
R162: 158 | S162: ezüst karkötő | T162: 0.08 | U162: 14 | V162: ékszer
R163: 159 | S163: kis vaspajzs | T163: 2 | U163: 16 | V163: +6 AC, min. bányászat: 3
R164: 160 | S164: vassisak | T164: 0.6 | U164: 18 | V164: +4 AC, min. bányászat: 4
R165: 161 | S165: nagy vaspajzs | T165: 3.2 | U165: 22 | V165: +8 AC, min. bányászat: 3
R166: 162 | S166: borostyán függő | T166: 0.01 | U166: 6 | V166: ékszer
R167: 163 | S167: karócsapda | T167: 1 | U167: 12 | V167: -
R168: 164 | S168: vasvért | T168: 8 | U168: 60 | V168: +10 AC, min. bányászat: 6
R169: 165 | S169: mászókampó | T169: 0.4 | U169: 12 | V169: min. bányászat: 2
R170: 166 | S170: ugh méreg | T170: 0.01 | U170: 2 | V170: -
R171: 167 | S171: sziklafészek | T171: - | U171: 0 | V171: másznivaló, min. mászás: 6
R172: 168 | S172: sullár hólyag | T172: 0.08 | U172: 7 | V172: 20 spiritusz tárolására
R173: 169 | S173: uzbány csőr | T173: 0.15 | U173: 6 | V173: 12 ugh méreg tárolására
R174: 170 | S174: spiritusz | T174: 0.01 | U174: 1 | V174: -
R175: 171 | S175: rövid kard | T175: 1.5 | U175: 16 | V175: típus: vágó (balkezes), sebzés: 3d4+1, min. bányászat: 5
R176: 172 | S176: téfea-agy | T176: 0.3 | U176: 8 | V176: -
R177: 173 | S177: nekrofun | T177: - | U177: 0 | V177: duplázza a varázspont regenerálást
R178: 174 | S178: harci kalapács | T178: 2.2 | U178: 20 | V178: típus: ütő (balkezes), sebzés: 3d4+1, min. bányászat: 3
R179: 175 | S179: márványtorony | T179: - | U179: 0 | V179: másznivaló, min. mászás: 8
R180: 176 | S180: vashegyű nyíl | T180: 0.08 | U180: 5 | V180: típus: lövedék (szúró), sebzés: 3d6+1, min. bányászat: 2
R181: 177 | S181: szopógödör | T181: - | U181: 0 | V181: -
R182: 178 | S182: mínosz-kúp | T182: - | U182: 0 | V182: -
R183: 179 | S183: grifftojás | T183: 0.4 | U183: 10 | V183: -
R184: 180 | S184: ezüst gyűrű | T184: 0.01 | U184: 6 | V184: ékszer
R185: 181 | S185: vasalt bunkó | T185: 4.5 | U185: 35 | V185: típus: ütő, sebzés: 4d6+4, min. fsz.: 10, min. bányászat: 4
R186: 182 | S186: vashegyű lándzsa | T186: 2 | U186: 18 | V186: típus: szúró, sebzés: 4d6+1, min. fsz.: 10, +2 támadás, min. bányászat: 2
R187: 183 | S187: vaskulcs | T187: 0.08 | U187: 10 | V187: -
R188: 184 | S188: ezüst kulcs | T188: 0.04 | U188: 12 | V188: -
R189: 185 | S189: nagy bronzkulcs | T189: 0.12 | U189: 14 | V189: -
R190: 186 | S190: nagy vaskulcs | T190: 0.15 | U190: 16 | V190: -
R191: 187 | S191: mérgezett vashegyű nyíl | T191: 0.08 | U191: 8 | V191: típus: lövedék (szúró), sebzés: 3d6+7
R192: 188 | S192: mérgezett ubuk dobónyíl | T192: 0.15 | U192: 7 | V192: típus: dobó (szúró), sebzés: 1d8+10
R193: 189 | S193: vas dobónyíl | T193: 0.1 | U193: 7 | V193: típus: dobó (szúró), sebzés: 2d6+4, +2 támadás, min. bányászat: 3
R194: 190 | S194: mérgezett vas dobónyíl | T194: 0.1 | U194: 10 | V194: típus: dobó (szúró), sebzés: 2d6+10, +2 támadás
R195: 191 | S195: aranylánc | T195: 0.15 | U195: 20 | V195: ékszer
R196: 192 | S196: gyöngysor | T196: 0.25 | U196: 48 | V196: ékszer
R197: 193 | S197: aranygyűrű | T197: 0.02 | U197: 12 | V197: ékszer
R198: 194 | S198: arany karperec | T198: 0.12 | U198: 26 | V198: ékszer
R199: 195 | S199: obszidián függő | T199: 0.01 | U199: 10 | V199: ékszer
R200: 196 | S200: trófea nyaklánc | T200: 0.38 | U200: 30 | V200: ékszer
R201: 197 | S201: igazgyöngy fülbevaló | T201: 0.02 | U201: 20 | V201: ékszer
R202: 198 | S202: trikornis szarv | T202: 0.2 | U202: 12 | V202: -
... 1844 more rows

Sheet pajzsok,páncélok,ruhák
D3: Pajzsok
D4: tárhely | E4: # tágy | F4: tárgy neve | G4: súly/db | H4: ap/db | I4: készlet | J4: tétel súlya | K4: tétel értéke | L4: zsákban foglalt % | R4: # | S4: Tárgy | T4: Súly | U4: EA | V4: Egyéb
B5: =IF(I5>0,1,IF(I5=0,0)) -> 0 | D5: 1. | E5: 45 | F5: =INDEX($R$5:$U$2046,$E5,2) -> kis bőrpajzs | G5: =INDEX($R$5:U2046,$E5,3) -> 2 | H5: =INDEX($R$5:V2046,$E5,4) -> 5 | I5: 0 | J5: =G5*I5 -> 0 | K5: =H5*I5 -> 0 | L5: =$J5/hátizsák!$H$10 -> 0 | R5: 1 | S5: deus ex machina | T5: 0.1 | U5: 25 | V5: megmenti az életed, ha meghalnál
B6: =IF(I6>0,1,IF(I6=0,0)) -> 0 | D6: 2. | E6: 45 | F6: kis bőrpajzs | G6: =INDEX($R$5:U2050,$E6,3) -> 2 | H6: =INDEX($R$5:V2050,$E6,4) -> 5 | I6: 0 | J6: =G6*I6 -> 0 | K6: =H6*I6 -> 0 | L6: =$J6/hátizsák!$H$10 -> 0 | R6: 2 | S6: kaja | T6: 0.3 | U6: 1 | V6: -
B7: 0 | D7: 3. | E7: 45 | F7: kis bőrpajzs | G7: =INDEX($R$5:U2051,$E7,3) -> 2 | H7: =INDEX($R$5:V2051,$E7,4) -> 5 | I7: 0 | J7: 0 | K7: 0 | L7: =$J7/hátizsák!$H$10 -> 0 | R7: 3 | S7: vizestömlő | T7: 0.2 | U7: 7 | V7: 20 víz tárolására
B8: 0 | D8: 4. | E8: 45 | F8: kis bőrpajzs | G8: =INDEX($R$5:U2052,$E8,3) -> 2 | H8: =INDEX($R$5:V2052,$E8,4) -> 5 | I8: 0 | J8: 0 | K8: 0 | L8: =$J8/hátizsák!$H$10 -> 0 | R8: 4 | S8: bot | T8: 3 | U8: 0 | V8: típus: ütő, sebzés: 1d6
B9: 0 | D9: 5. | E9: 45 | F9: kis bőrpajzs | G9: =INDEX($R$5:U2053,$E9,3) -> 2 | H9: =INDEX($R$5:V2053,$E9,4) -> 5 | I9: 0 | J9: 0 | K9: 0 | L9: =$J9/hátizsák!$H$10 -> 0 | R9: 5 | S9: bunkó | T9: 5 | U9: 0 | V9: típus: ütő, sebzés: 1d6
B10: 0 | D10: 6. | E10: 45 | F10: kis bőrpajzs | G10: =INDEX($R$5:U2054,$E10,3) -> 2 | H10: =INDEX($R$5:V2054,$E10,4) -> 5 | I10: 0 | J10: 0 | K10: 0 | L10: =$J10/hátizsák!$H$10 -> 0 | R10: 6 | S10: kőkés | T10: 0.5 | U10: 0 | V10: típus: vágó (balkezes), sebzés: 1d4
B11: 0 | D11: 7. | E11: 45 | F11: kis bőrpajzs | G11: =INDEX($R$5:U2055,$E11,3) -> 2 | H11: =INDEX($R$5:V2055,$E11,4) -> 5 | I11: 0 | J11: 0 | K11: 0 | L11: =$J11/hátizsák!$H$10 -> 0 | R11: 7 | S11: kőhegyű lándzsa | T11: 3.5 | U11: 1 | V11: típus: szúró, sebzés: 2d4+2
B12: 0 | D12: 8. | E12: 45 | F12: kis bőrpajzs | G12: =INDEX($R$5:U2056,$E12,3) -> 2 | H12: =INDEX($R$5:V2056,$E12,4) -> 5 | I12: 0 | J12: 0 | K12: 0 | L12: =$J12/hátizsák!$H$10 -> 0 | R12: 8 | S12: szöges bunkó | T12: 5.2 | U12: 10 | V12: típus: ütő, sebzés: 3d6+2
B13: 0 | D13: 9. | E13: 45 | F13: kis bőrpajzs | G13: =INDEX($R$5:U2057,$E13,3) -> 2 | H13: =INDEX($R$5:V2057,$E13,4) -> 5 | I13: 0 | J13: 0 | K13: 0 | L13: =$J13/hátizsák!$H$10 -> 0 | R13: 9 | S13: bunkósbot | T13: 3.5 | U13: 1 | V13: típus: ütő, sebzés: 2d4+2
B14: 0 | D14: 10. | E14: 45 | F14: kis bőrpajzs | G14: =INDEX($R$5:U2058,$E14,3) -> 2 | H14: =INDEX($R$5:V2058,$E14,4) -> 5 | I14: 0 | J14: 0 | K14: 0 | L14: =$J14/hátizsák!$H$10 -> 0 | R14: 10 | S14: dárda | T14: 2 | U14: 1 | V14: típus: dobó (szúró), sebzés: 1d6, +1 vadászat
B15: 0 | D15: 11. | E15: 45 | F15: kis bőrpajzs | G15: =INDEX($R$5:U2059,$E15,3) -> 2 | H15: =INDEX($R$5:V2059,$E15,4) -> 5 | I15: 0 | J15: 0 | K15: 0 | L15: =$J15/hátizsák!$H$10 -> 0 | R15: 11 | S15: csontkés | T15: 0.3 | U15: 2 | V15: típus: szúró (balkezes), sebzés: 1d4+3
B16: 0 | D16: 12. | E16: 45 | F16: kis bőrpajzs | G16: =INDEX($R$5:U2060,$E16,3) -> 2 | H16: =INDEX($R$5:V2060,$E16,4) -> 5 | I16: 0 | J16: 0 | K16: 0 | L16: =$J16/hátizsák!$H$10 -> 0 | R16: 12 | S16: csontszurony | T16: 3.3 | U16: 2 | V16: típus: szúró, sebzés: 3d4+2
B17: 0 | D17: 13. | E17: 45 | F17: kis bőrpajzs | G17: =INDEX($R$5:U2061,$E17,3) -> 2 | H17: =INDEX($R$5:V2061,$E17,4) -> 5 | I17: 0 | J17: 0 | K17: 0 | L17: =$J17/hátizsák!$H$10 -> 0 | R17: 13 | S17: kőkalapács | T17: 1 | U17: 0 | V17: típus: ütő (balkezes), sebzés: 1d6
B18: 0 | D18: 14. | E18: 45 | F18: kis bőrpajzs | G18: =INDEX($R$5:U2062,$E18,3) -> 2 | H18: =INDEX($R$5:V2062,$E18,4) -> 5 | I18: 0 | J18: 0 | K18: 0 | L18: =$J18/hátizsák!$H$10 -> 0 | R18: 14 | S18: sünmedve tüske | T18: 0.03 | U18: 1 | V18: -
B19: 0 | D19: 15. | E19: 45 | F19: kis bőrpajzs | G19: =INDEX($R$5:U2063,$E19,3) -> 2 | H19: =INDEX($R$5:V2063,$E19,4) -> 5 | I19: 0 | J19: 0 | K19: 0 | L19: =$J19/hátizsák!$H$10 -> 0 | R19: 15 | S19: vadász tatu bőr | T19: 1 | U19: 1 | V19: -
B20: 0 | D20: 16. | E20: 45 | F20: kis bőrpajzs | G20: =INDEX($R$5:U2064,$E20,3) -> 2 | H20: =INDEX($R$5:V2064,$E20,4) -> 5 | I20: 0 | J20: 0 | K20: 0 | L20: =$J20/hátizsák!$H$10 -> 0 | R20: 16 | S20: bordacsont | T20: 0.4 | U20: 2 | V20: áldozati tárgy Leahnak
B21: 0 | D21: 17. | E21: 45 | F21: kis bőrpajzs | G21: =INDEX($R$5:U2065,$E21,3) -> 2 | H21: =INDEX($R$5:V2065,$E21,4) -> 5 | I21: 0 | J21: 0 | K21: 0 | L21: =$J21/hátizsák!$H$10 -> 0 | R21: 17 | S21: szögletes kő | T21: 0.5 | U21: 0 | V21: -
B22: 0 | D22: 18. | E22: 45 | F22: kis bőrpajzs | G22: =INDEX($R$5:U2066,$E22,3) -> 2 | H22: =INDEX($R$5:V2066,$E22,4) -> 5 | I22: 0 | J22: 0 | K22: 0 | L22: =$J22/hátizsák!$H$10 -> 0 | R22: 18 | S22: parittya | T22: 0.1 | U22: 0 | V22: típus: lőfegyver
B23: 0 | D23: 19. | E23: 45 | F23: kis bőrpajzs | G23: =INDEX($R$5:U2067,$E23,3) -> 2 | H23: =INDEX($R$5:V2067,$E23,4) -> 5 | I23: 0 | J23: 0 | K23: 0 | L23: =$J23/hátizsák!$H$10 -> 0 | R23: 19 | S23: kerek kő | T23: 0.15 | U23: 0 | V23: típus: lövedék (ütő), sebzés: 1d4
B24: 0 | D24: 20. | E24: 45 | F24: kis bőrpajzs | G24: =INDEX($R$5:U2068,$E24,3) -> 2 | H24: =INDEX($R$5:V2068,$E24,4) -> 5 | I24: 0 | J24: 0 | K24: 0 | L24: =$J24/hátizsák!$H$10 -> 0 | R24: 20 | S24: fúvócső | T24: 0.1 | U24: 4 | V24: típus: lőfegyver, +2 támadás
F25: ÖSSZESEN | G25: lefoglalt tárhely: | I25: =SUM(B5:B24) -> 0 | J25: =SUM(J5:J24) -> 0 | K25: =SUM(K5:K24) -> 0 | L25: =$J25/hátizsák!$H$10 -> 0 | R25: 21 | S25: ormánygőte csont | T25: 0.2 | U25: 3 | V25: -
R26: 22 | S26: tüske | T26: 0.03 | U26: 0 | V26: típus: lövedék (szúró), sebzés: 1d3
R27: 23 | S27: mérgezett tüske | T27: 0.03 | U27: 1 | V27: típus: lövedék (szúró), sebzés: 1d3+4
R28: 24 | S28: kavadu lebeny | T28: 0.2 | U28: 2 | V28: -
D29: páncélok | R29: 25 | S29: kavadu iszák | T29: 0.1 | U29: 2 | V29: 10 gyenge méreg tárolására
D30: tárhely | E30: # tágy | F30: tárgy neve | G30: súly/db | H30: ap/db | I30: készlet | J30: tétel súlya | K30: tétel értéke | L30: zsákban foglalt % | R30: 26 | S30: gyenge méreg | T30: 0.01 | U30: 1 | V30: áldozati tárgy Dornodonnak
B31: =IF(I31>0,1,IF(I31=0,0)) -> 1 | D31: 1. | E31: 1562 | F31: =INDEX($R$5:$U$2046,$E31,2) -> Métely páncélja | G31: =INDEX($R$5:U2075,$E31,3) -> 4.5 | H31: =INDEX($R$5:V2075,$E31,4) -> 120 | I31: 1 | J31: =G31*I31 -> 4.5 | K31: =H31*I31 -> 120 | L31: =$J31/hátizsák!$H$10 -> 0.036 | R31: 27 | S31: víz | T31: 0.01 | U31: 0 | V31: -
B32: =IF(I32>0,1,IF(I32=0,0)) -> 0 | D32: 2. | E32: 51 | F32: bőrpáncél | G32: =INDEX($R$5:U2076,$E32,3) -> 3 | H32: =INDEX($R$5:V2076,$E32,4) -> 5 | I32: 0 | J32: 0 | K32: 0 | L32: =$J32/hátizsák!$H$10 -> 0 | R32: 28 | S32: ököl | T32: - | U32: 0 | V32: típus: ütő, sebzés: 1d3
B33: 0 | D33: 3. | E33: 51 | F33: bőrpáncél | G33: =INDEX($R$5:U2077,$E33,3) -> 3 | H33: =INDEX($R$5:V2077,$E33,4) -> 5 | I33: 0 | J33: 0 | K33: 0 | L33: =$J33/hátizsák!$H$10 -> 0 | R33: 29 | S33: smirglilevél | T33: 0.05 | U33: 0 | V33: -
B34: 0 | D34: 4. | E34: 51 | F34: bőrpáncél | G34: =INDEX($R$5:U2078,$E34,3) -> 3 | H34: =INDEX($R$5:V2078,$E34,4) -> 5 | I34: 0 | J34: 0 | K34: 0 | L34: =$J34/hátizsák!$H$10 -> 0 | R34: 30 | S34: varányszem | T34: 0.02 | U34: 1 | V34: -
B35: 0 | D35: 5. | E35: 51 | F35: bőrpáncél | G35: =INDEX($R$5:U2079,$E35,3) -> 3 | H35: =INDEX($R$5:V2079,$E35,4) -> 5 | I35: 0 | J35: 0 | K35: 0 | L35: =$J35/hátizsák!$H$10 -> 0 | R35: 31 | S35: smirglibokor | T35: - | U35: 0 | V35: -
B36: 0 | D36: 6. | E36: 51 | F36: bőrpáncél | G36: =INDEX($R$5:U2080,$E36,3) -> 3 | H36: =INDEX($R$5:V2080,$E36,4) -> 5 | I36: 0 | J36: 0 | K36: 0 | L36: =$J36/hátizsák!$H$10 -> 0 | R36: 32 | S36: szeksztáns | T36: 0.2 | U36: 20 | V36: abszolút koordináta meghatározására
B37: 0 | D37: 7. | E37: 51 | F37: bőrpáncél | G37: =INDEX($R$5:U2081,$E37,3) -> 3 | H37: =INDEX($R$5:V2081,$E37,4) -> 5 | I37: 0 | J37: 0 | K37: 0 | L37: =$J37/hátizsák!$H$10 -> 0 | R37: 33 | S37: lapockacsont | T37: 1 | U37: 4 | V37: -
B38: 0 | D38: 8. | E38: 51 | F38: bőrpáncél | G38: =INDEX($R$5:U2082,$E38,3) -> 3 | H38: =INDEX($R$5:V2082,$E38,4) -> 5 | I38: 0 | J38: 0 | K38: 0 | L38: =$J38/hátizsák!$H$10 -> 0 | R38: 34 | S38: ásó | T38: 3 | U38: 5 | V38: típus: ütő, sebzés: 1d2
B39: 0 | D39: 9. | E39: 51 | F39: bőrpáncél | G39: =INDEX($R$5:U2083,$E39,3) -> 3 | H39: =INDEX($R$5:V2083,$E39,4) -> 5 | I39: 0 | J39: 0 | K39: 0 | L39: =$J39/hátizsák!$H$10 -> 0 | R39: 35 | S39: tűzbokor | T39: - | U39: 0 | V39: -
B40: 0 | D40: 10. | E40: 51 | F40: bőrpáncél | G40: =INDEX($R$5:U2084,$E40,3) -> 3 | H40: =INDEX($R$5:V2084,$E40,4) -> 5 | I40: 0 | J40: 0 | K40: 0 | L40: =$J40/hátizsák!$H$10 -> 0 | R40: 36 | S40: fáklya | T40: 0.3 | U40: 0 | V40: áldozati tárgy Tharrnak
B41: 0 | D41: 11. | E41: 51 | F41: bőrpáncél | G41: =INDEX($R$5:U2085,$E41,3) -> 3 | H41: =INDEX($R$5:V2085,$E41,4) -> 5 | I41: 0 | J41: 0 | K41: 0 | L41: =$J41/hátizsák!$H$10 -> 0 | R41: 37 | S41: drótszőr | T41: 0.05 | U41: 2 | V41: -
B42: 0 | D42: 12. | E42: 51 | F42: bőrpáncél | G42: =INDEX($R$5:U2086,$E42,3) -> 3 | H42: =INDEX($R$5:V2086,$E42,4) -> 5 | I42: 0 | J42: 0 | K42: 0 | L42: =$J42/hátizsák!$H$10 -> 0 | R42: 38 | S42: gumifa | T42: - | U42: 0 | V42: -
B43: 0 | D43: 13. | E43: 51 | F43: bőrpáncél | G43: =INDEX($R$5:U2087,$E43,3) -> 3 | H43: =INDEX($R$5:V2087,$E43,4) -> 5 | I43: 0 | J43: 0 | K43: 0 | L43: =$J43/hátizsák!$H$10 -> 0 | R43: 39 | S43: zárnyitó készlet | T43: 0.2 | U43: 12 | V43: -
B44: 0 | D44: 14. | E44: 51 | F44: bőrpáncél | G44: =INDEX($R$5:U2088,$E44,3) -> 3 | H44: =INDEX($R$5:V2088,$E44,4) -> 5 | I44: 0 | J44: 0 | K44: 0 | L44: =$J44/hátizsák!$H$10 -> 0 | R44: 40 | S44: kis vaskulcs | T44: 0.08 | U44: 3 | V44: -
B45: 0 | D45: 15. | E45: 51 | F45: bőrpáncél | G45: =INDEX($R$5:U2089,$E45,3) -> 3 | H45: =INDEX($R$5:V2089,$E45,4) -> 5 | I45: 0 | J45: 0 | K45: 0 | L45: =$J45/hátizsák!$H$10 -> 0 | R45: 41 | S45: grákóbőr | T45: 0.1 | U45: 3 | V45: -
B46: 0 | D46: 16. | E46: 51 | F46: bőrpáncél | G46: =INDEX($R$5:U2090,$E46,3) -> 3 | H46: =INDEX($R$5:V2090,$E46,4) -> 5 | I46: 0 | J46: 0 | K46: 0 | L46: =$J46/hátizsák!$H$10 -> 0 | R46: 42 | S46: távcső | T46: 0.2 | U46: 16 | V46: -
B47: 0 | D47: 17. | E47: 51 | F47: bőrpáncél | G47: =INDEX($R$5:U2091,$E47,3) -> 3 | H47: =INDEX($R$5:V2091,$E47,4) -> 5 | I47: 0 | J47: 0 | K47: 0 | L47: =$J47/hátizsák!$H$10 -> 0 | R47: 43 | S47: tükör | T47: 0.3 | U47: 0 | V47: -
B48: 0 | D48: 18. | E48: 51 | F48: bőrpáncél | G48: =INDEX($R$5:U2092,$E48,3) -> 3 | H48: =INDEX($R$5:V2092,$E48,4) -> 5 | I48: 0 | J48: 0 | K48: 0 | L48: =$J48/hátizsák!$H$10 -> 0 | R48: 44 | S48: királygyík bőr | T48: 1 | U48: 3 | V48: -
B49: 0 | D49: 19. | E49: 51 | F49: bőrpáncél | G49: =INDEX($R$5:U2093,$E49,3) -> 3 | H49: =INDEX($R$5:V2093,$E49,4) -> 5 | I49: 0 | J49: 0 | K49: 0 | L49: =$J49/hátizsák!$H$10 -> 0 | R49: 45 | S49: kis bőrpajzs | T49: 2 | U49: 5 | V49: +1 AC
B50: 0 | D50: 20. | E50: 51 | F50: bőrpáncél | G50: =INDEX($R$5:U2094,$E50,3) -> 3 | H50: =INDEX($R$5:V2094,$E50,4) -> 5 | I50: 0 | J50: 0 | K50: 0 | L50: =$J50/hátizsák!$H$10 -> 0 | R50: 46 | S50: krómkaktusz | T50: - | U50: 0 | V50: -
F51: ÖSSZESEN | G51: lefoglalt tárhely: | I51: =SUM(B31:B50) -> 1 | J51: =SUM(J31:J50) -> 4.5 | K51: =SUM(K31:K50) -> 120 | L51: =SUM(L31:L50) -> 0.036 | R51: 47 | S51: surranó kígyó bőr | T51: 0.2 | U51: 2 | V51: -
R52: 48 | S52: antilopbőr | T52: 2 | U52: 3 | V52: -
R53: 49 | S53: kígyóbőr kesztyű | T53: 0.3 | U53: 5 | V53: +1 AC
R54: 50 | S54: arany | T54: 0 | U54: 0 | V54: -
D55: sisakok | R55: 51 | S55: bőrpáncél | T55: 3 | U55: 5 | V55: +2 AC
D56: tárhely | E56: # tágy | F56: tárgy neve | G56: súly/db | H56: ap/db | I56: készlet | J56: tétel súlya | K56: tétel értéke | L56: zsákban foglalt % | R56: 52 | S56: patak | T56: - | U56: 0 | V56: -
B57: =IF(I57>0,1,IF(I57=0,0)) -> 1 | D57: 1. | E57: 57 | F57: =INDEX($R$5:$U$2046,$E57,2) -> bőrsisak | G57: =INDEX($R$5:U2101,$E57,3) -> 1 | H57: =INDEX($R$5:V2101,$E57,4) -> 5 | I57: 1 | J57: =G57*I57 -> 1 | K57: =H57*I57 -> 5 | L57: =$J57/hátizsák!$H$10 -> 0.008 | R57: 53 | S57: tavacska | T57: - | U57: 0 | V57: -
B58: =IF(I58>0,1,IF(I58=0,0)) -> 1 | D58: 2. | E58: 252 | F58: smaragd koszorú | G58: =INDEX($R$5:U2102,$E58,3) -> 0 | H58: =INDEX($R$5:V2102,$E58,4) -> 60 | I58: 1 | J58: 0 | K58: 60 | L58: =$J58/hátizsák!$H$10 -> 0 | R58: 54 | S58: szökőkút | T58: - | U58: 0 | V58: -
B59: 0 | D59: 3. | E59: 57 | F59: bőrsisak | G59: =INDEX($R$5:U2103,$E59,3) -> 1 | H59: =INDEX($R$5:V2103,$E59,4) -> 5 | I59: 0 | J59: 0 | K59: 0 | L59: =$J59/hátizsák!$H$10 -> 0 | R59: 55 | S59: mákrózsa bokor | T59: - | U59: 0 | V59: -
B60: 0 | D60: 4. | E60: 57 | F60: bőrsisak | G60: =INDEX($R$5:U2104,$E60,3) -> 1 | H60: =INDEX($R$5:V2104,$E60,4) -> 5 | I60: 0 | J60: 0 | K60: 0 | L60: =$J60/hátizsák!$H$10 -> 0 | R60: 56 | S60: mákrózsa virág | T60: 0.2 | U60: 0 | V60: áldozati tárgy Eleniosnak
B61: 0 | D61: 5. | E61: 57 | F61: bőrsisak | G61: =INDEX($R$5:U2105,$E61,3) -> 1 | H61: =INDEX($R$5:V2105,$E61,4) -> 5 | I61: 0 | J61: 0 | K61: 0 | L61: =$J61/hátizsák!$H$10 -> 0 | R61: 57 | S61: bőrsisak | T61: 1 | U61: 5 | V61: +1 AC
B62: 0 | D62: 6. | E62: 57 | F62: bőrsisak | G62: =INDEX($R$5:U2106,$E62,3) -> 1 | H62: =INDEX($R$5:V2106,$E62,4) -> 5 | I62: 0 | J62: 0 | K62: 0 | L62: =$J62/hátizsák!$H$10 -> 0 | R62: 58 | S62: ködmangócserje | T62: - | U62: 0 | V62: -
B63: 0 | D63: 7. | E63: 57 | F63: bőrsisak | G63: =INDEX($R$5:U2107,$E63,3) -> 1 | H63: =INDEX($R$5:V2107,$E63,4) -> 5 | I63: 0 | J63: 0 | K63: 0 | L63: =$J63/hátizsák!$H$10 -> 0 | R63: 59 | S63: ködmangó | T63: - | U63: 0 | V63: -
B64: 0 | D64: 8. | E64: 57 | F64: bőrsisak | G64: =INDEX($R$5:U2108,$E64,3) -> 1 | H64: =INDEX($R$5:V2108,$E64,4) -> 5 | I64: 0 | J64: 0 | K64: 0 | L64: =$J64/hátizsák!$H$10 -> 0 | R64: 60 | S64: ködkapu | T64: - | U64: 0 | V64: -
B65: 0 | D65: 9. | E65: 57 | F65: bőrsisak | G65: =INDEX($R$5:U2109,$E65,3) -> 1 | H65: =INDEX($R$5:V2109,$E65,4) -> 5 | I65: 0 | J65: 0 | K65: 0 | L65: =$J65/hátizsák!$H$10 -> 0 | R65: 61 | S65: árnyéksár | T65: - | U65: 0 | V65: -
B66: 0 | D66: 10. | E66: 57 | F66: bőrsisak | G66: =INDEX($R$5:U2110,$E66,3) -> 1 | H66: =INDEX($R$5:V2110,$E66,4) -> 5 | I66: 0 | J66: 0 | K66: 0 | L66: =$J66/hátizsák!$H$10 -> 0 | R66: 62 | S66: ködcsillag | T66: - | U66: 0 | V66: -
B67: 0 | D67: 11. | E67: 57 | F67: bőrsisak | G67: =INDEX($R$5:U2111,$E67,3) -> 1 | H67: =INDEX($R$5:V2111,$E67,4) -> 5 | I67: 0 | J67: 0 | K67: 0 | L67: =$J67/hátizsák!$H$10 -> 0 | R67: 63 | S67: tigroszlán fog | T67: 0.05 | U67: 1 | V67: -
B68: 0 | D68: 12. | E68: 57 | F68: bőrsisak | G68: =INDEX($R$5:U2112,$E68,3) -> 1 | H68: =INDEX($R$5:V2112,$E68,4) -> 5 | I68: 0 | J68: 0 | K68: 0 | L68: =$J68/hátizsák!$H$10 -> 0 | R68: 64 | S68: csontszablya | T68: 1.5 | U68: 2 | V68: típus: vágó (balkezes), sebzés: 1d8, áldozati tárgy Dornodonnak
B69: 0 | D69: 13. | E69: 57 | F69: bőrsisak | G69: =INDEX($R$5:U2113,$E69,3) -> 1 | H69: =INDEX($R$5:V2113,$E69,4) -> 5 | I69: 0 | J69: 0 | K69: 0 | L69: =$J69/hátizsák!$H$10 -> 0 | R69: 65 | S69: szöges páncél | T69: 3.4 | U69: 24 | V69: +4 AC
B70: 0 | D70: 14. | E70: 57 | F70: bőrsisak | G70: =INDEX($R$5:U2114,$E70,3) -> 1 | H70: =INDEX($R$5:V2114,$E70,4) -> 5 | I70: 0 | J70: 0 | K70: 0 | L70: =$J70/hátizsák!$H$10 -> 0 | R70: 66 | S70: szöges bőrpajzs | T70: 2.2 | U70: 16 | V70: +2 AC
B71: 0 | D71: 15. | E71: 57 | F71: bőrsisak | G71: =INDEX($R$5:U2115,$E71,3) -> 1 | H71: =INDEX($R$5:V2115,$E71,4) -> 5 | I71: 0 | J71: 0 | K71: 0 | L71: =$J71/hátizsák!$H$10 -> 0 | R71: 67 | S71: kék orchideacserje | T71: - | U71: 0 | V71: -
B72: 0 | D72: 16. | E72: 57 | F72: bőrsisak | G72: =INDEX($R$5:U2116,$E72,3) -> 1 | H72: =INDEX($R$5:V2116,$E72,4) -> 5 | I72: 0 | J72: 0 | K72: 0 | L72: =$J72/hátizsák!$H$10 -> 0 | R72: 68 | S72: kék orchidea | T72: 0.08 | U72: 4 | V72: -
B73: 0 | D73: 17. | E73: 57 | F73: bőrsisak | G73: =INDEX($R$5:U2117,$E73,3) -> 1 | H73: =INDEX($R$5:V2117,$E73,4) -> 5 | I73: 0 | J73: 0 | K73: 0 | L73: =$J73/hátizsák!$H$10 -> 0 | R73: 69 | S73: szárnyas hernyó | T73: 0.1 | U73: 2 | V73: áldozati tárgy Sherannak
B74: 0 | D74: 18. | E74: 57 | F74: bőrsisak | G74: =INDEX($R$5:U2118,$E74,3) -> 1 | H74: =INDEX($R$5:V2118,$E74,4) -> 5 | I74: 0 | J74: 0 | K74: 0 | L74: =$J74/hátizsák!$H$10 -> 0 | R74: 70 | S74: rézdarab | T74: 0.3 | U74: 1 | V74: -
B75: 0 | D75: 19. | E75: 57 | F75: bőrsisak | G75: =INDEX($R$5:U2119,$E75,3) -> 1 | H75: =INDEX($R$5:V2119,$E75,4) -> 5 | I75: 0 | J75: 0 | K75: 0 | L75: =$J75/hátizsák!$H$10 -> 0 | R75: 71 | S75: rézpáncél | T75: 5.4 | U75: 24 | V75: +5 AC
B76: 0 | D76: 20. | E76: 57 | F76: bőrsisak | G76: =INDEX($R$5:U2120,$E76,3) -> 1 | H76: =INDEX($R$5:V2120,$E76,4) -> 5 | I76: 0 | J76: 0 | K76: 0 | L76: =$J76/hátizsák!$H$10 -> 0 | R76: 72 | S76: rézsisak | T76: 0.9 | U76: 7 | V76: +2 AC
F77: ÖSSZESEN | G77: lefoglalt tárhely: | I77: =SUM(B57:B76) -> 2 | J77: =SUM(J57:J76) -> 1 | K77: =SUM(K57:K76) -> 65 | L77: =SUM(L57:L76) -> 0.008 | R77: 73 | S77: rézpajzs | T77: 1.5 | U77: 14 | V77: +3 AC
R78: 74 | S78: csontkulcs | T78: 0.06 | U78: 4 | V78: -
R79: 75 | S79: rézkulcs | T79: 0.08 | U79: 6 | V79: -
R80: 76 | S80: bronzkulcs | T80: 0.1 | U80: 9 | V80: -
D81: köpenyek | R81: 77 | S81: rát-fa | T81: - | U81: 0 | V81: másznivaló, min. mászás: 0
D82: tárhely | E82: # tágy | F82: tárgy neve | G82: súly/db | H82: ap/db | I82: készlet | J82: tétel súlya | K82: tétel értéke | L82: zsákban foglalt % | R82: 78 | S82: mászókarom | T82: 0.2 | U82: 10 | V82: +4 sebzés ököllel
B83: =IF(I83>0,1,IF(I83=0,0)) -> 1 | D83: 1. | E83: 820 | F83: =INDEX($R$5:$U$2046,$E83,2) -> szirén köpenye | G83: =INDEX($R$5:U2127,$E83,3) -> 0.1 | H83: =INDEX($R$5:V2127,$E83,4) -> 200 | I83: 1 | J83: =G83*I83 -> 0.1 | K83: =H83*I83 -> 200 | L83: =$J83/hátizsák!$H$10 -> 0.0008 | R83: 79 | S83: korongfa | T83: - | U83: 0 | V83: másznivaló, min. mászás: ?
B84: 0 | D84: 2. | E84: 277 | F84: rejtőköpeny | G84: =INDEX($R$5:U2128,$E84,3) -> 0.1 | H84: =INDEX($R$5:V2128,$E84,4) -> 14 | I84: 0 | J84: 0 | K84: 0 | L84: =$J84/hátizsák!$H$10 -> 0 | R84: 80 | S84: lapkorong | T84: 0.08 | U84: 2 | V84: -
B85: 0 | D85: 3. | E85: 277 | F85: rejtőköpeny | G85: =INDEX($R$5:U2129,$E85,3) -> 0.1 | H85: =INDEX($R$5:V2129,$E85,4) -> 14 | I85: 0 | J85: 0 | K85: 0 | L85: =$J85/hátizsák!$H$10 -> 0 | R85: 81 | S85: mérleg | T85: 0.24 | U85: 8 | V85: áldozati tárgy Fairlightnak
B86: 0 | D86: 4. | E86: 277 | F86: rejtőköpeny | G86: =INDEX($R$5:U2130,$E86,3) -> 0.1 | H86: =INDEX($R$5:V2130,$E86,4) -> 14 | I86: 0 | J86: 0 | K86: 0 | L86: =$J86/hátizsák!$H$10 -> 0 | R86: 82 | S86: zöld üveg | T86: 0.1 | U86: 3 | V86: 20 ragasztó tárolására
B87: 0 | D87: 5. | E87: 277 | F87: rejtőköpeny | G87: =INDEX($R$5:U2131,$E87,3) -> 0.1 | H87: =INDEX($R$5:V2131,$E87,4) -> 14 | I87: 0 | J87: 0 | K87: 0 | L87: =$J87/hátizsák!$H$10 -> 0 | R87: 83 | S87: ragasztó | T87: 0.01 | U87: 1 | V87: áldozati tárgy Eleniosnak
B88: 0 | D88: 6. | E88: 277 | F88: rejtőköpeny | G88: =INDEX($R$5:U2132,$E88,3) -> 0.1 | H88: =INDEX($R$5:V2132,$E88,4) -> 14 | I88: 0 | J88: 0 | K88: 0 | L88: =$J88/hátizsák!$H$10 -> 0 | R88: 84 | S88: díszes rézpajzs | T88: 3 | U88: 2 | V88: +4 AC
B89: 0 | D89: 7. | E89: 277 | F89: rejtőköpeny | G89: =INDEX($R$5:U2133,$E89,3) -> 0.1 | H89: =INDEX($R$5:V2133,$E89,4) -> 14 | I89: 0 | J89: 0 | K89: 0 | L89: =$J89/hátizsák!$H$10 -> 0 | R89: 85 | S89: óndarab | T89: 0.3 | U89: 0 | V89: -
B90: 0 | D90: 8. | E90: 277 | F90: rejtőköpeny | G90: =INDEX($R$5:U2134,$E90,3) -> 0.1 | H90: =INDEX($R$5:V2134,$E90,4) -> 14 | I90: 0 | J90: 0 | K90: 0 | L90: =$J90/hátizsák!$H$10 -> 0 | R90: 86 | S90: olvasztókemence | T90: - | U90: 0 | V90: -
B91: 0 | D91: 9. | E91: 277 | F91: rejtőköpeny | G91: =INDEX($R$5:U2135,$E91,3) -> 0.1 | H91: =INDEX($R$5:V2135,$E91,4) -> 14 | I91: 0 | J91: 0 | K91: 0 | L91: =$J91/hátizsák!$H$10 -> 0 | R91: 87 | S91: bronzhegyű lándzsa | T91: 3 | U91: 10 | V91: típus: szúró, sebzés: 3d6+3
B92: 0 | D92: 10. | E92: 277 | F92: rejtőköpeny | G92: =INDEX($R$5:U2136,$E92,3) -> 0.1 | H92: =INDEX($R$5:V2136,$E92,4) -> 14 | I92: 0 | J92: 0 | K92: 0 | L92: =$J92/hátizsák!$H$10 -> 0 | R92: 88 | S92: bronzsisak | T92: 1.2 | U92: 9 | V92: +3 AC
B93: 0 | D93: 11. | E93: 277 | F93: rejtőköpeny | G93: =INDEX($R$5:U2137,$E93,3) -> 0.1 | H93: =INDEX($R$5:V2137,$E93,4) -> 14 | I93: 0 | J93: 0 | K93: 0 | L93: =$J93/hátizsák!$H$10 -> 0 | R93: 89 | S93: bronzpajzs | T93: 2 | U93: 16 | V93: +5 AC
B94: 0 | D94: 12. | E94: 277 | F94: rejtőköpeny | G94: =INDEX($R$5:U2138,$E94,3) -> 0.1 | H94: =INDEX($R$5:V2138,$E94,4) -> 14 | I94: 0 | J94: 0 | K94: 0 | L94: =$J94/hátizsák!$H$10 -> 0 | R94: 90 | S94: bronzpáncél | T94: 7 | U94: 32 | V94: +7 AC
B95: 0 | D95: 13. | E95: 277 | F95: rejtőköpeny | G95: =INDEX($R$5:U2139,$E95,3) -> 0.1 | H95: =INDEX($R$5:V2139,$E95,4) -> 14 | I95: 0 | J95: 0 | K95: 0 | L95: =$J95/hátizsák!$H$10 -> 0 | R95: 91 | S95: manilla-fa | T95: - | U95: 0 | V95: -
B96: 0 | D96: 14. | E96: 277 | F96: rejtőköpeny | G96: =INDEX($R$5:U2140,$E96,3) -> 0.1 | H96: =INDEX($R$5:V2140,$E96,4) -> 14 | I96: 0 | J96: 0 | K96: 0 | L96: =$J96/hátizsák!$H$10 -> 0 | R96: 92 | S96: kötél | T96: 1 | U96: 1 | V96: -
B97: 0 | D97: 15. | E97: 277 | F97: rejtőköpeny | G97: =INDEX($R$5:U2141,$E97,3) -> 0.1 | H97: =INDEX($R$5:V2141,$E97,4) -> 14 | I97: 0 | J97: 0 | K97: 0 | L97: =$J97/hátizsák!$H$10 -> 0 | R97: 93 | S97: mély kút | T97: - | U97: 0 | V97: másznivaló, min. mászás: 2
B98: 0 | D98: 16. | E98: 277 | F98: rejtőköpeny | G98: =INDEX($R$5:U2142,$E98,3) -> 0.1 | H98: =INDEX($R$5:V2142,$E98,4) -> 14 | I98: 0 | J98: 0 | K98: 0 | L98: =$J98/hátizsák!$H$10 -> 0 | R98: 94 | S98: bronzhegyű nyíl | T98: 0.08 | U98: 5 | V98: típus: lövedék (szúró), sebzés: 2d6+4
B99: 0 | D99: 17. | E99: 277 | F99: rejtőköpeny | G99: =INDEX($R$5:U2143,$E99,3) -> 0.1 | H99: =INDEX($R$5:V2143,$E99,4) -> 14 | I99: 0 | J99: 0 | K99: 0 | L99: =$J99/hátizsák!$H$10 -> 0 | R99: 95 | S99: bakkura bőr | T99: 0.4 | U99: 2 | V99: -
B100: 0 | D100: 18. | E100: 277 | F100: rejtőköpeny | G100: =INDEX($R$5:U2144,$E100,3) -> 0.1 | H100: =INDEX($R$5:V2144,$E100,4) -> 14 | I100: 0 | J100: 0 | K100: 0 | L100: =$J100/hátizsák!$H$10 -> 0 | R100: 96 | S100: bakkura csizma | T100: 1.2 | U100: 11 | V100: +2 AC
B101: 0 | D101: 19. | E101: 277 | F101: rejtőköpeny | G101: =INDEX($R$5:U2145,$E101,3) -> 0.1 | H101: =INDEX($R$5:V2145,$E101,4) -> 14 | I101: 0 | J101: 0 | K101: 0 | L101: =$J101/hátizsák!$H$10 -> 0 | R101: 97 | S101: rákpáncél | T101: 0.4 | U101: 4 | V101: -
B102: 0 | D102: 20. | E102: 277 | F102: rejtőköpeny | G102: =INDEX($R$5:U2146,$E102,3) -> 0.1 | H102: =INDEX($R$5:V2146,$E102,4) -> 14 | I102: 0 | J102: 0 | K102: 0 | L102: =$J102/hátizsák!$H$10 -> 0 | R102: 98 | S102: rákpajzs | T102: 0.8 | U102: 10 | V102: +4 AC
F103: ÖSSZESEN | G103: lefoglalt tárhely: | I103: =SUM(B83:B102) -> 1 | J103: =SUM(J83:J102) -> 0.1 | K103: =SUM(K83:K102) -> 200 | L103: =SUM(L83:L102) -> 0.0008 | R103: 99 | S103: fekete gyöngy | T103: 0.01 | U103: 6 | V103: áldozati tárgy Leahnak
R104: 100 | S104: aranyló ugarhéj | T104: 0.1 | U104: 4 | V104: 10 tinta tárolására, áldozati tárgy Raiának
R105: 101 | S105: tinta | T105: 0.01 | U105: 1 | V105: -
R106: 102 | S106: vízionár szem | T106: 0.03 | U106: 3 | V106: áldozati tárgy Eleniosnak
D107: vállvédők | R107: 103 | S107: magszim bél | T107: 0.08 | U107: 5 | V107: -
D108: tárhely | E108: # tágy | F108: tárgy neve | G108: súly/db | H108: ap/db | I108: készlet | J108: tétel súlya | K108: tétel értéke | L108: zsákban foglalt % | R108: 104 | S108: fémrúd | T108: 2 | U108: 8 | V108: -
B109: =IF(I109>0,1,IF(I109=0,0)) -> 1 | D109: 1. | E109: 1601 | F109: =INDEX($R$5:$U$2046,$E109,2) -> féregíz nyakpánt | G109: =INDEX($R$5:U2153,$E109,3) -> 1.74 | H109: =INDEX($R$5:V2153,$E109,4) -> 90 | I109: 1 | J109: =G109*I109 -> 1.74 | K109: =H109*I109 -> 90 | L109: =$J109/hátizsák!$H$10 -> 0.01392 | R109: 105 | S109: evaporőr háj | T109: 0.2 | U109: 5 | V109: -
B110: =IF(I110>0,1,IF(I110=0,0)) -> 0 | D110: 2. | E110: 805 | F110: ősi vállvédő | G110: =INDEX($R$5:U2154,$E110,3) -> 0.2 | H110: =INDEX($R$5:V2154,$E110,4) -> 1000 | I110: 0 | J110: 0 | K110: 0 | L110: =$J110/hátizsák!$H$10 -> 0 | R110: 106 | S110: fabontó | T110: 0.1 | U110: 5 | V110: -
B111: 0 | D111: 3. | E111: 805 | F111: ősi vállvédő | G111: =INDEX($R$5:U2155,$E111,3) -> 0.2 | H111: =INDEX($R$5:V2155,$E111,4) -> 1000 | I111: 0 | J111: 0 | K111: 0 | L111: =$J111/hátizsák!$H$10 -> 0 | R111: 107 | S111: rövid íj | T111: 1 | U111: 8 | V111: típus: lőfegyver, +2 vadászat
B112: 0 | D112: 4. | E112: 805 | F112: ősi vállvédő | G112: =INDEX($R$5:U2156,$E112,3) -> 0.2 | H112: =INDEX($R$5:V2156,$E112,4) -> 1000 | I112: 0 | J112: 0 | K112: 0 | L112: =$J112/hátizsák!$H$10 -> 0 | R112: 108 | S112: nyílvessző | T112: 0.1 | U112: 1 | V112: típus: lövedék (szúró), sebzés: 1d8+2
B113: 0 | D113: 5. | E113: 805 | F113: ősi vállvédő | G113: =INDEX($R$5:U2157,$E113,3) -> 0.2 | H113: =INDEX($R$5:V2157,$E113,4) -> 1000 | I113: 0 | J113: 0 | K113: 0 | L113: =$J113/hátizsák!$H$10 -> 0 | R113: 109 | S113: vapárcserje | T113: - | U113: 0 | V113: -
B114: 0 | D114: 6. | E114: 805 | F114: ősi vállvédő | G114: =INDEX($R$5:U2158,$E114,3) -> 0.2 | H114: =INDEX($R$5:V2158,$E114,4) -> 1000 | I114: 0 | J114: 0 | K114: 0 | L114: =$J114/hátizsák!$H$10 -> 0 | R114: 110 | S114: vapárág | T114: 2 | U114: 10 | V114: -
B115: 0 | D115: 7. | E115: 805 | F115: ősi vállvédő | G115: =INDEX($R$5:U2159,$E115,3) -> 0.2 | H115: =INDEX($R$5:V2159,$E115,4) -> 1000 | I115: 0 | J115: 0 | K115: 0 | L115: =$J115/hátizsák!$H$10 -> 0 | R115: 111 | S115: hosszú íj | T115: 2 | U115: 20 | V115: típus: lőfegyver, +2 támadás
B116: 0 | D116: 8. | E116: 805 | F116: ősi vállvédő | G116: =INDEX($R$5:U2160,$E116,3) -> 0.2 | H116: =INDEX($R$5:V2160,$E116,4) -> 1000 | I116: 0 | J116: 0 | K116: 0 | L116: =$J116/hátizsák!$H$10 -> 0 | R116: 112 | S116: madártoll | T116: 0.01 | U116: 1 | V116: áldozati tárgy Raiának
B117: 0 | D117: 9. | E117: 805 | F117: ősi vállvédő | G117: =INDEX($R$5:U2161,$E117,3) -> 0.2 | H117: =INDEX($R$5:V2161,$E117,4) -> 1000 | I117: 0 | J117: 0 | K117: 0 | L117: =$J117/hátizsák!$H$10 -> 0 | R117: 113 | S117: xantusz-kaktusz | T117: - | U117: 0 | V117: -
B118: 0 | D118: 10. | E118: 805 | F118: ősi vállvédő | G118: =INDEX($R$5:U2162,$E118,3) -> 0.2 | H118: =INDEX($R$5:V2162,$E118,4) -> 1000 | I118: 0 | J118: 0 | K118: 0 | L118: =$J118/hátizsák!$H$10 -> 0 | R118: 114 | S118: kaktusztüske | T118: 0.02 | U118: 0 | V118: áldozati tárgy Fairlightnak
B119: 0 | D119: 11. | E119: 805 | F119: ősi vállvédő | G119: =INDEX($R$5:U2163,$E119,3) -> 0.2 | H119: =INDEX($R$5:V2163,$E119,4) -> 1000 | I119: 0 | J119: 0 | K119: 0 | L119: =$J119/hátizsák!$H$10 -> 0 | R119: 115 | S119: móricserje | T119: - | U119: 0 | V119: -
B120: 0 | D120: 12. | E120: 805 | F120: ősi vállvédő | G120: =INDEX($R$5:U2164,$E120,3) -> 0.2 | H120: =INDEX($R$5:V2164,$E120,4) -> 1000 | I120: 0 | J120: 0 | K120: 0 | L120: =$J120/hátizsák!$H$10 -> 0 | R120: 116 | S120: móri gyümölcs | T120: 0.1 | U120: 0 | V120: áldozati tárgy Sherannak
B121: 0 | D121: 13. | E121: 805 | F121: ősi vállvédő | G121: =INDEX($R$5:U2165,$E121,3) -> 0.2 | H121: =INDEX($R$5:V2165,$E121,4) -> 1000 | I121: 0 | J121: 0 | K121: 0 | L121: =$J121/hátizsák!$H$10 -> 0 | R121: 117 | S121: ezüst nyaklánc | T121: 0.1 | U121: 10 | V121: ékszer
B122: 0 | D122: 14. | E122: 805 | F122: ősi vállvédő | G122: =INDEX($R$5:U2166,$E122,3) -> 0.2 | H122: =INDEX($R$5:V2166,$E122,4) -> 1000 | I122: 0 | J122: 0 | K122: 0 | L122: =$J122/hátizsák!$H$10 -> 0 | R122: 118 | S122: púderszikla | T122: - | U122: 0 | V122: -
B123: 0 | D123: 15. | E123: 805 | F123: ősi vállvédő | G123: =INDEX($R$5:U2167,$E123,3) -> 0.2 | H123: =INDEX($R$5:V2167,$E123,4) -> 1000 | I123: 0 | J123: 0 | K123: 0 | L123: =$J123/hátizsák!$H$10 -> 0 | R123: 119 | S123: púderkő | T123: 0.1 | U123: 0 | V123: áldozati tárgy Raiának
B124: 0 | D124: 16. | E124: 805 | F124: ősi vállvédő | G124: =INDEX($R$5:U2168,$E124,3) -> 0.2 | H124: =INDEX($R$5:V2168,$E124,4) -> 1000 | I124: 0 | J124: 0 | K124: 0 | L124: =$J124/hátizsák!$H$10 -> 0 | R124: 120 | S124: tábla | T124: - | U124: 10 | V124: maximum 70 betűnyi szöveg
B125: 0 | D125: 17. | E125: 805 | F125: ősi vállvédő | G125: =INDEX($R$5:U2169,$E125,3) -> 0.2 | H125: =INDEX($R$5:V2169,$E125,4) -> 1000 | I125: 0 | J125: 0 | K125: 0 | L125: =$J125/hátizsák!$H$10 -> 0 | R125: 121 | S125: jellempróba | T125: - | U125: 0 | V125: -
B126: 0 | D126: 18. | E126: 805 | F126: ősi vállvédő | G126: =INDEX($R$5:U2170,$E126,3) -> 0.2 | H126: =INDEX($R$5:V2170,$E126,4) -> 1000 | I126: 0 | J126: 0 | K126: 0 | L126: =$J126/hátizsák!$H$10 -> 0 | R126: 122 | S126: dözmöng szív | T126: 0.08 | U126: 3 | V126: -
B127: 0 | D127: 19. | E127: 805 | F127: ősi vállvédő | G127: =INDEX($R$5:U2171,$E127,3) -> 0.2 | H127: =INDEX($R$5:V2171,$E127,4) -> 1000 | I127: 0 | J127: 0 | K127: 0 | L127: =$J127/hátizsák!$H$10 -> 0 | R127: 123 | S127: göcsörtös bunkó | T127: 3.5 | U127: 8 | V127: típus: ütő, sebzés: 2d8+4, min. fsz.: 5
B128: 0 | D128: 20. | E128: 805 | F128: ősi vállvédő | G128: =INDEX($R$5:U2172,$E128,3) -> 0.2 | H128: =INDEX($R$5:V2172,$E128,4) -> 1000 | I128: 0 | J128: 0 | K128: 0 | L128: =$J128/hátizsák!$H$10 -> 0 | R128: 124 | S128: rókafarok | T128: 0.5 | U128: 3 | V128: áldozati tárgy Sherannak
F129: ÖSSZESEN | G129: lefoglalt tárhely: | I129: =SUM(B109:B128) -> 1 | J129: =SUM(J109:J128) -> 1.74 | K129: =SUM(K109:K128) -> 90 | L129: =SUM(L109:L128) -> 0.01392 | R129: 125 | S129: mandibulapenge | T129: 0.5 | U129: 3 | V129: -
R130: 126 | S130: bronzpenge | T130: 2 | U130: 12 | V130: típus: vágó, sebzés: 2d6+2
R131: 127 | S131: mandibulakasza | T131: 3.5 | U131: 25 | V131: típus: vágó, sebzés: 3d6+3
R132: 128 | S132: sallank karom | T132: 0.15 | U132: 2 | V132: áldozati tárgy Tharrnak
D133: kesztyűk | R133: 129 | S133: sallank nyíl | T133: 0.25 | U133: 3 | V133: típus: lövedék (szúró), sebzés: 2d8+2
D134: tárhely | E134: # tágy | F134: tárgy neve | G134: súly/db | H134: ap/db | I134: készlet | J134: tétel súlya | K134: tétel értéke | L134: zsákban foglalt % | R134: 130 | S134: hebrencs állkapocs | T134: 0.4 | U134: 4 | V134: -
B135: =IF(I135>0,1,IF(I135=0,0)) -> 1 | D135: 1. | E135: 78 | F135: =INDEX($R$5:$U$2046,$E135,2) -> mászókarom | G135: =INDEX($R$5:U2179,$E135,3) -> 0.2 | H135: =INDEX($R$5:V2179,$E135,4) -> 10 | I135: 1 | J135: =G135*I135 -> 0.2 | K135: =H135*I135 -> 10 | L135: =$J135/hátizsák!$H$10 -> 0.0016 | R135: 131 | S135: ubuk tüske | T135: 0.05 | U135: 1 | V135: típus: lövedék (szúró), sebzés: 1d8
B136: =IF(I136>0,1,IF(I136=0,0)) -> 1 | D136: 2. | E136: 230 | F136: lánckesztyű | G136: =INDEX($R$5:U2180,$E136,3) -> 0.2 | H136: =INDEX($R$5:V2180,$E136,4) -> 15 | I136: 1 | J136: 0.2 | K136: 15 | L136: =$J136/hátizsák!$H$10 -> 0.0016 | R136: 132 | S136: hóhérbimbó | T136: - | U136: 0 | V136: -
B137: 0 | D137: 3. | E137: 49 | F137: kígyóbőr kesztyű | G137: =INDEX($R$5:U2181,$E137,3) -> 0.3 | H137: =INDEX($R$5:V2181,$E137,4) -> 5 | I137: 0 | J137: 0 | K137: 0 | L137: =$J137/hátizsák!$H$10 -> 0 | R137: 133 | S137: csuklyavirág | T137: 0.05 | U137: 1 | V137: áldozati tárgy Leahnak
B138: 0 | D138: 4. | E138: 49 | F138: kígyóbőr kesztyű | G138: =INDEX($R$5:U2182,$E138,3) -> 0.3 | H138: =INDEX($R$5:V2182,$E138,4) -> 5 | I138: 0 | J138: 0 | K138: 0 | L138: =$J138/hátizsák!$H$10 -> 0 | R138: 134 | S138: gyöngymangó bokor | T138: - | U138: 0 | V138: -
B139: 0 | D139: 5. | E139: 49 | F139: kígyóbőr kesztyű | G139: =INDEX($R$5:U2183,$E139,3) -> 0.3 | H139: =INDEX($R$5:V2183,$E139,4) -> 5 | I139: 0 | J139: 0 | K139: 0 | L139: =$J139/hátizsák!$H$10 -> 0 | R139: 135 | S139: gyöngymangó | T139: 0.1 | U139: 2 | V139: -
B140: 0 | D140: 6. | E140: 49 | F140: kígyóbőr kesztyű | G140: =INDEX($R$5:U2184,$E140,3) -> 0.3 | H140: =INDEX($R$5:V2184,$E140,4) -> 5 | I140: 0 | J140: 0 | K140: 0 | L140: =$J140/hátizsák!$H$10 -> 0 | R140: 136 | S140: rúnakő | T140: - | U140: 0 | V140: kapcsolat az istenekkel
B141: 0 | D141: 7. | E141: 49 | F141: kígyóbőr kesztyű | G141: =INDEX($R$5:U2185,$E141,3) -> 0.3 | H141: =INDEX($R$5:V2185,$E141,4) -> 5 | I141: 0 | J141: 0 | K141: 0 | L141: =$J141/hátizsák!$H$10 -> 0 | R141: 137 | S141: mérgezett ubuktüske | T141: 0.05 | U141: 2 | V141: típus: lövedék (szúró), sebzés: 1d8+4
B142: 0 | D142: 8. | E142: 49 | F142: kígyóbőr kesztyű | G142: =INDEX($R$5:U2186,$E142,3) -> 0.3 | H142: =INDEX($R$5:V2186,$E142,4) -> 5 | I142: 0 | J142: 0 | K142: 0 | L142: =$J142/hátizsák!$H$10 -> 0 | R142: 138 | S142: ubuk dobónyíl | T142: 0.15 | U142: 5 | V142: típus: dobó (szúró), sebzés: 1d8+6
B143: 0 | D143: 9. | E143: 49 | F143: kígyóbőr kesztyű | G143: =INDEX($R$5:U2187,$E143,3) -> 0.3 | H143: =INDEX($R$5:V2187,$E143,4) -> 5 | I143: 0 | J143: 0 | K143: 0 | L143: =$J143/hátizsák!$H$10 -> 0 | R143: 139 | S143: koponya szimbólum | T143: 0.05 | U143: 10 | V143: csak Leah hívei hordhatják, +4 mentődobás halál és hideg ellen
B144: 0 | D144: 10. | E144: 49 | F144: kígyóbőr kesztyű | G144: =INDEX($R$5:U2188,$E144,3) -> 0.3 | H144: =INDEX($R$5:V2188,$E144,4) -> 5 | I144: 0 | J144: 0 | K144: 0 | L144: =$J144/hátizsák!$H$10 -> 0 | R144: 140 | S144: denevér szimbólum | T144: 0.04 | U144: 10 | V144: csak Dornodon hívei hordhatják, +2 iq
B145: 0 | D145: 11. | E145: 49 | F145: kígyóbőr kesztyű | G145: =INDEX($R$5:U2189,$E145,3) -> 0.3 | H145: =INDEX($R$5:V2189,$E145,4) -> 5 | I145: 0 | J145: 0 | K145: 0 | L145: =$J145/hátizsák!$H$10 -> 0 | R145: 141 | S145: nap szimbólum | T145: 0.05 | U145: 10 | V145: csak Raia hívei hordhatják, +4 mentődobás energia ellen
B146: 0 | D146: 12. | E146: 49 | F146: kígyóbőr kesztyű | G146: =INDEX($R$5:U2190,$E146,3) -> 0.3 | H146: =INDEX($R$5:V2190,$E146,4) -> 5 | I146: 0 | J146: 0 | K146: 0 | L146: =$J146/hátizsák!$H$10 -> 0 | R146: 142 | S146: szem szimbólum | T146: 0.03 | U146: 12 | V146: csak Elenios hívei hordhatják, +4 mentődobás mentális támadás ellen
B147: 0 | D147: 13. | E147: 49 | F147: kígyóbőr kesztyű | G147: =INDEX($R$5:U2191,$E147,3) -> 0.3 | H147: =INDEX($R$5:V2191,$E147,4) -> 5 | I147: 0 | J147: 0 | K147: 0 | L147: =$J147/hátizsák!$H$10 -> 0 | R147: 143 | S147: virág szimbólum | T147: 0.03 | U147: 8 | V147: csak Sheran hívei hordhatják, +2 eg.
B148: 0 | D148: 14. | E148: 49 | F148: kígyóbőr kesztyű | G148: =INDEX($R$5:U2192,$E148,3) -> 0.3 | H148: =INDEX($R$5:V2192,$E148,4) -> 5 | I148: 0 | J148: 0 | K148: 0 | L148: =$J148/hátizsák!$H$10 -> 0 | R148: 144 | S148: két kard szimbólum | T148: 0.06 | U148: 10 | V148: csak Tharr hívei hordhatják, +2 erő
B149: 0 | D149: 15. | E149: 49 | F149: kígyóbőr kesztyű | G149: =INDEX($R$5:U2193,$E149,3) -> 0.3 | H149: =INDEX($R$5:V2193,$E149,4) -> 5 | I149: 0 | J149: 0 | K149: 0 | L149: =$J149/hátizsák!$H$10 -> 0 | R149: 145 | S149: villám szimbólum | T149: 0.04 | U149: 10 | V149: csak Fairlight hívei hordhatják, +2 ügy.
B150: 0 | D150: 16. | E150: 49 | F150: kígyóbőr kesztyű | G150: =INDEX($R$5:U2194,$E150,3) -> 0.3 | H150: =INDEX($R$5:V2194,$E150,4) -> 5 | I150: 0 | J150: 0 | K150: 0 | L150: =$J150/hátizsák!$H$10 -> 0 | R150: 146 | S150: oltár | T150: - | U150: 0 | V150: imádkozáshoz
B151: 0 | D151: 17. | E151: 49 | F151: kígyóbőr kesztyű | G151: =INDEX($R$5:U2195,$E151,3) -> 0.3 | H151: =INDEX($R$5:V2195,$E151,4) -> 5 | I151: 0 | J151: 0 | K151: 0 | L151: =$J151/hátizsák!$H$10 -> 0 | R151: 147 | S151: hebrencs csapda | T151: 0.45 | U151: 15 | V151: -
B152: 0 | D152: 18. | E152: 49 | F152: kígyóbőr kesztyű | G152: =INDEX($R$5:U2196,$E152,3) -> 0.3 | H152: =INDEX($R$5:V2196,$E152,4) -> 5 | I152: 0 | J152: 0 | K152: 0 | L152: =$J152/hátizsák!$H$10 -> 0 | R152: 148 | S152: mocsári penke | T152: 0.01 | U152: 1 | V152: -
B153: 0 | D153: 19. | E153: 49 | F153: kígyóbőr kesztyű | G153: =INDEX($R$5:U2197,$E153,3) -> 0.3 | H153: =INDEX($R$5:V2197,$E153,4) -> 5 | I153: 0 | J153: 0 | K153: 0 | L153: =$J153/hátizsák!$H$10 -> 0 | R153: 149 | S153: grok-képződmény | T153: - | U153: 0 | V153: másznivaló, min. mászás: 3
B154: 0 | D154: 20. | E154: 49 | F154: kígyóbőr kesztyű | G154: =INDEX($R$5:U2198,$E154,3) -> 0.3 | H154: =INDEX($R$5:V2198,$E154,4) -> 5 | I154: 0 | J154: 0 | K154: 0 | L154: =$J154/hátizsák!$H$10 -> 0 | R154: 150 | S154: szent jogar | T154: 0.08 | U154: 50 | V154: jó jelleműeket max. ép.-be gyógyít
F155: ÖSSZESEN | G155: lefoglalt tárhely: | I155: =SUM(B135:B154) -> 2 | J155: =SUM(J135:J154) -> 0.4 | K155: =SUM(K135:K154) -> 25 | L155: =SUM(L135:L154) -> 0.0032 | R155: 151 | S155: szvó-ektoplazma | T155: 0.05 | U155: 10 | V155: -
R156: 152 | S156: vasérc | T156: 0.2 | U156: 2 | V156: -
R157: 153 | S157: pirkit | T157: 0.05 | U157: 2 | V157: -
R158: 154 | S158: mély szakadék | T158: - | U158: 0 | V158: másznivaló, min. mászás: 5
D159: övek és övcsatok | R159: 155 | S159: vaskohó | T159: - | U159: 0 | V159: -
D160: tárhely | E160: # tágy | F160: tárgy neve | G160: súly/db | H160: ap/db | I160: készlet | J160: tétel súlya | K160: tétel értéke | L160: zsákban foglalt % | R160: 156 | S160: világítótorony | T160: - | U160: 0 | V160: maximum 10 mező távolságra történő információ átadásra
B161: 1 | D161: 1. | E161: 1117 | F161: =INDEX($R$5:$U$2046,$E161,2) -> párducbőr övtáska | G161: =INDEX($R$5:U2205,$E161,3) -> 0 | H161: =INDEX($R$5:V2205,$E161,4) -> 35 | I161: 1 | J161: =G161*I161 -> 0 | K161: =H161*I161 -> 35 | L161: =$J161/hátizsák!$H$10 -> 0 | R161: 157 | S161: nyu-shuriken | T161: 0.05 | U161: 12 | V161: típus: dobó (szúró), sebzés: 3d4+2, +3 támadás
B162: 0 | D162: 2. | E162: 276 | F162: sárga erőöv | G162: =INDEX($R$5:U2206,$E162,3) -> 0.2 | H162: =INDEX($R$5:V2206,$E162,4) -> 25 | I162: 0 | J162: 0 | K162: 0 | L162: =$J162/hátizsák!$H$10 -> 0 | R162: 158 | S162: ezüst karkötő | T162: 0.08 | U162: 14 | V162: ékszer
B163: 0 | D163: 3. | E163: 276 | F163: sárga erőöv | G163: =INDEX($R$5:U2207,$E163,3) -> 0.2 | H163: =INDEX($R$5:V2207,$E163,4) -> 25 | I163: 0 | J163: 0 | K163: 0 | L163: =$J163/hátizsák!$H$10 -> 0 | R163: 159 | S163: kis vaspajzs | T163: 2 | U163: 16 | V163: +6 AC, min. bányászat: 3
B164: 0 | D164: 4. | E164: 276 | F164: sárga erőöv | G164: =INDEX($R$5:U2208,$E164,3) -> 0.2 | H164: =INDEX($R$5:V2208,$E164,4) -> 25 | I164: 0 | J164: 0 | K164: 0 | L164: =$J164/hátizsák!$H$10 -> 0 | R164: 160 | S164: vassisak | T164: 0.6 | U164: 18 | V164: +4 AC, min. bányászat: 4
B165: 0 | D165: 5. | E165: 276 | F165: sárga erőöv | G165: =INDEX($R$5:U2209,$E165,3) -> 0.2 | H165: =INDEX($R$5:V2209,$E165,4) -> 25 | I165: 0 | J165: 0 | K165: 0 | L165: =$J165/hátizsák!$H$10 -> 0 | R165: 161 | S165: nagy vaspajzs | T165: 3.2 | U165: 22 | V165: +8 AC, min. bányászat: 3
B166: 0 | D166: 6. | E166: 276 | F166: sárga erőöv | G166: =INDEX($R$5:U2210,$E166,3) -> 0.2 | H166: =INDEX($R$5:V2210,$E166,4) -> 25 | I166: 0 | J166: 0 | K166: 0 | L166: =$J166/hátizsák!$H$10 -> 0 | R166: 162 | S166: borostyán függő | T166: 0.01 | U166: 6 | V166: ékszer
B167: 0 | D167: 7. | E167: 276 | F167: sárga erőöv | G167: =INDEX($R$5:U2211,$E167,3) -> 0.2 | H167: =INDEX($R$5:V2211,$E167,4) -> 25 | I167: 0 | J167: 0 | K167: 0 | L167: =$J167/hátizsák!$H$10 -> 0 | R167: 163 | S167: karócsapda | T167: 1 | U167: 12 | V167: -
B168: 0 | D168: 8. | E168: 276 | F168: sárga erőöv | G168: =INDEX($R$5:U2212,$E168,3) -> 0.2 | H168: =INDEX($R$5:V2212,$E168,4) -> 25 | I168: 0 | J168: 0 | K168: 0 | L168: =$J168/hátizsák!$H$10 -> 0 | R168: 164 | S168: vasvért | T168: 8 | U168: 60 | V168: +10 AC, min. bányászat: 6
B169: 0 | D169: 9. | E169: 276 | F169: sárga erőöv | G169: =INDEX($R$5:U2213,$E169,3) -> 0.2 | H169: =INDEX($R$5:V2213,$E169,4) -> 25 | I169: 0 | J169: 0 | K169: 0 | L169: =$J169/hátizsák!$H$10 -> 0 | R169: 165 | S169: mászókampó | T169: 0.4 | U169: 12 | V169: min. bányászat: 2
B170: 0 | D170: 10. | E170: 276 | F170: sárga erőöv | G170: =INDEX($R$5:U2214,$E170,3) -> 0.2 | H170: =INDEX($R$5:V2214,$E170,4) -> 25 | I170: 0 | J170: 0 | K170: 0 | L170: =$J170/hátizsák!$H$10 -> 0 | R170: 166 | S170: ugh méreg | T170: 0.01 | U170: 2 | V170: -
B171: 0 | D171: 11. | E171: 276 | F171: sárga erőöv | G171: =INDEX($R$5:U2215,$E171,3) -> 0.2 | H171: =INDEX($R$5:V2215,$E171,4) -> 25 | I171: 0 | J171: 0 | K171: 0 | L171: =$J171/hátizsák!$H$10 -> 0 | R171: 167 | S171: sziklafészek | T171: - | U171: 0 | V171: másznivaló, min. mászás: 6
B172: 0 | D172: 12. | E172: 276 | F172: sárga erőöv | G172: =INDEX($R$5:U2216,$E172,3) -> 0.2 | H172: =INDEX($R$5:V2216,$E172,4) -> 25 | I172: 0 | J172: 0 | K172: 0 | L172: =$J172/hátizsák!$H$10 -> 0 | R172: 168 | S172: sullár hólyag | T172: 0.08 | U172: 7 | V172: 20 spiritusz tárolására
B173: 0 | D173: 13. | E173: 276 | F173: sárga erőöv | G173: =INDEX($R$5:U2217,$E173,3) -> 0.2 | H173: =INDEX($R$5:V2217,$E173,4) -> 25 | I173: 0 | J173: 0 | K173: 0 | L173: =$J173/hátizsák!$H$10 -> 0 | R173: 169 | S173: uzbány csőr | T173: 0.15 | U173: 6 | V173: 12 ugh méreg tárolására
B174: 0 | D174: 14. | E174: 276 | F174: sárga erőöv | G174: =INDEX($R$5:U2218,$E174,3) -> 0.2 | H174: =INDEX($R$5:V2218,$E174,4) -> 25 | I174: 0 | J174: 0 | K174: 0 | L174: =$J174/hátizsák!$H$10 -> 0 | R174: 170 | S174: spiritusz | T174: 0.01 | U174: 1 | V174: -
B175: 0 | D175: 15. | E175: 276 | F175: sárga erőöv | G175: =INDEX($R$5:U2219,$E175,3) -> 0.2 | H175: =INDEX($R$5:V2219,$E175,4) -> 25 | I175: 0 | J175: 0 | K175: 0 | L175: =$J175/hátizsák!$H$10 -> 0 | R175: 171 | S175: rövid kard | T175: 1.5 | U175: 16 | V175: típus: vágó (balkezes), sebzés: 3d4+1, min. bányászat: 5
B176: 0 | D176: 16. | E176: 276 | F176: sárga erőöv | G176: =INDEX($R$5:U2220,$E176,3) -> 0.2 | H176: =INDEX($R$5:V2220,$E176,4) -> 25 | I176: 0 | J176: 0 | K176: 0 | L176: =$J176/hátizsák!$H$10 -> 0 | R176: 172 | S176: téfea-agy | T176: 0.3 | U176: 8 | V176: -
B177: 0 | D177: 17. | E177: 276 | F177: sárga erőöv | G177: =INDEX($R$5:U2221,$E177,3) -> 0.2 | H177: =INDEX($R$5:V2221,$E177,4) -> 25 | I177: 0 | J177: 0 | K177: 0 | L177: =$J177/hátizsák!$H$10 -> 0 | R177: 173 | S177: nekrofun | T177: - | U177: 0 | V177: duplázza a varázspont regenerálást
B178: 0 | D178: 18. | E178: 276 | F178: sárga erőöv | G178: =INDEX($R$5:U2222,$E178,3) -> 0.2 | H178: =INDEX($R$5:V2222,$E178,4) -> 25 | I178: 0 | J178: 0 | K178: 0 | L178: =$J178/hátizsák!$H$10 -> 0 | R178: 174 | S178: harci kalapács | T178: 2.2 | U178: 20 | V178: típus: ütő (balkezes), sebzés: 3d4+1, min. bányászat: 3
B179: 0 | D179: 19. | E179: 276 | F179: sárga erőöv | G179: =INDEX($R$5:U2223,$E179,3) -> 0.2 | H179: =INDEX($R$5:V2223,$E179,4) -> 25 | I179: 0 | J179: 0 | K179: 0 | L179: =$J179/hátizsák!$H$10 -> 0 | R179: 175 | S179: márványtorony | T179: - | U179: 0 | V179: másznivaló, min. mászás: 8
B180: 0 | D180: 20. | E180: 276 | F180: sárga erőöv | G180: =INDEX($R$5:U2224,$E180,3) -> 0.2 | H180: =INDEX($R$5:V2224,$E180,4) -> 25 | I180: 0 | J180: 0 | K180: 0 | L180: =$J180/hátizsák!$H$10 -> 0 | R180: 176 | S180: vashegyű nyíl | T180: 0.08 | U180: 5 | V180: típus: lövedék (szúró), sebzés: 3d6+1, min. bányászat: 2
F181: ÖSSZESEN | G181: lefoglalt tárhely: | I181: =SUM(B161:B180) -> 1 | J181: =SUM(J161:J180) -> 0 | K181: =SUM(K161:K180) -> 35 | L181: =SUM(L161:L180) -> 0 | R181: 177 | S181: szopógödör | T181: - | U181: 0 | V181: -
R182: 178 | S182: mínosz-kúp | T182: - | U182: 0 | V182: -
R183: 179 | S183: grifftojás | T183: 0.4 | U183: 10 | V183: -
R184: 180 | S184: ezüst gyűrű | T184: 0.01 | U184: 6 | V184: ékszer
D185: nadrágok | R185: 181 | S185: vasalt bunkó | T185: 4.5 | U185: 35 | V185: típus: ütő, sebzés: 4d6+4, min. fsz.: 10, min. bányászat: 4
D186: tárhely | E186: # tágy | F186: tárgy neve | G186: súly/db | H186: ap/db | I186: készlet | J186: tétel súlya | K186: tétel értéke | L186: zsákban foglalt % | R186: 182 | S186: vashegyű lándzsa | T186: 2 | U186: 18 | V186: típus: szúró, sebzés: 4d6+1, min. fsz.: 10, +2 támadás, min. bányászat: 2
B187: 0 | D187: 1. | E187: 646 | F187: =INDEX($R$5:$U$2046,$E187,2) -> légiós nadrág | G187: =INDEX($R$5:U2231,$E187,3) -> 0 | H187: =INDEX($R$5:V2231,$E187,4) -> 30 | I187: 0 | J187: =G187*I187 -> 0 | K187: =H187*I187 -> 0 | L187: =$J187/hátizsák!$H$10 -> 0 | R187: 183 | S187: vaskulcs | T187: 0.08 | U187: 10 | V187: -
B188: 0 | D188: 2. | E188: 646 | F188: légiós nadrág | G188: =INDEX($R$5:U2232,$E188,3) -> 0 | H188: =INDEX($R$5:V2232,$E188,4) -> 30 | I188: 0 | J188: 0 | K188: 0 | L188: =$J188/hátizsák!$H$10 -> 0 | R188: 184 | S188: ezüst kulcs | T188: 0.04 | U188: 12 | V188: -
B189: 0 | D189: 3. | E189: 646 | F189: légiós nadrág | G189: =INDEX($R$5:U2233,$E189,3) -> 0 | H189: =INDEX($R$5:V2233,$E189,4) -> 30 | I189: 0 | J189: 0 | K189: 0 | L189: =$J189/hátizsák!$H$10 -> 0 | R189: 185 | S189: nagy bronzkulcs | T189: 0.12 | U189: 14 | V189: -
B190: 0 | D190: 4. | E190: 646 | F190: légiós nadrág | G190: =INDEX($R$5:U2234,$E190,3) -> 0 | H190: =INDEX($R$5:V2234,$E190,4) -> 30 | I190: 0 | J190: 0 | K190: 0 | L190: =$J190/hátizsák!$H$10 -> 0 | R190: 186 | S190: nagy vaskulcs | T190: 0.15 | U190: 16 | V190: -
B191: 0 | D191: 5. | E191: 646 | F191: légiós nadrág | G191: =INDEX($R$5:U2235,$E191,3) -> 0 | H191: =INDEX($R$5:V2235,$E191,4) -> 30 | I191: 0 | J191: 0 | K191: 0 | L191: =$J191/hátizsák!$H$10 -> 0 | R191: 187 | S191: mérgezett vashegyű nyíl | T191: 0.08 | U191: 8 | V191: típus: lövedék (szúró), sebzés: 3d6+7
B192: 0 | D192: 6. | E192: 646 | F192: légiós nadrág | G192: =INDEX($R$5:U2236,$E192,3) -> 0 | H192: =INDEX($R$5:V2236,$E192,4) -> 30 | I192: 0 | J192: 0 | K192: 0 | L192: =$J192/hátizsák!$H$10 -> 0 | R192: 188 | S192: mérgezett ubuk dobónyíl | T192: 0.15 | U192: 7 | V192: típus: dobó (szúró), sebzés: 1d8+10
B193: 0 | D193: 7. | E193: 646 | F193: légiós nadrág | G193: =INDEX($R$5:U2237,$E193,3) -> 0 | H193: =INDEX($R$5:V2237,$E193,4) -> 30 | I193: 0 | J193: 0 | K193: 0 | L193: =$J193/hátizsák!$H$10 -> 0 | R193: 189 | S193: vas dobónyíl | T193: 0.1 | U193: 7 | V193: típus: dobó (szúró), sebzés: 2d6+4, +2 támadás, min. bányászat: 3
B194: 0 | D194: 8. | E194: 646 | F194: légiós nadrág | G194: =INDEX($R$5:U2238,$E194,3) -> 0 | H194: =INDEX($R$5:V2238,$E194,4) -> 30 | I194: 0 | J194: 0 | K194: 0 | L194: =$J194/hátizsák!$H$10 -> 0 | R194: 190 | S194: mérgezett vas dobónyíl | T194: 0.1 | U194: 10 | V194: típus: dobó (szúró), sebzés: 2d6+10, +2 támadás
B195: 0 | D195: 9. | E195: 646 | F195: légiós nadrág | G195: =INDEX($R$5:U2239,$E195,3) -> 0 | H195: =INDEX($R$5:V2239,$E195,4) -> 30 | I195: 0 | J195: 0 | K195: 0 | L195: =$J195/hátizsák!$H$10 -> 0 | R195: 191 | S195: aranylánc | T195: 0.15 | U195: 20 | V195: ékszer
B196: 0 | D196: 10. | E196: 646 | F196: légiós nadrág | G196: =INDEX($R$5:U2240,$E196,3) -> 0 | H196: =INDEX($R$5:V2240,$E196,4) -> 30 | I196: 0 | J196: 0 | K196: 0 | L196: =$J196/hátizsák!$H$10 -> 0 | R196: 192 | S196: gyöngysor | T196: 0.25 | U196: 48 | V196: ékszer
B197: 0 | D197: 11. | E197: 646 | F197: légiós nadrág | G197: =INDEX($R$5:U2241,$E197,3) -> 0 | H197: =INDEX($R$5:V2241,$E197,4) -> 30 | I197: 0 | J197: 0 | K197: 0 | L197: =$J197/hátizsák!$H$10 -> 0 | R197: 193 | S197: aranygyűrű | T197: 0.02 | U197: 12 | V197: ékszer
B198: 0 | D198: 12. | E198: 646 | F198: légiós nadrág | G198: =INDEX($R$5:U2242,$E198,3) -> 0 | H198: =INDEX($R$5:V2242,$E198,4) -> 30 | I198: 0 | J198: 0 | K198: 0 | L198: =$J198/hátizsák!$H$10 -> 0 | R198: 194 | S198: arany karperec | T198: 0.12 | U198: 26 | V198: ékszer
B199: 0 | D199: 13. | E199: 646 | F199: légiós nadrág | G199: =INDEX($R$5:U2243,$E199,3) -> 0 | H199: =INDEX($R$5:V2243,$E199,4) -> 30 | I199: 0 | J199: 0 | K199: 0 | L199: =$J199/hátizsák!$H$10 -> 0 | R199: 195 | S199: obszidián függő | T199: 0.01 | U199: 10 | V199: ékszer
B200: =IF(I200>0,1,IF(I200=0,0)) -> 0 | D200: 14. | E200: 646 | F200: légiós nadrág | G200: =INDEX($R$5:U2244,$E200,3) -> 0 | H200: =INDEX($R$5:V2244,$E200,4) -> 30 | I200: 0 | J200: 0 | K200: 0 | L200: =$J200/hátizsák!$H$10 -> 0 | R200: 196 | S200: trófea nyaklánc | T200: 0.38 | U200: 30 | V200: ékszer
B201: 0 | D201: 15. | E201: 646 | F201: légiós nadrág | G201: =INDEX($R$5:U2245,$E201,3) -> 0 | H201: =INDEX($R$5:V2245,$E201,4) -> 30 | I201: 0 | J201: 0 | K201: 0 | L201: =$J201/hátizsák!$H$10 -> 0 | R201: 197 | S201: igazgyöngy fülbevaló | T201: 0.02 | U201: 20 | V201: ékszer
B202: 0 | D202: 16. | E202: 646 | F202: légiós nadrág | G202: =INDEX($R$5:U2246,$E202,3) -> 0 | H202: =INDEX($R$5:V2246,$E202,4) -> 30 | I202: 0 | J202: 0 | K202: 0 | L202: =$J202/hátizsák!$H$10 -> 0 | R202: 198 | S202: trikornis szarv | T202: 0.2 | U202: 12 | V202: -
... 1844 more rows

Sheet ékszerek
D3: fülbevalók
D4: tárhely | E4: # tágy | F4: tárgy neve | G4: súly/db | H4: ap/db | I4: készlet | J4: tétel súlya | K4: tétel értéke | L4: zsákban foglalt % | R4: # | S4: Tárgy | T4: Súly | U4: EA | V4: Egyéb
B5: =IF(I5>0,1,IF(I5=0,0)) -> 1 | D5: 1. | E5: 817 | F5: =INDEX($R$5:$U$2046,$E5,2) -> hatalom fülbevalója | G5: =INDEX($R$5:U2046,$E5,3) -> 0.03 | H5: =INDEX($R$5:V2046,$E5,4) -> 200 | I5: 1 | J5: =G5*I5 -> 0.03 | K5: =H5*I5 -> 200 | L5: =$J5/hátizsák!$H$10 -> 0.00024 | R5: 1 | S5: deus ex machina | T5: 0.1 | U5: 25 | V5: megmenti az életed, ha meghalnál
B6: =IF(I6>0,1,IF(I6=0,0)) -> 0 | D6: 2. | E6: 197 | F6: igazgyöngy fülbevaló | G6: =INDEX($R$5:U2050,$E6,3) -> 0.02 | H6: =INDEX($R$5:V2050,$E6,4) -> 20 | I6: 0 | J6: =G6*I6 -> 0 | K6: =H6*I6 -> 0 | L6: =$J6/hátizsák!$H$10 -> 0 | R6: 2 | S6: kaja | T6: 0.3 | U6: 1 | V6: -
B7: 0 | D7: 3. | E7: 197 | F7: igazgyöngy fülbevaló | G7: =INDEX($R$5:U2051,$E7,3) -> 0.02 | H7: =INDEX($R$5:V2051,$E7,4) -> 20 | I7: 0 | J7: 0 | K7: 0 | L7: =$J7/hátizsák!$H$10 -> 0 | R7: 3 | S7: vizestömlő | T7: 0.2 | U7: 7 | V7: 20 víz tárolására
B8: 0 | D8: 4. | E8: 197 | F8: igazgyöngy fülbevaló | G8: =INDEX($R$5:U2052,$E8,3) -> 0.02 | H8: =INDEX($R$5:V2052,$E8,4) -> 20 | I8: 0 | J8: 0 | K8: 0 | L8: =$J8/hátizsák!$H$10 -> 0 | R8: 4 | S8: bot | T8: 3 | U8: 0 | V8: típus: ütő, sebzés: 1d6
B9: 0 | D9: 5. | E9: 197 | F9: igazgyöngy fülbevaló | G9: =INDEX($R$5:U2053,$E9,3) -> 0.02 | H9: =INDEX($R$5:V2053,$E9,4) -> 20 | I9: 0 | J9: 0 | K9: 0 | L9: =$J9/hátizsák!$H$10 -> 0 | R9: 5 | S9: bunkó | T9: 5 | U9: 0 | V9: típus: ütő, sebzés: 1d6
B10: 0 | D10: 6. | E10: 197 | F10: igazgyöngy fülbevaló | G10: =INDEX($R$5:U2054,$E10,3) -> 0.02 | H10: =INDEX($R$5:V2054,$E10,4) -> 20 | I10: 0 | J10: 0 | K10: 0 | L10: =$J10/hátizsák!$H$10 -> 0 | R10: 6 | S10: kőkés | T10: 0.5 | U10: 0 | V10: típus: vágó (balkezes), sebzés: 1d4
B11: 0 | D11: 7. | E11: 197 | F11: igazgyöngy fülbevaló | G11: =INDEX($R$5:U2055,$E11,3) -> 0.02 | H11: =INDEX($R$5:V2055,$E11,4) -> 20 | I11: 0 | J11: 0 | K11: 0 | L11: =$J11/hátizsák!$H$10 -> 0 | R11: 7 | S11: kőhegyű lándzsa | T11: 3.5 | U11: 1 | V11: típus: szúró, sebzés: 2d4+2
B12: 0 | D12: 8. | E12: 197 | F12: igazgyöngy fülbevaló | G12: =INDEX($R$5:U2056,$E12,3) -> 0.02 | H12: =INDEX($R$5:V2056,$E12,4) -> 20 | I12: 0 | J12: 0 | K12: 0 | L12: =$J12/hátizsák!$H$10 -> 0 | R12: 8 | S12: szöges bunkó | T12: 5.2 | U12: 10 | V12: típus: ütő, sebzés: 3d6+2
B13: 0 | D13: 9. | E13: 197 | F13: igazgyöngy fülbevaló | G13: =INDEX($R$5:U2057,$E13,3) -> 0.02 | H13: =INDEX($R$5:V2057,$E13,4) -> 20 | I13: 0 | J13: 0 | K13: 0 | L13: =$J13/hátizsák!$H$10 -> 0 | R13: 9 | S13: bunkósbot | T13: 3.5 | U13: 1 | V13: típus: ütő, sebzés: 2d4+2
B14: 0 | D14: 10. | E14: 197 | F14: igazgyöngy fülbevaló | G14: =INDEX($R$5:U2058,$E14,3) -> 0.02 | H14: =INDEX($R$5:V2058,$E14,4) -> 20 | I14: 0 | J14: 0 | K14: 0 | L14: =$J14/hátizsák!$H$10 -> 0 | R14: 10 | S14: dárda | T14: 2 | U14: 1 | V14: típus: dobó (szúró), sebzés: 1d6, +1 vadászat
B15: 0 | D15: 11. | E15: 197 | F15: igazgyöngy fülbevaló | G15: =INDEX($R$5:U2059,$E15,3) -> 0.02 | H15: =INDEX($R$5:V2059,$E15,4) -> 20 | I15: 0 | J15: 0 | K15: 0 | L15: =$J15/hátizsák!$H$10 -> 0 | R15: 11 | S15: csontkés | T15: 0.3 | U15: 2 | V15: típus: szúró (balkezes), sebzés: 1d4+3
B16: 0 | D16: 12. | E16: 197 | F16: igazgyöngy fülbevaló | G16: =INDEX($R$5:U2060,$E16,3) -> 0.02 | H16: =INDEX($R$5:V2060,$E16,4) -> 20 | I16: 0 | J16: 0 | K16: 0 | L16: =$J16/hátizsák!$H$10 -> 0 | R16: 12 | S16: csontszurony | T16: 3.3 | U16: 2 | V16: típus: szúró, sebzés: 3d4+2
B17: 0 | D17: 13. | E17: 197 | F17: igazgyöngy fülbevaló | G17: =INDEX($R$5:U2061,$E17,3) -> 0.02 | H17: =INDEX($R$5:V2061,$E17,4) -> 20 | I17: 0 | J17: 0 | K17: 0 | L17: =$J17/hátizsák!$H$10 -> 0 | R17: 13 | S17: kőkalapács | T17: 1 | U17: 0 | V17: típus: ütő (balkezes), sebzés: 1d6
B18: 0 | D18: 14. | E18: 197 | F18: igazgyöngy fülbevaló | G18: =INDEX($R$5:U2062,$E18,3) -> 0.02 | H18: =INDEX($R$5:V2062,$E18,4) -> 20 | I18: 0 | J18: 0 | K18: 0 | L18: =$J18/hátizsák!$H$10 -> 0 | R18: 14 | S18: sünmedve tüske | T18: 0.03 | U18: 1 | V18: -
B19: 0 | D19: 15. | E19: 197 | F19: igazgyöngy fülbevaló | G19: =INDEX($R$5:U2063,$E19,3) -> 0.02 | H19: =INDEX($R$5:V2063,$E19,4) -> 20 | I19: 0 | J19: 0 | K19: 0 | L19: =$J19/hátizsák!$H$10 -> 0 | R19: 15 | S19: vadász tatu bőr | T19: 1 | U19: 1 | V19: -
B20: 0 | D20: 16. | E20: 197 | F20: igazgyöngy fülbevaló | G20: =INDEX($R$5:U2064,$E20,3) -> 0.02 | H20: =INDEX($R$5:V2064,$E20,4) -> 20 | I20: 0 | J20: 0 | K20: 0 | L20: =$J20/hátizsák!$H$10 -> 0 | R20: 16 | S20: bordacsont | T20: 0.4 | U20: 2 | V20: áldozati tárgy Leahnak
B21: 0 | D21: 17. | E21: 197 | F21: igazgyöngy fülbevaló | G21: =INDEX($R$5:U2065,$E21,3) -> 0.02 | H21: =INDEX($R$5:V2065,$E21,4) -> 20 | I21: 0 | J21: 0 | K21: 0 | L21: =$J21/hátizsák!$H$10 -> 0 | R21: 17 | S21: szögletes kő | T21: 0.5 | U21: 0 | V21: -
B22: 0 | D22: 18. | E22: 197 | F22: igazgyöngy fülbevaló | G22: =INDEX($R$5:U2066,$E22,3) -> 0.02 | H22: =INDEX($R$5:V2066,$E22,4) -> 20 | I22: 0 | J22: 0 | K22: 0 | L22: =$J22/hátizsák!$H$10 -> 0 | R22: 18 | S22: parittya | T22: 0.1 | U22: 0 | V22: típus: lőfegyver
B23: 0 | D23: 19. | E23: 197 | F23: igazgyöngy fülbevaló | G23: =INDEX($R$5:U2067,$E23,3) -> 0.02 | H23: =INDEX($R$5:V2067,$E23,4) -> 20 | I23: 0 | J23: 0 | K23: 0 | L23: =$J23/hátizsák!$H$10 -> 0 | R23: 19 | S23: kerek kő | T23: 0.15 | U23: 0 | V23: típus: lövedék (ütő), sebzés: 1d4
B24: 0 | D24: 20. | E24: 197 | F24: =INDEX($R$5:$U$2046,$E24,2) -> igazgyöngy fülbevaló | G24: =INDEX($R$5:U2068,$E24,3) -> 0.02 | H24: =INDEX($R$5:V2068,$E24,4) -> 20 | I24: 0 | J24: =G24*I24 -> 0 | K24: =H24*I24 -> 0 | L24: =$J24/hátizsák!$H$10 -> 0 | R24: 20 | S24: fúvócső | T24: 0.1 | U24: 4 | V24: típus: lőfegyver, +2 támadás
B25: 0 | D25: 21. | E25: 197 | F25: igazgyöngy fülbevaló | G25: =INDEX($R$5:U2069,$E25,3) -> 0.02 | H25: =INDEX($R$5:V2069,$E25,4) -> 20 | I25: 0 | J25: 0 | K25: 0 | L25: =$J25/hátizsák!$H$10 -> 0 | R25: 21 | S25: ormánygőte csont | T25: 0.2 | U25: 3 | V25: -
B26: 0 | D26: 22. | E26: 197 | F26: igazgyöngy fülbevaló | G26: =INDEX($R$5:U2070,$E26,3) -> 0.02 | H26: =INDEX($R$5:V2070,$E26,4) -> 20 | I26: 0 | J26: 0 | K26: 0 | L26: =$J26/hátizsák!$H$10 -> 0 | R26: 22 | S26: tüske | T26: 0.03 | U26: 0 | V26: típus: lövedék (szúró), sebzés: 1d3
B27: 0 | D27: 23. | E27: 197 | F27: igazgyöngy fülbevaló | G27: =INDEX($R$5:U2071,$E27,3) -> 0.02 | H27: =INDEX($R$5:V2071,$E27,4) -> 20 | I27: 0 | J27: 0 | K27: 0 | L27: =$J27/hátizsák!$H$10 -> 0 | R27: 23 | S27: mérgezett tüske | T27: 0.03 | U27: 1 | V27: típus: lövedék (szúró), sebzés: 1d3+4
B28: 0 | D28: 24. | E28: 197 | F28: igazgyöngy fülbevaló | G28: =INDEX($R$5:U2072,$E28,3) -> 0.02 | H28: =INDEX($R$5:V2072,$E28,4) -> 20 | I28: 0 | J28: 0 | K28: 0 | L28: =$J28/hátizsák!$H$10 -> 0 | R28: 24 | S28: kavadu lebeny | T28: 0.2 | U28: 2 | V28: -
B29: 0 | D29: 25. | E29: 197 | F29: igazgyöngy fülbevaló | G29: =INDEX($R$5:U2073,$E29,3) -> 0.02 | H29: =INDEX($R$5:V2073,$E29,4) -> 20 | I29: 0 | J29: 0 | K29: 0 | L29: =$J29/hátizsák!$H$10 -> 0 | R29: 25 | S29: kavadu iszák | T29: 0.1 | U29: 2 | V29: 10 gyenge méreg tárolására
B30: 0 | D30: 26. | E30: 197 | F30: igazgyöngy fülbevaló | G30: =INDEX($R$5:U2074,$E30,3) -> 0.02 | H30: =INDEX($R$5:V2074,$E30,4) -> 20 | I30: 0 | J30: 0 | K30: 0 | L30: =$J30/hátizsák!$H$10 -> 0 | R30: 26 | S30: gyenge méreg | T30: 0.01 | U30: 1 | V30: áldozati tárgy Dornodonnak
B31: 0 | D31: 27. | E31: 197 | F31: igazgyöngy fülbevaló | G31: =INDEX($R$5:U2075,$E31,3) -> 0.02 | H31: =INDEX($R$5:V2075,$E31,4) -> 20 | I31: 0 | J31: 0 | K31: 0 | L31: =$J31/hátizsák!$H$10 -> 0 | R31: 27 | S31: víz | T31: 0.01 | U31: 0 | V31: -
B32: 0 | D32: 28. | E32: 197 | F32: igazgyöngy fülbevaló | G32: =INDEX($R$5:U2076,$E32,3) -> 0.02 | H32: =INDEX($R$5:V2076,$E32,4) -> 20 | I32: 0 | J32: 0 | K32: 0 | L32: =$J32/hátizsák!$H$10 -> 0 | R32: 28 | S32: ököl | T32: - | U32: 0 | V32: típus: ütő, sebzés: 1d3
B33: 0 | D33: 29. | E33: 197 | F33: igazgyöngy fülbevaló | G33: =INDEX($R$5:U2077,$E33,3) -> 0.02 | H33: =INDEX($R$5:V2077,$E33,4) -> 20 | I33: 0 | J33: 0 | K33: 0 | L33: =$J33/hátizsák!$H$10 -> 0 | R33: 29 | S33: smirglilevél | T33: 0.05 | U33: 0 | V33: -
B34: 0 | D34: 30. | E34: 197 | F34: igazgyöngy fülbevaló | G34: =INDEX($R$5:U2078,$E34,3) -> 0.02 | H34: =INDEX($R$5:V2078,$E34,4) -> 20 | I34: 0 | J34: 0 | K34: 0 | L34: =$J34/hátizsák!$H$10 -> 0 | R34: 30 | S34: varányszem | T34: 0.02 | U34: 1 | V34: -
B35: 0 | D35: 31. | E35: 197 | F35: igazgyöngy fülbevaló | G35: =INDEX($R$5:U2079,$E35,3) -> 0.02 | H35: =INDEX($R$5:V2079,$E35,4) -> 20 | I35: 0 | J35: 0 | K35: 0 | L35: =$J35/hátizsák!$H$10 -> 0 | R35: 31 | S35: smirglibokor | T35: - | U35: 0 | V35: -
B36: 0 | D36: 32. | E36: 197 | F36: igazgyöngy fülbevaló | G36: =INDEX($R$5:U2080,$E36,3) -> 0.02 | H36: =INDEX($R$5:V2080,$E36,4) -> 20 | I36: 0 | J36: 0 | K36: 0 | L36: =$J36/hátizsák!$H$10 -> 0 | R36: 32 | S36: szeksztáns | T36: 0.2 | U36: 20 | V36: abszolút koordináta meghatározására
B37: 0 | D37: 33. | E37: 197 | F37: igazgyöngy fülbevaló | G37: =INDEX($R$5:U2081,$E37,3) -> 0.02 | H37: =INDEX($R$5:V2081,$E37,4) -> 20 | I37: 0 | J37: 0 | K37: 0 | L37: =$J37/hátizsák!$H$10 -> 0 | R37: 33 | S37: lapockacsont | T37: 1 | U37: 4 | V37: -
B38: 0 | D38: 34. | E38: 197 | F38: igazgyöngy fülbevaló | G38: =INDEX($R$5:U2082,$E38,3) -> 0.02 | H38: =INDEX($R$5:V2082,$E38,4) -> 20 | I38: 0 | J38: 0 | K38: 0 | L38: =$J38/hátizsák!$H$10 -> 0 | R38: 34 | S38: ásó | T38: 3 | U38: 5 | V38: típus: ütő, sebzés: 1d2
B39: 0 | D39: 35. | E39: 197 | F39: igazgyöngy fülbevaló | G39: =INDEX($R$5:U2083,$E39,3) -> 0.02 | H39: =INDEX($R$5:V2083,$E39,4) -> 20 | I39: 0 | J39: 0 | K39: 0 | L39: =$J39/hátizsák!$H$10 -> 0 | R39: 35 | S39: tűzbokor | T39: - | U39: 0 | V39: -
B40: 0 | D40: 36. | E40: 197 | F40: =INDEX($R$5:$U$2046,$E40,2) -> igazgyöngy fülbevaló | G40: =INDEX($R$5:U2084,$E40,3) -> 0.02 | H40: =INDEX($R$5:V2084,$E40,4) -> 20 | I40: 0 | J40: 0 | K40: 0 | L40: =$J40/hátizsák!$H$10 -> 0 | R40: 36 | S40: fáklya | T40: 0.3 | U40: 0 | V40: áldozati tárgy Tharrnak
B41: 0 | D41: 37. | E41: 197 | F41: igazgyöngy fülbevaló | G41: =INDEX($R$5:U2085,$E41,3) -> 0.02 | H41: =INDEX($R$5:V2085,$E41,4) -> 20 | I41: 0 | J41: =G41*I41 -> 0 | K41: =H41*I41 -> 0 | L41: =$J41/hátizsák!$H$10 -> 0 | R41: 37 | S41: drótszőr | T41: 0.05 | U41: 2 | V41: -
B42: 0 | D42: 38. | E42: 197 | F42: igazgyöngy fülbevaló | G42: =INDEX($R$5:U2086,$E42,3) -> 0.02 | H42: =INDEX($R$5:V2086,$E42,4) -> 20 | I42: 0 | J42: 0 | K42: 0 | L42: =$J42/hátizsák!$H$10 -> 0 | R42: 38 | S42: gumifa | T42: - | U42: 0 | V42: -
B43: 0 | D43: 39. | E43: 197 | F43: igazgyöngy fülbevaló | G43: =INDEX($R$5:U2087,$E43,3) -> 0.02 | H43: =INDEX($R$5:V2087,$E43,4) -> 20 | I43: 0 | J43: 0 | K43: 0 | L43: =$J43/hátizsák!$H$10 -> 0 | R43: 39 | S43: zárnyitó készlet | T43: 0.2 | U43: 12 | V43: -
B44: 0 | D44: 40. | E44: 197 | F44: igazgyöngy fülbevaló | G44: =INDEX($R$5:U2088,$E44,3) -> 0.02 | H44: =INDEX($R$5:V2088,$E44,4) -> 20 | I44: 0 | J44: 0 | K44: 0 | L44: =$J44/hátizsák!$H$10 -> 0 | R44: 40 | S44: kis vaskulcs | T44: 0.08 | U44: 3 | V44: -
F45: ÖSSZESEN | G45: lefoglalt tárhely: | I45: =SUM(B5:B44) -> 1 | J45: =SUM(J5:J44) -> 0.03 | K45: =SUM(K5:K44) -> 200 | L45: 0.00024 | R45: 41 | S45: grákóbőr | T45: 0.1 | U45: 3 | V45: -
R46: 42 | S46: távcső | T46: 0.2 | U46: 16 | V46: -
R47: 43 | S47: tükör | T47: 0.3 | U47: 0 | V47: -
R48: 44 | S48: királygyík bőr | T48: 1 | U48: 3 | V48: -
D49: nyakláncok | R49: 45 | S49: kis bőrpajzs | T49: 2 | U49: 5 | V49: +1 AC
D50: tárhely | E50: # tágy | F50: tárgy neve | G50: súly/db | H50: ap/db | I50: készlet | J50: tétel súlya | K50: tétel értéke | L50: zsákban foglalt % | R50: 46 | S50: krómkaktusz | T50: - | U50: 0 | V50: -
B51: 0 | D51: 1. | E51: 117 | F51: =INDEX($R$5:$U$2046,$E51,2) -> ezüst nyaklánc | G51: =INDEX($R$5:U2092,$E51,3) -> 0.1 | H51: =INDEX($R$5:V2092,$E51,4) -> 10 | I51: 0 | J51: =G51*I51 -> 0 | K51: =H51*I51 -> 0 | L51: =$J51/hátizsák!$H$10 -> 0 | R51: 47 | S51: surranó kígyó bőr | T51: 0.2 | U51: 2 | V51: -
B52: 1 | D52: 2. | E52: 140 | F52: denevér szimbólum | G52: =INDEX($R$5:U2096,$E52,3) -> 0.04 | H52: =INDEX($R$5:V2096,$E52,4) -> 10 | I52: 1 | J52: =G52*I52 -> 0.04 | K52: =H52*I52 -> 10 | L52: =$J52/hátizsák!$H$10 -> 0.00032 | R52: 48 | S52: antilopbőr | T52: 2 | U52: 3 | V52: -
B53: 1 | D53: 3. | E53: 145 | F53: villám szimbólum | G53: =INDEX($R$5:U2097,$E53,3) -> 0.04 | H53: =INDEX($R$5:V2097,$E53,4) -> 10 | I53: 1 | J53: 0.04 | K53: 10 | L53: =$J53/hátizsák!$H$10 -> 0.00032 | R53: 49 | S53: kígyóbőr kesztyű | T53: 0.3 | U53: 5 | V53: +1 AC
B54: 1 | D54: 4. | E54: 708 | F54: ritualista amulett | G54: =INDEX($R$5:U2098,$E54,3) -> 0.5 | H54: =INDEX($R$5:V2098,$E54,4) -> 50 | I54: 1 | J54: 0.5 | K54: 50 | L54: =$J54/hátizsák!$H$10 -> 0.004 | R54: 50 | S54: arany | T54: 0 | U54: 0 | V54: -
B55: 1 | D55: 5. | E55: 811 | F55: gólem talizmán | G55: =INDEX($R$5:U2099,$E55,3) -> 0.1 | H55: =INDEX($R$5:V2099,$E55,4) -> 50 | I55: 4 | J55: 0.4 | K55: 200 | L55: =$J55/hátizsák!$H$10 -> 0.0032 | R55: 51 | S55: bőrpáncél | T55: 3 | U55: 5 | V55: +2 AC
B56: 1 | D56: 6. | E56: 812 | F56: vortex talizmán | G56: =INDEX($R$5:U2100,$E56,3) -> 0.1 | H56: =INDEX($R$5:V2100,$E56,4) -> 50 | I56: 1 | J56: 0.1 | K56: 50 | L56: =$J56/hátizsák!$H$10 -> 0.0008 | R56: 52 | S56: patak | T56: - | U56: 0 | V56: -
B57: 1 | D57: 7. | E57: 813 | F57: halálhozó talizmán | G57: =INDEX($R$5:U2101,$E57,3) -> 0.1 | H57: =INDEX($R$5:V2101,$E57,4) -> 50 | I57: 2 | J57: 0.2 | K57: 100 | L57: =$J57/hátizsák!$H$10 -> 0.0016 | R57: 53 | S57: tavacska | T57: - | U57: 0 | V57: -
B58: 1 | D58: 8. | E58: 814 | F58: korinthai talizmán | G58: =INDEX($R$5:U2102,$E58,3) -> 0.1 | H58: =INDEX($R$5:V2102,$E58,4) -> 50 | I58: 2 | J58: 0.2 | K58: 100 | L58: =$J58/hátizsák!$H$10 -> 0.0016 | R58: 54 | S58: szökőkút | T58: - | U58: 0 | V58: -
B59: 1 | D59: 9. | E59: 1579 | F59: griff nyakék | G59: =INDEX($R$5:U2103,$E59,3) -> 0.05 | H59: =INDEX($R$5:V2103,$E59,4) -> 80 | I59: 1 | J59: 0.05 | K59: 80 | L59: =$J59/hátizsák!$H$10 -> 0.0004 | R59: 55 | S59: mákrózsa bokor | T59: - | U59: 0 | V59: -
B60: 0 | D60: 10. | E60: 117 | F60: ezüst nyaklánc | G60: =INDEX($R$5:U2104,$E60,3) -> 0.1 | H60: =INDEX($R$5:V2104,$E60,4) -> 10 | I60: 0 | J60: 0 | K60: 0 | L60: =$J60/hátizsák!$H$10 -> 0 | R60: 56 | S60: mákrózsa virág | T60: 0.2 | U60: 0 | V60: áldozati tárgy Eleniosnak
B61: 0 | D61: 11. | E61: 117 | F61: ezüst nyaklánc | G61: =INDEX($R$5:U2105,$E61,3) -> 0.1 | H61: =INDEX($R$5:V2105,$E61,4) -> 10 | I61: 0 | J61: 0 | K61: 0 | L61: =$J61/hátizsák!$H$10 -> 0 | R61: 57 | S61: bőrsisak | T61: 1 | U61: 5 | V61: +1 AC
B62: 0 | D62: 12. | E62: 117 | F62: ezüst nyaklánc | G62: =INDEX($R$5:U2106,$E62,3) -> 0.1 | H62: =INDEX($R$5:V2106,$E62,4) -> 10 | I62: 0 | J62: 0 | K62: 0 | L62: =$J62/hátizsák!$H$10 -> 0 | R62: 58 | S62: ködmangócserje | T62: - | U62: 0 | V62: -
B63: 0 | D63: 13. | E63: 117 | F63: ezüst nyaklánc | G63: =INDEX($R$5:U2107,$E63,3) -> 0.1 | H63: =INDEX($R$5:V2107,$E63,4) -> 10 | I63: 0 | J63: 0 | K63: 0 | L63: =$J63/hátizsák!$H$10 -> 0 | R63: 59 | S63: ködmangó | T63: - | U63: 0 | V63: -
B64: 0 | D64: 14. | E64: 117 | F64: ezüst nyaklánc | G64: =INDEX($R$5:U2108,$E64,3) -> 0.1 | H64: =INDEX($R$5:V2108,$E64,4) -> 10 | I64: 0 | J64: 0 | K64: 0 | L64: =$J64/hátizsák!$H$10 -> 0 | R64: 60 | S64: ködkapu | T64: - | U64: 0 | V64: -
B65: 0 | D65: 15. | E65: 117 | F65: ezüst nyaklánc | G65: =INDEX($R$5:U2109,$E65,3) -> 0.1 | H65: =INDEX($R$5:V2109,$E65,4) -> 10 | I65: 0 | J65: 0 | K65: 0 | L65: =$J65/hátizsák!$H$10 -> 0 | R65: 61 | S65: árnyéksár | T65: - | U65: 0 | V65: -
B66: 0 | D66: 16. | E66: 117 | F66: ezüst nyaklánc | G66: =INDEX($R$5:U2110,$E66,3) -> 0.1 | H66: =INDEX($R$5:V2110,$E66,4) -> 10 | I66: 0 | J66: 0 | K66: 0 | L66: =$J66/hátizsák!$H$10 -> 0 | R66: 62 | S66: ködcsillag | T66: - | U66: 0 | V66: -
B67: 0 | D67: 17. | E67: 117 | F67: ezüst nyaklánc | G67: =INDEX($R$5:U2111,$E67,3) -> 0.1 | H67: =INDEX($R$5:V2111,$E67,4) -> 10 | I67: 0 | J67: 0 | K67: 0 | L67: =$J67/hátizsák!$H$10 -> 0 | R67: 63 | S67: tigroszlán fog | T67: 0.05 | U67: 1 | V67: -
B68: 0 | D68: 18. | E68: 117 | F68: ezüst nyaklánc | G68: =INDEX($R$5:U2112,$E68,3) -> 0.1 | H68: =INDEX($R$5:V2112,$E68,4) -> 10 | I68: 0 | J68: 0 | K68: 0 | L68: =$J68/hátizsák!$H$10 -> 0 | R68: 64 | S68: csontszablya | T68: 1.5 | U68: 2 | V68: típus: vágó (balkezes), sebzés: 1d8, áldozati tárgy Dornodonnak
B69: 0 | D69: 19. | E69: 117 | F69: ezüst nyaklánc | G69: =INDEX($R$5:U2113,$E69,3) -> 0.1 | H69: =INDEX($R$5:V2113,$E69,4) -> 10 | I69: 0 | J69: 0 | K69: 0 | L69: =$J69/hátizsák!$H$10 -> 0 | R69: 65 | S69: szöges páncél | T69: 3.4 | U69: 24 | V69: +4 AC
B70: =IF(I70>0,1,IF(I70=0,0)) -> 0 | D70: 20. | E70: 117 | F70: =INDEX($R$5:$U$2046,$E70,2) -> ezüst nyaklánc | G70: =INDEX($R$5:U2114,$E70,3) -> 0.1 | H70: =INDEX($R$5:V2114,$E70,4) -> 10 | I70: 0 | J70: 0 | K70: 0 | L70: =$J70/hátizsák!$H$10 -> 0 | R70: 66 | S70: szöges bőrpajzs | T70: 2.2 | U70: 16 | V70: +2 AC
B71: 0 | D71: 21. | E71: 117 | F71: ezüst nyaklánc | G71: =INDEX($R$5:U2115,$E71,3) -> 0.1 | H71: =INDEX($R$5:V2115,$E71,4) -> 10 | I71: 0 | J71: 0 | K71: 0 | L71: =$J71/hátizsák!$H$10 -> 0 | R71: 67 | S71: kék orchideacserje | T71: - | U71: 0 | V71: -
B72: 0 | D72: 22. | E72: 117 | F72: ezüst nyaklánc | G72: =INDEX($R$5:U2116,$E72,3) -> 0.1 | H72: =INDEX($R$5:V2116,$E72,4) -> 10 | I72: 0 | J72: 0 | K72: 0 | L72: =$J72/hátizsák!$H$10 -> 0 | R72: 68 | S72: kék orchidea | T72: 0.08 | U72: 4 | V72: -
B73: 0 | D73: 23. | E73: 117 | F73: ezüst nyaklánc | G73: =INDEX($R$5:U2117,$E73,3) -> 0.1 | H73: =INDEX($R$5:V2117,$E73,4) -> 10 | I73: 0 | J73: 0 | K73: 0 | L73: =$J73/hátizsák!$H$10 -> 0 | R73: 69 | S73: szárnyas hernyó | T73: 0.1 | U73: 2 | V73: áldozati tárgy Sherannak
B74: 0 | D74: 24. | E74: 117 | F74: ezüst nyaklánc | G74: =INDEX($R$5:U2118,$E74,3) -> 0.1 | H74: =INDEX($R$5:V2118,$E74,4) -> 10 | I74: 0 | J74: 0 | K74: 0 | L74: =$J74/hátizsák!$H$10 -> 0 | R74: 70 | S74: rézdarab | T74: 0.3 | U74: 1 | V74: -
B75: 0 | D75: 25. | E75: 117 | F75: ezüst nyaklánc | G75: =INDEX($R$5:U2119,$E75,3) -> 0.1 | H75: =INDEX($R$5:V2119,$E75,4) -> 10 | I75: 0 | J75: 0 | K75: 0 | L75: =$J75/hátizsák!$H$10 -> 0 | R75: 71 | S75: rézpáncél | T75: 5.4 | U75: 24 | V75: +5 AC
B76: 0 | D76: 26. | E76: 117 | F76: ezüst nyaklánc | G76: =INDEX($R$5:U2120,$E76,3) -> 0.1 | H76: =INDEX($R$5:V2120,$E76,4) -> 10 | I76: 0 | J76: 0 | K76: 0 | L76: =$J76/hátizsák!$H$10 -> 0 | R76: 72 | S76: rézsisak | T76: 0.9 | U76: 7 | V76: +2 AC
B77: 0 | D77: 27. | E77: 117 | F77: ezüst nyaklánc | G77: =INDEX($R$5:U2121,$E77,3) -> 0.1 | H77: =INDEX($R$5:V2121,$E77,4) -> 10 | I77: 0 | J77: 0 | K77: 0 | L77: =$J77/hátizsák!$H$10 -> 0 | R77: 73 | S77: rézpajzs | T77: 1.5 | U77: 14 | V77: +3 AC
B78: 0 | D78: 28. | E78: 117 | F78: ezüst nyaklánc | G78: =INDEX($R$5:U2122,$E78,3) -> 0.1 | H78: =INDEX($R$5:V2122,$E78,4) -> 10 | I78: 0 | J78: 0 | K78: 0 | L78: =$J78/hátizsák!$H$10 -> 0 | R78: 74 | S78: csontkulcs | T78: 0.06 | U78: 4 | V78: -
B79: 0 | D79: 29. | E79: 117 | F79: ezüst nyaklánc | G79: =INDEX($R$5:U2123,$E79,3) -> 0.1 | H79: =INDEX($R$5:V2123,$E79,4) -> 10 | I79: 0 | J79: 0 | K79: 0 | L79: =$J79/hátizsák!$H$10 -> 0 | R79: 75 | S79: rézkulcs | T79: 0.08 | U79: 6 | V79: -
B80: 0 | D80: 30. | E80: 117 | F80: ezüst nyaklánc | G80: =INDEX($R$5:U2124,$E80,3) -> 0.1 | H80: =INDEX($R$5:V2124,$E80,4) -> 10 | I80: 0 | J80: 0 | K80: 0 | L80: =$J80/hátizsák!$H$10 -> 0 | R80: 76 | S80: bronzkulcs | T80: 0.1 | U80: 9 | V80: -
B81: 0 | D81: 31. | E81: 117 | F81: ezüst nyaklánc | G81: =INDEX($R$5:U2125,$E81,3) -> 0.1 | H81: =INDEX($R$5:V2125,$E81,4) -> 10 | I81: 0 | J81: 0 | K81: 0 | L81: =$J81/hátizsák!$H$10 -> 0 | R81: 77 | S81: rát-fa | T81: - | U81: 0 | V81: másznivaló, min. mászás: 0
B82: 0 | D82: 32. | E82: 117 | F82: ezüst nyaklánc | G82: =INDEX($R$5:U2126,$E82,3) -> 0.1 | H82: =INDEX($R$5:V2126,$E82,4) -> 10 | I82: 0 | J82: 0 | K82: 0 | L82: =$J82/hátizsák!$H$10 -> 0 | R82: 78 | S82: mászókarom | T82: 0.2 | U82: 10 | V82: +4 sebzés ököllel
B83: 0 | D83: 33. | E83: 117 | F83: ezüst nyaklánc | G83: =INDEX($R$5:U2127,$E83,3) -> 0.1 | H83: =INDEX($R$5:V2127,$E83,4) -> 10 | I83: 0 | J83: 0 | K83: 0 | L83: =$J83/hátizsák!$H$10 -> 0 | R83: 79 | S83: korongfa | T83: - | U83: 0 | V83: másznivaló, min. mászás: ?
B84: 0 | D84: 34. | E84: 117 | F84: ezüst nyaklánc | G84: =INDEX($R$5:U2128,$E84,3) -> 0.1 | H84: =INDEX($R$5:V2128,$E84,4) -> 10 | I84: 0 | J84: 0 | K84: 0 | L84: =$J84/hátizsák!$H$10 -> 0 | R84: 80 | S84: lapkorong | T84: 0.08 | U84: 2 | V84: -
B85: 0 | D85: 35. | E85: 117 | F85: ezüst nyaklánc | G85: =INDEX($R$5:U2129,$E85,3) -> 0.1 | H85: =INDEX($R$5:V2129,$E85,4) -> 10 | I85: 0 | J85: 0 | K85: 0 | L85: =$J85/hátizsák!$H$10 -> 0 | R85: 81 | S85: mérleg | T85: 0.24 | U85: 8 | V85: áldozati tárgy Fairlightnak
B86: 0 | D86: 36. | E86: 117 | F86: =INDEX($R$5:$U$2046,$E86,2) -> ezüst nyaklánc | G86: =INDEX($R$5:U2130,$E86,3) -> 0.1 | H86: =INDEX($R$5:V2130,$E86,4) -> 10 | I86: 0 | J86: 0 | K86: 0 | L86: =$J86/hátizsák!$H$10 -> 0 | R86: 82 | S86: zöld üveg | T86: 0.1 | U86: 3 | V86: 20 ragasztó tárolására
B87: 0 | D87: 37. | E87: 117 | F87: ezüst nyaklánc | G87: =INDEX($R$5:U2131,$E87,3) -> 0.1 | H87: =INDEX($R$5:V2131,$E87,4) -> 10 | I87: 0 | J87: 0 | K87: 0 | L87: =$J87/hátizsák!$H$10 -> 0 | R87: 83 | S87: ragasztó | T87: 0.01 | U87: 1 | V87: áldozati tárgy Eleniosnak
B88: 0 | D88: 38. | E88: 117 | F88: ezüst nyaklánc | G88: =INDEX($R$5:U2132,$E88,3) -> 0.1 | H88: =INDEX($R$5:V2132,$E88,4) -> 10 | I88: 0 | J88: 0 | K88: 0 | L88: =$J88/hátizsák!$H$10 -> 0 | R88: 84 | S88: díszes rézpajzs | T88: 3 | U88: 2 | V88: +4 AC
B89: 0 | D89: 39. | E89: 117 | F89: ezüst nyaklánc | G89: =INDEX($R$5:U2133,$E89,3) -> 0.1 | H89: =INDEX($R$5:V2133,$E89,4) -> 10 | I89: 0 | J89: 0 | K89: 0 | L89: =$J89/hátizsák!$H$10 -> 0 | R89: 85 | S89: óndarab | T89: 0.3 | U89: 0 | V89: -
B90: 0 | D90: 40. | E90: 117 | F90: ezüst nyaklánc | G90: =INDEX($R$5:U2134,$E90,3) -> 0.1 | H90: =INDEX($R$5:V2134,$E90,4) -> 10 | I90: 0 | J90: 0 | K90: 0 | L90: =$J90/hátizsák!$H$10 -> 0 | R90: 86 | S90: olvasztókemence | T90: - | U90: 0 | V90: -
F91: ÖSSZESEN | G91: lefoglalt tárhely: | I91: =SUM(B51:B90) -> 8 | J91: =SUM(J51:J90) -> 1.53 | K91: =SUM(K51:K90) -> 600 | L91: =SUM(L51:L90) -> 0.01224 | R91: 87 | S91: bronzhegyű lándzsa | T91: 3 | U91: 10 | V91: típus: szúró, sebzés: 3d6+3
R92: 88 | S92: bronzsisak | T92: 1.2 | U92: 9 | V92: +3 AC
R93: 89 | S93: bronzpajzs | T93: 2 | U93: 16 | V93: +5 AC
R94: 90 | S94: bronzpáncél | T94: 7 | U94: 32 | V94: +7 AC
D95: karkötők/karvédők | R95: 91 | S95: manilla-fa | T95: - | U95: 0 | V95: -
D96: tárhely | E96: # tágy | F96: tárgy neve | G96: súly/db | H96: ap/db | I96: készlet | J96: tétel súlya | K96: tétel értéke | L96: zsákban foglalt % | R96: 92 | S96: kötél | T96: 1 | U96: 1 | V96: -
B97: 1 | D97: 1. | E97: 229 | F97: =INDEX($R$5:$U$2046,$E97,2) -> obszidián karkötő | G97: =INDEX($R$5:U2138,$E97,3) -> 0.05 | H97: =INDEX($R$5:V2138,$E97,4) -> 30 | I97: 1 | J97: =G97*I97 -> 0.05 | K97: =H97*I97 -> 30 | L97: =$J97/hátizsák!$H$10 -> 0.0004 | R97: 93 | S97: mély kút | T97: - | U97: 0 | V97: másznivaló, min. mászás: 2
B98: 1 | D98: 2. | E98: 308 | F98: ezüst papi karkötő | G98: =INDEX($R$5:U2142,$E98,3) -> 0.07 | H98: =INDEX($R$5:V2142,$E98,4) -> 30 | I98: 1 | J98: =G98*I98 -> 0.07 | K98: =H98*I98 -> 30 | L98: =$J98/hátizsák!$H$10 -> 0.00056 | R98: 94 | S98: bronzhegyű nyíl | T98: 0.08 | U98: 5 | V98: típus: lövedék (szúró), sebzés: 2d6+4
B99: 0 | D99: 3. | E99: 158 | F99: ezüst karkötő | G99: =INDEX($R$5:U2143,$E99,3) -> 0.08 | H99: =INDEX($R$5:V2143,$E99,4) -> 14 | I99: 0 | J99: 0 | K99: 0 | L99: =$J99/hátizsák!$H$10 -> 0 | R99: 95 | S99: bakkura bőr | T99: 0.4 | U99: 2 | V99: -
B100: 0 | D100: 4. | E100: 158 | F100: ezüst karkötő | G100: =INDEX($R$5:U2144,$E100,3) -> 0.08 | H100: =INDEX($R$5:V2144,$E100,4) -> 14 | I100: 0 | J100: 0 | K100: 0 | L100: =$J100/hátizsák!$H$10 -> 0 | R100: 96 | S100: bakkura csizma | T100: 1.2 | U100: 11 | V100: +2 AC
B101: 0 | D101: 5. | E101: 158 | F101: ezüst karkötő | G101: =INDEX($R$5:U2145,$E101,3) -> 0.08 | H101: =INDEX($R$5:V2145,$E101,4) -> 14 | I101: 0 | J101: 0 | K101: 0 | L101: =$J101/hátizsák!$H$10 -> 0 | R101: 97 | S101: rákpáncél | T101: 0.4 | U101: 4 | V101: -
B102: 0 | D102: 6. | E102: 158 | F102: ezüst karkötő | G102: =INDEX($R$5:U2146,$E102,3) -> 0.08 | H102: =INDEX($R$5:V2146,$E102,4) -> 14 | I102: 0 | J102: 0 | K102: 0 | L102: =$J102/hátizsák!$H$10 -> 0 | R102: 98 | S102: rákpajzs | T102: 0.8 | U102: 10 | V102: +4 AC
B103: 0 | D103: 7. | E103: 158 | F103: ezüst karkötő | G103: =INDEX($R$5:U2147,$E103,3) -> 0.08 | H103: =INDEX($R$5:V2147,$E103,4) -> 14 | I103: 0 | J103: 0 | K103: 0 | L103: =$J103/hátizsák!$H$10 -> 0 | R103: 99 | S103: fekete gyöngy | T103: 0.01 | U103: 6 | V103: áldozati tárgy Leahnak
B104: 0 | D104: 8. | E104: 158 | F104: ezüst karkötő | G104: =INDEX($R$5:U2148,$E104,3) -> 0.08 | H104: =INDEX($R$5:V2148,$E104,4) -> 14 | I104: 0 | J104: 0 | K104: 0 | L104: =$J104/hátizsák!$H$10 -> 0 | R104: 100 | S104: aranyló ugarhéj | T104: 0.1 | U104: 4 | V104: 10 tinta tárolására, áldozati tárgy Raiának
B105: 0 | D105: 9. | E105: 158 | F105: ezüst karkötő | G105: =INDEX($R$5:U2149,$E105,3) -> 0.08 | H105: =INDEX($R$5:V2149,$E105,4) -> 14 | I105: 0 | J105: 0 | K105: 0 | L105: =$J105/hátizsák!$H$10 -> 0 | R105: 101 | S105: tinta | T105: 0.01 | U105: 1 | V105: -
B106: 0 | D106: 10. | E106: 158 | F106: ezüst karkötő | G106: =INDEX($R$5:U2150,$E106,3) -> 0.08 | H106: =INDEX($R$5:V2150,$E106,4) -> 14 | I106: 0 | J106: 0 | K106: 0 | L106: =$J106/hátizsák!$H$10 -> 0 | R106: 102 | S106: vízionár szem | T106: 0.03 | U106: 3 | V106: áldozati tárgy Eleniosnak
B107: 0 | D107: 11. | E107: 158 | F107: ezüst karkötő | G107: =INDEX($R$5:U2151,$E107,3) -> 0.08 | H107: =INDEX($R$5:V2151,$E107,4) -> 14 | I107: 0 | J107: 0 | K107: 0 | L107: =$J107/hátizsák!$H$10 -> 0 | R107: 103 | S107: magszim bél | T107: 0.08 | U107: 5 | V107: -
B108: 0 | D108: 12. | E108: 158 | F108: ezüst karkötő | G108: =INDEX($R$5:U2152,$E108,3) -> 0.08 | H108: =INDEX($R$5:V2152,$E108,4) -> 14 | I108: 0 | J108: 0 | K108: 0 | L108: =$J108/hátizsák!$H$10 -> 0 | R108: 104 | S108: fémrúd | T108: 2 | U108: 8 | V108: -
B109: 0 | D109: 13. | E109: 158 | F109: ezüst karkötő | G109: =INDEX($R$5:U2153,$E109,3) -> 0.08 | H109: =INDEX($R$5:V2153,$E109,4) -> 14 | I109: 0 | J109: 0 | K109: 0 | L109: =$J109/hátizsák!$H$10 -> 0 | R109: 105 | S109: evaporőr háj | T109: 0.2 | U109: 5 | V109: -
B110: 0 | D110: 14. | E110: 158 | F110: ezüst karkötő | G110: =INDEX($R$5:U2154,$E110,3) -> 0.08 | H110: =INDEX($R$5:V2154,$E110,4) -> 14 | I110: 0 | J110: 0 | K110: 0 | L110: =$J110/hátizsák!$H$10 -> 0 | R110: 106 | S110: fabontó | T110: 0.1 | U110: 5 | V110: -
B111: 0 | D111: 15. | E111: 158 | F111: ezüst karkötő | G111: =INDEX($R$5:U2155,$E111,3) -> 0.08 | H111: =INDEX($R$5:V2155,$E111,4) -> 14 | I111: 0 | J111: 0 | K111: 0 | L111: =$J111/hátizsák!$H$10 -> 0 | R111: 107 | S111: rövid íj | T111: 1 | U111: 8 | V111: típus: lőfegyver, +2 vadászat
B112: 0 | D112: 16. | E112: 158 | F112: ezüst karkötő | G112: =INDEX($R$5:U2156,$E112,3) -> 0.08 | H112: =INDEX($R$5:V2156,$E112,4) -> 14 | I112: 0 | J112: 0 | K112: 0 | L112: =$J112/hátizsák!$H$10 -> 0 | R112: 108 | S112: nyílvessző | T112: 0.1 | U112: 1 | V112: típus: lövedék (szúró), sebzés: 1d8+2
B113: 0 | D113: 17. | E113: 158 | F113: ezüst karkötő | G113: =INDEX($R$5:U2157,$E113,3) -> 0.08 | H113: =INDEX($R$5:V2157,$E113,4) -> 14 | I113: 0 | J113: 0 | K113: 0 | L113: =$J113/hátizsák!$H$10 -> 0 | R113: 109 | S113: vapárcserje | T113: - | U113: 0 | V113: -
B114: 0 | D114: 18. | E114: 158 | F114: ezüst karkötő | G114: =INDEX($R$5:U2158,$E114,3) -> 0.08 | H114: =INDEX($R$5:V2158,$E114,4) -> 14 | I114: 0 | J114: 0 | K114: 0 | L114: =$J114/hátizsák!$H$10 -> 0 | R114: 110 | S114: vapárág | T114: 2 | U114: 10 | V114: -
B115: 0 | D115: 19. | E115: 158 | F115: ezüst karkötő | G115: =INDEX($R$5:U2159,$E115,3) -> 0.08 | H115: =INDEX($R$5:V2159,$E115,4) -> 14 | I115: 0 | J115: 0 | K115: 0 | L115: =$J115/hátizsák!$H$10 -> 0 | R115: 111 | S115: hosszú íj | T115: 2 | U115: 20 | V115: típus: lőfegyver, +2 támadás
B116: 0 | D116: 20. | E116: 158 | F116: =INDEX($R$5:$U$2046,$E116,2) -> ezüst karkötő | G116: =INDEX($R$5:U2160,$E116,3) -> 0.08 | H116: =INDEX($R$5:V2160,$E116,4) -> 14 | I116: 0 | J116: 0 | K116: 0 | L116: =$J116/hátizsák!$H$10 -> 0 | R116: 112 | S116: madártoll | T116: 0.01 | U116: 1 | V116: áldozati tárgy Raiának
B117: 0 | D117: 21. | E117: 158 | F117: ezüst karkötő | G117: =INDEX($R$5:U2161,$E117,3) -> 0.08 | H117: =INDEX($R$5:V2161,$E117,4) -> 14 | I117: 0 | J117: 0 | K117: 0 | L117: =$J117/hátizsák!$H$10 -> 0 | R117: 113 | S117: xantusz-kaktusz | T117: - | U117: 0 | V117: -
B118: 0 | D118: 22. | E118: 158 | F118: ezüst karkötő | G118: =INDEX($R$5:U2162,$E118,3) -> 0.08 | H118: =INDEX($R$5:V2162,$E118,4) -> 14 | I118: 0 | J118: 0 | K118: 0 | L118: =$J118/hátizsák!$H$10 -> 0 | R118: 114 | S118: kaktusztüske | T118: 0.02 | U118: 0 | V118: áldozati tárgy Fairlightnak
B119: 0 | D119: 23. | E119: 158 | F119: ezüst karkötő | G119: =INDEX($R$5:U2163,$E119,3) -> 0.08 | H119: =INDEX($R$5:V2163,$E119,4) -> 14 | I119: 0 | J119: 0 | K119: 0 | L119: =$J119/hátizsák!$H$10 -> 0 | R119: 115 | S119: móricserje | T119: - | U119: 0 | V119: -
B120: 0 | D120: 24. | E120: 158 | F120: ezüst karkötő | G120: =INDEX($R$5:U2164,$E120,3) -> 0.08 | H120: =INDEX($R$5:V2164,$E120,4) -> 14 | I120: 0 | J120: 0 | K120: 0 | L120: =$J120/hátizsák!$H$10 -> 0 | R120: 116 | S120: móri gyümölcs | T120: 0.1 | U120: 0 | V120: áldozati tárgy Sherannak
B121: 0 | D121: 25. | E121: 158 | F121: ezüst karkötő | G121: =INDEX($R$5:U2165,$E121,3) -> 0.08 | H121: =INDEX($R$5:V2165,$E121,4) -> 14 | I121: 0 | J121: 0 | K121: 0 | L121: =$J121/hátizsák!$H$10 -> 0 | R121: 117 | S121: ezüst nyaklánc | T121: 0.1 | U121: 10 | V121: ékszer
B122: 0 | D122: 26. | E122: 158 | F122: ezüst karkötő | G122: =INDEX($R$5:U2166,$E122,3) -> 0.08 | H122: =INDEX($R$5:V2166,$E122,4) -> 14 | I122: 0 | J122: 0 | K122: 0 | L122: =$J122/hátizsák!$H$10 -> 0 | R122: 118 | S122: púderszikla | T122: - | U122: 0 | V122: -
B123: 0 | D123: 27. | E123: 158 | F123: ezüst karkötő | G123: =INDEX($R$5:U2167,$E123,3) -> 0.08 | H123: =INDEX($R$5:V2167,$E123,4) -> 14 | I123: 0 | J123: 0 | K123: 0 | L123: =$J123/hátizsák!$H$10 -> 0 | R123: 119 | S123: púderkő | T123: 0.1 | U123: 0 | V123: áldozati tárgy Raiának
B124: 0 | D124: 28. | E124: 158 | F124: ezüst karkötő | G124: =INDEX($R$5:U2168,$E124,3) -> 0.08 | H124: =INDEX($R$5:V2168,$E124,4) -> 14 | I124: 0 | J124: 0 | K124: 0 | L124: =$J124/hátizsák!$H$10 -> 0 | R124: 120 | S124: tábla | T124: - | U124: 10 | V124: maximum 70 betűnyi szöveg
B125: 0 | D125: 29. | E125: 158 | F125: ezüst karkötő | G125: =INDEX($R$5:U2169,$E125,3) -> 0.08 | H125: =INDEX($R$5:V2169,$E125,4) -> 14 | I125: 0 | J125: 0 | K125: 0 | L125: =$J125/hátizsák!$H$10 -> 0 | R125: 121 | S125: jellempróba | T125: - | U125: 0 | V125: -
B126: 0 | D126: 30. | E126: 158 | F126: ezüst karkötő | G126: =INDEX($R$5:U2170,$E126,3) -> 0.08 | H126: =INDEX($R$5:V2170,$E126,4) -> 14 | I126: 0 | J126: 0 | K126: 0 | L126: =$J126/hátizsák!$H$10 -> 0 | R126: 122 | S126: dözmöng szív | T126: 0.08 | U126: 3 | V126: -
B127: 0 | D127: 31. | E127: 158 | F127: ezüst karkötő | G127: =INDEX($R$5:U2171,$E127,3) -> 0.08 | H127: =INDEX($R$5:V2171,$E127,4) -> 14 | I127: 0 | J127: 0 | K127: 0 | L127: =$J127/hátizsák!$H$10 -> 0 | R127: 123 | S127: göcsörtös bunkó | T127: 3.5 | U127: 8 | V127: típus: ütő, sebzés: 2d8+4, min. fsz.: 5
B128: 0 | D128: 32. | E128: 158 | F128: ezüst karkötő | G128: =INDEX($R$5:U2172,$E128,3) -> 0.08 | H128: =INDEX($R$5:V2172,$E128,4) -> 14 | I128: 0 | J128: 0 | K128: 0 | L128: =$J128/hátizsák!$H$10 -> 0 | R128: 124 | S128: rókafarok | T128: 0.5 | U128: 3 | V128: áldozati tárgy Sherannak
B129: 0 | D129: 33. | E129: 158 | F129: ezüst karkötő | G129: =INDEX($R$5:U2173,$E129,3) -> 0.08 | H129: =INDEX($R$5:V2173,$E129,4) -> 14 | I129: 0 | J129: 0 | K129: 0 | L129: =$J129/hátizsák!$H$10 -> 0 | R129: 125 | S129: mandibulapenge | T129: 0.5 | U129: 3 | V129: -
B130: 0 | D130: 34. | E130: 158 | F130: ezüst karkötő | G130: =INDEX($R$5:U2174,$E130,3) -> 0.08 | H130: =INDEX($R$5:V2174,$E130,4) -> 14 | I130: 0 | J130: 0 | K130: 0 | L130: =$J130/hátizsák!$H$10 -> 0 | R130: 126 | S130: bronzpenge | T130: 2 | U130: 12 | V130: típus: vágó, sebzés: 2d6+2
B131: 0 | D131: 35. | E131: 158 | F131: ezüst karkötő | G131: =INDEX($R$5:U2175,$E131,3) -> 0.08 | H131: =INDEX($R$5:V2175,$E131,4) -> 14 | I131: 0 | J131: 0 | K131: 0 | L131: =$J131/hátizsák!$H$10 -> 0 | R131: 127 | S131: mandibulakasza | T131: 3.5 | U131: 25 | V131: típus: vágó, sebzés: 3d6+3
B132: 0 | D132: 36. | E132: 158 | F132: =INDEX($R$5:$U$2046,$E132,2) -> ezüst karkötő | G132: =INDEX($R$5:U2176,$E132,3) -> 0.08 | H132: =INDEX($R$5:V2176,$E132,4) -> 14 | I132: 0 | J132: 0 | K132: 0 | L132: =$J132/hátizsák!$H$10 -> 0 | R132: 128 | S132: sallank karom | T132: 0.15 | U132: 2 | V132: áldozati tárgy Tharrnak
B133: 0 | D133: 37. | E133: 158 | F133: ezüst karkötő | G133: =INDEX($R$5:U2177,$E133,3) -> 0.08 | H133: =INDEX($R$5:V2177,$E133,4) -> 14 | I133: 0 | J133: 0 | K133: 0 | L133: =$J133/hátizsák!$H$10 -> 0 | R133: 129 | S133: sallank nyíl | T133: 0.25 | U133: 3 | V133: típus: lövedék (szúró), sebzés: 2d8+2
B134: =IF(I134>0,1,IF(I134=0,0)) -> 0 | D134: 38. | E134: 158 | F134: ezüst karkötő | G134: =INDEX($R$5:U2178,$E134,3) -> 0.08 | H134: =INDEX($R$5:V2178,$E134,4) -> 14 | I134: 0 | J134: 0 | K134: 0 | L134: =$J134/hátizsák!$H$10 -> 0 | R134: 130 | S134: hebrencs állkapocs | T134: 0.4 | U134: 4 | V134: -
B135: 0 | D135: 39. | E135: 158 | F135: ezüst karkötő | G135: =INDEX($R$5:U2179,$E135,3) -> 0.08 | H135: =INDEX($R$5:V2179,$E135,4) -> 14 | I135: 0 | J135: 0 | K135: 0 | L135: =$J135/hátizsák!$H$10 -> 0 | R135: 131 | S135: ubuk tüske | T135: 0.05 | U135: 1 | V135: típus: lövedék (szúró), sebzés: 1d8
B136: 0 | D136: 40. | E136: 158 | F136: ezüst karkötő | G136: =INDEX($R$5:U2180,$E136,3) -> 0.08 | H136: =INDEX($R$5:V2180,$E136,4) -> 14 | I136: 0 | J136: 0 | K136: 0 | L136: =$J136/hátizsák!$H$10 -> 0 | R136: 132 | S136: hóhérbimbó | T136: - | U136: 0 | V136: -
F137: ÖSSZESEN | G137: lefoglalt tárhely: | I137: =SUM(B97:B136) -> 2 | J137: =SUM(J97:J136) -> 0.12 | K137: =SUM(K97:K136) -> 60 | L137: =SUM(L97:L136) -> 0.00096 | R137: 133 | S137: csuklyavirág | T137: 0.05 | U137: 1 | V137: áldozati tárgy Leahnak
R138: 134 | S138: gyöngymangó bokor | T138: - | U138: 0 | V138: -
R139: 135 | S139: gyöngymangó | T139: 0.1 | U139: 2 | V139: -
R140: 136 | S140: rúnakő | T140: - | U140: 0 | V140: kapcsolat az istenekkel
D141: gyűrűk | R141: 137 | S141: mérgezett ubuktüske | T141: 0.05 | U141: 2 | V141: típus: lövedék (szúró), sebzés: 1d8+4
D142: tárhely | E142: # tágy | F142: tárgy neve | G142: súly/db | H142: ap/db | I142: készlet | J142: tétel súlya | K142: tétel értéke | L142: zsákban foglalt % | R142: 138 | S142: ubuk dobónyíl | T142: 0.15 | U142: 5 | V142: típus: dobó (szúró), sebzés: 1d8+6
B143: 1 | D143: 1. | E143: 223 | F143: =INDEX($R$5:$U$2046,$E143,2) -> smaragd védőgyűrű | G143: =INDEX($R$5:U2184,$E143,3) -> 0.01 | H143: =INDEX($R$5:V2184,$E143,4) -> 100 | I143: 1 | J143: =G143*I143 -> 0.01 | K143: =H143*I143 -> 100 | L143: =$J143/hátizsák!$H$10 -> 8e-05 | R143: 139 | S143: koponya szimbólum | T143: 0.05 | U143: 10 | V143: csak Leah hívei hordhatják, +4 mentődobás halál és hideg ellen
B144: 1 | D144: 2. | E144: 254 | F144: regeneráló gyűrű | G144: =INDEX($R$5:U2188,$E144,3) -> 0.02 | H144: =INDEX($R$5:V2188,$E144,4) -> 80 | I144: 1 | J144: =G144*I144 -> 0.02 | K144: =H144*I144 -> 80 | L144: =$J144/hátizsák!$H$10 -> 0.00016 | R144: 140 | S144: denevér szimbólum | T144: 0.04 | U144: 10 | V144: csak Dornodon hívei hordhatják, +2 iq
B145: 0 | D145: 3. | E145: 180 | F145: ezüst gyűrű | G145: =INDEX($R$5:U2189,$E145,3) -> 0.01 | H145: =INDEX($R$5:V2189,$E145,4) -> 6 | I145: 0 | J145: 0 | K145: 0 | L145: =$J145/hátizsák!$H$10 -> 0 | R145: 141 | S145: nap szimbólum | T145: 0.05 | U145: 10 | V145: csak Raia hívei hordhatják, +4 mentődobás energia ellen
B146: 0 | D146: 4. | E146: 180 | F146: ezüst gyűrű | G146: =INDEX($R$5:U2190,$E146,3) -> 0.01 | H146: =INDEX($R$5:V2190,$E146,4) -> 6 | I146: 0 | J146: 0 | K146: 0 | L146: =$J146/hátizsák!$H$10 -> 0 | R146: 142 | S146: szem szimbólum | T146: 0.03 | U146: 12 | V146: csak Elenios hívei hordhatják, +4 mentődobás mentális támadás ellen
B147: 0 | D147: 5. | E147: 180 | F147: ezüst gyűrű | G147: =INDEX($R$5:U2191,$E147,3) -> 0.01 | H147: =INDEX($R$5:V2191,$E147,4) -> 6 | I147: 0 | J147: 0 | K147: 0 | L147: =$J147/hátizsák!$H$10 -> 0 | R147: 143 | S147: virág szimbólum | T147: 0.03 | U147: 8 | V147: csak Sheran hívei hordhatják, +2 eg.
B148: 0 | D148: 6. | E148: 180 | F148: ezüst gyűrű | G148: =INDEX($R$5:U2192,$E148,3) -> 0.01 | H148: =INDEX($R$5:V2192,$E148,4) -> 6 | I148: 0 | J148: 0 | K148: 0 | L148: =$J148/hátizsák!$H$10 -> 0 | R148: 144 | S148: két kard szimbólum | T148: 0.06 | U148: 10 | V148: csak Tharr hívei hordhatják, +2 erő
B149: 0 | D149: 7. | E149: 180 | F149: ezüst gyűrű | G149: =INDEX($R$5:U2193,$E149,3) -> 0.01 | H149: =INDEX($R$5:V2193,$E149,4) -> 6 | I149: 0 | J149: 0 | K149: 0 | L149: =$J149/hátizsák!$H$10 -> 0 | R149: 145 | S149: villám szimbólum | T149: 0.04 | U149: 10 | V149: csak Fairlight hívei hordhatják, +2 ügy.
B150: 0 | D150: 8. | E150: 180 | F150: ezüst gyűrű | G150: =INDEX($R$5:U2194,$E150,3) -> 0.01 | H150: =INDEX($R$5:V2194,$E150,4) -> 6 | I150: 0 | J150: 0 | K150: 0 | L150: =$J150/hátizsák!$H$10 -> 0 | R150: 146 | S150: oltár | T150: - | U150: 0 | V150: imádkozáshoz
B151: 0 | D151: 9. | E151: 180 | F151: ezüst gyűrű | G151: =INDEX($R$5:U2195,$E151,3) -> 0.01 | H151: =INDEX($R$5:V2195,$E151,4) -> 6 | I151: 0 | J151: 0 | K151: 0 | L151: =$J151/hátizsák!$H$10 -> 0 | R151: 147 | S151: hebrencs csapda | T151: 0.45 | U151: 15 | V151: -
B152: 0 | D152: 10. | E152: 180 | F152: ezüst gyűrű | G152: =INDEX($R$5:U2196,$E152,3) -> 0.01 | H152: =INDEX($R$5:V2196,$E152,4) -> 6 | I152: 0 | J152: 0 | K152: 0 | L152: =$J152/hátizsák!$H$10 -> 0 | R152: 148 | S152: mocsári penke | T152: 0.01 | U152: 1 | V152: -
B153: 0 | D153: 11. | E153: 180 | F153: ezüst gyűrű | G153: =INDEX($R$5:U2197,$E153,3) -> 0.01 | H153: =INDEX($R$5:V2197,$E153,4) -> 6 | I153: 0 | J153: 0 | K153: 0 | L153: =$J153/hátizsák!$H$10 -> 0 | R153: 149 | S153: grok-képződmény | T153: - | U153: 0 | V153: másznivaló, min. mászás: 3
B154: 0 | D154: 12. | E154: 180 | F154: ezüst gyűrű | G154: =INDEX($R$5:U2198,$E154,3) -> 0.01 | H154: =INDEX($R$5:V2198,$E154,4) -> 6 | I154: 0 | J154: 0 | K154: 0 | L154: =$J154/hátizsák!$H$10 -> 0 | R154: 150 | S154: szent jogar | T154: 0.08 | U154: 50 | V154: jó jelleműeket max. ép.-be gyógyít
B155: 0 | D155: 13. | E155: 180 | F155: ezüst gyűrű | G155: =INDEX($R$5:U2199,$E155,3) -> 0.01 | H155: =INDEX($R$5:V2199,$E155,4) -> 6 | I155: 0 | J155: 0 | K155: 0 | L155: =$J155/hátizsák!$H$10 -> 0 | R155: 151 | S155: szvó-ektoplazma | T155: 0.05 | U155: 10 | V155: -
B156: 0 | D156: 14. | E156: 180 | F156: ezüst gyűrű | G156: =INDEX($R$5:U2200,$E156,3) -> 0.01 | H156: =INDEX($R$5:V2200,$E156,4) -> 6 | I156: 0 | J156: 0 | K156: 0 | L156: =$J156/hátizsák!$H$10 -> 0 | R156: 152 | S156: vasérc | T156: 0.2 | U156: 2 | V156: -
B157: 0 | D157: 15. | E157: 180 | F157: ezüst gyűrű | G157: =INDEX($R$5:U2201,$E157,3) -> 0.01 | H157: =INDEX($R$5:V2201,$E157,4) -> 6 | I157: 0 | J157: 0 | K157: 0 | L157: =$J157/hátizsák!$H$10 -> 0 | R157: 153 | S157: pirkit | T157: 0.05 | U157: 2 | V157: -
B158: 0 | D158: 16. | E158: 180 | F158: ezüst gyűrű | G158: =INDEX($R$5:U2202,$E158,3) -> 0.01 | H158: =INDEX($R$5:V2202,$E158,4) -> 6 | I158: 0 | J158: 0 | K158: 0 | L158: =$J158/hátizsák!$H$10 -> 0 | R158: 154 | S158: mély szakadék | T158: - | U158: 0 | V158: másznivaló, min. mászás: 5
B159: 0 | D159: 17. | E159: 180 | F159: ezüst gyűrű | G159: =INDEX($R$5:U2203,$E159,3) -> 0.01 | H159: =INDEX($R$5:V2203,$E159,4) -> 6 | I159: 0 | J159: 0 | K159: 0 | L159: =$J159/hátizsák!$H$10 -> 0 | R159: 155 | S159: vaskohó | T159: - | U159: 0 | V159: -
B160: 0 | D160: 18. | E160: 180 | F160: ezüst gyűrű | G160: =INDEX($R$5:U2204,$E160,3) -> 0.01 | H160: =INDEX($R$5:V2204,$E160,4) -> 6 | I160: 0 | J160: 0 | K160: 0 | L160: =$J160/hátizsák!$H$10 -> 0 | R160: 156 | S160: világítótorony | T160: - | U160: 0 | V160: maximum 10 mező távolságra történő információ átadásra
B161: 0 | D161: 19. | E161: 180 | F161: ezüst gyűrű | G161: =INDEX($R$5:U2205,$E161,3) -> 0.01 | H161: =INDEX($R$5:V2205,$E161,4) -> 6 | I161: 0 | J161: 0 | K161: 0 | L161: =$J161/hátizsák!$H$10 -> 0 | R161: 157 | S161: nyu-shuriken | T161: 0.05 | U161: 12 | V161: típus: dobó (szúró), sebzés: 3d4+2, +3 támadás
B162: 0 | D162: 20. | E162: 180 | F162: =INDEX($R$5:$U$2046,$E162,2) -> ezüst gyűrű | G162: =INDEX($R$5:U2206,$E162,3) -> 0.01 | H162: =INDEX($R$5:V2206,$E162,4) -> 6 | I162: 0 | J162: 0 | K162: 0 | L162: =$J162/hátizsák!$H$10 -> 0 | R162: 158 | S162: ezüst karkötő | T162: 0.08 | U162: 14 | V162: ékszer
B163: 0 | D163: 21. | E163: 180 | F163: ezüst gyűrű | G163: =INDEX($R$5:U2207,$E163,3) -> 0.01 | H163: =INDEX($R$5:V2207,$E163,4) -> 6 | I163: 0 | J163: 0 | K163: 0 | L163: =$J163/hátizsák!$H$10 -> 0 | R163: 159 | S163: kis vaspajzs | T163: 2 | U163: 16 | V163: +6 AC, min. bányászat: 3
B164: 0 | D164: 22. | E164: 180 | F164: ezüst gyűrű | G164: =INDEX($R$5:U2208,$E164,3) -> 0.01 | H164: =INDEX($R$5:V2208,$E164,4) -> 6 | I164: 0 | J164: 0 | K164: 0 | L164: =$J164/hátizsák!$H$10 -> 0 | R164: 160 | S164: vassisak | T164: 0.6 | U164: 18 | V164: +4 AC, min. bányászat: 4
B165: 0 | D165: 23. | E165: 180 | F165: ezüst gyűrű | G165: =INDEX($R$5:U2209,$E165,3) -> 0.01 | H165: =INDEX($R$5:V2209,$E165,4) -> 6 | I165: 0 | J165: 0 | K165: 0 | L165: =$J165/hátizsák!$H$10 -> 0 | R165: 161 | S165: nagy vaspajzs | T165: 3.2 | U165: 22 | V165: +8 AC, min. bányászat: 3
B166: 0 | D166: 24. | E166: 180 | F166: ezüst gyűrű | G166: =INDEX($R$5:U2210,$E166,3) -> 0.01 | H166: =INDEX($R$5:V2210,$E166,4) -> 6 | I166: 0 | J166: 0 | K166: 0 | L166: =$J166/hátizsák!$H$10 -> 0 | R166: 162 | S166: borostyán függő | T166: 0.01 | U166: 6 | V166: ékszer
B167: 0 | D167: 25. | E167: 180 | F167: ezüst gyűrű | G167: =INDEX($R$5:U2211,$E167,3) -> 0.01 | H167: =INDEX($R$5:V2211,$E167,4) -> 6 | I167: 0 | J167: 0 | K167: 0 | L167: =$J167/hátizsák!$H$10 -> 0 | R167: 163 | S167: karócsapda | T167: 1 | U167: 12 | V167: -
B168: 0 | D168: 26. | E168: 180 | F168: ezüst gyűrű | G168: =INDEX($R$5:U2212,$E168,3) -> 0.01 | H168: =INDEX($R$5:V2212,$E168,4) -> 6 | I168: 0 | J168: 0 | K168: 0 | L168: =$J168/hátizsák!$H$10 -> 0 | R168: 164 | S168: vasvért | T168: 8 | U168: 60 | V168: +10 AC, min. bányászat: 6
B169: 0 | D169: 27. | E169: 180 | F169: ezüst gyűrű | G169: =INDEX($R$5:U2213,$E169,3) -> 0.01 | H169: =INDEX($R$5:V2213,$E169,4) -> 6 | I169: 0 | J169: 0 | K169: 0 | L169: =$J169/hátizsák!$H$10 -> 0 | R169: 165 | S169: mászókampó | T169: 0.4 | U169: 12 | V169: min. bányászat: 2
B170: 0 | D170: 28. | E170: 180 | F170: ezüst gyűrű | G170: =INDEX($R$5:U2214,$E170,3) -> 0.01 | H170: =INDEX($R$5:V2214,$E170,4) -> 6 | I170: 0 | J170: 0 | K170: 0 | L170: =$J170/hátizsák!$H$10 -> 0 | R170: 166 | S170: ugh méreg | T170: 0.01 | U170: 2 | V170: -
B171: 0 | D171: 29. | E171: 180 | F171: ezüst gyűrű | G171: =INDEX($R$5:U2215,$E171,3) -> 0.01 | H171: =INDEX($R$5:V2215,$E171,4) -> 6 | I171: 0 | J171: 0 | K171: 0 | L171: =$J171/hátizsák!$H$10 -> 0 | R171: 167 | S171: sziklafészek | T171: - | U171: 0 | V171: másznivaló, min. mászás: 6
B172: 0 | D172: 30. | E172: 180 | F172: ezüst gyűrű | G172: =INDEX($R$5:U2216,$E172,3) -> 0.01 | H172: =INDEX($R$5:V2216,$E172,4) -> 6 | I172: 0 | J172: 0 | K172: 0 | L172: =$J172/hátizsák!$H$10 -> 0 | R172: 168 | S172: sullár hólyag | T172: 0.08 | U172: 7 | V172: 20 spiritusz tárolására
B173: 0 | D173: 31. | E173: 180 | F173: ezüst gyűrű | G173: =INDEX($R$5:U2217,$E173,3) -> 0.01 | H173: =INDEX($R$5:V2217,$E173,4) -> 6 | I173: 0 | J173: 0 | K173: 0 | L173: =$J173/hátizsák!$H$10 -> 0 | R173: 169 | S173: uzbány csőr | T173: 0.15 | U173: 6 | V173: 12 ugh méreg tárolására
B174: 0 | D174: 32. | E174: 180 | F174: ezüst gyűrű | G174: =INDEX($R$5:U2218,$E174,3) -> 0.01 | H174: =INDEX($R$5:V2218,$E174,4) -> 6 | I174: 0 | J174: 0 | K174: 0 | L174: =$J174/hátizsák!$H$10 -> 0 | R174: 170 | S174: spiritusz | T174: 0.01 | U174: 1 | V174: -
B175: 0 | D175: 33. | E175: 180 | F175: ezüst gyűrű | G175: =INDEX($R$5:U2219,$E175,3) -> 0.01 | H175: =INDEX($R$5:V2219,$E175,4) -> 6 | I175: 0 | J175: 0 | K175: 0 | L175: =$J175/hátizsák!$H$10 -> 0 | R175: 171 | S175: rövid kard | T175: 1.5 | U175: 16 | V175: típus: vágó (balkezes), sebzés: 3d4+1, min. bányászat: 5
B176: 0 | D176: 34. | E176: 180 | F176: ezüst gyűrű | G176: =INDEX($R$5:U2220,$E176,3) -> 0.01 | H176: =INDEX($R$5:V2220,$E176,4) -> 6 | I176: 0 | J176: 0 | K176: 0 | L176: =$J176/hátizsák!$H$10 -> 0 | R176: 172 | S176: téfea-agy | T176: 0.3 | U176: 8 | V176: -
B177: 0 | D177: 35. | E177: 180 | F177: ezüst gyűrű | G177: =INDEX($R$5:U2221,$E177,3) -> 0.01 | H177: =INDEX($R$5:V2221,$E177,4) -> 6 | I177: 0 | J177: 0 | K177: 0 | L177: =$J177/hátizsák!$H$10 -> 0 | R177: 173 | S177: nekrofun | T177: - | U177: 0 | V177: duplázza a varázspont regenerálást
B178: 0 | D178: 36. | E178: 180 | F178: =INDEX($R$5:$U$2046,$E178,2) -> ezüst gyűrű | G178: =INDEX($R$5:U2222,$E178,3) -> 0.01 | H178: =INDEX($R$5:V2222,$E178,4) -> 6 | I178: 0 | J178: 0 | K178: 0 | L178: =$J178/hátizsák!$H$10 -> 0 | R178: 174 | S178: harci kalapács | T178: 2.2 | U178: 20 | V178: típus: ütő (balkezes), sebzés: 3d4+1, min. bányászat: 3
B179: 0 | D179: 37. | E179: 180 | F179: ezüst gyűrű | G179: =INDEX($R$5:U2223,$E179,3) -> 0.01 | H179: =INDEX($R$5:V2223,$E179,4) -> 6 | I179: 0 | J179: 0 | K179: 0 | L179: =$J179/hátizsák!$H$10 -> 0 | R179: 175 | S179: márványtorony | T179: - | U179: 0 | V179: másznivaló, min. mászás: 8
B180: 0 | D180: 38. | E180: 180 | F180: ezüst gyűrű | G180: =INDEX($R$5:U2224,$E180,3) -> 0.01 | H180: =INDEX($R$5:V2224,$E180,4) -> 6 | I180: 0 | J180: 0 | K180: 0 | L180: =$J180/hátizsák!$H$10 -> 0 | R180: 176 | S180: vashegyű nyíl | T180: 0.08 | U180: 5 | V180: típus: lövedék (szúró), sebzés: 3d6+1, min. bányászat: 2
B181: 0 | D181: 39. | E181: 180 | F181: ezüst gyűrű | G181: =INDEX($R$5:U2225,$E181,3) -> 0.01 | H181: =INDEX($R$5:V2225,$E181,4) -> 6 | I181: 0 | J181: 0 | K181: 0 | L181: =$J181/hátizsák!$H$10 -> 0 | R181: 177 | S181: szopógödör | T181: - | U181: 0 | V181: -
B182: 0 | D182: 40. | E182: 180 | F182: ezüst gyűrű | G182: =INDEX($R$5:U2226,$E182,3) -> 0.01 | H182: =INDEX($R$5:V2226,$E182,4) -> 6 | I182: 0 | J182: 0 | K182: 0 | L182: =$J182/hátizsák!$H$10 -> 0 | R182: 178 | S182: mínosz-kúp | T182: - | U182: 0 | V182: -
F183: ÖSSZESEN | G183: lefoglalt tárhely: | I183: =SUM(B143:B182) -> 2 | J183: =SUM(J143:J182) -> 0.03 | K183: =SUM(K143:K182) -> 180 | L183: =SUM(L143:L182) -> 0.00024 | R183: 179 | S183: grifftojás | T183: 0.4 | U183: 10 | V183: -
R184: 180 | S184: ezüst gyűrű | T184: 0.01 | U184: 6 | V184: ékszer
R185: 181 | S185: vasalt bunkó | T185: 4.5 | U185: 35 | V185: típus: ütő, sebzés: 4d6+4, min. fsz.: 10, min. bányászat: 4
R186: 182 | S186: vashegyű lándzsa | T186: 2 | U186: 18 | V186: típus: szúró, sebzés: 4d6+1, min. fsz.: 10, +2 támadás, min. bányászat: 2
D187: ékszerek, ruhadíszek | R187: 183 | S187: vaskulcs | T187: 0.08 | U187: 10 | V187: -
D188: tárhely | E188: # tágy | F188: tárgy neve | G188: súly/db | H188: ap/db | I188: készlet | J188: tétel súlya | K188: tétel értéke | L188: zsákban foglalt % | R188: 184 | S188: ezüst kulcs | T188: 0.04 | U188: 12 | V188: -
B189: 1 | D189: 1. | E189: 1207 | F189: =INDEX($R$5:$U$2046,$E189,2) -> örökkévalóság kristálya | G189: =INDEX($R$5:U2230,$E189,3) -> 0.01 | H189: =INDEX($R$5:V2230,$E189,4) -> 1000 | I189: 1 | J189: =G189*I189 -> 0.01 | K189: =H189*I189 -> 1000 | L189: =$J189/hátizsák!$H$10 -> 8e-05 | R189: 185 | S189: nagy bronzkulcs | T189: 0.12 | U189: 14 | V189: -
B190: 0 | D190: 2. | E190: 1207 | F190: örökkévalóság kristálya | G190: =INDEX($R$5:U2234,$E190,3) -> 0.01 | H190: =INDEX($R$5:V2234,$E190,4) -> 1000 | I190: 0 | J190: =G190*I190 -> 0 | K190: =H190*I190 -> 0 | L190: =$J190/hátizsák!$H$10 -> 0 | R190: 186 | S190: nagy vaskulcs | T190: 0.15 | U190: 16 | V190: -
B191: 0 | D191: 3. | E191: 1207 | F191: örökkévalóság kristálya | G191: =INDEX($R$5:U2235,$E191,3) -> 0.01 | H191: =INDEX($R$5:V2235,$E191,4) -> 1000 | I191: 0 | J191: 0 | K191: 0 | L191: =$J191/hátizsák!$H$10 -> 0 | R191: 187 | S191: mérgezett vashegyű nyíl | T191: 0.08 | U191: 8 | V191: típus: lövedék (szúró), sebzés: 3d6+7
B192: 0 | D192: 4. | E192: 1207 | F192: örökkévalóság kristálya | G192: =INDEX($R$5:U2236,$E192,3) -> 0.01 | H192: =INDEX($R$5:V2236,$E192,4) -> 1000 | I192: 0 | J192: 0 | K192: 0 | L192: =$J192/hátizsák!$H$10 -> 0 | R192: 188 | S192: mérgezett ubuk dobónyíl | T192: 0.15 | U192: 7 | V192: típus: dobó (szúró), sebzés: 1d8+10
B193: 0 | D193: 5. | E193: 1207 | F193: örökkévalóság kristálya | G193: =INDEX($R$5:U2237,$E193,3) -> 0.01 | H193: =INDEX($R$5:V2237,$E193,4) -> 1000 | I193: 0 | J193: 0 | K193: 0 | L193: =$J193/hátizsák!$H$10 -> 0 | R193: 189 | S193: vas dobónyíl | T193: 0.1 | U193: 7 | V193: típus: dobó (szúró), sebzés: 2d6+4, +2 támadás, min. bányászat: 3
B194: 0 | D194: 6. | E194: 1207 | F194: örökkévalóság kristálya | G194: =INDEX($R$5:U2238,$E194,3) -> 0.01 | H194: =INDEX($R$5:V2238,$E194,4) -> 1000 | I194: 0 | J194: 0 | K194: 0 | L194: =$J194/hátizsák!$H$10 -> 0 | R194: 190 | S194: mérgezett vas dobónyíl | T194: 0.1 | U194: 10 | V194: típus: dobó (szúró), sebzés: 2d6+10, +2 támadás
B195: 0 | D195: 7. | E195: 1207 | F195: örökkévalóság kristálya | G195: =INDEX($R$5:U2239,$E195,3) -> 0.01 | H195: =INDEX($R$5:V2239,$E195,4) -> 1000 | I195: 0 | J195: 0 | K195: 0 | L195: =$J195/hátizsák!$H$10 -> 0 | R195: 191 | S195: aranylánc | T195: 0.15 | U195: 20 | V195: ékszer
B196: 0 | D196: 8. | E196: 1207 | F196: örökkévalóság kristálya | G196: =INDEX($R$5:U2240,$E196,3) -> 0.01 | H196: =INDEX($R$5:V2240,$E196,4) -> 1000 | I196: 0 | J196: 0 | K196: 0 | L196: =$J196/hátizsák!$H$10 -> 0 | R196: 192 | S196: gyöngysor | T196: 0.25 | U196: 48 | V196: ékszer
B197: 0 | D197: 9. | E197: 1207 | F197: örökkévalóság kristálya | G197: =INDEX($R$5:U2241,$E197,3) -> 0.01 | H197: =INDEX($R$5:V2241,$E197,4) -> 1000 | I197: 0 | J197: 0 | K197: 0 | L197: =$J197/hátizsák!$H$10 -> 0 | R197: 193 | S197: aranygyűrű | T197: 0.02 | U197: 12 | V197: ékszer
B198: =IF(I198>0,1,IF(I198=0,0)) -> 0 | D198: 10. | E198: 1207 | F198: örökkévalóság kristálya | G198: =INDEX($R$5:U2242,$E198,3) -> 0.01 | H198: =INDEX($R$5:V2242,$E198,4) -> 1000 | I198: 0 | J198: 0 | K198: 0 | L198: =$J198/hátizsák!$H$10 -> 0 | R198: 194 | S198: arany karperec | T198: 0.12 | U198: 26 | V198: ékszer
B199: 0 | D199: 11. | E199: 1207 | F199: örökkévalóság kristálya | G199: =INDEX($R$5:U2243,$E199,3) -> 0.01 | H199: =INDEX($R$5:V2243,$E199,4) -> 1000 | I199: 0 | J199: 0 | K199: 0 | L199: =$J199/hátizsák!$H$10 -> 0 | R199: 195 | S199: obszidián függő | T199: 0.01 | U199: 10 | V199: ékszer
B200: 0 | D200: 12. | E200: 1207 | F200: örökkévalóság kristálya | G200: =INDEX($R$5:U2244,$E200,3) -> 0.01 | H200: =INDEX($R$5:V2244,$E200,4) -> 1000 | I200: 0 | J200: 0 | K200: 0 | L200: =$J200/hátizsák!$H$10 -> 0 | R200: 196 | S200: trófea nyaklánc | T200: 0.38 | U200: 30 | V200: ékszer
B201: 0 | D201: 13. | E201: 1207 | F201: örökkévalóság kristálya | G201: =INDEX($R$5:U2245,$E201,3) -> 0.01 | H201: =INDEX($R$5:V2245,$E201,4) -> 1000 | I201: 0 | J201: 0 | K201: 0 | L201: =$J201/hátizsák!$H$10 -> 0 | R201: 197 | S201: igazgyöngy fülbevaló | T201: 0.02 | U201: 20 | V201: ékszer
B202: 0 | D202: 14. | E202: 1207 | F202: örökkévalóság kristálya | G202: =INDEX($R$5:U2246,$E202,3) -> 0.01 | H202: =INDEX($R$5:V2246,$E202,4) -> 1000 | I202: 0 | J202: 0 | K202: 0 | L202: =$J202/hátizsák!$H$10 -> 0 | R202: 198 | S202: trikornis szarv | T202: 0.2 | U202: 12 | V202: -
... 1844 more rows

Sheet löttyök, porok, tartók
D3: tartók, tégelyek, kulacsok, tömlők
D4: tárhely | E4: # tágy | F4: tárgy neve | G4: súly/db | H4: ap/db | I4: készlet | J4: tétel súlya | K4: tétel értéke | L4: zsákban foglalt % | R4: # | S4: Tárgy | T4: Súly | U4: EA | V4: Egyéb
B5: =IF(I5>0,1,IF(I5=0,0)) -> 1 | D5: 1. | E5: 100 | F5: =INDEX($R$5:$U$2046,$E5,2) -> aranyló ugarhéj | G5: =INDEX($R$5:U2046,$E5,3) -> 0.1 | H5: =INDEX($R$5:V2046,$E5,4) -> 4 | I5: 6 | J5: =G5*I5 -> 0.6 | K5: =H5*I5 -> 24 | L5: =$J5/hátizsák!$H$10 -> 0.0048 | R5: 1 | S5: deus ex machina | T5: 0.1 | U5: 25 | V5: megmenti az életed, ha meghalnál
B6: =IF(I6>0,1,IF(I6=0,0)) -> 1 | D6: 2. | E6: 210 | F6: fűszertartó | G6: =INDEX($R$5:U2050,$E6,3) -> 0.08 | H6: =INDEX($R$5:V2050,$E6,4) -> 6 | I6: 7 | J6: =G6*I6 -> 0.56 | K6: =H6*I6 -> 42 | L6: =$J6/hátizsák!$H$10 -> 0.00448 | R6: 2 | S6: kaja | T6: 0.3 | U6: 1 | V6: -
B7: 1 | D7: 3. | E7: 332 | F7: huhogó bibe | G7: =INDEX($R$5:U2051,$E7,3) -> 0.1 | H7: =INDEX($R$5:V2051,$E7,4) -> 8 | I7: 4 | J7: 0.4 | K7: 32 | L7: =$J7/hátizsák!$H$10 -> 0.0032 | R7: 3 | S7: vizestömlő | T7: 0.2 | U7: 7 | V7: 20 víz tárolására
B8: 1 | D8: 4. | E8: 25 | F8: kavadu iszák | G8: =INDEX($R$5:U2052,$E8,3) -> 0.1 | H8: =INDEX($R$5:V2052,$E8,4) -> 2 | I8: 7 | J8: 0.7 | K8: 14 | L8: =$J8/hátizsák!$H$10 -> 0.0056 | R8: 4 | S8: bot | T8: 3 | U8: 0 | V8: típus: ütő, sebzés: 1d6
B9: 1 | D9: 5. | E9: 168 | F9: sullár hólyag | G9: =INDEX($R$5:U2053,$E9,3) -> 0.08 | H9: =INDEX($R$5:V2053,$E9,4) -> 7 | I9: 6 | J9: 0.48 | K9: 42 | L9: =$J9/hátizsák!$H$10 -> 0.00384 | R9: 5 | S9: bunkó | T9: 5 | U9: 0 | V9: típus: ütő, sebzés: 1d6
B10: 1 | D10: 6. | E10: 257 | F10: szent kehely | G10: =INDEX($R$5:U2054,$E10,3) -> 0.2 | H10: =INDEX($R$5:V2054,$E10,4) -> 16 | I10: 1 | J10: 0.2 | K10: 16 | L10: =$J10/hátizsák!$H$10 -> 0.0016 | R10: 6 | S10: kőkés | T10: 0.5 | U10: 0 | V10: típus: vágó (balkezes), sebzés: 1d4
B11: 1 | D11: 7. | E11: 169 | F11: uzbány csőr | G11: =INDEX($R$5:U2055,$E11,3) -> 0.15 | H11: =INDEX($R$5:V2055,$E11,4) -> 6 | I11: 6 | J11: 0.9 | K11: 36 | L11: =$J11/hátizsák!$H$10 -> 0.0072 | R11: 7 | S11: kőhegyű lándzsa | T11: 3.5 | U11: 1 | V11: típus: szúró, sebzés: 2d4+2
B12: 1 | D12: 8. | E12: 3 | F12: vizestömlő | G12: =INDEX($R$5:U2056,$E12,3) -> 0.2 | H12: =INDEX($R$5:V2056,$E12,4) -> 7 | I12: 4 | J12: 0.8 | K12: 28 | L12: =$J12/hátizsák!$H$10 -> 0.0064 | R12: 8 | S12: szöges bunkó | T12: 5.2 | U12: 10 | V12: típus: ütő, sebzés: 3d6+2
B13: 1 | D13: 9. | E13: 82 | F13: zöld üveg | G13: =INDEX($R$5:U2057,$E13,3) -> 0.1 | H13: =INDEX($R$5:V2057,$E13,4) -> 3 | I13: 6 | J13: 0.6 | K13: 18 | L13: =$J13/hátizsák!$H$10 -> 0.0048 | R13: 9 | S13: bunkósbot | T13: 3.5 | U13: 1 | V13: típus: ütő, sebzés: 2d4+2
B14: 0 | D14: 10. | E14: 3 | F14: vizestömlő | G14: =INDEX($R$5:U2058,$E14,3) -> 0.2 | H14: =INDEX($R$5:V2058,$E14,4) -> 7 | I14: 0 | J14: 0 | K14: 0 | L14: =$J14/hátizsák!$H$10 -> 0 | R14: 10 | S14: dárda | T14: 2 | U14: 1 | V14: típus: dobó (szúró), sebzés: 1d6, +1 vadászat
B15: 0 | D15: 11. | E15: 3 | F15: vizestömlő | G15: =INDEX($R$5:U2059,$E15,3) -> 0.2 | H15: =INDEX($R$5:V2059,$E15,4) -> 7 | I15: 0 | J15: 0 | K15: 0 | L15: =$J15/hátizsák!$H$10 -> 0 | R15: 11 | S15: csontkés | T15: 0.3 | U15: 2 | V15: típus: szúró (balkezes), sebzés: 1d4+3
B16: 0 | D16: 12. | E16: 3 | F16: vizestömlő | G16: =INDEX($R$5:U2060,$E16,3) -> 0.2 | H16: =INDEX($R$5:V2060,$E16,4) -> 7 | I16: 0 | J16: 0 | K16: 0 | L16: =$J16/hátizsák!$H$10 -> 0 | R16: 12 | S16: csontszurony | T16: 3.3 | U16: 2 | V16: típus: szúró, sebzés: 3d4+2
B17: 0 | D17: 13. | E17: 3 | F17: vizestömlő | G17: =INDEX($R$5:U2061,$E17,3) -> 0.2 | H17: =INDEX($R$5:V2061,$E17,4) -> 7 | I17: 0 | J17: 0 | K17: 0 | L17: =$J17/hátizsák!$H$10 -> 0 | R17: 13 | S17: kőkalapács | T17: 1 | U17: 0 | V17: típus: ütő (balkezes), sebzés: 1d6
B18: 0 | D18: 14. | E18: 3 | F18: vizestömlő | G18: =INDEX($R$5:U2062,$E18,3) -> 0.2 | H18: =INDEX($R$5:V2062,$E18,4) -> 7 | I18: 0 | J18: 0 | K18: 0 | L18: =$J18/hátizsák!$H$10 -> 0 | R18: 14 | S18: sünmedve tüske | T18: 0.03 | U18: 1 | V18: -
B19: 0 | D19: 15. | E19: 3 | F19: vizestömlő | G19: =INDEX($R$5:U2063,$E19,3) -> 0.2 | H19: =INDEX($R$5:V2063,$E19,4) -> 7 | I19: 0 | J19: 0 | K19: 0 | L19: =$J19/hátizsák!$H$10 -> 0 | R19: 15 | S19: vadász tatu bőr | T19: 1 | U19: 1 | V19: -
B20: 0 | D20: 16. | E20: 3 | F20: vizestömlő | G20: =INDEX($R$5:U2064,$E20,3) -> 0.2 | H20: =INDEX($R$5:V2064,$E20,4) -> 7 | I20: 0 | J20: 0 | K20: 0 | L20: =$J20/hátizsák!$H$10 -> 0 | R20: 16 | S20: bordacsont | T20: 0.4 | U20: 2 | V20: áldozati tárgy Leahnak
B21: 0 | D21: 17. | E21: 3 | F21: vizestömlő | G21: =INDEX($R$5:U2065,$E21,3) -> 0.2 | H21: =INDEX($R$5:V2065,$E21,4) -> 7 | I21: 0 | J21: 0 | K21: 0 | L21: =$J21/hátizsák!$H$10 -> 0 | R21: 17 | S21: szögletes kő | T21: 0.5 | U21: 0 | V21: -
B22: 0 | D22: 18. | E22: 3 | F22: vizestömlő | G22: =INDEX($R$5:U2066,$E22,3) -> 0.2 | H22: =INDEX($R$5:V2066,$E22,4) -> 7 | I22: 0 | J22: 0 | K22: 0 | L22: =$J22/hátizsák!$H$10 -> 0 | R22: 18 | S22: parittya | T22: 0.1 | U22: 0 | V22: típus: lőfegyver
B23: 0 | D23: 19. | E23: 3 | F23: vizestömlő | G23: =INDEX($R$5:U2067,$E23,3) -> 0.2 | H23: =INDEX($R$5:V2067,$E23,4) -> 7 | I23: 0 | J23: 0 | K23: 0 | L23: =$J23/hátizsák!$H$10 -> 0 | R23: 19 | S23: kerek kő | T23: 0.15 | U23: 0 | V23: típus: lövedék (ütő), sebzés: 1d4
B24: 0 | D24: 20. | E24: 3 | F24: vizestömlő | G24: =INDEX($R$5:U2068,$E24,3) -> 0.2 | H24: =INDEX($R$5:V2068,$E24,4) -> 7 | I24: 0 | J24: 0 | K24: 0 | L24: =$J24/hátizsák!$H$10 -> 0 | R24: 20 | S24: fúvócső | T24: 0.1 | U24: 4 | V24: típus: lőfegyver, +2 támadás
B25: 0 | D25: 21. | E25: 3 | F25: vizestömlő | G25: =INDEX($R$5:U2069,$E25,3) -> 0.2 | H25: =INDEX($R$5:V2069,$E25,4) -> 7 | I25: 0 | J25: 0 | K25: 0 | L25: =$J25/hátizsák!$H$10 -> 0 | R25: 21 | S25: ormánygőte csont | T25: 0.2 | U25: 3 | V25: -
B26: 0 | D26: 22. | E26: 3 | F26: vizestömlő | G26: =INDEX($R$5:U2070,$E26,3) -> 0.2 | H26: =INDEX($R$5:V2070,$E26,4) -> 7 | I26: 0 | J26: 0 | K26: 0 | L26: =$J26/hátizsák!$H$10 -> 0 | R26: 22 | S26: tüske | T26: 0.03 | U26: 0 | V26: típus: lövedék (szúró), sebzés: 1d3
B27: 0 | D27: 23. | E27: 3 | F27: vizestömlő | G27: =INDEX($R$5:U2071,$E27,3) -> 0.2 | H27: =INDEX($R$5:V2071,$E27,4) -> 7 | I27: 0 | J27: 0 | K27: 0 | L27: =$J27/hátizsák!$H$10 -> 0 | R27: 23 | S27: mérgezett tüske | T27: 0.03 | U27: 1 | V27: típus: lövedék (szúró), sebzés: 1d3+4
B28: 0 | D28: 24. | E28: 3 | F28: vizestömlő | G28: =INDEX($R$5:U2072,$E28,3) -> 0.2 | H28: =INDEX($R$5:V2072,$E28,4) -> 7 | I28: 0 | J28: 0 | K28: 0 | L28: =$J28/hátizsák!$H$10 -> 0 | R28: 24 | S28: kavadu lebeny | T28: 0.2 | U28: 2 | V28: -
B29: 0 | D29: 25. | E29: 3 | F29: vizestömlő | G29: =INDEX($R$5:U2073,$E29,3) -> 0.2 | H29: =INDEX($R$5:V2073,$E29,4) -> 7 | I29: 0 | J29: 0 | K29: 0 | L29: =$J29/hátizsák!$H$10 -> 0 | R29: 25 | S29: kavadu iszák | T29: 0.1 | U29: 2 | V29: 10 gyenge méreg tárolására
B30: 0 | D30: 26. | E30: 3 | F30: vizestömlő | G30: =INDEX($R$5:U2074,$E30,3) -> 0.2 | H30: =INDEX($R$5:V2074,$E30,4) -> 7 | I30: 0 | J30: 0 | K30: 0 | L30: =$J30/hátizsák!$H$10 -> 0 | R30: 26 | S30: gyenge méreg | T30: 0.01 | U30: 1 | V30: áldozati tárgy Dornodonnak
B31: 0 | D31: 27. | E31: 3 | F31: vizestömlő | G31: =INDEX($R$5:U2075,$E31,3) -> 0.2 | H31: =INDEX($R$5:V2075,$E31,4) -> 7 | I31: 0 | J31: 0 | K31: 0 | L31: =$J31/hátizsák!$H$10 -> 0 | R31: 27 | S31: víz | T31: 0.01 | U31: 0 | V31: -
B32: 0 | D32: 28. | E32: 3 | F32: vizestömlő | G32: =INDEX($R$5:U2076,$E32,3) -> 0.2 | H32: =INDEX($R$5:V2076,$E32,4) -> 7 | I32: 0 | J32: 0 | K32: 0 | L32: =$J32/hátizsák!$H$10 -> 0 | R32: 28 | S32: ököl | T32: - | U32: 0 | V32: típus: ütő, sebzés: 1d3
B33: 0 | D33: 29. | E33: 3 | F33: vizestömlő | G33: =INDEX($R$5:U2077,$E33,3) -> 0.2 | H33: =INDEX($R$5:V2077,$E33,4) -> 7 | I33: 0 | J33: 0 | K33: 0 | L33: =$J33/hátizsák!$H$10 -> 0 | R33: 29 | S33: smirglilevél | T33: 0.05 | U33: 0 | V33: -
B34: 0 | D34: 30. | E34: 3 | F34: vizestömlő | G34: =INDEX($R$5:U2078,$E34,3) -> 0.2 | H34: =INDEX($R$5:V2078,$E34,4) -> 7 | I34: 0 | J34: 0 | K34: 0 | L34: =$J34/hátizsák!$H$10 -> 0 | R34: 30 | S34: varányszem | T34: 0.02 | U34: 1 | V34: -
B35: 0 | D35: 31. | E35: 3 | F35: vizestömlő | G35: =INDEX($R$5:U2079,$E35,3) -> 0.2 | H35: =INDEX($R$5:V2079,$E35,4) -> 7 | I35: 0 | J35: 0 | K35: 0 | L35: =$J35/hátizsák!$H$10 -> 0 | R35: 31 | S35: smirglibokor | T35: - | U35: 0 | V35: -
B36: 0 | D36: 32. | E36: 3 | F36: vizestömlő | G36: =INDEX($R$5:U2080,$E36,3) -> 0.2 | H36: =INDEX($R$5:V2080,$E36,4) -> 7 | I36: 0 | J36: 0 | K36: 0 | L36: =$J36/hátizsák!$H$10 -> 0 | R36: 32 | S36: szeksztáns | T36: 0.2 | U36: 20 | V36: abszolút koordináta meghatározására
B37: 0 | D37: 33. | E37: 3 | F37: vizestömlő | G37: =INDEX($R$5:U2081,$E37,3) -> 0.2 | H37: =INDEX($R$5:V2081,$E37,4) -> 7 | I37: 0 | J37: 0 | K37: 0 | L37: =$J37/hátizsák!$H$10 -> 0 | R37: 33 | S37: lapockacsont | T37: 1 | U37: 4 | V37: -
B38: 0 | D38: 34. | E38: 3 | F38: vizestömlő | G38: =INDEX($R$5:U2082,$E38,3) -> 0.2 | H38: =INDEX($R$5:V2082,$E38,4) -> 7 | I38: 0 | J38: 0 | K38: 0 | L38: =$J38/hátizsák!$H$10 -> 0 | R38: 34 | S38: ásó | T38: 3 | U38: 5 | V38: típus: ütő, sebzés: 1d2
B39: 0 | D39: 35. | E39: 3 | F39: vizestömlő | G39: =INDEX($R$5:U2083,$E39,3) -> 0.2 | H39: =INDEX($R$5:V2083,$E39,4) -> 7 | I39: 0 | J39: 0 | K39: 0 | L39: =$J39/hátizsák!$H$10 -> 0 | R39: 35 | S39: tűzbokor | T39: - | U39: 0 | V39: -
B40: 0 | D40: 36. | E40: 3 | F40: =INDEX($R$5:$U$2046,$E40,2) -> vizestömlő | G40: =INDEX($R$5:U2084,$E40,3) -> 0.2 | H40: =INDEX($R$5:V2084,$E40,4) -> 7 | I40: 0 | J40: 0 | K40: 0 | L40: =$J40/hátizsák!$H$10 -> 0 | R40: 36 | S40: fáklya | T40: 0.3 | U40: 0 | V40: áldozati tárgy Tharrnak
B41: 0 | D41: 37. | E41: 33 | F41: lapockacsont | G41: =INDEX($R$5:U2085,$E41,3) -> 1 | H41: =INDEX($R$5:V2085,$E41,4) -> 4 | I41: 0 | J41: 0 | K41: 0 | L41: =$J41/hátizsák!$H$10 -> 0 | R41: 37 | S41: drótszőr | T41: 0.05 | U41: 2 | V41: -
B42: 0 | D42: 38. | E42: 3 | F42: vizestömlő | G42: =INDEX($R$5:U2086,$E42,3) -> 0.2 | H42: =INDEX($R$5:V2086,$E42,4) -> 7 | I42: 0 | J42: 0 | K42: 0 | L42: =$J42/hátizsák!$H$10 -> 0 | R42: 38 | S42: gumifa | T42: - | U42: 0 | V42: -
B43: 0 | D43: 39. | E43: 3 | F43: vizestömlő | G43: =INDEX($R$5:U2087,$E43,3) -> 0.2 | H43: =INDEX($R$5:V2087,$E43,4) -> 7 | I43: 0 | J43: 0 | K43: 0 | L43: =$J43/hátizsák!$H$10 -> 0 | R43: 39 | S43: zárnyitó készlet | T43: 0.2 | U43: 12 | V43: -
B44: 0 | D44: 40. | E44: 3 | F44: vizestömlő | G44: =INDEX($R$5:U2088,$E44,3) -> 0.2 | H44: =INDEX($R$5:V2088,$E44,4) -> 7 | I44: 0 | J44: 0 | K44: 0 | L44: =$J44/hátizsák!$H$10 -> 0 | R44: 40 | S44: kis vaskulcs | T44: 0.08 | U44: 3 | V44: -
F45: ÖSSZESEN | G45: lefoglalt tárhely: | I45: =SUM(B5:B44) -> 9 | J45: =SUM(J5:J44) -> 5.24 | K45: =SUM(K5:K44) -> 252 | L45: 0.04192 | R45: 41 | S45: grákóbőr | T45: 0.1 | U45: 3 | V45: -
R46: 42 | S46: távcső | T46: 0.2 | U46: 16 | V46: -
R47: 43 | S47: tükör | T47: 0.3 | U47: 0 | V47: -
R48: 44 | S48: királygyík bőr | T48: 1 | U48: 3 | V48: -
D49: löttyök, porok, zselék, kenőcsök | R49: 45 | S49: kis bőrpajzs | T49: 2 | U49: 5 | V49: +1 AC
D50: tárhely | E50: # tágy | F50: tárgy neve | G50: súly/db | H50: ap/db | I50: készlet | J50: tétel súlya | K50: tétel értéke | L50: zsákban foglalt % | R50: 46 | S50: krómkaktusz | T50: - | U50: 0 | V50: -
B51: 1 | D51: 1. | E51: 101 | F51: =INDEX($R$5:$U$2046,$E51,2) -> tinta | G51: =INDEX($R$5:U2092,$E51,3) -> 0.01 | H51: =INDEX($R$5:V2092,$E51,4) -> 1 | I51: 11 | J51: =G51*I51 -> 0.11 | K51: =H51*I51 -> 11 | L51: =$J51/hátizsák!$H$10 -> 0.00088 | R51: 47 | S51: surranó kígyó bőr | T51: 0.2 | U51: 2 | V51: -
B52: 1 | D52: 2. | E52: 211 | F52: sáfránypor | G52: =INDEX($R$5:U2096,$E52,3) -> 0.01 | H52: =INDEX($R$5:V2096,$E52,4) -> 20 | I52: 1 | J52: =G52*I52 -> 0.01 | K52: =H52*I52 -> 20 | L52: =$J52/hátizsák!$H$10 -> 8e-05 | R52: 48 | S52: antilopbőr | T52: 2 | U52: 3 | V52: -
B53: 0 | D53: 3. | E53: 27 | F53: víz | G53: =INDEX($R$5:U2097,$E53,3) -> 0.01 | H53: =INDEX($R$5:V2097,$E53,4) -> 0 | I53: 0 | J53: 0 | K53: 0 | L53: =$J53/hátizsák!$H$10 -> 0 | R53: 49 | S53: kígyóbőr kesztyű | T53: 0.3 | U53: 5 | V53: +1 AC
B54: 0 | D54: 4. | E54: 27 | F54: víz | G54: =INDEX($R$5:U2098,$E54,3) -> 0.01 | H54: =INDEX($R$5:V2098,$E54,4) -> 0 | I54: 0 | J54: 0 | K54: 0 | L54: =$J54/hátizsák!$H$10 -> 0 | R54: 50 | S54: arany | T54: 0 | U54: 0 | V54: -
B55: 1 | D55: 5. | E55: 170 | F55: spiritusz | G55: =INDEX($R$5:U2099,$E55,3) -> 0.01 | H55: =INDEX($R$5:V2099,$E55,4) -> 1 | I55: 38 | J55: 0.38 | K55: 38 | L55: =$J55/hátizsák!$H$10 -> 0.00304 | R55: 51 | S55: bőrpáncél | T55: 3 | U55: 5 | V55: +2 AC
B56: 1 | D56: 6. | E56: 260 | F56: isteni könnycsepp | G56: =INDEX($R$5:U2100,$E56,3) -> 0.01 | H56: =INDEX($R$5:V2100,$E56,4) -> 0 | I56: 10 | J56: 0.1 | K56: 0 | L56: =$J56/hátizsák!$H$10 -> 0.0008 | R56: 52 | S56: patak | T56: - | U56: 0 | V56: -
B57: 0 | D57: 7. | E57: 166 | F57: ugh méreg | G57: =INDEX($R$5:U2101,$E57,3) -> 0.01 | H57: =INDEX($R$5:V2101,$E57,4) -> 2 | I57: 0 | J57: 0 | K57: 0 | L57: =$J57/hátizsák!$H$10 -> 0 | R57: 53 | S57: tavacska | T57: - | U57: 0 | V57: -
B58: 1 | D58: 8. | E58: 27 | F58: víz | G58: =INDEX($R$5:U2102,$E58,3) -> 0.01 | H58: =INDEX($R$5:V2102,$E58,4) -> 0 | I58: 25 | J58: 0.25 | K58: 0 | L58: =$J58/hátizsák!$H$10 -> 0.002 | R58: 54 | S58: szökőkút | T58: - | U58: 0 | V58: -
B59: 1 | D59: 9. | E59: 83 | F59: ragasztó | G59: =INDEX($R$5:U2103,$E59,3) -> 0.01 | H59: =INDEX($R$5:V2103,$E59,4) -> 1 | I59: 10 | J59: 0.1 | K59: 10 | L59: =$J59/hátizsák!$H$10 -> 0.0008 | R59: 55 | S59: mákrózsa bokor | T59: - | U59: 0 | V59: -
B60: 0 | D60: 10. | E60: 27 | F60: víz | G60: =INDEX($R$5:U2104,$E60,3) -> 0.01 | H60: =INDEX($R$5:V2104,$E60,4) -> 0 | I60: 0 | J60: 0 | K60: 0 | L60: =$J60/hátizsák!$H$10 -> 0 | R60: 56 | S60: mákrózsa virág | T60: 0.2 | U60: 0 | V60: áldozati tárgy Eleniosnak
B61: 0 | D61: 11. | E61: 27 | F61: víz | G61: =INDEX($R$5:U2105,$E61,3) -> 0.01 | H61: =INDEX($R$5:V2105,$E61,4) -> 0 | I61: 0 | J61: 0 | K61: 0 | L61: =$J61/hátizsák!$H$10 -> 0 | R61: 57 | S61: bőrsisak | T61: 1 | U61: 5 | V61: +1 AC
B62: 0 | D62: 12. | E62: 27 | F62: víz | G62: =INDEX($R$5:U2106,$E62,3) -> 0.01 | H62: =INDEX($R$5:V2106,$E62,4) -> 0 | I62: 0 | J62: 0 | K62: 0 | L62: =$J62/hátizsák!$H$10 -> 0 | R62: 58 | S62: ködmangócserje | T62: - | U62: 0 | V62: -
B63: 0 | D63: 13. | E63: 27 | F63: víz | G63: =INDEX($R$5:U2107,$E63,3) -> 0.01 | H63: =INDEX($R$5:V2107,$E63,4) -> 0 | I63: 0 | J63: 0 | K63: 0 | L63: =$J63/hátizsák!$H$10 -> 0 | R63: 59 | S63: ködmangó | T63: - | U63: 0 | V63: -
B64: 0 | D64: 14. | E64: 27 | F64: víz | G64: =INDEX($R$5:U2108,$E64,3) -> 0.01 | H64: =INDEX($R$5:V2108,$E64,4) -> 0 | I64: 0 | J64: 0 | K64: 0 | L64: =$J64/hátizsák!$H$10 -> 0 | R64: 60 | S64: ködkapu | T64: - | U64: 0 | V64: -
B65: 0 | D65: 15. | E65: 27 | F65: víz | G65: =INDEX($R$5:U2109,$E65,3) -> 0.01 | H65: =INDEX($R$5:V2109,$E65,4) -> 0 | I65: 0 | J65: 0 | K65: 0 | L65: =$J65/hátizsák!$H$10 -> 0 | R65: 61 | S65: árnyéksár | T65: - | U65: 0 | V65: -
B66: 0 | D66: 16. | E66: 27 | F66: víz | G66: =INDEX($R$5:U2110,$E66,3) -> 0.01 | H66: =INDEX($R$5:V2110,$E66,4) -> 0 | I66: 0 | J66: 0 | K66: 0 | L66: =$J66/hátizsák!$H$10 -> 0 | R66: 62 | S66: ködcsillag | T66: - | U66: 0 | V66: -
B67: 0 | D67: 17. | E67: 27 | F67: víz | G67: =INDEX($R$5:U2111,$E67,3) -> 0.01 | H67: =INDEX($R$5:V2111,$E67,4) -> 0 | I67: 0 | J67: 0 | K67: 0 | L67: =$J67/hátizsák!$H$10 -> 0 | R67: 63 | S67: tigroszlán fog | T67: 0.05 | U67: 1 | V67: -
B68: 0 | D68: 18. | E68: 27 | F68: víz | G68: =INDEX($R$5:U2112,$E68,3) -> 0.01 | H68: =INDEX($R$5:V2112,$E68,4) -> 0 | I68: 0 | J68: 0 | K68: 0 | L68: =$J68/hátizsák!$H$10 -> 0 | R68: 64 | S68: csontszablya | T68: 1.5 | U68: 2 | V68: típus: vágó (balkezes), sebzés: 1d8, áldozati tárgy Dornodonnak
B69: 0 | D69: 19. | E69: 27 | F69: víz | G69: =INDEX($R$5:U2113,$E69,3) -> 0.01 | H69: =INDEX($R$5:V2113,$E69,4) -> 0 | I69: 0 | J69: 0 | K69: 0 | L69: =$J69/hátizsák!$H$10 -> 0 | R69: 65 | S69: szöges páncél | T69: 3.4 | U69: 24 | V69: +4 AC
B70: =IF(I70>0,1,IF(I70=0,0)) -> 0 | D70: 20. | E70: 27 | F70: víz | G70: =INDEX($R$5:U2114,$E70,3) -> 0.01 | H70: =INDEX($R$5:V2114,$E70,4) -> 0 | I70: 0 | J70: 0 | K70: 0 | L70: =$J70/hátizsák!$H$10 -> 0 | R70: 66 | S70: szöges bőrpajzs | T70: 2.2 | U70: 16 | V70: +2 AC
B71: 0 | D71: 21. | E71: 27 | F71: víz | G71: =INDEX($R$5:U2115,$E71,3) -> 0.01 | H71: =INDEX($R$5:V2115,$E71,4) -> 0 | I71: 0 | J71: 0 | K71: 0 | L71: =$J71/hátizsák!$H$10 -> 0 | R71: 67 | S71: kék orchideacserje | T71: - | U71: 0 | V71: -
B72: 0 | D72: 22. | E72: 27 | F72: víz | G72: =INDEX($R$5:U2116,$E72,3) -> 0.01 | H72: =INDEX($R$5:V2116,$E72,4) -> 0 | I72: 0 | J72: 0 | K72: 0 | L72: =$J72/hátizsák!$H$10 -> 0 | R72: 68 | S72: kék orchidea | T72: 0.08 | U72: 4 | V72: -
B73: 0 | D73: 23. | E73: 27 | F73: víz | G73: =INDEX($R$5:U2117,$E73,3) -> 0.01 | H73: =INDEX($R$5:V2117,$E73,4) -> 0 | I73: 0 | J73: 0 | K73: 0 | L73: =$J73/hátizsák!$H$10 -> 0 | R73: 69 | S73: szárnyas hernyó | T73: 0.1 | U73: 2 | V73: áldozati tárgy Sherannak
B74: 0 | D74: 24. | E74: 27 | F74: víz | G74: =INDEX($R$5:U2118,$E74,3) -> 0.01 | H74: =INDEX($R$5:V2118,$E74,4) -> 0 | I74: 0 | J74: 0 | K74: 0 | L74: =$J74/hátizsák!$H$10 -> 0 | R74: 70 | S74: rézdarab | T74: 0.3 | U74: 1 | V74: -
B75: 0 | D75: 25. | E75: 27 | F75: víz | G75: =INDEX($R$5:U2119,$E75,3) -> 0.01 | H75: =INDEX($R$5:V2119,$E75,4) -> 0 | I75: 0 | J75: 0 | K75: 0 | L75: =$J75/hátizsák!$H$10 -> 0 | R75: 71 | S75: rézpáncél | T75: 5.4 | U75: 24 | V75: +5 AC
B76: 0 | D76: 26. | E76: 27 | F76: víz | G76: =INDEX($R$5:U2120,$E76,3) -> 0.01 | H76: =INDEX($R$5:V2120,$E76,4) -> 0 | I76: 0 | J76: 0 | K76: 0 | L76: =$J76/hátizsák!$H$10 -> 0 | R76: 72 | S76: rézsisak | T76: 0.9 | U76: 7 | V76: +2 AC
B77: 0 | D77: 27. | E77: 27 | F77: víz | G77: =INDEX($R$5:U2121,$E77,3) -> 0.01 | H77: =INDEX($R$5:V2121,$E77,4) -> 0 | I77: 0 | J77: 0 | K77: 0 | L77: =$J77/hátizsák!$H$10 -> 0 | R77: 73 | S77: rézpajzs | T77: 1.5 | U77: 14 | V77: +3 AC
B78: 0 | D78: 28. | E78: 27 | F78: víz | G78: =INDEX($R$5:U2122,$E78,3) -> 0.01 | H78: =INDEX($R$5:V2122,$E78,4) -> 0 | I78: 0 | J78: 0 | K78: 0 | L78: =$J78/hátizsák!$H$10 -> 0 | R78: 74 | S78: csontkulcs | T78: 0.06 | U78: 4 | V78: -
B79: 0 | D79: 29. | E79: 27 | F79: víz | G79: =INDEX($R$5:U2123,$E79,3) -> 0.01 | H79: =INDEX($R$5:V2123,$E79,4) -> 0 | I79: 0 | J79: 0 | K79: 0 | L79: =$J79/hátizsák!$H$10 -> 0 | R79: 75 | S79: rézkulcs | T79: 0.08 | U79: 6 | V79: -
B80: 0 | D80: 30. | E80: 27 | F80: víz | G80: =INDEX($R$5:U2124,$E80,3) -> 0.01 | H80: =INDEX($R$5:V2124,$E80,4) -> 0 | I80: 0 | J80: 0 | K80: 0 | L80: =$J80/hátizsák!$H$10 -> 0 | R80: 76 | S80: bronzkulcs | T80: 0.1 | U80: 9 | V80: -
B81: 0 | D81: 31. | E81: 27 | F81: víz | G81: =INDEX($R$5:U2125,$E81,3) -> 0.01 | H81: =INDEX($R$5:V2125,$E81,4) -> 0 | I81: 0 | J81: 0 | K81: 0 | L81: =$J81/hátizsák!$H$10 -> 0 | R81: 77 | S81: rát-fa | T81: - | U81: 0 | V81: másznivaló, min. mászás: 0
B82: 0 | D82: 32. | E82: 27 | F82: víz | G82: =INDEX($R$5:U2126,$E82,3) -> 0.01 | H82: =INDEX($R$5:V2126,$E82,4) -> 0 | I82: 0 | J82: 0 | K82: 0 | L82: =$J82/hátizsák!$H$10 -> 0 | R82: 78 | S82: mászókarom | T82: 0.2 | U82: 10 | V82: +4 sebzés ököllel
B83: 0 | D83: 33. | E83: 27 | F83: víz | G83: =INDEX($R$5:U2127,$E83,3) -> 0.01 | H83: =INDEX($R$5:V2127,$E83,4) -> 0 | I83: 0 | J83: 0 | K83: 0 | L83: =$J83/hátizsák!$H$10 -> 0 | R83: 79 | S83: korongfa | T83: - | U83: 0 | V83: másznivaló, min. mászás: ?
B84: 0 | D84: 34. | E84: 27 | F84: víz | G84: =INDEX($R$5:U2128,$E84,3) -> 0.01 | H84: =INDEX($R$5:V2128,$E84,4) -> 0 | I84: 0 | J84: 0 | K84: 0 | L84: =$J84/hátizsák!$H$10 -> 0 | R84: 80 | S84: lapkorong | T84: 0.08 | U84: 2 | V84: -
B85: 0 | D85: 35. | E85: 27 | F85: víz | G85: =INDEX($R$5:U2129,$E85,3) -> 0.01 | H85: =INDEX($R$5:V2129,$E85,4) -> 0 | I85: 0 | J85: 0 | K85: 0 | L85: =$J85/hátizsák!$H$10 -> 0 | R85: 81 | S85: mérleg | T85: 0.24 | U85: 8 | V85: áldozati tárgy Fairlightnak
B86: 0 | D86: 36. | E86: 27 | F86: =INDEX($R$5:$U$2046,$E86,2) -> víz | G86: =INDEX($R$5:U2130,$E86,3) -> 0.01 | H86: =INDEX($R$5:V2130,$E86,4) -> 0 | I86: 0 | J86: 0 | K86: 0 | L86: =$J86/hátizsák!$H$10 -> 0 | R86: 82 | S86: zöld üveg | T86: 0.1 | U86: 3 | V86: 20 ragasztó tárolására
B87: 0 | D87: 37. | E87: 27 | F87: víz | G87: =INDEX($R$5:U2131,$E87,3) -> 0.01 | H87: =INDEX($R$5:V2131,$E87,4) -> 0 | I87: 0 | J87: 0 | K87: 0 | L87: =$J87/hátizsák!$H$10 -> 0 | R87: 83 | S87: ragasztó | T87: 0.01 | U87: 1 | V87: áldozati tárgy Eleniosnak
B88: 0 | D88: 38. | E88: 27 | F88: víz | G88: =INDEX($R$5:U2132,$E88,3) -> 0.01 | H88: =INDEX($R$5:V2132,$E88,4) -> 0 | I88: 0 | J88: 0 | K88: 0 | L88: =$J88/hátizsák!$H$10 -> 0 | R88: 84 | S88: díszes rézpajzs | T88: 3 | U88: 2 | V88: +4 AC
B89: 0 | D89: 39. | E89: 27 | F89: víz | G89: =INDEX($R$5:U2133,$E89,3) -> 0.01 | H89: =INDEX($R$5:V2133,$E89,4) -> 0 | I89: 0 | J89: 0 | K89: 0 | L89: =$J89/hátizsák!$H$10 -> 0 | R89: 85 | S89: óndarab | T89: 0.3 | U89: 0 | V89: -
B90: 0 | D90: 40. | E90: 27 | F90: víz | G90: =INDEX($R$5:U2134,$E90,3) -> 0.01 | H90: =INDEX($R$5:V2134,$E90,4) -> 0 | I90: 0 | J90: 0 | K90: 0 | L90: =$J90/hátizsák!$H$10 -> 0 | R90: 86 | S90: olvasztókemence | T90: - | U90: 0 | V90: -
F91: ÖSSZESEN | G91: lefoglalt tárhely: | I91: =SUM(B51:B90) -> 6 | J91: =SUM(J51:J90) -> 0.95 | K91: =SUM(K51:K90) -> 79 | L91: =SUM(L51:L90) -> 0.0076 | R91: 87 | S91: bronzhegyű lándzsa | T91: 3 | U91: 10 | V91: típus: szúró, sebzés: 3d6+3
R92: 88 | S92: bronzsisak | T92: 1.2 | U92: 9 | V92: +3 AC
R93: 89 | S93: bronzpajzs | T93: 2 | U93: 16 | V93: +5 AC
R94: 90 | S94: bronzpáncél | T94: 7 | U94: 32 | V94: +7 AC
D95: löttyök, tartók összesen | R95: 91 | S95: manilla-fa | T95: - | U95: 0 | V95: -
I96: =I91+I45 -> 15 | J96: =J91+J45 -> 6.19 | K96: =K91+K45 -> 331 | L96: =L91+L45 -> 0.04952 | R96: 92 | S96: kötél | T96: 1 | U96: 1 | V96: -
B97: 0 | R97: 93 | S97: mély kút | T97: - | U97: 0 | V97: másznivaló, min. mászás: 2
B98: 0 | R98: 94 | S98: bronzhegyű nyíl | T98: 0.08 | U98: 5 | V98: típus: lövedék (szúró), sebzés: 2d6+4
B99: 0 | R99: 95 | S99: bakkura bőr | T99: 0.4 | U99: 2 | V99: -
B100: 0 | R100: 96 | S100: bakkura csizma | T100: 1.2 | U100: 11 | V100: +2 AC
B101: 0 | R101: 97 | S101: rákpáncél | T101: 0.4 | U101: 4 | V101: -
B102: 0 | R102: 98 | S102: rákpajzs | T102: 0.8 | U102: 10 | V102: +4 AC
B103: 0 | R103: 99 | S103: fekete gyöngy | T103: 0.01 | U103: 6 | V103: áldozati tárgy Leahnak
B104: 0 | R104: 100 | S104: aranyló ugarhéj | T104: 0.1 | U104: 4 | V104: 10 tinta tárolására, áldozati tárgy Raiának
B105: 0 | R105: 101 | S105: tinta | T105: 0.01 | U105: 1 | V105: -
B106: 0 | R106: 102 | S106: vízionár szem | T106: 0.03 | U106: 3 | V106: áldozati tárgy Eleniosnak
B107: 0 | R107: 103 | S107: magszim bél | T107: 0.08 | U107: 5 | V107: -
B108: 0 | R108: 104 | S108: fémrúd | T108: 2 | U108: 8 | V108: -
B109: 0 | R109: 105 | S109: evaporőr háj | T109: 0.2 | U109: 5 | V109: -
B110: 0 | R110: 106 | S110: fabontó | T110: 0.1 | U110: 5 | V110: -
B111: 0 | R111: 107 | S111: rövid íj | T111: 1 | U111: 8 | V111: típus: lőfegyver, +2 vadászat
B112: 0 | R112: 108 | S112: nyílvessző | T112: 0.1 | U112: 1 | V112: típus: lövedék (szúró), sebzés: 1d8+2
B113: 0 | R113: 109 | S113: vapárcserje | T113: - | U113: 0 | V113: -
B114: 0 | R114: 110 | S114: vapárág | T114: 2 | U114: 10 | V114: -
B115: 0 | R115: 111 | S115: hosszú íj | T115: 2 | U115: 20 | V115: típus: lőfegyver, +2 támadás
B116: 0 | R116: 112 | S116: madártoll | T116: 0.01 | U116: 1 | V116: áldozati tárgy Raiának
B117: 0 | R117: 113 | S117: xantusz-kaktusz | T117: - | U117: 0 | V117: -
B118: 0 | R118: 114 | S118: kaktusztüske | T118: 0.02 | U118: 0 | V118: áldozati tárgy Fairlightnak
B119: 0 | R119: 115 | S119: móricserje | T119: - | U119: 0 | V119: -
B120: 0 | R120: 116 | S120: móri gyümölcs | T120: 0.1 | U120: 0 | V120: áldozati tárgy Sherannak
B121: 0 | R121: 117 | S121: ezüst nyaklánc | T121: 0.1 | U121: 10 | V121: ékszer
B122: 0 | R122: 118 | S122: púderszikla | T122: - | U122: 0 | V122: -
B123: 0 | R123: 119 | S123: púderkő | T123: 0.1 | U123: 0 | V123: áldozati tárgy Raiának
B124: 0 | R124: 120 | S124: tábla | T124: - | U124: 10 | V124: maximum 70 betűnyi szöveg
B125: 0 | R125: 121 | S125: jellempróba | T125: - | U125: 0 | V125: -
B126: 0 | R126: 122 | S126: dözmöng szív | T126: 0.08 | U126: 3 | V126: -
B127: 0 | R127: 123 | S127: göcsörtös bunkó | T127: 3.5 | U127: 8 | V127: típus: ütő, sebzés: 2d8+4, min. fsz.: 5
B128: 0 | R128: 124 | S128: rókafarok | T128: 0.5 | U128: 3 | V128: áldozati tárgy Sherannak
B129: 0 | R129: 125 | S129: mandibulapenge | T129: 0.5 | U129: 3 | V129: -
B130: 0 | R130: 126 | S130: bronzpenge | T130: 2 | U130: 12 | V130: típus: vágó, sebzés: 2d6+2
B131: 0 | R131: 127 | S131: mandibulakasza | T131: 3.5 | U131: 25 | V131: típus: vágó, sebzés: 3d6+3
B132: 0 | R132: 128 | S132: sallank karom | T132: 0.15 | U132: 2 | V132: áldozati tárgy Tharrnak
B133: 0 | R133: 129 | S133: sallank nyíl | T133: 0.25 | U133: 3 | V133: típus: lövedék (szúró), sebzés: 2d8+2
B134: =IF(I134>0,1,IF(I134=0,0)) -> 0 | R134: 130 | S134: hebrencs állkapocs | T134: 0.4 | U134: 4 | V134: -
B135: 0 | R135: 131 | S135: ubuk tüske | T135: 0.05 | U135: 1 | V135: típus: lövedék (szúró), sebzés: 1d8
B136: 0 | R136: 132 | S136: hóhérbimbó | T136: - | U136: 0 | V136: -
R137: 133 | S137: csuklyavirág | T137: 0.05 | U137: 1 | V137: áldozati tárgy Leahnak
R138: 134 | S138: gyöngymangó bokor | T138: - | U138: 0 | V138: -
R139: 135 | S139: gyöngymangó | T139: 0.1 | U139: 2 | V139: -
R140: 136 | S140: rúnakő | T140: - | U140: 0 | V140: kapcsolat az istenekkel
R141: 137 | S141: mérgezett ubuktüske | T141: 0.05 | U141: 2 | V141: típus: lövedék (szúró), sebzés: 1d8+4
R142: 138 | S142: ubuk dobónyíl | T142: 0.15 | U142: 5 | V142: típus: dobó (szúró), sebzés: 1d8+6
B143: 0 | R143: 139 | S143: koponya szimbólum | T143: 0.05 | U143: 10 | V143: csak Leah hívei hordhatják, +4 mentődobás halál és hideg ellen
B144: 0 | R144: 140 | S144: denevér szimbólum | T144: 0.04 | U144: 10 | V144: csak Dornodon hívei hordhatják, +2 iq
B145: 0 | R145: 141 | S145: nap szimbólum | T145: 0.05 | U145: 10 | V145: csak Raia hívei hordhatják, +4 mentődobás energia ellen
B146: 0 | R146: 142 | S146: szem szimbólum | T146: 0.03 | U146: 12 | V146: csak Elenios hívei hordhatják, +4 mentődobás mentális támadás ellen
B147: 0 | R147: 143 | S147: virág szimbólum | T147: 0.03 | U147: 8 | V147: csak Sheran hívei hordhatják, +2 eg.
B148: 0 | R148: 144 | S148: két kard szimbólum | T148: 0.06 | U148: 10 | V148: csak Tharr hívei hordhatják, +2 erő
B149: 0 | R149: 145 | S149: villám szimbólum | T149: 0.04 | U149: 10 | V149: csak Fairlight hívei hordhatják, +2 ügy.
B150: 0 | R150: 146 | S150: oltár | T150: - | U150: 0 | V150: imádkozáshoz
B151: 0 | R151: 147 | S151: hebrencs csapda | T151: 0.45 | U151: 15 | V151: -
B152: 0 | R152: 148 | S152: mocsári penke | T152: 0.01 | U152: 1 | V152: -
B153: 0 | R153: 149 | S153: grok-képződmény | T153: - | U153: 0 | V153: másznivaló, min. mászás: 3
B154: 0 | R154: 150 | S154: szent jogar | T154: 0.08 | U154: 50 | V154: jó jelleműeket max. ép.-be gyógyít
B155: 0 | R155: 151 | S155: szvó-ektoplazma | T155: 0.05 | U155: 10 | V155: -
B156: 0 | R156: 152 | S156: vasérc | T156: 0.2 | U156: 2 | V156: -
B157: 0 | R157: 153 | S157: pirkit | T157: 0.05 | U157: 2 | V157: -
B158: 0 | R158: 154 | S158: mély szakadék | T158: - | U158: 0 | V158: másznivaló, min. mászás: 5
B159: 0 | R159: 155 | S159: vaskohó | T159: - | U159: 0 | V159: -
B160: 0 | R160: 156 | S160: világítótorony | T160: - | U160: 0 | V160: maximum 10 mező távolságra történő információ átadásra
B161: 0 | R161: 157 | S161: nyu-shuriken | T161: 0.05 | U161: 12 | V161: típus: dobó (szúró), sebzés: 3d4+2, +3 támadás
B162: 0 | R162: 158 | S162: ezüst karkötő | T162: 0.08 | U162: 14 | V162: ékszer
B163: 0 | R163: 159 | S163: kis vaspajzs | T163: 2 | U163: 16 | V163: +6 AC, min. bányászat: 3
B164: 0 | R164: 160 | S164: vassisak | T164: 0.6 | U164: 18 | V164: +4 AC, min. bányászat: 4
B165: 0 | R165: 161 | S165: nagy vaspajzs | T165: 3.2 | U165: 22 | V165: +8 AC, min. bányászat: 3
B166: 0 | R166: 162 | S166: borostyán függő | T166: 0.01 | U166: 6 | V166: ékszer
B167: 0 | R167: 163 | S167: karócsapda | T167: 1 | U167: 12 | V167: -
B168: 0 | R168: 164 | S168: vasvért | T168: 8 | U168: 60 | V168: +10 AC, min. bányászat: 6
B169: 0 | R169: 165 | S169: mászókampó | T169: 0.4 | U169: 12 | V169: min. bányászat: 2
B170: 0 | R170: 166 | S170: ugh méreg | T170: 0.01 | U170: 2 | V170: -
B171: 0 | R171: 167 | S171: sziklafészek | T171: - | U171: 0 | V171: másznivaló, min. mászás: 6
B172: 0 | R172: 168 | S172: sullár hólyag | T172: 0.08 | U172: 7 | V172: 20 spiritusz tárolására
B173: 0 | R173: 169 | S173: uzbány csőr | T173: 0.15 | U173: 6 | V173: 12 ugh méreg tárolására
B174: 0 | R174: 170 | S174: spiritusz | T174: 0.01 | U174: 1 | V174: -
B175: 0 | R175: 171 | S175: rövid kard | T175: 1.5 | U175: 16 | V175: típus: vágó (balkezes), sebzés: 3d4+1, min. bányászat: 5
B176: 0 | R176: 172 | S176: téfea-agy | T176: 0.3 | U176: 8 | V176: -
B177: 0 | R177: 173 | S177: nekrofun | T177: - | U177: 0 | V177: duplázza a varázspont regenerálást
B178: 0 | R178: 174 | S178: harci kalapács | T178: 2.2 | U178: 20 | V178: típus: ütő (balkezes), sebzés: 3d4+1, min. bányászat: 3
B179: 0 | R179: 175 | S179: márványtorony | T179: - | U179: 0 | V179: másznivaló, min. mászás: 8
B180: 0 | R180: 176 | S180: vashegyű nyíl | T180: 0.08 | U180: 5 | V180: típus: lövedék (szúró), sebzés: 3d6+1, min. bányászat: 2
B181: 0 | R181: 177 | S181: szopógödör | T181: - | U181: 0 | V181: -
B182: 0 | R182: 178 | S182: mínosz-kúp | T182: - | U182: 0 | V182: -
R183: 179 | S183: grifftojás | T183: 0.4 | U183: 10 | V183: -
R184: 180 | S184: ezüst gyűrű | T184: 0.01 | U184: 6 | V184: ékszer
R185: 181 | S185: vasalt bunkó | T185: 4.5 | U185: 35 | V185: típus: ütő, sebzés: 4d6+4, min. fsz.: 10, min. bányászat: 4
R186: 182 | S186: vashegyű lándzsa | T186: 2 | U186: 18 | V186: típus: szúró, sebzés: 4d6+1, min. fsz.: 10, +2 támadás, min. bányászat: 2
R187: 183 | S187: vaskulcs | T187: 0.08 | U187: 10 | V187: -
R188: 184 | S188: ezüst kulcs | T188: 0.04 | U188: 12 | V188: -
B189: 0 | R189: 185 | S189: nagy bronzkulcs | T189: 0.12 | U189: 14 | V189: -
B190: 0 | R190: 186 | S190: nagy vaskulcs | T190: 0.15 | U190: 16 | V190: -
B191: 0 | R191: 187 | S191: mérgezett vashegyű nyíl | T191: 0.08 | U191: 8 | V191: típus: lövedék (szúró), sebzés: 3d6+7
B192: 0 | R192: 188 | S192: mérgezett ubuk dobónyíl | T192: 0.15 | U192: 7 | V192: típus: dobó (szúró), sebzés: 1d8+10
B193: 0 | R193: 189 | S193: vas dobónyíl | T193: 0.1 | U193: 7 | V193: típus: dobó (szúró), sebzés: 2d6+4, +2 támadás, min. bányászat: 3
B194: 0 | R194: 190 | S194: mérgezett vas dobónyíl | T194: 0.1 | U194: 10 | V194: típus: dobó (szúró), sebzés: 2d6+10, +2 támadás
B195: 0 | R195: 191 | S195: aranylánc | T195: 0.15 | U195: 20 | V195: ékszer
B196: 0 | R196: 192 | S196: gyöngysor | T196: 0.25 | U196: 48 | V196: ékszer
B197: 0 | R197: 193 | S197: aranygyűrű | T197: 0.02 | U197: 12 | V197: ékszer
B198: =IF(I198>0,1,IF(I198=0,0)) -> 0 | R198: 194 | S198: arany karperec | T198: 0.12 | U198: 26 | V198: ékszer
B199: 0 | R199: 195 | S199: obszidián függő | T199: 0.01 | U199: 10 | V199: ékszer
B200: 0 | R200: 196 | S200: trófea nyaklánc | T200: 0.38 | U200: 30 | V200: ékszer
B201: 0 | R201: 197 | S201: igazgyöngy fülbevaló | T201: 0.02 | U201: 20 | V201: ékszer
B202: 0 | R202: 198 | S202: trikornis szarv | T202: 0.2 | U202: 12 | V202: -
... 1844 more rows

Sheet eszközök
D3: eszközök használatitárgyak
D4: tárhely | E4: # tágy | F4: tárgy neve | G4: súly/db | H4: ap/db | I4: készlet | J4: tétel súlya | K4: tétel értéke | L4: zsákban foglalt % | R4: # | S4: Tárgy | T4: Súly | U4: EA | V4: Egyéb
B5: =IF(I5>0,1,IF(I5=0,0)) -> 1 | D5: 1. | E5: 415 | F5: =INDEX($R$5:$U$2046,$E5,2) -> aranypikkely | G5: =INDEX($R$5:U2046,$E5,3) -> 0.2 | H5: =INDEX($R$5:V2046,$E5,4) -> 0 | I5: 4 | J5: =G5*I5 -> 0.8 | K5: =H5*I5 -> 0 | L5: =$J5/hátizsák!$H$10 -> 0.0064 | R5: 1 | S5: deus ex machina | T5: 0.1 | U5: 25 | V5: megmenti az életed, ha meghalnál
B6: =IF(I6>0,1,IF(I6=0,0)) -> 1 | D6: 2. | E6: 272 | F6: aranytű | G6: =INDEX($R$5:U2050,$E6,3) -> 0.02 | H6: =INDEX($R$5:V2050,$E6,4) -> 4 | I6: 1 | J6: =G6*I6 -> 0.02 | K6: =H6*I6 -> 4 | L6: =$J6/hátizsák!$H$10 -> 0.00016 | R6: 2 | S6: kaja | T6: 0.3 | U6: 1 | V6: -
B7: 1 | D7: 3. | E7: 34 | F7: ásó | G7: =INDEX($R$5:U2051,$E7,3) -> 3 | H7: =INDEX($R$5:V2051,$E7,4) -> 5 | I7: 1 | J7: 3 | K7: 5 | L7: =$J7/hátizsák!$H$10 -> 0.024 | R7: 3 | S7: vizestömlő | T7: 0.2 | U7: 7 | V7: 20 víz tárolására
B8: 1 | D8: 4. | E8: 1687 | F8: bányászlámpa | G8: =INDEX($R$5:U2052,$E8,3) -> 0 | H8: =INDEX($R$5:V2052,$E8,4) -> 150 | I8: 1 | J8: 0 | K8: 150 | L8: =$J8/hátizsák!$H$10 -> 0 | R8: 4 | S8: bot | T8: 3 | U8: 0 | V8: típus: ütő, sebzés: 1d6
B9: 1 | D9: 5. | E9: 76 | F9: bronzkulcs | G9: =INDEX($R$5:U2053,$E9,3) -> 0.1 | H9: =INDEX($R$5:V2053,$E9,4) -> 9 | I9: 2 | J9: 0.2 | K9: 18 | L9: =$J9/hátizsák!$H$10 -> 0.0016 | R9: 5 | S9: bunkó | T9: 5 | U9: 0 | V9: típus: ütő, sebzés: 1d6
B10: 1 | D10: 6. | E10: 74 | F10: csontkulcs | G10: =INDEX($R$5:U2054,$E10,3) -> 0.06 | H10: =INDEX($R$5:V2054,$E10,4) -> 4 | I10: 8 | J10: 0.48 | K10: 32 | L10: =$J10/hátizsák!$H$10 -> 0.00384 | R10: 6 | S10: kőkés | T10: 0.5 | U10: 0 | V10: típus: vágó (balkezes), sebzés: 1d4
B11: 1 | D11: 7. | E11: 1 | F11: deus ex machina | G11: =INDEX($R$5:U2055,$E11,3) -> 0.1 | H11: =INDEX($R$5:V2055,$E11,4) -> 25 | I11: 1 | J11: 0.1 | K11: 25 | L11: =$J11/hátizsák!$H$10 -> 0.0008 | R11: 7 | S11: kőhegyű lándzsa | T11: 3.5 | U11: 1 | V11: típus: szúró, sebzés: 2d4+2
B12: 1 | D12: 8. | E12: 221 | F12: dobóháló | G12: =INDEX($R$5:U2056,$E12,3) -> 0.4 | H12: =INDEX($R$5:V2056,$E12,4) -> 8 | I12: 2 | J12: 0.8 | K12: 16 | L12: =$J12/hátizsák!$H$10 -> 0.0064 | R12: 8 | S12: szöges bunkó | T12: 5.2 | U12: 10 | V12: típus: ütő, sebzés: 3d6+2
B13: 1 | D13: 9. | E13: 184 | F13: ezüst kulcs | G13: =INDEX($R$5:U2057,$E13,3) -> 0.04 | H13: =INDEX($R$5:V2057,$E13,4) -> 12 | I13: 3 | J13: 0.12 | K13: 36 | L13: =$J13/hátizsák!$H$10 -> 0.00096 | R13: 9 | S13: bunkósbot | T13: 3.5 | U13: 1 | V13: típus: ütő, sebzés: 2d4+2
B14: 1 | D14: 10. | E14: 1602 | F14: ezüstszelence | G14: =INDEX($R$5:U2058,$E14,3) -> 0.2 | H14: =INDEX($R$5:V2058,$E14,4) -> 600 | I14: 1 | J14: 0.2 | K14: 600 | L14: =$J14/hátizsák!$H$10 -> 0.0016 | R14: 10 | S14: dárda | T14: 2 | U14: 1 | V14: típus: dobó (szúró), sebzés: 1d6, +1 vadászat
B15: 1 | D15: 11. | E15: 233 | F15: furulya | G15: =INDEX($R$5:U2059,$E15,3) -> 0.18 | H15: =INDEX($R$5:V2059,$E15,4) -> 7 | I15: 1 | J15: 0.18 | K15: 7 | L15: =$J15/hátizsák!$H$10 -> 0.00144 | R15: 11 | S15: csontkés | T15: 0.3 | U15: 2 | V15: típus: szúró (balkezes), sebzés: 1d4+3
B16: 1 | D16: 12. | E16: 2 | F16: kaja | G16: =INDEX($R$5:U2060,$E16,3) -> 0.3 | H16: =INDEX($R$5:V2060,$E16,4) -> 1 | I16: 17 | J16: 5.1 | K16: 17 | L16: =$J16/hátizsák!$H$10 -> 0.0408 | R16: 12 | S16: csontszurony | T16: 3.3 | U16: 2 | V16: típus: szúró, sebzés: 3d4+2
B17: 1 | D17: 13. | E17: 163 | F17: karócsapda | G17: =INDEX($R$5:U2061,$E17,3) -> 1 | H17: =INDEX($R$5:V2061,$E17,4) -> 12 | I17: 1 | J17: 1 | K17: 12 | L17: =$J17/hátizsák!$H$10 -> 0.008 | R17: 13 | S17: kőkalapács | T17: 1 | U17: 0 | V17: típus: ütő (balkezes), sebzés: 1d6
B18: 1 | D18: 14. | E18: 40 | F18: kis vaskulcs | G18: =INDEX($R$5:U2062,$E18,3) -> 0.08 | H18: =INDEX($R$5:V2062,$E18,4) -> 3 | I18: 1 | J18: 0.08 | K18: 3 | L18: =$J18/hátizsák!$H$10 -> 0.00064 | R18: 14 | S18: sünmedve tüske | T18: 0.03 | U18: 1 | V18: -
B19: 1 | D19: 15. | E19: 92 | F19: kötél | G19: =INDEX($R$5:U2063,$E19,3) -> 1 | H19: =INDEX($R$5:V2063,$E19,4) -> 1 | I19: 1 | J19: 1 | K19: 1 | L19: =$J19/hátizsák!$H$10 -> 0.008 | R19: 15 | S19: vadász tatu bőr | T19: 1 | U19: 1 | V19: -
B20: 1 | D20: 16. | E20: 1725 | F20: krónika | G20: =INDEX($R$5:U2064,$E20,3) -> 0.25 | H20: =INDEX($R$5:V2064,$E20,4) -> 400 | I20: 15 | J20: 3.75 | K20: 6000 | L20: =$J20/hátizsák!$H$10 -> 0.03 | R20: 16 | S20: bordacsont | T20: 0.4 | U20: 2 | V20: áldozati tárgy Leahnak
B21: 1 | D21: 17. | E21: 245 | F21: márványkulcs | G21: =INDEX($R$5:U2065,$E21,3) -> 0.1 | H21: =INDEX($R$5:V2065,$E21,4) -> 16 | I21: 1 | J21: 0.1 | K21: 16 | L21: =$J21/hátizsák!$H$10 -> 0.0008 | R21: 17 | S21: szögletes kő | T21: 0.5 | U21: 0 | V21: -
B22: 1 | D22: 18. | E22: 165 | F22: mászókampó | G22: =INDEX($R$5:U2066,$E22,3) -> 0.4 | H22: =INDEX($R$5:V2066,$E22,4) -> 12 | I22: 1 | J22: 0.4 | K22: 12 | L22: =$J22/hátizsák!$H$10 -> 0.0032 | R22: 18 | S22: parittya | T22: 0.1 | U22: 0 | V22: típus: lőfegyver
B23: 1 | D23: 19. | E23: 1218 | F23: megbűvölt utazóláda | G23: =INDEX($R$5:U2067,$E23,3) -> 2 | H23: =INDEX($R$5:V2067,$E23,4) -> 60 | I23: 1 | J23: 2 | K23: 60 | L23: =$J23/hátizsák!$H$10 -> 0.016 | R23: 19 | S23: kerek kő | T23: 0.15 | U23: 0 | V23: típus: lövedék (ütő), sebzés: 1d4
B24: 1 | D24: 20. | E24: 246 | F24: nagy aranykulcs | G24: =INDEX($R$5:U2068,$E24,3) -> 0.05 | H24: =INDEX($R$5:V2068,$E24,4) -> 24 | I24: 1 | J24: 0.05 | K24: 24 | L24: =$J24/hátizsák!$H$10 -> 0.0004 | R24: 20 | S24: fúvócső | T24: 0.1 | U24: 4 | V24: típus: lőfegyver, +2 támadás
B25: 1 | D25: 21. | E25: 185 | F25: nagy bronzkulcs | G25: =INDEX($R$5:U2069,$E25,3) -> 0.12 | H25: =INDEX($R$5:V2069,$E25,4) -> 14 | I25: 2 | J25: 0.24 | K25: 28 | L25: =$J25/hátizsák!$H$10 -> 0.00192 | R25: 21 | S25: ormánygőte csont | T25: 0.2 | U25: 3 | V25: -
B26: 1 | D26: 22. | E26: 186 | F26: nagy vaskulcs | G26: =INDEX($R$5:U2070,$E26,3) -> 0.15 | H26: =INDEX($R$5:V2070,$E26,4) -> 16 | I26: 2 | J26: 0.3 | K26: 32 | L26: =$J26/hátizsák!$H$10 -> 0.0024 | R26: 22 | S26: tüske | T26: 0.03 | U26: 0 | V26: típus: lövedék (szúró), sebzés: 1d3
B27: 1 | D27: 23. | E27: 335 | F27: olló | G27: =INDEX($R$5:U2071,$E27,3) -> 0.6 | H27: =INDEX($R$5:V2071,$E27,4) -> 7 | I27: 1 | J27: 0.6 | K27: 7 | L27: =$J27/hátizsák!$H$10 -> 0.0048 | R27: 23 | S27: mérgezett tüske | T27: 0.03 | U27: 1 | V27: típus: lövedék (szúró), sebzés: 1d3+4
B28: 1 | D28: 24. | E28: 248 | F28: pszi kő | G28: =INDEX($R$5:U2072,$E28,3) -> 0.06 | H28: =INDEX($R$5:V2072,$E28,4) -> 100 | I28: 1 | J28: 0.06 | K28: 100 | L28: =$J28/hátizsák!$H$10 -> 0.00048 | R28: 24 | S28: kavadu lebeny | T28: 0.2 | U28: 2 | V28: -
B29: 1 | D29: 25. | E29: 75 | F29: rézkulcs | G29: =INDEX($R$5:U2073,$E29,3) -> 0.08 | H29: =INDEX($R$5:V2073,$E29,4) -> 6 | I29: 3 | J29: 0.24 | K29: 18 | L29: =$J29/hátizsák!$H$10 -> 0.00192 | R29: 25 | S29: kavadu iszák | T29: 0.1 | U29: 2 | V29: 10 gyenge méreg tárolására
B30: 1 | D30: 26. | E30: 1167 | F30: Rodger üstje kezdőknek | G30: =INDEX($R$5:U2074,$E30,3) -> 1 | H30: =INDEX($R$5:V2074,$E30,4) -> 40 | I30: 1 | J30: 1 | K30: 40 | L30: =$J30/hátizsák!$H$10 -> 0.008 | R30: 26 | S30: gyenge méreg | T30: 0.01 | U30: 1 | V30: áldozati tárgy Dornodonnak
B31: 1 | D31: 27. | E31: 32 | F31: szeksztáns | G31: =INDEX($R$5:U2075,$E31,3) -> 0.2 | H31: =INDEX($R$5:V2075,$E31,4) -> 20 | I31: 1 | J31: 0.2 | K31: 20 | L31: =$J31/hátizsák!$H$10 -> 0.0016 | R31: 27 | S31: víz | T31: 0.01 | U31: 0 | V31: -
B32: 1 | D32: 28. | E32: 42 | F32: távcső | G32: =INDEX($R$5:U2076,$E32,3) -> 0.2 | H32: =INDEX($R$5:V2076,$E32,4) -> 16 | I32: 1 | J32: 0.2 | K32: 16 | L32: =$J32/hátizsák!$H$10 -> 0.0016 | R32: 28 | S32: ököl | T32: - | U32: 0 | V32: típus: ütő, sebzés: 1d3
B33: 1 | D33: 29. | E33: 818 | F33: teremtés zsákja | G33: =INDEX($R$5:U2077,$E33,3) -> 3 | H33: =INDEX($R$5:V2077,$E33,4) -> 200 | I33: 1 | J33: 3 | K33: 200 | L33: =$J33/hátizsák!$H$10 -> 0.024 | R33: 29 | S33: smirglilevél | T33: 0.05 | U33: 0 | V33: -
B34: 1 | D34: 30. | E34: 242 | F34: tüskecsapda | G34: =INDEX($R$5:U2078,$E34,3) -> 0.1 | H34: =INDEX($R$5:V2078,$E34,4) -> 8 | I34: 1 | J34: 0.1 | K34: 8 | L34: =$J34/hátizsák!$H$10 -> 0.0008 | R34: 30 | S34: varányszem | T34: 0.02 | U34: 1 | V34: -
B35: 1 | D35: 31. | E35: 686 | F35: tűzfény | G35: =INDEX($R$5:U2079,$E35,3) -> 0.1 | H35: =INDEX($R$5:V2079,$E35,4) -> 200 | I35: 1 | J35: 0.1 | K35: 200 | L35: =$J35/hátizsák!$H$10 -> 0.0008 | R35: 31 | S35: smirglibokor | T35: - | U35: 0 | V35: -
B36: 1 | D36: 32. | E36: 1107 | F36: varkaudar látógömb | G36: =INDEX($R$5:U2080,$E36,3) -> 0.4 | H36: =INDEX($R$5:V2080,$E36,4) -> 100 | I36: 2 | J36: 0.8 | K36: 200 | L36: =$J36/hátizsák!$H$10 -> 0.0064 | R36: 32 | S36: szeksztáns | T36: 0.2 | U36: 20 | V36: abszolút koordináta meghatározására
B37: 0 | D37: 33. | E37: 1 | F37: deus ex machina | G37: =INDEX($R$5:U2081,$E37,3) -> 0.1 | H37: =INDEX($R$5:V2081,$E37,4) -> 25 | I37: 0 | J37: 0 | K37: 0 | L37: =$J37/hátizsák!$H$10 -> 0 | R37: 33 | S37: lapockacsont | T37: 1 | U37: 4 | V37: -
B38: 0 | D38: 34. | E38: 1 | F38: deus ex machina | G38: =INDEX($R$5:U2082,$E38,3) -> 0.1 | H38: =INDEX($R$5:V2082,$E38,4) -> 25 | I38: 0 | J38: 0 | K38: 0 | L38: =$J38/hátizsák!$H$10 -> 0 | R38: 34 | S38: ásó | T38: 3 | U38: 5 | V38: típus: ütő, sebzés: 1d2
B39: 0 | D39: 35. | E39: 1 | F39: deus ex machina | G39: =INDEX($R$5:U2083,$E39,3) -> 0.1 | H39: =INDEX($R$5:V2083,$E39,4) -> 25 | I39: 0 | J39: 0 | K39: 0 | L39: =$J39/hátizsák!$H$10 -> 0 | R39: 35 | S39: tűzbokor | T39: - | U39: 0 | V39: -
B40: 0 | D40: 36. | E40: 1 | F40: =INDEX($R$5:$U$2046,$E40,2) -> deus ex machina | G40: =INDEX($R$5:U2084,$E40,3) -> 0.1 | H40: =INDEX($R$5:V2084,$E40,4) -> 25 | I40: 0 | J40: 0 | K40: 0 | L40: =$J40/hátizsák!$H$10 -> 0 | R40: 36 | S40: fáklya | T40: 0.3 | U40: 0 | V40: áldozati tárgy Tharrnak
B41: 0 | D41: 37. | E41: 1 | F41: deus ex machina | G41: =INDEX($R$5:U2085,$E41,3) -> 0.1 | H41: =INDEX($R$5:V2085,$E41,4) -> 25 | I41: 0 | J41: 0 | K41: 0 | L41: =$J41/hátizsák!$H$10 -> 0 | R41: 37 | S41: drótszőr | T41: 0.05 | U41: 2 | V41: -
B42: 0 | D42: 38. | E42: 1 | F42: deus ex machina | G42: =INDEX($R$5:U2086,$E42,3) -> 0.1 | H42: =INDEX($R$5:V2086,$E42,4) -> 25 | I42: 0 | J42: 0 | K42: 0 | L42: =$J42/hátizsák!$H$10 -> 0 | R42: 38 | S42: gumifa | T42: - | U42: 0 | V42: -
B43: =IF(I43>0,1,IF(I43=0,0)) -> 0 | D43: 39. | E43: 1 | F43: =INDEX($R$5:$U$2046,$E43,2) -> deus ex machina | G43: =INDEX($R$5:U2087,$E43,3) -> 0.1 | H43: =INDEX($R$5:V2087,$E43,4) -> 25 | I43: 0 | J43: =G43*I43 -> 0 | K43: =H43*I43 -> 0 | L43: =$J43/hátizsák!$H$10 -> 0 | R43: 39 | S43: zárnyitó készlet | T43: 0.2 | U43: 12 | V43: -
B44: =IF(I44>0,1,IF(I44=0,0)) -> 0 | D44: 40. | E44: 1 | F44: deus ex machina | G44: =INDEX($R$5:U2088,$E44,3) -> 0.1 | H44: =INDEX($R$5:V2088,$E44,4) -> 25 | I44: 0 | J44: =G44*I44 -> 0 | K44: =H44*I44 -> 0 | L44: =$J44/hátizsák!$H$10 -> 0 | R44: 40 | S44: kis vaskulcs | T44: 0.08 | U44: 3 | V44: -
B45: =IF(I45>0,1,IF(I45=0,0)) -> 0 | D45: 41. | E45: 1 | F45: deus ex machina | G45: =INDEX($R$5:U2089,$E45,3) -> 0.1 | H45: =INDEX($R$5:V2089,$E45,4) -> 25 | I45: 0 | J45: 0 | K45: 0 | L45: =$J45/hátizsák!$H$10 -> 0 | R45: 41 | S45: grákóbőr | T45: 0.1 | U45: 3 | V45: -
B46: 0 | D46: 42. | E46: 1 | F46: deus ex machina | G46: =INDEX($R$5:U2090,$E46,3) -> 0.1 | H46: =INDEX($R$5:V2090,$E46,4) -> 25 | I46: 0 | J46: 0 | K46: 0 | L46: =$J46/hátizsák!$H$10 -> 0 | R46: 42 | S46: távcső | T46: 0.2 | U46: 16 | V46: -
B47: 0 | D47: 43. | E47: 1 | F47: deus ex machina | G47: =INDEX($R$5:U2091,$E47,3) -> 0.1 | H47: =INDEX($R$5:V2091,$E47,4) -> 25 | I47: 0 | J47: 0 | K47: 0 | L47: =$J47/hátizsák!$H$10 -> 0 | R47: 43 | S47: tükör | T47: 0.3 | U47: 0 | V47: -
B48: 0 | D48: 44. | E48: 1 | F48: deus ex machina | G48: =INDEX($R$5:U2092,$E48,3) -> 0.1 | H48: =INDEX($R$5:V2092,$E48,4) -> 25 | I48: 0 | J48: 0 | K48: 0 | L48: =$J48/hátizsák!$H$10 -> 0 | R48: 44 | S48: királygyík bőr | T48: 1 | U48: 3 | V48: -
B49: 0 | D49: 45. | E49: 1 | F49: deus ex machina | G49: =INDEX($R$5:U2093,$E49,3) -> 0.1 | H49: =INDEX($R$5:V2093,$E49,4) -> 25 | I49: 0 | J49: 0 | K49: 0 | L49: =$J49/hátizsák!$H$10 -> 0 | R49: 45 | S49: kis bőrpajzs | T49: 2 | U49: 5 | V49: +1 AC
B50: 0 | D50: 46. | E50: 1 | F50: deus ex machina | G50: =INDEX($R$5:U2094,$E50,3) -> 0.1 | H50: =INDEX($R$5:V2094,$E50,4) -> 25 | I50: 0 | J50: 0 | K50: 0 | L50: =$J50/hátizsák!$H$10 -> 0 | R50: 46 | S50: krómkaktusz | T50: - | U50: 0 | V50: -
B51: 0 | D51: 47. | E51: 1 | F51: deus ex machina | G51: =INDEX($R$5:U2095,$E51,3) -> 0.1 | H51: =INDEX($R$5:V2095,$E51,4) -> 25 | I51: 0 | J51: 0 | K51: 0 | L51: =$J51/hátizsák!$H$10 -> 0 | R51: 47 | S51: surranó kígyó bőr | T51: 0.2 | U51: 2 | V51: -
B52: 0 | D52: 48. | E52: 1 | F52: deus ex machina | G52: =INDEX($R$5:U2096,$E52,3) -> 0.1 | H52: =INDEX($R$5:V2096,$E52,4) -> 25 | I52: 0 | J52: 0 | K52: 0 | L52: =$J52/hátizsák!$H$10 -> 0 | R52: 48 | S52: antilopbőr | T52: 2 | U52: 3 | V52: -
B53: 0 | D53: 49. | E53: 1 | F53: deus ex machina | G53: =INDEX($R$5:U2097,$E53,3) -> 0.1 | H53: =INDEX($R$5:V2097,$E53,4) -> 25 | I53: 0 | J53: 0 | K53: 0 | L53: =$J53/hátizsák!$H$10 -> 0 | R53: 49 | S53: kígyóbőr kesztyű | T53: 0.3 | U53: 5 | V53: +1 AC
B54: 0 | D54: 50. | E54: 1 | F54: deus ex machina | G54: =INDEX($R$5:U2098,$E54,3) -> 0.1 | H54: =INDEX($R$5:V2098,$E54,4) -> 25 | I54: 0 | J54: 0 | K54: 0 | L54: =$J54/hátizsák!$H$10 -> 0 | R54: 50 | S54: arany | T54: 0 | U54: 0 | V54: -
B55: 0 | D55: 51. | E55: 1 | F55: deus ex machina | G55: =INDEX($R$5:U2099,$E55,3) -> 0.1 | H55: =INDEX($R$5:V2099,$E55,4) -> 25 | I55: 0 | J55: 0 | K55: 0 | L55: =$J55/hátizsák!$H$10 -> 0 | R55: 51 | S55: bőrpáncél | T55: 3 | U55: 5 | V55: +2 AC
B56: 0 | D56: 52. | E56: 1 | F56: deus ex machina | G56: =INDEX($R$5:U2100,$E56,3) -> 0.1 | H56: =INDEX($R$5:V2100,$E56,4) -> 25 | I56: 0 | J56: 0 | K56: 0 | L56: =$J56/hátizsák!$H$10 -> 0 | R56: 52 | S56: patak | T56: - | U56: 0 | V56: -
B57: 0 | D57: 53. | E57: 1 | F57: deus ex machina | G57: =INDEX($R$5:U2101,$E57,3) -> 0.1 | H57: =INDEX($R$5:V2101,$E57,4) -> 25 | I57: 0 | J57: 0 | K57: 0 | L57: =$J57/hátizsák!$H$10 -> 0 | R57: 53 | S57: tavacska | T57: - | U57: 0 | V57: -
B58: 0 | D58: 54. | E58: 1 | F58: deus ex machina | G58: =INDEX($R$5:U2102,$E58,3) -> 0.1 | H58: =INDEX($R$5:V2102,$E58,4) -> 25 | I58: 0 | J58: 0 | K58: 0 | L58: =$J58/hátizsák!$H$10 -> 0 | R58: 54 | S58: szökőkút | T58: - | U58: 0 | V58: -
B59: 0 | D59: 55. | E59: 1 | F59: deus ex machina | G59: =INDEX($R$5:U2103,$E59,3) -> 0.1 | H59: =INDEX($R$5:V2103,$E59,4) -> 25 | I59: 0 | J59: 0 | K59: 0 | L59: =$J59/hátizsák!$H$10 -> 0 | R59: 55 | S59: mákrózsa bokor | T59: - | U59: 0 | V59: -
B60: 0 | D60: 56. | E60: 1 | F60: deus ex machina | G60: =INDEX($R$5:U2104,$E60,3) -> 0.1 | H60: =INDEX($R$5:V2104,$E60,4) -> 25 | I60: 0 | J60: 0 | K60: 0 | L60: =$J60/hátizsák!$H$10 -> 0 | R60: 56 | S60: mákrózsa virág | T60: 0.2 | U60: 0 | V60: áldozati tárgy Eleniosnak
B61: 0 | D61: 57. | E61: 1 | F61: =INDEX($R$5:$U$2046,$E61,2) -> deus ex machina | G61: =INDEX($R$5:U2105,$E61,3) -> 0.1 | H61: =INDEX($R$5:V2105,$E61,4) -> 25 | I61: 0 | J61: =G61*I61 -> 0 | K61: =H61*I61 -> 0 | L61: =$J61/hátizsák!$H$10 -> 0 | R61: 57 | S61: bőrsisak | T61: 1 | U61: 5 | V61: +1 AC
B62: 0 | D62: 58. | E62: 1 | F62: deus ex machina | G62: =INDEX($R$5:U2106,$E62,3) -> 0.1 | H62: =INDEX($R$5:V2106,$E62,4) -> 25 | I62: 0 | J62: 0 | K62: 0 | L62: =$J62/hátizsák!$H$10 -> 0 | R62: 58 | S62: ködmangócserje | T62: - | U62: 0 | V62: -
B63: 0 | D63: 59. | E63: 1 | F63: deus ex machina | G63: =INDEX($R$5:U2107,$E63,3) -> 0.1 | H63: =INDEX($R$5:V2107,$E63,4) -> 25 | I63: 0 | J63: 0 | K63: 0 | L63: =$J63/hátizsák!$H$10 -> 0 | R63: 59 | S63: ködmangó | T63: - | U63: 0 | V63: -
B64: 0 | D64: 60. | E64: 1 | F64: deus ex machina | G64: =INDEX($R$5:U2108,$E64,3) -> 0.1 | H64: =INDEX($R$5:V2108,$E64,4) -> 25 | I64: 0 | J64: 0 | K64: 0 | L64: =$J64/hátizsák!$H$10 -> 0 | R64: 60 | S64: ködkapu | T64: - | U64: 0 | V64: -
B65: 0 | D65: 61. | E65: 1 | F65: deus ex machina | G65: =INDEX($R$5:U2109,$E65,3) -> 0.1 | H65: =INDEX($R$5:V2109,$E65,4) -> 25 | I65: 0 | J65: 0 | K65: 0 | L65: =$J65/hátizsák!$H$10 -> 0 | R65: 61 | S65: árnyéksár | T65: - | U65: 0 | V65: -
B66: 0 | D66: 62. | E66: 1 | F66: deus ex machina | G66: =INDEX($R$5:U2110,$E66,3) -> 0.1 | H66: =INDEX($R$5:V2110,$E66,4) -> 25 | I66: 0 | J66: 0 | K66: 0 | L66: =$J66/hátizsák!$H$10 -> 0 | R66: 62 | S66: ködcsillag | T66: - | U66: 0 | V66: -
B67: 0 | D67: 63. | E67: 1 | F67: deus ex machina | G67: =INDEX($R$5:U2111,$E67,3) -> 0.1 | H67: =INDEX($R$5:V2111,$E67,4) -> 25 | I67: 0 | J67: 0 | K67: 0 | L67: =$J67/hátizsák!$H$10 -> 0 | R67: 63 | S67: tigroszlán fog | T67: 0.05 | U67: 1 | V67: -
B68: 0 | D68: 64. | E68: 1 | F68: deus ex machina | G68: =INDEX($R$5:U2112,$E68,3) -> 0.1 | H68: =INDEX($R$5:V2112,$E68,4) -> 25 | I68: 0 | J68: 0 | K68: 0 | L68: =$J68/hátizsák!$H$10 -> 0 | R68: 64 | S68: csontszablya | T68: 1.5 | U68: 2 | V68: típus: vágó (balkezes), sebzés: 1d8, áldozati tárgy Dornodonnak
B69: 0 | D69: 65. | E69: 1 | F69: deus ex machina | G69: =INDEX($R$5:U2113,$E69,3) -> 0.1 | H69: =INDEX($R$5:V2113,$E69,4) -> 25 | I69: 0 | J69: 0 | K69: 0 | L69: =$J69/hátizsák!$H$10 -> 0 | R69: 65 | S69: szöges páncél | T69: 3.4 | U69: 24 | V69: +4 AC
B70: 0 | D70: 66. | E70: 1 | F70: deus ex machina | G70: =INDEX($R$5:U2114,$E70,3) -> 0.1 | H70: =INDEX($R$5:V2114,$E70,4) -> 25 | I70: 0 | J70: 0 | K70: 0 | L70: =$J70/hátizsák!$H$10 -> 0 | R70: 66 | S70: szöges bőrpajzs | T70: 2.2 | U70: 16 | V70: +2 AC
B71: 0 | D71: 67. | E71: 1 | F71: deus ex machina | G71: =INDEX($R$5:U2115,$E71,3) -> 0.1 | H71: =INDEX($R$5:V2115,$E71,4) -> 25 | I71: 0 | J71: 0 | K71: 0 | L71: =$J71/hátizsák!$H$10 -> 0 | R71: 67 | S71: kék orchideacserje | T71: - | U71: 0 | V71: -
B72: 0 | D72: 68. | E72: 1 | F72: deus ex machina | G72: =INDEX($R$5:U2116,$E72,3) -> 0.1 | H72: =INDEX($R$5:V2116,$E72,4) -> 25 | I72: 0 | J72: 0 | K72: 0 | L72: =$J72/hátizsák!$H$10 -> 0 | R72: 68 | S72: kék orchidea | T72: 0.08 | U72: 4 | V72: -
B73: 0 | D73: 69. | E73: 1 | F73: deus ex machina | G73: =INDEX($R$5:U2117,$E73,3) -> 0.1 | H73: =INDEX($R$5:V2117,$E73,4) -> 25 | I73: 0 | J73: 0 | K73: 0 | L73: =$J73/hátizsák!$H$10 -> 0 | R73: 69 | S73: szárnyas hernyó | T73: 0.1 | U73: 2 | V73: áldozati tárgy Sherannak
B74: 0 | D74: 70. | E74: 1 | F74: deus ex machina | G74: =INDEX($R$5:U2118,$E74,3) -> 0.1 | H74: =INDEX($R$5:V2118,$E74,4) -> 25 | I74: 0 | J74: 0 | K74: 0 | L74: =$J74/hátizsák!$H$10 -> 0 | R74: 70 | S74: rézdarab | T74: 0.3 | U74: 1 | V74: -
B75: 0 | D75: 71. | E75: 1 | F75: deus ex machina | G75: =INDEX($R$5:U2119,$E75,3) -> 0.1 | H75: =INDEX($R$5:V2119,$E75,4) -> 25 | I75: 0 | J75: =G75*I75 -> 0 | K75: =H75*I75 -> 0 | L75: =$J75/hátizsák!$H$10 -> 0 | R75: 71 | S75: rézpáncél | T75: 5.4 | U75: 24 | V75: +5 AC
B76: 0 | D76: 72. | E76: 1 | F76: deus ex machina | G76: =INDEX($R$5:U2120,$E76,3) -> 0.1 | H76: =INDEX($R$5:V2120,$E76,4) -> 25 | I76: 0 | J76: 0 | K76: 0 | L76: =$J76/hátizsák!$H$10 -> 0 | R76: 72 | S76: rézsisak | T76: 0.9 | U76: 7 | V76: +2 AC
B77: 0 | D77: 73. | E77: 1 | F77: deus ex machina | G77: =INDEX($R$5:U2121,$E77,3) -> 0.1 | H77: =INDEX($R$5:V2121,$E77,4) -> 25 | I77: 0 | J77: 0 | K77: 0 | L77: =$J77/hátizsák!$H$10 -> 0 | R77: 73 | S77: rézpajzs | T77: 1.5 | U77: 14 | V77: +3 AC
B78: 0 | D78: 74. | E78: 1 | F78: deus ex machina | G78: =INDEX($R$5:U2122,$E78,3) -> 0.1 | H78: =INDEX($R$5:V2122,$E78,4) -> 25 | I78: 0 | J78: 0 | K78: 0 | L78: =$J78/hátizsák!$H$10 -> 0 | R78: 74 | S78: csontkulcs | T78: 0.06 | U78: 4 | V78: -
B79: 0 | D79: 75. | E79: 1 | F79: deus ex machina | G79: =INDEX($R$5:U2123,$E79,3) -> 0.1 | H79: =INDEX($R$5:V2123,$E79,4) -> 25 | I79: 0 | J79: 0 | K79: 0 | L79: =$J79/hátizsák!$H$10 -> 0 | R79: 75 | S79: rézkulcs | T79: 0.08 | U79: 6 | V79: -
B80: 0 | D80: 76. | E80: 1 | F80: deus ex machina | G80: =INDEX($R$5:U2124,$E80,3) -> 0.1 | H80: =INDEX($R$5:V2124,$E80,4) -> 25 | I80: 0 | J80: 0 | K80: 0 | L80: =$J80/hátizsák!$H$10 -> 0 | R80: 76 | S80: bronzkulcs | T80: 0.1 | U80: 9 | V80: -
B81: 0 | D81: 77. | E81: 1 | F81: deus ex machina | G81: =INDEX($R$5:U2125,$E81,3) -> 0.1 | H81: =INDEX($R$5:V2125,$E81,4) -> 25 | I81: 0 | J81: 0 | K81: 0 | L81: =$J81/hátizsák!$H$10 -> 0 | R81: 77 | S81: rát-fa | T81: - | U81: 0 | V81: másznivaló, min. mászás: 0
B82: 0 | D82: 78. | E82: 1 | F82: deus ex machina | G82: =INDEX($R$5:U2126,$E82,3) -> 0.1 | H82: =INDEX($R$5:V2126,$E82,4) -> 25 | I82: 0 | J82: 0 | K82: 0 | L82: =$J82/hátizsák!$H$10 -> 0 | R82: 78 | S82: mászókarom | T82: 0.2 | U82: 10 | V82: +4 sebzés ököllel
B83: 0 | D83: 79. | E83: 1 | F83: deus ex machina | G83: =INDEX($R$5:U2127,$E83,3) -> 0.1 | H83: =INDEX($R$5:V2127,$E83,4) -> 25 | I83: 0 | J83: 0 | K83: 0 | L83: =$J83/hátizsák!$H$10 -> 0 | R83: 79 | S83: korongfa | T83: - | U83: 0 | V83: másznivaló, min. mászás: ?
B84: 0 | D84: 80. | E84: 1 | F84: deus ex machina | G84: =INDEX($R$5:U2128,$E84,3) -> 0.1 | H84: =INDEX($R$5:V2128,$E84,4) -> 25 | I84: 0 | J84: 0 | K84: 0 | L84: =$J84/hátizsák!$H$10 -> 0 | R84: 80 | S84: lapkorong | T84: 0.08 | U84: 2 | V84: -
B85: 0 | D85: 81. | E85: 1 | F85: deus ex machina | G85: =INDEX($R$5:U2129,$E85,3) -> 0.1 | H85: =INDEX($R$5:V2129,$E85,4) -> 25 | I85: 0 | J85: 0 | K85: 0 | L85: =$J85/hátizsák!$H$10 -> 0 | R85: 81 | S85: mérleg | T85: 0.24 | U85: 8 | V85: áldozati tárgy Fairlightnak
B86: 0 | D86: 82. | E86: 1 | F86: deus ex machina | G86: =INDEX($R$5:U2130,$E86,3) -> 0.1 | H86: =INDEX($R$5:V2130,$E86,4) -> 25 | I86: 0 | J86: 0 | K86: 0 | L86: =$J86/hátizsák!$H$10 -> 0 | R86: 82 | S86: zöld üveg | T86: 0.1 | U86: 3 | V86: 20 ragasztó tárolására
B87: 0 | D87: 83. | E87: 1 | F87: deus ex machina | G87: =INDEX($R$5:U2131,$E87,3) -> 0.1 | H87: =INDEX($R$5:V2131,$E87,4) -> 25 | I87: 0 | J87: 0 | K87: 0 | L87: =$J87/hátizsák!$H$10 -> 0 | R87: 83 | S87: ragasztó | T87: 0.01 | U87: 1 | V87: áldozati tárgy Eleniosnak
B88: 0 | D88: 84. | E88: 1 | F88: deus ex machina | G88: =INDEX($R$5:U2132,$E88,3) -> 0.1 | H88: =INDEX($R$5:V2132,$E88,4) -> 25 | I88: 0 | J88: 0 | K88: 0 | L88: =$J88/hátizsák!$H$10 -> 0 | R88: 84 | S88: díszes rézpajzs | T88: 3 | U88: 2 | V88: +4 AC
B89: 0 | D89: 85. | E89: 1 | F89: deus ex machina | G89: =INDEX($R$5:U2133,$E89,3) -> 0.1 | H89: =INDEX($R$5:V2133,$E89,4) -> 25 | I89: 0 | J89: =G89*I89 -> 0 | K89: =H89*I89 -> 0 | L89: =$J89/hátizsák!$H$10 -> 0 | R89: 85 | S89: óndarab | T89: 0.3 | U89: 0 | V89: -
B90: 0 | D90: 86. | E90: 1 | F90: deus ex machina | G90: =INDEX($R$5:U2134,$E90,3) -> 0.1 | H90: =INDEX($R$5:V2134,$E90,4) -> 25 | I90: 0 | J90: 0 | K90: 0 | L90: =$J90/hátizsák!$H$10 -> 0 | R90: 86 | S90: olvasztókemence | T90: - | U90: 0 | V90: -
B91: 0 | D91: 87. | E91: 1 | F91: deus ex machina | G91: =INDEX($R$5:U2135,$E91,3) -> 0.1 | H91: =INDEX($R$5:V2135,$E91,4) -> 25 | I91: 0 | J91: 0 | K91: 0 | L91: =$J91/hátizsák!$H$10 -> 0 | R91: 87 | S91: bronzhegyű lándzsa | T91: 3 | U91: 10 | V91: típus: szúró, sebzés: 3d6+3
B92: 0 | D92: 88. | E92: 1 | F92: deus ex machina | G92: =INDEX($R$5:U2136,$E92,3) -> 0.1 | H92: =INDEX($R$5:V2136,$E92,4) -> 25 | I92: 0 | J92: 0 | K92: 0 | L92: =$J92/hátizsák!$H$10 -> 0 | R92: 88 | S92: bronzsisak | T92: 1.2 | U92: 9 | V92: +3 AC
B93: 0 | D93: 89. | E93: 1 | F93: deus ex machina | G93: =INDEX($R$5:U2137,$E93,3) -> 0.1 | H93: =INDEX($R$5:V2137,$E93,4) -> 25 | I93: 0 | J93: 0 | K93: 0 | L93: =$J93/hátizsák!$H$10 -> 0 | R93: 89 | S93: bronzpajzs | T93: 2 | U93: 16 | V93: +5 AC
B94: 0 | D94: 90. | E94: 1 | F94: deus ex machina | G94: =INDEX($R$5:U2138,$E94,3) -> 0.1 | H94: =INDEX($R$5:V2138,$E94,4) -> 25 | I94: 0 | J94: 0 | K94: 0 | L94: =$J94/hátizsák!$H$10 -> 0 | R94: 90 | S94: bronzpáncél | T94: 7 | U94: 32 | V94: +7 AC
B95: 0 | D95: 91. | E95: 1 | F95: deus ex machina | G95: =INDEX($R$5:U2139,$E95,3) -> 0.1 | H95: =INDEX($R$5:V2139,$E95,4) -> 25 | I95: 0 | J95: 0 | K95: 0 | L95: =$J95/hátizsák!$H$10 -> 0 | R95: 91 | S95: manilla-fa | T95: - | U95: 0 | V95: -
B96: 0 | D96: 92. | E96: 1 | F96: deus ex machina | G96: =INDEX($R$5:U2140,$E96,3) -> 0.1 | H96: =INDEX($R$5:V2140,$E96,4) -> 25 | I96: 0 | J96: 0 | K96: 0 | L96: =$J96/hátizsák!$H$10 -> 0 | R96: 92 | S96: kötél | T96: 1 | U96: 1 | V96: -
B97: 0 | D97: 93. | E97: 1 | F97: deus ex machina | G97: =INDEX($R$5:U2141,$E97,3) -> 0.1 | H97: =INDEX($R$5:V2141,$E97,4) -> 25 | I97: 0 | J97: 0 | K97: 0 | L97: =$J97/hátizsák!$H$10 -> 0 | R97: 93 | S97: mély kút | T97: - | U97: 0 | V97: másznivaló, min. mászás: 2
B98: 0 | D98: 94. | E98: 1 | F98: deus ex machina | G98: =INDEX($R$5:U2142,$E98,3) -> 0.1 | H98: =INDEX($R$5:V2142,$E98,4) -> 25 | I98: 0 | J98: 0 | K98: 0 | L98: =$J98/hátizsák!$H$10 -> 0 | R98: 94 | S98: bronzhegyű nyíl | T98: 0.08 | U98: 5 | V98: típus: lövedék (szúró), sebzés: 2d6+4
B99: 0 | D99: 95. | E99: 1 | F99: deus ex machina | G99: =INDEX($R$5:U2143,$E99,3) -> 0.1 | H99: =INDEX($R$5:V2143,$E99,4) -> 25 | I99: 0 | J99: 0 | K99: 0 | L99: =$J99/hátizsák!$H$10 -> 0 | R99: 95 | S99: bakkura bőr | T99: 0.4 | U99: 2 | V99: -
B100: 0 | D100: 96. | E100: 1 | F100: deus ex machina | G100: =INDEX($R$5:U2144,$E100,3) -> 0.1 | H100: =INDEX($R$5:V2144,$E100,4) -> 25 | I100: 0 | J100: 0 | K100: 0 | L100: =$J100/hátizsák!$H$10 -> 0 | R100: 96 | S100: bakkura csizma | T100: 1.2 | U100: 11 | V100: +2 AC
B101: 0 | D101: 97. | E101: 1 | F101: deus ex machina | G101: =INDEX($R$5:U2145,$E101,3) -> 0.1 | H101: =INDEX($R$5:V2145,$E101,4) -> 25 | I101: 0 | J101: 0 | K101: 0 | L101: =$J101/hátizsák!$H$10 -> 0 | R101: 97 | S101: rákpáncél | T101: 0.4 | U101: 4 | V101: -
B102: 0 | D102: 98. | E102: 1 | F102: deus ex machina | G102: =INDEX($R$5:U2146,$E102,3) -> 0.1 | H102: =INDEX($R$5:V2146,$E102,4) -> 25 | I102: 0 | J102: 0 | K102: 0 | L102: =$J102/hátizsák!$H$10 -> 0 | R102: 98 | S102: rákpajzs | T102: 0.8 | U102: 10 | V102: +4 AC
B103: 0 | D103: 99. | E103: 1 | F103: deus ex machina | G103: =INDEX($R$5:U2147,$E103,3) -> 0.1 | H103: =INDEX($R$5:V2147,$E103,4) -> 25 | I103: 0 | J103: 0 | K103: 0 | L103: =$J103/hátizsák!$H$10 -> 0 | R103: 99 | S103: fekete gyöngy | T103: 0.01 | U103: 6 | V103: áldozati tárgy Leahnak
B104: 0 | D104: 100. | E104: 1 | F104: deus ex machina | G104: =INDEX($R$5:U2148,$E104,3) -> 0.1 | H104: =INDEX($R$5:V2148,$E104,4) -> 25 | I104: 0 | J104: 0 | K104: 0 | L104: =$J104/hátizsák!$H$10 -> 0 | R104: 100 | S104: aranyló ugarhéj | T104: 0.1 | U104: 4 | V104: 10 tinta tárolására, áldozati tárgy Raiának
F105: ÖSSZESEN | G105: lefoglalt tárhely: | I105: =SUM(B5:B104) -> 32 | J105: =SUM(J5:J44) -> 26.22 | K105: =SUM(K5:K44) -> 7907 | L105: =SUM(L5:L44) -> 0.20976 | R105: 101 | S105: tinta | T105: 0.01 | U105: 1 | V105: -
R106: 102 | S106: vízionár szem | T106: 0.03 | U106: 3 | V106: áldozati tárgy Eleniosnak
R107: 103 | S107: magszim bél | T107: 0.08 | U107: 5 | V107: -
R108: 104 | S108: fémrúd | T108: 2 | U108: 8 | V108: -
R109: 105 | S109: evaporőr háj | T109: 0.2 | U109: 5 | V109: -
R110: 106 | S110: fabontó | T110: 0.1 | U110: 5 | V110: -
R111: 107 | S111: rövid íj | T111: 1 | U111: 8 | V111: típus: lőfegyver, +2 vadászat
R112: 108 | S112: nyílvessző | T112: 0.1 | U112: 1 | V112: típus: lövedék (szúró), sebzés: 1d8+2
R113: 109 | S113: vapárcserje | T113: - | U113: 0 | V113: -
R114: 110 | S114: vapárág | T114: 2 | U114: 10 | V114: -
R115: 111 | S115: hosszú íj | T115: 2 | U115: 20 | V115: típus: lőfegyver, +2 támadás
R116: 112 | S116: madártoll | T116: 0.01 | U116: 1 | V116: áldozati tárgy Raiának
R117: 113 | S117: xantusz-kaktusz | T117: - | U117: 0 | V117: -
R118: 114 | S118: kaktusztüske | T118: 0.02 | U118: 0 | V118: áldozati tárgy Fairlightnak
R119: 115 | S119: móricserje | T119: - | U119: 0 | V119: -
R120: 116 | S120: móri gyümölcs | T120: 0.1 | U120: 0 | V120: áldozati tárgy Sherannak
R121: 117 | S121: ezüst nyaklánc | T121: 0.1 | U121: 10 | V121: ékszer
R122: 118 | S122: púderszikla | T122: - | U122: 0 | V122: -
R123: 119 | S123: púderkő | T123: 0.1 | U123: 0 | V123: áldozati tárgy Raiának
R124: 120 | S124: tábla | T124: - | U124: 10 | V124: maximum 70 betűnyi szöveg
R125: 121 | S125: jellempróba | T125: - | U125: 0 | V125: -
R126: 122 | S126: dözmöng szív | T126: 0.08 | U126: 3 | V126: -
R127: 123 | S127: göcsörtös bunkó | T127: 3.5 | U127: 8 | V127: típus: ütő, sebzés: 2d8+4, min. fsz.: 5
R128: 124 | S128: rókafarok | T128: 0.5 | U128: 3 | V128: áldozati tárgy Sherannak
R129: 125 | S129: mandibulapenge | T129: 0.5 | U129: 3 | V129: -
R130: 126 | S130: bronzpenge | T130: 2 | U130: 12 | V130: típus: vágó, sebzés: 2d6+2
R131: 127 | S131: mandibulakasza | T131: 3.5 | U131: 25 | V131: típus: vágó, sebzés: 3d6+3
R132: 128 | S132: sallank karom | T132: 0.15 | U132: 2 | V132: áldozati tárgy Tharrnak
R133: 129 | S133: sallank nyíl | T133: 0.25 | U133: 3 | V133: típus: lövedék (szúró), sebzés: 2d8+2
R134: 130 | S134: hebrencs állkapocs | T134: 0.4 | U134: 4 | V134: -
R135: 131 | S135: ubuk tüske | T135: 0.05 | U135: 1 | V135: típus: lövedék (szúró), sebzés: 1d8
R136: 132 | S136: hóhérbimbó | T136: - | U136: 0 | V136: -
R137: 133 | S137: csuklyavirág | T137: 0.05 | U137: 1 | V137: áldozati tárgy Leahnak
R138: 134 | S138: gyöngymangó bokor | T138: - | U138: 0 | V138: -
R139: 135 | S139: gyöngymangó | T139: 0.1 | U139: 2 | V139: -
R140: 136 | S140: rúnakő | T140: - | U140: 0 | V140: kapcsolat az istenekkel
R141: 137 | S141: mérgezett ubuktüske | T141: 0.05 | U141: 2 | V141: típus: lövedék (szúró), sebzés: 1d8+4
R142: 138 | S142: ubuk dobónyíl | T142: 0.15 | U142: 5 | V142: típus: dobó (szúró), sebzés: 1d8+6
R143: 139 | S143: koponya szimbólum | T143: 0.05 | U143: 10 | V143: csak Leah hívei hordhatják, +4 mentődobás halál és hideg ellen
R144: 140 | S144: denevér szimbólum | T144: 0.04 | U144: 10 | V144: csak Dornodon hívei hordhatják, +2 iq
R145: 141 | S145: nap szimbólum | T145: 0.05 | U145: 10 | V145: csak Raia hívei hordhatják, +4 mentődobás energia ellen
R146: 142 | S146: szem szimbólum | T146: 0.03 | U146: 12 | V146: csak Elenios hívei hordhatják, +4 mentődobás mentális támadás ellen
R147: 143 | S147: virág szimbólum | T147: 0.03 | U147: 8 | V147: csak Sheran hívei hordhatják, +2 eg.
R148: 144 | S148: két kard szimbólum | T148: 0.06 | U148: 10 | V148: csak Tharr hívei hordhatják, +2 erő
R149: 145 | S149: villám szimbólum | T149: 0.04 | U149: 10 | V149: csak Fairlight hívei hordhatják, +2 ügy.
R150: 146 | S150: oltár | T150: - | U150: 0 | V150: imádkozáshoz
R151: 147 | S151: hebrencs csapda | T151: 0.45 | U151: 15 | V151: -
R152: 148 | S152: mocsári penke | T152: 0.01 | U152: 1 | V152: -
R153: 149 | S153: grok-képződmény | T153: - | U153: 0 | V153: másznivaló, min. mászás: 3
R154: 150 | S154: szent jogar | T154: 0.08 | U154: 50 | V154: jó jelleműeket max. ép.-be gyógyít
R155: 151 | S155: szvó-ektoplazma | T155: 0.05 | U155: 10 | V155: -
R156: 152 | S156: vasérc | T156: 0.2 | U156: 2 | V156: -
R157: 153 | S157: pirkit | T157: 0.05 | U157: 2 | V157: -
R158: 154 | S158: mély szakadék | T158: - | U158: 0 | V158: másznivaló, min. mászás: 5
R159: 155 | S159: vaskohó | T159: - | U159: 0 | V159: -
R160: 156 | S160: világítótorony | T160: - | U160: 0 | V160: maximum 10 mező távolságra történő információ átadásra
R161: 157 | S161: nyu-shuriken | T161: 0.05 | U161: 12 | V161: típus: dobó (szúró), sebzés: 3d4+2, +3 támadás
R162: 158 | S162: ezüst karkötő | T162: 0.08 | U162: 14 | V162: ékszer
R163: 159 | S163: kis vaspajzs | T163: 2 | U163: 16 | V163: +6 AC, min. bányászat: 3
R164: 160 | S164: vassisak | T164: 0.6 | U164: 18 | V164: +4 AC, min. bányászat: 4
R165: 161 | S165: nagy vaspajzs | T165: 3.2 | U165: 22 | V165: +8 AC, min. bányászat: 3
R166: 162 | S166: borostyán függő | T166: 0.01 | U166: 6 | V166: ékszer
R167: 163 | S167: karócsapda | T167: 1 | U167: 12 | V167: -
R168: 164 | S168: vasvért | T168: 8 | U168: 60 | V168: +10 AC, min. bányászat: 6
R169: 165 | S169: mászókampó | T169: 0.4 | U169: 12 | V169: min. bányászat: 2
R170: 166 | S170: ugh méreg | T170: 0.01 | U170: 2 | V170: -
R171: 167 | S171: sziklafészek | T171: - | U171: 0 | V171: másznivaló, min. mászás: 6
R172: 168 | S172: sullár hólyag | T172: 0.08 | U172: 7 | V172: 20 spiritusz tárolására
R173: 169 | S173: uzbány csőr | T173: 0.15 | U173: 6 | V173: 12 ugh méreg tárolására
R174: 170 | S174: spiritusz | T174: 0.01 | U174: 1 | V174: -
R175: 171 | S175: rövid kard | T175: 1.5 | U175: 16 | V175: típus: vágó (balkezes), sebzés: 3d4+1, min. bányászat: 5
R176: 172 | S176: téfea-agy | T176: 0.3 | U176: 8 | V176: -
R177: 173 | S177: nekrofun | T177: - | U177: 0 | V177: duplázza a varázspont regenerálást
R178: 174 | S178: harci kalapács | T178: 2.2 | U178: 20 | V178: típus: ütő (balkezes), sebzés: 3d4+1, min. bányászat: 3
R179: 175 | S179: márványtorony | T179: - | U179: 0 | V179: másznivaló, min. mászás: 8
R180: 176 | S180: vashegyű nyíl | T180: 0.08 | U180: 5 | V180: típus: lövedék (szúró), sebzés: 3d6+1, min. bányászat: 2
R181: 177 | S181: szopógödör | T181: - | U181: 0 | V181: -
R182: 178 | S182: mínosz-kúp | T182: - | U182: 0 | V182: -
R183: 179 | S183: grifftojás | T183: 0.4 | U183: 10 | V183: -
R184: 180 | S184: ezüst gyűrű | T184: 0.01 | U184: 6 | V184: ékszer
R185: 181 | S185: vasalt bunkó | T185: 4.5 | U185: 35 | V185: típus: ütő, sebzés: 4d6+4, min. fsz.: 10, min. bányászat: 4
R186: 182 | S186: vashegyű lándzsa | T186: 2 | U186: 18 | V186: típus: szúró, sebzés: 4d6+1, min. fsz.: 10, +2 támadás, min. bányászat: 2
R187: 183 | S187: vaskulcs | T187: 0.08 | U187: 10 | V187: -
R188: 184 | S188: ezüst kulcs | T188: 0.04 | U188: 12 | V188: -
R189: 185 | S189: nagy bronzkulcs | T189: 0.12 | U189: 14 | V189: -
R190: 186 | S190: nagy vaskulcs | T190: 0.15 | U190: 16 | V190: -
R191: 187 | S191: mérgezett vashegyű nyíl | T191: 0.08 | U191: 8 | V191: típus: lövedék (szúró), sebzés: 3d6+7
R192: 188 | S192: mérgezett ubuk dobónyíl | T192: 0.15 | U192: 7 | V192: típus: dobó (szúró), sebzés: 1d8+10
R193: 189 | S193: vas dobónyíl | T193: 0.1 | U193: 7 | V193: típus: dobó (szúró), sebzés: 2d6+4, +2 támadás, min. bányászat: 3
R194: 190 | S194: mérgezett vas dobónyíl | T194: 0.1 | U194: 10 | V194: típus: dobó (szúró), sebzés: 2d6+10, +2 támadás
R195: 191 | S195: aranylánc | T195: 0.15 | U195: 20 | V195: ékszer
R196: 192 | S196: gyöngysor | T196: 0.25 | U196: 48 | V196: ékszer
R197: 193 | S197: aranygyűrű | T197: 0.02 | U197: 12 | V197: ékszer
R198: 194 | S198: arany karperec | T198: 0.12 | U198: 26 | V198: ékszer
R199: 195 | S199: obszidián függő | T199: 0.01 | U199: 10 | V199: ékszer
R200: 196 | S200: trófea nyaklánc | T200: 0.38 | U200: 30 | V200: ékszer
R201: 197 | S201: igazgyöngy fülbevaló | T201: 0.02 | U201: 20 | V201: ékszer
R202: 198 | S202: trikornis szarv | T202: 0.2 | U202: 12 | V202: -
... 1844 more rows

Sheet egyéb bigyók
D3: egyéb bigyók és gyanús csúnyaságok
D4: tárhely | E4: # tágy | F4: tárgy neve | G4: súly/db | H4: ap/db | I4: készlet | J4: tétel súlya | K4: tétel értéke | L4: zsákban foglalt % | R4: # | S4: Tárgy | T4: Súly | U4: EA | V4: Egyéb
B5: =IF(I5>0,1,IF(I5=0,0)) -> 0 | D5: 1. | E5: 231 | F5: =INDEX($R$5:$U$2046,$E5,2) -> acélpengőke | G5: =INDEX($R$5:U2046,$E5,3) -> 0.01 | H5: =INDEX($R$5:V2046,$E5,4) -> 3 | I5: 0 | J5: =G5*I5 -> 0 | K5: =H5*I5 -> 0 | L5: =$J5/hátizsák!$H$10 -> 0 | R5: 1 | S5: deus ex machina | T5: 0.1 | U5: 25 | V5: megmenti az életed, ha meghalnál
B6: =IF(I6>0,1,IF(I6=0,0)) -> 1 | D6: 2. | E6: 396 | F6: álompor | G6: =INDEX($R$5:U2050,$E6,3) -> 0.02 | H6: =INDEX($R$5:V2050,$E6,4) -> 1 | I6: 12 | J6: =G6*I6 -> 0.24 | K6: =H6*I6 -> 12 | L6: =$J6/hátizsák!$H$10 -> 0.00192 | R6: 2 | S6: kaja | T6: 0.3 | U6: 1 | V6: -
B7: 1 | D7: 3. | E7: 658 | F7: aurach bőr | G7: =INDEX($R$5:U2051,$E7,3) -> 0.5 | H7: =INDEX($R$5:V2051,$E7,4) -> 14 | I7: 1 | J7: 0.5 | K7: 14 | L7: =$J7/hátizsák!$H$10 -> 0.004 | R7: 3 | S7: vizestömlő | T7: 0.2 | U7: 7 | V7: 20 víz tárolására
B8: 1 | D8: 4. | E8: 657 | F8: aurach fog | G8: =INDEX($R$5:U2052,$E8,3) -> 0.01 | H8: =INDEX($R$5:V2052,$E8,4) -> 1 | I8: 8 | J8: 0.08 | K8: 8 | L8: =$J8/hátizsák!$H$10 -> 0.00064 | R8: 4 | S8: bot | T8: 3 | U8: 0 | V8: típus: ütő, sebzés: 1d6
B9: 1 | D9: 5. | E9: 312 | F9: borkonyó bibe | G9: =INDEX($R$5:U2053,$E9,3) -> 0.02 | H9: =INDEX($R$5:V2053,$E9,4) -> 5 | I9: 14 | J9: 0.28 | K9: 70 | L9: =$J9/hátizsák!$H$10 -> 0.00224 | R9: 5 | S9: bunkó | T9: 5 | U9: 0 | V9: típus: ütő, sebzés: 1d6
B10: 1 | D10: 6. | E10: 1253 | F10: csillezsályalevél | G10: =INDEX($R$5:U2054,$E10,3) -> 0.01 | H10: =INDEX($R$5:V2054,$E10,4) -> 10 | I10: 1 | J10: 0.01 | K10: 10 | L10: =$J10/hátizsák!$H$10 -> 8e-05 | R10: 6 | S10: kőkés | T10: 0.5 | U10: 0 | V10: típus: vágó (balkezes), sebzés: 1d4
B11: 1 | D11: 7. | E11: 654 | F11: darázsfarok | G11: =INDEX($R$5:U2055,$E11,3) -> 0.5 | H11: =INDEX($R$5:V2055,$E11,4) -> 14 | I11: 1 | J11: 0.5 | K11: 14 | L11: =$J11/hátizsák!$H$10 -> 0.004 | R11: 7 | S11: kőhegyű lándzsa | T11: 3.5 | U11: 1 | V11: típus: szúró, sebzés: 2d4+2
B12: 0 | D12: 8. | E12: 652 | F12: darázsszárny | G12: =INDEX($R$5:U2056,$E12,3) -> 0.01 | H12: =INDEX($R$5:V2056,$E12,4) -> 4 | I12: 0 | J12: 0 | K12: 0 | L12: =$J12/hátizsák!$H$10 -> 0 | R12: 8 | S12: szöges bunkó | T12: 5.2 | U12: 10 | V12: típus: ütő, sebzés: 3d6+2
B13: 1 | D13: 9. | E13: 37 | F13: drótszőr | G13: =INDEX($R$5:U2057,$E13,3) -> 0.05 | H13: =INDEX($R$5:V2057,$E13,4) -> 2 | I13: 14 | J13: 0.7 | K13: 28 | L13: =$J13/hátizsák!$H$10 -> 0.0056 | R13: 9 | S13: bunkósbot | T13: 3.5 | U13: 1 | V13: típus: ütő, sebzés: 2d4+2
B14: 1 | D14: 10. | E14: 665 | F14: elkarog szőr | G14: =INDEX($R$5:U2058,$E14,3) -> 0.01 | H14: =INDEX($R$5:V2058,$E14,4) -> 1 | I14: 13 | J14: 0.13 | K14: 13 | L14: =$J14/hátizsák!$H$10 -> 0.00104 | R14: 10 | S14: dárda | T14: 2 | U14: 1 | V14: típus: dobó (szúró), sebzés: 1d6, +1 vadászat
B15: 1 | D15: 11. | E15: 712 | F15: etra hályog | G15: =INDEX($R$5:U2059,$E15,3) -> 0.3 | H15: =INDEX($R$5:V2059,$E15,4) -> 25 | I15: 1 | J15: 0.3 | K15: 25 | L15: =$J15/hátizsák!$H$10 -> 0.0024 | R15: 11 | S15: csontkés | T15: 0.3 | U15: 2 | V15: típus: szúró (balkezes), sebzés: 1d4+3
B16: 0 | D16: 12. | E16: 1071 | F16: féregbél | G16: =INDEX($R$5:U2060,$E16,3) -> 1 | H16: =INDEX($R$5:V2060,$E16,4) -> 4 | I16: 0 | J16: 0 | K16: 0 | L16: =$J16/hátizsák!$H$10 -> 0 | R16: 12 | S16: csontszurony | T16: 3.3 | U16: 2 | V16: típus: szúró, sebzés: 3d4+2
B17: 1 | D17: 13. | E17: 563 | F17: főnixtoll | G17: =INDEX($R$5:U2061,$E17,3) -> 0.01 | H17: =INDEX($R$5:V2061,$E17,4) -> 0 | I17: 5 | J17: 0.05 | K17: 0 | L17: =$J17/hátizsák!$H$10 -> 0.0004 | R17: 13 | S17: kőkalapács | T17: 1 | U17: 0 | V17: típus: ütő (balkezes), sebzés: 1d6
B18: 0 | D18: 14. | E18: 267 | F18: fülemüle agyar | G18: =INDEX($R$5:U2062,$E18,3) -> 0.3 | H18: =INDEX($R$5:V2062,$E18,4) -> 5 | I18: 0 | J18: 0 | K18: 0 | L18: =$J18/hátizsák!$H$10 -> 0 | R18: 14 | S18: sünmedve tüske | T18: 0.03 | U18: 1 | V18: -
B19: 1 | D19: 15. | E19: 310 | F19: galachmit | G19: =INDEX($R$5:U2063,$E19,3) -> 0.1 | H19: =INDEX($R$5:V2063,$E19,4) -> 30 | I19: 1 | J19: 0.1 | K19: 30 | L19: =$J19/hátizsák!$H$10 -> 0.0008 | R19: 15 | S19: vadász tatu bőr | T19: 1 | U19: 1 | V19: -
B20: 1 | D20: 16. | E20: 179 | F20: grifftojás | G20: =INDEX($R$5:U2064,$E20,3) -> 0.4 | H20: =INDEX($R$5:V2064,$E20,4) -> 10 | I20: 1 | J20: 0.4 | K20: 10 | L20: =$J20/hátizsák!$H$10 -> 0.0032 | R20: 16 | S20: bordacsont | T20: 0.4 | U20: 2 | V20: áldozati tárgy Leahnak
B21: 0 | D21: 17. | E21: 268 | F21: gromak bőr | G21: =INDEX($R$5:U2065,$E21,3) -> 3 | H21: =INDEX($R$5:V2065,$E21,4) -> 8 | I21: 0 | J21: 0 | K21: 0 | L21: =$J21/hátizsák!$H$10 -> 0 | R21: 17 | S21: szögletes kő | T21: 0.5 | U21: 0 | V21: -
B22: 1 | D22: 18. | E22: 232 | F22: ilkin érc | G22: =INDEX($R$5:U2066,$E22,3) -> 0.1 | H22: =INDEX($R$5:V2066,$E22,4) -> 3 | I22: 7 | J22: 0.7 | K22: 21 | L22: =$J22/hátizsák!$H$10 -> 0.0056 | R22: 18 | S22: parittya | T22: 0.1 | U22: 0 | V22: típus: lőfegyver
B23: 1 | D23: 19. | E23: 205 | F23: kazmár gyökér | G23: =INDEX($R$5:U2067,$E23,3) -> 0.1 | H23: =INDEX($R$5:V2067,$E23,4) -> 4 | I23: 1 | J23: 0.1 | K23: 4 | L23: =$J23/hátizsák!$H$10 -> 0.0008 | R23: 19 | S23: kerek kő | T23: 0.15 | U23: 0 | V23: típus: lövedék (ütő), sebzés: 1d4
B24: 1 | D24: 20. | E24: 68 | F24: kék orchidea | G24: =INDEX($R$5:U2068,$E24,3) -> 0.08 | H24: =INDEX($R$5:V2068,$E24,4) -> 4 | I24: 1 | J24: 0.08 | K24: 4 | L24: =$J24/hátizsák!$H$10 -> 0.00064 | R24: 20 | S24: fúvócső | T24: 0.1 | U24: 4 | V24: típus: lőfegyver, +2 támadás
B25: 1 | D25: 21. | E25: 304 | F25: kőszem | G25: =INDEX($R$5:U2069,$E25,3) -> 0.04 | H25: =INDEX($R$5:V2069,$E25,4) -> 5 | I25: 1 | J25: 0.04 | K25: 5 | L25: =$J25/hátizsák!$H$10 -> 0.00032 | R25: 21 | S25: ormánygőte csont | T25: 0.2 | U25: 3 | V25: -
B26: 1 | D26: 22. | E26: 244 | F26: kvazár | G26: =INDEX($R$5:U2070,$E26,3) -> 0.2 | H26: =INDEX($R$5:V2070,$E26,4) -> 11 | I26: 5 | J26: 1 | K26: 55 | L26: =$J26/hátizsák!$H$10 -> 0.008 | R26: 22 | S26: tüske | T26: 0.03 | U26: 0 | V26: típus: lövedék (szúró), sebzés: 1d3
B27: 1 | D27: 23. | E27: 656 | F27: liumbe bimbó | G27: =INDEX($R$5:U2071,$E27,3) -> 0.1 | H27: =INDEX($R$5:V2071,$E27,4) -> 15 | I27: 1 | J27: 0.1 | K27: 15 | L27: =$J27/hátizsák!$H$10 -> 0.0008 | R27: 23 | S27: mérgezett tüske | T27: 0.03 | U27: 1 | V27: típus: lövedék (szúró), sebzés: 1d3+4
B28: 1 | D28: 24. | E28: 655 | F28: liumbe hajtás | G28: =INDEX($R$5:U2072,$E28,3) -> 0.05 | H28: =INDEX($R$5:V2072,$E28,4) -> 4 | I28: 1 | J28: 0.05 | K28: 4 | L28: =$J28/hátizsák!$H$10 -> 0.0004 | R28: 24 | S28: kavadu lebeny | T28: 0.2 | U28: 2 | V28: -
B29: 1 | D29: 25. | E29: 56 | F29: mákrózsa virág | G29: =INDEX($R$5:U2073,$E29,3) -> 0.2 | H29: =INDEX($R$5:V2073,$E29,4) -> 0 | I29: 48 | J29: 9.6 | K29: 0 | L29: =$J29/hátizsák!$H$10 -> 0.0768 | R29: 25 | S29: kavadu iszák | T29: 0.1 | U29: 2 | V29: 10 gyenge méreg tárolására
B30: 1 | D30: 26. | E30: 382 | F30: moa jádekő | G30: =INDEX($R$5:U2074,$E30,3) -> 0.03 | H30: =INDEX($R$5:V2074,$E30,4) -> 16 | I30: 1 | J30: 0.03 | K30: 16 | L30: =$J30/hátizsák!$H$10 -> 0.00024 | R30: 26 | S30: gyenge méreg | T30: 0.01 | U30: 1 | V30: áldozati tárgy Dornodonnak
B31: 1 | D31: 27. | E31: 148 | F31: mocsári penke | G31: =INDEX($R$5:U2075,$E31,3) -> 0.01 | H31: =INDEX($R$5:V2075,$E31,4) -> 1 | I31: 4 | J31: 0.04 | K31: 4 | L31: =$J31/hátizsák!$H$10 -> 0.00032 | R31: 27 | S31: víz | T31: 0.01 | U31: 0 | V31: -
B32: 1 | D32: 28. | E32: 331 | F32: mutáns csont | G32: =INDEX($R$5:U2076,$E32,3) -> 0.3 | H32: =INDEX($R$5:V2076,$E32,4) -> 4 | I32: 4 | J32: 1.2 | K32: 16 | L32: =$J32/hátizsák!$H$10 -> 0.0096 | R32: 28 | S32: ököl | T32: - | U32: 0 | V32: típus: ütő, sebzés: 1d3
B33: 1 | D33: 29. | E33: 667 | F33: nektoraf faggyú | G33: =INDEX($R$5:U2077,$E33,3) -> 0.03 | H33: =INDEX($R$5:V2077,$E33,4) -> 3 | I33: 10 | J33: 0.3 | K33: 30 | L33: =$J33/hátizsák!$H$10 -> 0.0024 | R33: 29 | S33: smirglilevél | T33: 0.05 | U33: 0 | V33: -
B34: 1 | D34: 30. | E34: 239 | F34: pulár kristály | G34: =INDEX($R$5:U2078,$E34,3) -> 0.25 | H34: =INDEX($R$5:V2078,$E34,4) -> 8 | I34: 4 | J34: 1 | K34: 32 | L34: =$J34/hátizsák!$H$10 -> 0.008 | R34: 30 | S34: varányszem | T34: 0.02 | U34: 1 | V34: -
B35: 1 | D35: 31. | E35: 264 | F35: remák szív | G35: =INDEX($R$5:U2079,$E35,3) -> 0.15 | H35: =INDEX($R$5:V2079,$E35,4) -> 12 | I35: 2 | J35: 0.3 | K35: 24 | L35: =$J35/hátizsák!$H$10 -> 0.0024 | R35: 31 | S35: smirglibokor | T35: - | U35: 0 | V35: -
B36: 0 | D36: 32. | E36: 1069 | F36: rozmárfog | G36: =INDEX($R$5:U2080,$E36,3) -> 0.6 | H36: =INDEX($R$5:V2080,$E36,4) -> 3 | I36: 0 | J36: 0 | K36: 0 | L36: =$J36/hátizsák!$H$10 -> 0 | R36: 32 | S36: szeksztáns | T36: 0.2 | U36: 20 | V36: abszolút koordináta meghatározására
B37: 1 | D37: 33. | E37: 668 | F37: sáska amulett | G37: =INDEX($R$5:U2081,$E37,3) -> 0.03 | H37: =INDEX($R$5:V2081,$E37,4) -> 15 | I37: 1 | J37: 0.03 | K37: 15 | L37: =$J37/hátizsák!$H$10 -> 0.00024 | R37: 33 | S37: lapockacsont | T37: 1 | U37: 4 | V37: -
B38: 1 | D38: 34. | E38: 69 | F38: szárnyas hernyó | G38: =INDEX($R$5:U2082,$E38,3) -> 0.1 | H38: =INDEX($R$5:V2082,$E38,4) -> 2 | I38: 12 | J38: 1.2 | K38: 24 | L38: =$J38/hátizsák!$H$10 -> 0.0096 | R38: 34 | S38: ásó | T38: 3 | U38: 5 | V38: típus: ütő, sebzés: 1d2
B39: 1 | D39: 35. | E39: 328 | F39: Thargodan esszencia | G39: =INDEX($R$5:U2083,$E39,3) -> 0.1 | H39: =INDEX($R$5:V2083,$E39,4) -> 20 | I39: 1 | J39: 0.1 | K39: 20 | L39: =$J39/hátizsák!$H$10 -> 0.0008 | R39: 35 | S39: tűzbokor | T39: - | U39: 0 | V39: -
B40: 0 | D40: 36. | E40: 198 | F40: =INDEX($R$5:$U$2046,$E40,2) -> trikornis szarv | G40: =INDEX($R$5:U2084,$E40,3) -> 0.2 | H40: =INDEX($R$5:V2084,$E40,4) -> 12 | I40: 0 | J40: 0 | K40: 0 | L40: =$J40/hátizsák!$H$10 -> 0 | R40: 36 | S40: fáklya | T40: 0.3 | U40: 0 | V40: áldozati tárgy Tharrnak
B41: 0 | D41: 37. | E41: 1072 | F41: ulkor gyöngy | G41: =INDEX($R$5:U2085,$E41,3) -> 0.3 | H41: =INDEX($R$5:V2085,$E41,4) -> 15 | I41: 0 | J41: 0 | K41: 0 | L41: =$J41/hátizsák!$H$10 -> 0 | R41: 37 | S41: drótszőr | T41: 0.05 | U41: 2 | V41: -
B42: 1 | D42: 38. | E42: 104 | F42: fémrúd | G42: =INDEX($R$5:U2086,$E42,3) -> 2 | H42: =INDEX($R$5:V2086,$E42,4) -> 8 | I42: 1 | J42: 2 | K42: 8 | L42: =$J42/hátizsák!$H$10 -> 0.016 | R42: 38 | S42: gumifa | T42: - | U42: 0 | V42: -
B43: =IF(I43>0,1,IF(I43=0,0)) -> 0 | D43: 39. | E43: 14 | F43: =INDEX($R$5:$U$2046,$E43,2) -> sünmedve tüske | G43: =INDEX($R$5:U2087,$E43,3) -> 0.03 | H43: =INDEX($R$5:V2087,$E43,4) -> 1 | I43: 0 | J43: =G43*I43 -> 0 | K43: =H43*I43 -> 0 | L43: =$J43/hátizsák!$H$10 -> 0 | R43: 39 | S43: zárnyitó készlet | T43: 0.2 | U43: 12 | V43: -
B44: =IF(I44>0,1,IF(I44=0,0)) -> 0 | D44: 40. | E44: 14 | F44: sünmedve tüske | G44: =INDEX($R$5:U2088,$E44,3) -> 0.03 | H44: =INDEX($R$5:V2088,$E44,4) -> 1 | I44: 0 | J44: =G44*I44 -> 0 | K44: =H44*I44 -> 0 | L44: =$J44/hátizsák!$H$10 -> 0 | R44: 40 | S44: kis vaskulcs | T44: 0.08 | U44: 3 | V44: -
B45: =IF(I45>0,1,IF(I45=0,0)) -> 0 | D45: 41. | E45: 14 | F45: sünmedve tüske | G45: =INDEX($R$5:U2089,$E45,3) -> 0.03 | H45: =INDEX($R$5:V2089,$E45,4) -> 1 | I45: 0 | J45: 0 | K45: 0 | L45: =$J45/hátizsák!$H$10 -> 0 | R45: 41 | S45: grákóbőr | T45: 0.1 | U45: 3 | V45: -
B46: 0 | D46: 42. | E46: 14 | F46: sünmedve tüske | G46: =INDEX($R$5:U2090,$E46,3) -> 0.03 | H46: =INDEX($R$5:V2090,$E46,4) -> 1 | I46: 0 | J46: 0 | K46: 0 | L46: =$J46/hátizsák!$H$10 -> 0 | R46: 42 | S46: távcső | T46: 0.2 | U46: 16 | V46: -
B47: 0 | D47: 43. | E47: 14 | F47: sünmedve tüske | G47: =INDEX($R$5:U2091,$E47,3) -> 0.03 | H47: =INDEX($R$5:V2091,$E47,4) -> 1 | I47: 0 | J47: 0 | K47: 0 | L47: =$J47/hátizsák!$H$10 -> 0 | R47: 43 | S47: tükör | T47: 0.3 | U47: 0 | V47: -
B48: 0 | D48: 44. | E48: 14 | F48: sünmedve tüske | G48: =INDEX($R$5:U2092,$E48,3) -> 0.03 | H48: =INDEX($R$5:V2092,$E48,4) -> 1 | I48: 0 | J48: 0 | K48: 0 | L48: =$J48/hátizsák!$H$10 -> 0 | R48: 44 | S48: királygyík bőr | T48: 1 | U48: 3 | V48: -
B49: 0 | D49: 45. | E49: 14 | F49: sünmedve tüske | G49: =INDEX($R$5:U2093,$E49,3) -> 0.03 | H49: =INDEX($R$5:V2093,$E49,4) -> 1 | I49: 0 | J49: 0 | K49: 0 | L49: =$J49/hátizsák!$H$10 -> 0 | R49: 45 | S49: kis bőrpajzs | T49: 2 | U49: 5 | V49: +1 AC
B50: 0 | D50: 46. | E50: 14 | F50: sünmedve tüske | G50: =INDEX($R$5:U2094,$E50,3) -> 0.03 | H50: =INDEX($R$5:V2094,$E50,4) -> 1 | I50: 0 | J50: 0 | K50: 0 | L50: =$J50/hátizsák!$H$10 -> 0 | R50: 46 | S50: krómkaktusz | T50: - | U50: 0 | V50: -
B51: 0 | D51: 47. | E51: 14 | F51: sünmedve tüske | G51: =INDEX($R$5:U2095,$E51,3) -> 0.03 | H51: =INDEX($R$5:V2095,$E51,4) -> 1 | I51: 0 | J51: 0 | K51: 0 | L51: =$J51/hátizsák!$H$10 -> 0 | R51: 47 | S51: surranó kígyó bőr | T51: 0.2 | U51: 2 | V51: -
B52: 0 | D52: 48. | E52: 14 | F52: sünmedve tüske | G52: =INDEX($R$5:U2096,$E52,3) -> 0.03 | H52: =INDEX($R$5:V2096,$E52,4) -> 1 | I52: 0 | J52: 0 | K52: 0 | L52: =$J52/hátizsák!$H$10 -> 0 | R52: 48 | S52: antilopbőr | T52: 2 | U52: 3 | V52: -
B53: 0 | D53: 49. | E53: 14 | F53: sünmedve tüske | G53: =INDEX($R$5:U2097,$E53,3) -> 0.03 | H53: =INDEX($R$5:V2097,$E53,4) -> 1 | I53: 0 | J53: 0 | K53: 0 | L53: =$J53/hátizsák!$H$10 -> 0 | R53: 49 | S53: kígyóbőr kesztyű | T53: 0.3 | U53: 5 | V53: +1 AC
B54: 0 | D54: 50. | E54: 14 | F54: sünmedve tüske | G54: =INDEX($R$5:U2098,$E54,3) -> 0.03 | H54: =INDEX($R$5:V2098,$E54,4) -> 1 | I54: 0 | J54: 0 | K54: 0 | L54: =$J54/hátizsák!$H$10 -> 0 | R54: 50 | S54: arany | T54: 0 | U54: 0 | V54: -
B55: 0 | D55: 51. | E55: 14 | F55: sünmedve tüske | G55: =INDEX($R$5:U2099,$E55,3) -> 0.03 | H55: =INDEX($R$5:V2099,$E55,4) -> 1 | I55: 0 | J55: 0 | K55: 0 | L55: =$J55/hátizsák!$H$10 -> 0 | R55: 51 | S55: bőrpáncél | T55: 3 | U55: 5 | V55: +2 AC
B56: 0 | D56: 52. | E56: 14 | F56: sünmedve tüske | G56: =INDEX($R$5:U2100,$E56,3) -> 0.03 | H56: =INDEX($R$5:V2100,$E56,4) -> 1 | I56: 0 | J56: 0 | K56: 0 | L56: =$J56/hátizsák!$H$10 -> 0 | R56: 52 | S56: patak | T56: - | U56: 0 | V56: -
B57: 0 | D57: 53. | E57: 14 | F57: sünmedve tüske | G57: =INDEX($R$5:U2101,$E57,3) -> 0.03 | H57: =INDEX($R$5:V2101,$E57,4) -> 1 | I57: 0 | J57: 0 | K57: 0 | L57: =$J57/hátizsák!$H$10 -> 0 | R57: 53 | S57: tavacska | T57: - | U57: 0 | V57: -
B58: 0 | D58: 54. | E58: 14 | F58: sünmedve tüske | G58: =INDEX($R$5:U2102,$E58,3) -> 0.03 | H58: =INDEX($R$5:V2102,$E58,4) -> 1 | I58: 0 | J58: 0 | K58: 0 | L58: =$J58/hátizsák!$H$10 -> 0 | R58: 54 | S58: szökőkút | T58: - | U58: 0 | V58: -
B59: 0 | D59: 55. | E59: 14 | F59: sünmedve tüske | G59: =INDEX($R$5:U2103,$E59,3) -> 0.03 | H59: =INDEX($R$5:V2103,$E59,4) -> 1 | I59: 0 | J59: 0 | K59: 0 | L59: =$J59/hátizsák!$H$10 -> 0 | R59: 55 | S59: mákrózsa bokor | T59: - | U59: 0 | V59: -
B60: 0 | D60: 56. | E60: 14 | F60: sünmedve tüske | G60: =INDEX($R$5:U2104,$E60,3) -> 0.03 | H60: =INDEX($R$5:V2104,$E60,4) -> 1 | I60: 0 | J60: 0 | K60: 0 | L60: =$J60/hátizsák!$H$10 -> 0 | R60: 56 | S60: mákrózsa virág | T60: 0.2 | U60: 0 | V60: áldozati tárgy Eleniosnak
B61: 0 | D61: 57. | E61: 14 | F61: =INDEX($R$5:$U$2046,$E61,2) -> sünmedve tüske | G61: =INDEX($R$5:U2105,$E61,3) -> 0.03 | H61: =INDEX($R$5:V2105,$E61,4) -> 1 | I61: 0 | J61: 0 | K61: 0 | L61: =$J61/hátizsák!$H$10 -> 0 | R61: 57 | S61: bőrsisak | T61: 1 | U61: 5 | V61: +1 AC
B62: 0 | D62: 58. | E62: 14 | F62: sünmedve tüske | G62: =INDEX($R$5:U2106,$E62,3) -> 0.03 | H62: =INDEX($R$5:V2106,$E62,4) -> 1 | I62: 0 | J62: 0 | K62: 0 | L62: =$J62/hátizsák!$H$10 -> 0 | R62: 58 | S62: ködmangócserje | T62: - | U62: 0 | V62: -
B63: 0 | D63: 59. | E63: 14 | F63: sünmedve tüske | G63: =INDEX($R$5:U2107,$E63,3) -> 0.03 | H63: =INDEX($R$5:V2107,$E63,4) -> 1 | I63: 0 | J63: 0 | K63: 0 | L63: =$J63/hátizsák!$H$10 -> 0 | R63: 59 | S63: ködmangó | T63: - | U63: 0 | V63: -
B64: 0 | D64: 60. | E64: 14 | F64: sünmedve tüske | G64: =INDEX($R$5:U2108,$E64,3) -> 0.03 | H64: =INDEX($R$5:V2108,$E64,4) -> 1 | I64: 0 | J64: 0 | K64: 0 | L64: =$J64/hátizsák!$H$10 -> 0 | R64: 60 | S64: ködkapu | T64: - | U64: 0 | V64: -
B65: 0 | D65: 61. | E65: 14 | F65: sünmedve tüske | G65: =INDEX($R$5:U2109,$E65,3) -> 0.03 | H65: =INDEX($R$5:V2109,$E65,4) -> 1 | I65: 0 | J65: 0 | K65: 0 | L65: =$J65/hátizsák!$H$10 -> 0 | R65: 61 | S65: árnyéksár | T65: - | U65: 0 | V65: -
B66: 0 | D66: 62. | E66: 14 | F66: sünmedve tüske | G66: =INDEX($R$5:U2110,$E66,3) -> 0.03 | H66: =INDEX($R$5:V2110,$E66,4) -> 1 | I66: 0 | J66: 0 | K66: 0 | L66: =$J66/hátizsák!$H$10 -> 0 | R66: 62 | S66: ködcsillag | T66: - | U66: 0 | V66: -
B67: 0 | D67: 63. | E67: 14 | F67: sünmedve tüske | G67: =INDEX($R$5:U2111,$E67,3) -> 0.03 | H67: =INDEX($R$5:V2111,$E67,4) -> 1 | I67: 0 | J67: 0 | K67: 0 | L67: =$J67/hátizsák!$H$10 -> 0 | R67: 63 | S67: tigroszlán fog | T67: 0.05 | U67: 1 | V67: -
B68: 0 | D68: 64. | E68: 14 | F68: sünmedve tüske | G68: =INDEX($R$5:U2112,$E68,3) -> 0.03 | H68: =INDEX($R$5:V2112,$E68,4) -> 1 | I68: 0 | J68: 0 | K68: 0 | L68: =$J68/hátizsák!$H$10 -> 0 | R68: 64 | S68: csontszablya | T68: 1.5 | U68: 2 | V68: típus: vágó (balkezes), sebzés: 1d8, áldozati tárgy Dornodonnak
B69: 0 | D69: 65. | E69: 14 | F69: sünmedve tüske | G69: =INDEX($R$5:U2113,$E69,3) -> 0.03 | H69: =INDEX($R$5:V2113,$E69,4) -> 1 | I69: 0 | J69: 0 | K69: 0 | L69: =$J69/hátizsák!$H$10 -> 0 | R69: 65 | S69: szöges páncél | T69: 3.4 | U69: 24 | V69: +4 AC
B70: 0 | D70: 66. | E70: 14 | F70: sünmedve tüske | G70: =INDEX($R$5:U2114,$E70,3) -> 0.03 | H70: =INDEX($R$5:V2114,$E70,4) -> 1 | I70: 0 | J70: 0 | K70: 0 | L70: =$J70/hátizsák!$H$10 -> 0 | R70: 66 | S70: szöges bőrpajzs | T70: 2.2 | U70: 16 | V70: +2 AC
B71: 0 | D71: 67. | E71: 14 | F71: sünmedve tüske | G71: =INDEX($R$5:U2115,$E71,3) -> 0.03 | H71: =INDEX($R$5:V2115,$E71,4) -> 1 | I71: 0 | J71: 0 | K71: 0 | L71: =$J71/hátizsák!$H$10 -> 0 | R71: 67 | S71: kék orchideacserje | T71: - | U71: 0 | V71: -
B72: 0 | D72: 68. | E72: 14 | F72: sünmedve tüske | G72: =INDEX($R$5:U2116,$E72,3) -> 0.03 | H72: =INDEX($R$5:V2116,$E72,4) -> 1 | I72: 0 | J72: 0 | K72: 0 | L72: =$J72/hátizsák!$H$10 -> 0 | R72: 68 | S72: kék orchidea | T72: 0.08 | U72: 4 | V72: -
B73: 0 | D73: 69. | E73: 14 | F73: sünmedve tüske | G73: =INDEX($R$5:U2117,$E73,3) -> 0.03 | H73: =INDEX($R$5:V2117,$E73,4) -> 1 | I73: 0 | J73: 0 | K73: 0 | L73: =$J73/hátizsák!$H$10 -> 0 | R73: 69 | S73: szárnyas hernyó | T73: 0.1 | U73: 2 | V73: áldozati tárgy Sherannak
B74: 0 | D74: 70. | E74: 14 | F74: sünmedve tüske | G74: =INDEX($R$5:U2118,$E74,3) -> 0.03 | H74: =INDEX($R$5:V2118,$E74,4) -> 1 | I74: 0 | J74: 0 | K74: 0 | L74: =$J74/hátizsák!$H$10 -> 0 | R74: 70 | S74: rézdarab | T74: 0.3 | U74: 1 | V74: -
B75: 0 | D75: 71. | E75: 14 | F75: sünmedve tüske | G75: =INDEX($R$5:U2119,$E75,3) -> 0.03 | H75: =INDEX($R$5:V2119,$E75,4) -> 1 | I75: 0 | J75: 0 | K75: 0 | L75: =$J75/hátizsák!$H$10 -> 0 | R75: 71 | S75: rézpáncél | T75: 5.4 | U75: 24 | V75: +5 AC
B76: 0 | D76: 72. | E76: 14 | F76: sünmedve tüske | G76: =INDEX($R$5:U2120,$E76,3) -> 0.03 | H76: =INDEX($R$5:V2120,$E76,4) -> 1 | I76: 0 | J76: 0 | K76: 0 | L76: =$J76/hátizsák!$H$10 -> 0 | R76: 72 | S76: rézsisak | T76: 0.9 | U76: 7 | V76: +2 AC
B77: 0 | D77: 73. | E77: 14 | F77: sünmedve tüske | G77: =INDEX($R$5:U2121,$E77,3) -> 0.03 | H77: =INDEX($R$5:V2121,$E77,4) -> 1 | I77: 0 | J77: 0 | K77: 0 | L77: =$J77/hátizsák!$H$10 -> 0 | R77: 73 | S77: rézpajzs | T77: 1.5 | U77: 14 | V77: +3 AC
B78: 0 | D78: 74. | E78: 14 | F78: sünmedve tüske | G78: =INDEX($R$5:U2122,$E78,3) -> 0.03 | H78: =INDEX($R$5:V2122,$E78,4) -> 1 | I78: 0 | J78: 0 | K78: 0 | L78: =$J78/hátizsák!$H$10 -> 0 | R78: 74 | S78: csontkulcs | T78: 0.06 | U78: 4 | V78: -
B79: 0 | D79: 75. | E79: 14 | F79: sünmedve tüske | G79: =INDEX($R$5:U2123,$E79,3) -> 0.03 | H79: =INDEX($R$5:V2123,$E79,4) -> 1 | I79: 0 | J79: 0 | K79: 0 | L79: =$J79/hátizsák!$H$10 -> 0 | R79: 75 | S79: rézkulcs | T79: 0.08 | U79: 6 | V79: -
B80: 0 | D80: 76. | E80: 14 | F80: sünmedve tüske | G80: =INDEX($R$5:U2124,$E80,3) -> 0.03 | H80: =INDEX($R$5:V2124,$E80,4) -> 1 | I80: 0 | J80: 0 | K80: 0 | L80: =$J80/hátizsák!$H$10 -> 0 | R80: 76 | S80: bronzkulcs | T80: 0.1 | U80: 9 | V80: -
B81: 0 | D81: 77. | E81: 14 | F81: sünmedve tüske | G81: =INDEX($R$5:U2125,$E81,3) -> 0.03 | H81: =INDEX($R$5:V2125,$E81,4) -> 1 | I81: 0 | J81: 0 | K81: 0 | L81: =$J81/hátizsák!$H$10 -> 0 | R81: 77 | S81: rát-fa | T81: - | U81: 0 | V81: másznivaló, min. mászás: 0
B82: 0 | D82: 78. | E82: 14 | F82: sünmedve tüske | G82: =INDEX($R$5:U2126,$E82,3) -> 0.03 | H82: =INDEX($R$5:V2126,$E82,4) -> 1 | I82: 0 | J82: 0 | K82: 0 | L82: =$J82/hátizsák!$H$10 -> 0 | R82: 78 | S82: mászókarom | T82: 0.2 | U82: 10 | V82: +4 sebzés ököllel
B83: 0 | D83: 79. | E83: 14 | F83: sünmedve tüske | G83: =INDEX($R$5:U2127,$E83,3) -> 0.03 | H83: =INDEX($R$5:V2127,$E83,4) -> 1 | I83: 0 | J83: 0 | K83: 0 | L83: =$J83/hátizsák!$H$10 -> 0 | R83: 79 | S83: korongfa | T83: - | U83: 0 | V83: másznivaló, min. mászás: ?
B84: 0 | D84: 80. | E84: 14 | F84: sünmedve tüske | G84: =INDEX($R$5:U2128,$E84,3) -> 0.03 | H84: =INDEX($R$5:V2128,$E84,4) -> 1 | I84: 0 | J84: 0 | K84: 0 | L84: =$J84/hátizsák!$H$10 -> 0 | R84: 80 | S84: lapkorong | T84: 0.08 | U84: 2 | V84: -
B85: 0 | D85: 81. | E85: 14 | F85: sünmedve tüske | G85: =INDEX($R$5:U2129,$E85,3) -> 0.03 | H85: =INDEX($R$5:V2129,$E85,4) -> 1 | I85: 0 | J85: 0 | K85: 0 | L85: =$J85/hátizsák!$H$10 -> 0 | R85: 81 | S85: mérleg | T85: 0.24 | U85: 8 | V85: áldozati tárgy Fairlightnak
B86: 0 | D86: 82. | E86: 14 | F86: sünmedve tüske | G86: =INDEX($R$5:U2130,$E86,3) -> 0.03 | H86: =INDEX($R$5:V2130,$E86,4) -> 1 | I86: 0 | J86: 0 | K86: 0 | L86: =$J86/hátizsák!$H$10 -> 0 | R86: 82 | S86: zöld üveg | T86: 0.1 | U86: 3 | V86: 20 ragasztó tárolására
B87: 0 | D87: 83. | E87: 14 | F87: sünmedve tüske | G87: =INDEX($R$5:U2131,$E87,3) -> 0.03 | H87: =INDEX($R$5:V2131,$E87,4) -> 1 | I87: 0 | J87: 0 | K87: 0 | L87: =$J87/hátizsák!$H$10 -> 0 | R87: 83 | S87: ragasztó | T87: 0.01 | U87: 1 | V87: áldozati tárgy Eleniosnak
B88: 0 | D88: 84. | E88: 14 | F88: sünmedve tüske | G88: =INDEX($R$5:U2132,$E88,3) -> 0.03 | H88: =INDEX($R$5:V2132,$E88,4) -> 1 | I88: 0 | J88: 0 | K88: 0 | L88: =$J88/hátizsák!$H$10 -> 0 | R88: 84 | S88: díszes rézpajzs | T88: 3 | U88: 2 | V88: +4 AC
B89: 0 | D89: 85. | E89: 14 | F89: sünmedve tüske | G89: =INDEX($R$5:U2133,$E89,3) -> 0.03 | H89: =INDEX($R$5:V2133,$E89,4) -> 1 | I89: 0 | J89: 0 | K89: 0 | L89: =$J89/hátizsák!$H$10 -> 0 | R89: 85 | S89: óndarab | T89: 0.3 | U89: 0 | V89: -
B90: 0 | D90: 86. | E90: 14 | F90: sünmedve tüske | G90: =INDEX($R$5:U2134,$E90,3) -> 0.03 | H90: =INDEX($R$5:V2134,$E90,4) -> 1 | I90: 0 | J90: 0 | K90: 0 | L90: =$J90/hátizsák!$H$10 -> 0 | R90: 86 | S90: olvasztókemence | T90: - | U90: 0 | V90: -
B91: 0 | D91: 87. | E91: 14 | F91: sünmedve tüske | G91: =INDEX($R$5:U2135,$E91,3) -> 0.03 | H91: =INDEX($R$5:V2135,$E91,4) -> 1 | I91: 0 | J91: 0 | K91: 0 | L91: =$J91/hátizsák!$H$10 -> 0 | R91: 87 | S91: bronzhegyű lándzsa | T91: 3 | U91: 10 | V91: típus: szúró, sebzés: 3d6+3
B92: 0 | D92: 88. | E92: 14 | F92: sünmedve tüske | G92: =INDEX($R$5:U2136,$E92,3) -> 0.03 | H92: =INDEX($R$5:V2136,$E92,4) -> 1 | I92: 0 | J92: 0 | K92: 0 | L92: =$J92/hátizsák!$H$10 -> 0 | R92: 88 | S92: bronzsisak | T92: 1.2 | U92: 9 | V92: +3 AC
B93: 0 | D93: 89. | E93: 14 | F93: sünmedve tüske | G93: =INDEX($R$5:U2137,$E93,3) -> 0.03 | H93: =INDEX($R$5:V2137,$E93,4) -> 1 | I93: 0 | J93: 0 | K93: 0 | L93: =$J93/hátizsák!$H$10 -> 0 | R93: 89 | S93: bronzpajzs | T93: 2 | U93: 16 | V93: +5 AC
B94: 0 | D94: 90. | E94: 14 | F94: sünmedve tüske | G94: =INDEX($R$5:U2138,$E94,3) -> 0.03 | H94: =INDEX($R$5:V2138,$E94,4) -> 1 | I94: 0 | J94: 0 | K94: 0 | L94: =$J94/hátizsák!$H$10 -> 0 | R94: 90 | S94: bronzpáncél | T94: 7 | U94: 32 | V94: +7 AC
B95: 0 | D95: 91. | E95: 14 | F95: sünmedve tüske | G95: =INDEX($R$5:U2139,$E95,3) -> 0.03 | H95: =INDEX($R$5:V2139,$E95,4) -> 1 | I95: 0 | J95: 0 | K95: 0 | L95: =$J95/hátizsák!$H$10 -> 0 | R95: 91 | S95: manilla-fa | T95: - | U95: 0 | V95: -
B96: 0 | D96: 92. | E96: 14 | F96: sünmedve tüske | G96: =INDEX($R$5:U2140,$E96,3) -> 0.03 | H96: =INDEX($R$5:V2140,$E96,4) -> 1 | I96: 0 | J96: 0 | K96: 0 | L96: =$J96/hátizsák!$H$10 -> 0 | R96: 92 | S96: kötél | T96: 1 | U96: 1 | V96: -
B97: 0 | D97: 93. | E97: 14 | F97: sünmedve tüske | G97: =INDEX($R$5:U2141,$E97,3) -> 0.03 | H97: =INDEX($R$5:V2141,$E97,4) -> 1 | I97: 0 | J97: 0 | K97: 0 | L97: =$J97/hátizsák!$H$10 -> 0 | R97: 93 | S97: mély kút | T97: - | U97: 0 | V97: másznivaló, min. mászás: 2
B98: 0 | D98: 94. | E98: 14 | F98: sünmedve tüske | G98: =INDEX($R$5:U2142,$E98,3) -> 0.03 | H98: =INDEX($R$5:V2142,$E98,4) -> 1 | I98: 0 | J98: 0 | K98: 0 | L98: =$J98/hátizsák!$H$10 -> 0 | R98: 94 | S98: bronzhegyű nyíl | T98: 0.08 | U98: 5 | V98: típus: lövedék (szúró), sebzés: 2d6+4
B99: 0 | D99: 95. | E99: 14 | F99: sünmedve tüske | G99: =INDEX($R$5:U2143,$E99,3) -> 0.03 | H99: =INDEX($R$5:V2143,$E99,4) -> 1 | I99: 0 | J99: 0 | K99: 0 | L99: =$J99/hátizsák!$H$10 -> 0 | R99: 95 | S99: bakkura bőr | T99: 0.4 | U99: 2 | V99: -
B100: 0 | D100: 96. | E100: 14 | F100: sünmedve tüske | G100: =INDEX($R$5:U2144,$E100,3) -> 0.03 | H100: =INDEX($R$5:V2144,$E100,4) -> 1 | I100: 0 | J100: 0 | K100: 0 | L100: =$J100/hátizsák!$H$10 -> 0 | R100: 96 | S100: bakkura csizma | T100: 1.2 | U100: 11 | V100: +2 AC
B101: 0 | D101: 97. | E101: 14 | F101: sünmedve tüske | G101: =INDEX($R$5:U2145,$E101,3) -> 0.03 | H101: =INDEX($R$5:V2145,$E101,4) -> 1 | I101: 0 | J101: 0 | K101: 0 | L101: =$J101/hátizsák!$H$10 -> 0 | R101: 97 | S101: rákpáncél | T101: 0.4 | U101: 4 | V101: -
B102: 0 | D102: 98. | E102: 14 | F102: sünmedve tüske | G102: =INDEX($R$5:U2146,$E102,3) -> 0.03 | H102: =INDEX($R$5:V2146,$E102,4) -> 1 | I102: 0 | J102: 0 | K102: 0 | L102: =$J102/hátizsák!$H$10 -> 0 | R102: 98 | S102: rákpajzs | T102: 0.8 | U102: 10 | V102: +4 AC
B103: 0 | D103: 99. | E103: 14 | F103: sünmedve tüske | G103: =INDEX($R$5:U2147,$E103,3) -> 0.03 | H103: =INDEX($R$5:V2147,$E103,4) -> 1 | I103: 0 | J103: 0 | K103: 0 | L103: =$J103/hátizsák!$H$10 -> 0 | R103: 99 | S103: fekete gyöngy | T103: 0.01 | U103: 6 | V103: áldozati tárgy Leahnak
B104: 0 | D104: 100. | E104: 14 | F104: sünmedve tüske | G104: =INDEX($R$5:U2148,$E104,3) -> 0.03 | H104: =INDEX($R$5:V2148,$E104,4) -> 1 | I104: 0 | J104: 0 | K104: 0 | L104: =$J104/hátizsák!$H$10 -> 0 | R104: 100 | S104: aranyló ugarhéj | T104: 0.1 | U104: 4 | V104: 10 tinta tárolására, áldozati tárgy Raiának
F105: ÖSSZESEN | G105: lefoglalt tárhely: | I105: =SUM(B5:B104) -> 30 | J105: =SUM(J5:J44) -> 21.16 | K105: =SUM(K5:K44) -> 531 | L105: =SUM(L5:L44) -> 0.16928 | R105: 101 | S105: tinta | T105: 0.01 | U105: 1 | V105: -
R106: 102 | S106: vízionár szem | T106: 0.03 | U106: 3 | V106: áldozati tárgy Eleniosnak
R107: 103 | S107: magszim bél | T107: 0.08 | U107: 5 | V107: -
R108: 104 | S108: fémrúd | T108: 2 | U108: 8 | V108: -
R109: 105 | S109: evaporőr háj | T109: 0.2 | U109: 5 | V109: -
R110: 106 | S110: fabontó | T110: 0.1 | U110: 5 | V110: -
R111: 107 | S111: rövid íj | T111: 1 | U111: 8 | V111: típus: lőfegyver, +2 vadászat
R112: 108 | S112: nyílvessző | T112: 0.1 | U112: 1 | V112: típus: lövedék (szúró), sebzés: 1d8+2
R113: 109 | S113: vapárcserje | T113: - | U113: 0 | V113: -
R114: 110 | S114: vapárág | T114: 2 | U114: 10 | V114: -
R115: 111 | S115: hosszú íj | T115: 2 | U115: 20 | V115: típus: lőfegyver, +2 támadás
R116: 112 | S116: madártoll | T116: 0.01 | U116: 1 | V116: áldozati tárgy Raiának
R117: 113 | S117: xantusz-kaktusz | T117: - | U117: 0 | V117: -
R118: 114 | S118: kaktusztüske | T118: 0.02 | U118: 0 | V118: áldozati tárgy Fairlightnak
R119: 115 | S119: móricserje | T119: - | U119: 0 | V119: -
R120: 116 | S120: móri gyümölcs | T120: 0.1 | U120: 0 | V120: áldozati tárgy Sherannak
R121: 117 | S121: ezüst nyaklánc | T121: 0.1 | U121: 10 | V121: ékszer
R122: 118 | S122: púderszikla | T122: - | U122: 0 | V122: -
R123: 119 | S123: púderkő | T123: 0.1 | U123: 0 | V123: áldozati tárgy Raiának
R124: 120 | S124: tábla | T124: - | U124: 10 | V124: maximum 70 betűnyi szöveg
R125: 121 | S125: jellempróba | T125: - | U125: 0 | V125: -
R126: 122 | S126: dözmöng szív | T126: 0.08 | U126: 3 | V126: -
R127: 123 | S127: göcsörtös bunkó | T127: 3.5 | U127: 8 | V127: típus: ütő, sebzés: 2d8+4, min. fsz.: 5
R128: 124 | S128: rókafarok | T128: 0.5 | U128: 3 | V128: áldozati tárgy Sherannak
R129: 125 | S129: mandibulapenge | T129: 0.5 | U129: 3 | V129: -
R130: 126 | S130: bronzpenge | T130: 2 | U130: 12 | V130: típus: vágó, sebzés: 2d6+2
R131: 127 | S131: mandibulakasza | T131: 3.5 | U131: 25 | V131: típus: vágó, sebzés: 3d6+3
R132: 128 | S132: sallank karom | T132: 0.15 | U132: 2 | V132: áldozati tárgy Tharrnak
R133: 129 | S133: sallank nyíl | T133: 0.25 | U133: 3 | V133: típus: lövedék (szúró), sebzés: 2d8+2
R134: 130 | S134: hebrencs állkapocs | T134: 0.4 | U134: 4 | V134: -
R135: 131 | S135: ubuk tüske | T135: 0.05 | U135: 1 | V135: típus: lövedék (szúró), sebzés: 1d8
R136: 132 | S136: hóhérbimbó | T136: - | U136: 0 | V136: -
R137: 133 | S137: csuklyavirág | T137: 0.05 | U137: 1 | V137: áldozati tárgy Leahnak
R138: 134 | S138: gyöngymangó bokor | T138: - | U138: 0 | V138: -
R139: 135 | S139: gyöngymangó | T139: 0.1 | U139: 2 | V139: -
R140: 136 | S140: rúnakő | T140: - | U140: 0 | V140: kapcsolat az istenekkel
R141: 137 | S141: mérgezett ubuktüske | T141: 0.05 | U141: 2 | V141: típus: lövedék (szúró), sebzés: 1d8+4
R142: 138 | S142: ubuk dobónyíl | T142: 0.15 | U142: 5 | V142: típus: dobó (szúró), sebzés: 1d8+6
R143: 139 | S143: koponya szimbólum | T143: 0.05 | U143: 10 | V143: csak Leah hívei hordhatják, +4 mentődobás halál és hideg ellen
R144: 140 | S144: denevér szimbólum | T144: 0.04 | U144: 10 | V144: csak Dornodon hívei hordhatják, +2 iq
R145: 141 | S145: nap szimbólum | T145: 0.05 | U145: 10 | V145: csak Raia hívei hordhatják, +4 mentődobás energia ellen
R146: 142 | S146: szem szimbólum | T146: 0.03 | U146: 12 | V146: csak Elenios hívei hordhatják, +4 mentődobás mentális támadás ellen
R147: 143 | S147: virág szimbólum | T147: 0.03 | U147: 8 | V147: csak Sheran hívei hordhatják, +2 eg.
R148: 144 | S148: két kard szimbólum | T148: 0.06 | U148: 10 | V148: csak Tharr hívei hordhatják, +2 erő
R149: 145 | S149: villám szimbólum | T149: 0.04 | U149: 10 | V149: csak Fairlight hívei hordhatják, +2 ügy.
R150: 146 | S150: oltár | T150: - | U150: 0 | V150: imádkozáshoz
R151: 147 | S151: hebrencs csapda | T151: 0.45 | U151: 15 | V151: -
R152: 148 | S152: mocsári penke | T152: 0.01 | U152: 1 | V152: -
R153: 149 | S153: grok-képződmény | T153: - | U153: 0 | V153: másznivaló, min. mászás: 3
R154: 150 | S154: szent jogar | T154: 0.08 | U154: 50 | V154: jó jelleműeket max. ép.-be gyógyít
R155: 151 | S155: szvó-ektoplazma | T155: 0.05 | U155: 10 | V155: -
R156: 152 | S156: vasérc | T156: 0.2 | U156: 2 | V156: -
R157: 153 | S157: pirkit | T157: 0.05 | U157: 2 | V157: -
R158: 154 | S158: mély szakadék | T158: - | U158: 0 | V158: másznivaló, min. mászás: 5
R159: 155 | S159: vaskohó | T159: - | U159: 0 | V159: -
R160: 156 | S160: világítótorony | T160: - | U160: 0 | V160: maximum 10 mező távolságra történő információ átadásra
R161: 157 | S161: nyu-shuriken | T161: 0.05 | U161: 12 | V161: típus: dobó (szúró), sebzés: 3d4+2, +3 támadás
R162: 158 | S162: ezüst karkötő | T162: 0.08 | U162: 14 | V162: ékszer
R163: 159 | S163: kis vaspajzs | T163: 2 | U163: 16 | V163: +6 AC, min. bányászat: 3
R164: 160 | S164: vassisak | T164: 0.6 | U164: 18 | V164: +4 AC, min. bányászat: 4
R165: 161 | S165: nagy vaspajzs | T165: 3.2 | U165: 22 | V165: +8 AC, min. bányászat: 3
R166: 162 | S166: borostyán függő | T166: 0.01 | U166: 6 | V166: ékszer
R167: 163 | S167: karócsapda | T167: 1 | U167: 12 | V167: -
R168: 164 | S168: vasvért | T168: 8 | U168: 60 | V168: +10 AC, min. bányászat: 6
R169: 165 | S169: mászókampó | T169: 0.4 | U169: 12 | V169: min. bányászat: 2
R170: 166 | S170: ugh méreg | T170: 0.01 | U170: 2 | V170: -
R171: 167 | S171: sziklafészek | T171: - | U171: 0 | V171: másznivaló, min. mászás: 6
R172: 168 | S172: sullár hólyag | T172: 0.08 | U172: 7 | V172: 20 spiritusz tárolására
R173: 169 | S173: uzbány csőr | T173: 0.15 | U173: 6 | V173: 12 ugh méreg tárolására
R174: 170 | S174: spiritusz | T174: 0.01 | U174: 1 | V174: -
R175: 171 | S175: rövid kard | T175: 1.5 | U175: 16 | V175: típus: vágó (balkezes), sebzés: 3d4+1, min. bányászat: 5
R176: 172 | S176: téfea-agy | T176: 0.3 | U176: 8 | V176: -
R177: 173 | S177: nekrofun | T177: - | U177: 0 | V177: duplázza a varázspont regenerálást
R178: 174 | S178: harci kalapács | T178: 2.2 | U178: 20 | V178: típus: ütő (balkezes), sebzés: 3d4+1, min. bányászat: 3
R179: 175 | S179: márványtorony | T179: - | U179: 0 | V179: másznivaló, min. mászás: 8
R180: 176 | S180: vashegyű nyíl | T180: 0.08 | U180: 5 | V180: típus: lövedék (szúró), sebzés: 3d6+1, min. bányászat: 2
R181: 177 | S181: szopógödör | T181: - | U181: 0 | V181: -
R182: 178 | S182: mínosz-kúp | T182: - | U182: 0 | V182: -
R183: 179 | S183: grifftojás | T183: 0.4 | U183: 10 | V183: -
R184: 180 | S184: ezüst gyűrű | T184: 0.01 | U184: 6 | V184: ékszer
R185: 181 | S185: vasalt bunkó | T185: 4.5 | U185: 35 | V185: típus: ütő, sebzés: 4d6+4, min. fsz.: 10, min. bányászat: 4
R186: 182 | S186: vashegyű lándzsa | T186: 2 | U186: 18 | V186: típus: szúró, sebzés: 4d6+1, min. fsz.: 10, +2 támadás, min. bányászat: 2
R187: 183 | S187: vaskulcs | T187: 0.08 | U187: 10 | V187: -
R188: 184 | S188: ezüst kulcs | T188: 0.04 | U188: 12 | V188: -
R189: 185 | S189: nagy bronzkulcs | T189: 0.12 | U189: 14 | V189: -
R190: 186 | S190: nagy vaskulcs | T190: 0.15 | U190: 16 | V190: -
R191: 187 | S191: mérgezett vashegyű nyíl | T191: 0.08 | U191: 8 | V191: típus: lövedék (szúró), sebzés: 3d6+7
R192: 188 | S192: mérgezett ubuk dobónyíl | T192: 0.15 | U192: 7 | V192: típus: dobó (szúró), sebzés: 1d8+10
R193: 189 | S193: vas dobónyíl | T193: 0.1 | U193: 7 | V193: típus: dobó (szúró), sebzés: 2d6+4, +2 támadás, min. bányászat: 3
R194: 190 | S194: mérgezett vas dobónyíl | T194: 0.1 | U194: 10 | V194: típus: dobó (szúró), sebzés: 2d6+10, +2 támadás
R195: 191 | S195: aranylánc | T195: 0.15 | U195: 20 | V195: ékszer
R196: 192 | S196: gyöngysor | T196: 0.25 | U196: 48 | V196: ékszer
R197: 193 | S197: aranygyűrű | T197: 0.02 | U197: 12 | V197: ékszer
R198: 194 | S198: arany karperec | T198: 0.12 | U198: 26 | V198: ékszer
R199: 195 | S199: obszidián függő | T199: 0.01 | U199: 10 | V199: ékszer
R200: 196 | S200: trófea nyaklánc | T200: 0.38 | U200: 30 | V200: ékszer
R201: 197 | S201: igazgyöngy fülbevaló | T201: 0.02 | U201: 20 | V201: ékszer
R202: 198 | S202: trikornis szarv | T202: 0.2 | U202: 12 | V202: -
... 1844 more rows

Sheet BANK
D3: bank
D4: tárhely | E4: # tágy | F4: tárgy neve | G4: súly/db | H4: ap/db | I4: készlet | J4: tétel súlya | K4: tétel értéke | L4: zsákban foglalt % | R4: # | S4: Tárgy | T4: Súly | U4: EA | V4: Egyéb
B5: =IF(I5>0,1,IF(I5=0,0)) -> 1 | D5: 1. | E5: 434 | F5: =INDEX($R$5:$U$2046,$E5,2) -> bányászcsákány | G5: =INDEX($R$5:U2046,$E5,3) -> 2.4 | H5: =INDEX($R$5:V2046,$E5,4) -> 10 | I5: 1 | J5: =G5*I5 -> 2.4 | K5: =H5*I5 -> 10 | L5: =$J5/hátizsák!$H$10 -> 0.0192 | R5: 1 | S5: deus ex machina | T5: 0.1 | U5: 25 | V5: megmenti az életed, ha meghalnál
B6: =IF(I6>0,1,IF(I6=0,0)) -> 1 | D6: 2. | E6: 135 | F6: gyöngymangó | G6: =INDEX($R$5:U2050,$E6,3) -> 0.1 | H6: =INDEX($R$5:V2050,$E6,4) -> 2 | I6: 16 | J6: =G6*I6 -> 1.6 | K6: =H6*I6 -> 32 | L6: =$J6/hátizsák!$H$10 -> 0.0128 | R6: 2 | S6: kaja | T6: 0.3 | U6: 1 | V6: -
B7: 1 | D7: 3. | E7: 111 | F7: hosszú íj | G7: =INDEX($R$5:U2051,$E7,3) -> 2 | H7: =INDEX($R$5:V2051,$E7,4) -> 20 | I7: 1 | J7: 2 | K7: 20 | L7: =$J7/hátizsák!$H$10 -> 0.016 | R7: 3 | S7: vizestömlő | T7: 0.2 | U7: 7 | V7: 20 víz tárolására
B8: 1 | D8: 4. | E8: 1067 | F8: jegesmedve bunda | G8: =INDEX($R$5:U2052,$E8,3) -> 2 | H8: =INDEX($R$5:V2052,$E8,4) -> 10 | I8: 4 | J8: 8 | K8: 40 | L8: =$J8/hátizsák!$H$10 -> 0.064 | R8: 4 | S8: bot | T8: 3 | U8: 0 | V8: típus: ütő, sebzés: 1d6
B9: 1 | D9: 5. | E9: 2 | F9: kaja | G9: =INDEX($R$5:U2053,$E9,3) -> 0.3 | H9: =INDEX($R$5:V2053,$E9,4) -> 1 | I9: 148 | J9: 44.4 | K9: 148 | L9: =$J9/hátizsák!$H$10 -> 0.3552 | R9: 5 | S9: bunkó | T9: 5 | U9: 0 | V9: típus: ütő, sebzés: 1d6
B10: 1 | D10: 6. | E10: 161 | F10: nagy vaspajzs | G10: =INDEX($R$5:U2054,$E10,3) -> 3.2 | H10: =INDEX($R$5:V2054,$E10,4) -> 22 | I10: 1 | J10: 3.2 | K10: 22 | L10: =$J10/hátizsák!$H$10 -> 0.0256 | R10: 6 | S10: kőkés | T10: 0.5 | U10: 0 | V10: típus: vágó (balkezes), sebzés: 1d4
B11: 1 | D11: 7. | E11: 1066 | F11: párducbőr | G11: =INDEX($R$5:U2055,$E11,3) -> 1.5 | H11: =INDEX($R$5:V2055,$E11,4) -> 10 | I11: 2 | J11: 3 | K11: 20 | L11: =$J11/hátizsák!$H$10 -> 0.024 | R11: 7 | S11: kőhegyű lándzsa | T11: 3.5 | U11: 1 | V11: típus: szúró, sebzés: 2d4+2
B12: 1 | D12: 8. | E12: 153 | F12: pirkit | G12: =INDEX($R$5:U2056,$E12,3) -> 0.05 | H12: =INDEX($R$5:V2056,$E12,4) -> 2 | I12: 56 | J12: 2.8 | K12: 112 | L12: =$J12/hátizsák!$H$10 -> 0.0224 | R12: 8 | S12: szöges bunkó | T12: 5.2 | U12: 10 | V12: típus: ütő, sebzés: 3d6+2
B13: 1 | D13: 9. | E13: 651 | F13: rinóbőr | G13: =INDEX($R$5:U2057,$E13,3) -> 2 | H13: =INDEX($R$5:V2057,$E13,4) -> 5 | I13: 3 | J13: 6 | K13: 15 | L13: =$J13/hátizsák!$H$10 -> 0.048 | R13: 9 | S13: bunkósbot | T13: 3.5 | U13: 1 | V13: típus: ütő, sebzés: 2d4+2
B14: 1 | D14: 10. | E14: 1113 | F14: varkaudar csont | G14: =INDEX($R$5:U2058,$E14,3) -> 0.7 | H14: =INDEX($R$5:V2058,$E14,4) -> 4 | I14: 42 | J14: 29.4 | K14: 168 | L14: =$J14/hátizsák!$H$10 -> 0.2352 | R14: 10 | S14: dárda | T14: 2 | U14: 1 | V14: típus: dobó (szúró), sebzés: 1d6, +1 vadászat
B15: 1 | D15: 11. | E15: 152 | F15: vasérc | G15: =INDEX($R$5:U2059,$E15,3) -> 0.2 | H15: =INDEX($R$5:V2059,$E15,4) -> 2 | I15: 45 | J15: 9 | K15: 90 | L15: =$J15/hátizsák!$H$10 -> 0.072 | R15: 11 | S15: csontkés | T15: 0.3 | U15: 2 | V15: típus: szúró (balkezes), sebzés: 1d4+3
B16: 0 | D16: 12. | E16: 14 | F16: sünmedve tüske | G16: =INDEX($R$5:U2060,$E16,3) -> 0.03 | H16: =INDEX($R$5:V2060,$E16,4) -> 1 | I16: 0 | J16: 0 | K16: 0 | L16: =$J16/hátizsák!$H$10 -> 0 | R16: 12 | S16: csontszurony | T16: 3.3 | U16: 2 | V16: típus: szúró, sebzés: 3d4+2
B17: 0 | D17: 13. | E17: 14 | F17: sünmedve tüske | G17: =INDEX($R$5:U2061,$E17,3) -> 0.03 | H17: =INDEX($R$5:V2061,$E17,4) -> 1 | I17: 0 | J17: 0 | K17: 0 | L17: =$J17/hátizsák!$H$10 -> 0 | R17: 13 | S17: kőkalapács | T17: 1 | U17: 0 | V17: típus: ütő (balkezes), sebzés: 1d6
B18: 0 | D18: 14. | E18: 14 | F18: sünmedve tüske | G18: =INDEX($R$5:U2062,$E18,3) -> 0.03 | H18: =INDEX($R$5:V2062,$E18,4) -> 1 | I18: 0 | J18: 0 | K18: 0 | L18: =$J18/hátizsák!$H$10 -> 0 | R18: 14 | S18: sünmedve tüske | T18: 0.03 | U18: 1 | V18: -
B19: 0 | D19: 15. | E19: 14 | F19: sünmedve tüske | G19: =INDEX($R$5:U2063,$E19,3) -> 0.03 | H19: =INDEX($R$5:V2063,$E19,4) -> 1 | I19: 0 | J19: 0 | K19: 0 | L19: =$J19/hátizsák!$H$10 -> 0 | R19: 15 | S19: vadász tatu bőr | T19: 1 | U19: 1 | V19: -
B20: 0 | D20: 16. | E20: 14 | F20: sünmedve tüske | G20: =INDEX($R$5:U2064,$E20,3) -> 0.03 | H20: =INDEX($R$5:V2064,$E20,4) -> 1 | I20: 0 | J20: 0 | K20: 0 | L20: =$J20/hátizsák!$H$10 -> 0 | R20: 16 | S20: bordacsont | T20: 0.4 | U20: 2 | V20: áldozati tárgy Leahnak
B21: 0 | D21: 17. | E21: 14 | F21: sünmedve tüske | G21: =INDEX($R$5:U2065,$E21,3) -> 0.03 | H21: =INDEX($R$5:V2065,$E21,4) -> 1 | I21: 0 | J21: 0 | K21: 0 | L21: =$J21/hátizsák!$H$10 -> 0 | R21: 17 | S21: szögletes kő | T21: 0.5 | U21: 0 | V21: -
B22: 0 | D22: 18. | E22: 14 | F22: sünmedve tüske | G22: =INDEX($R$5:U2066,$E22,3) -> 0.03 | H22: =INDEX($R$5:V2066,$E22,4) -> 1 | I22: 0 | J22: 0 | K22: 0 | L22: =$J22/hátizsák!$H$10 -> 0 | R22: 18 | S22: parittya | T22: 0.1 | U22: 0 | V22: típus: lőfegyver
B23: 0 | D23: 19. | E23: 14 | F23: sünmedve tüske | G23: =INDEX($R$5:U2067,$E23,3) -> 0.03 | H23: =INDEX($R$5:V2067,$E23,4) -> 1 | I23: 0 | J23: 0 | K23: 0 | L23: =$J23/hátizsák!$H$10 -> 0 | R23: 19 | S23: kerek kő | T23: 0.15 | U23: 0 | V23: típus: lövedék (ütő), sebzés: 1d4
B24: 0 | D24: 20. | E24: 14 | F24: sünmedve tüske | G24: =INDEX($R$5:U2068,$E24,3) -> 0.03 | H24: =INDEX($R$5:V2068,$E24,4) -> 1 | I24: 0 | J24: 0 | K24: 0 | L24: =$J24/hátizsák!$H$10 -> 0 | R24: 20 | S24: fúvócső | T24: 0.1 | U24: 4 | V24: típus: lőfegyver, +2 támadás
B25: 0 | D25: 21. | E25: 14 | F25: sünmedve tüske | G25: =INDEX($R$5:U2069,$E25,3) -> 0.03 | H25: =INDEX($R$5:V2069,$E25,4) -> 1 | I25: 0 | J25: 0 | K25: 0 | L25: =$J25/hátizsák!$H$10 -> 0 | R25: 21 | S25: ormánygőte csont | T25: 0.2 | U25: 3 | V25: -
B26: 0 | D26: 22. | E26: 14 | F26: sünmedve tüske | G26: =INDEX($R$5:U2070,$E26,3) -> 0.03 | H26: =INDEX($R$5:V2070,$E26,4) -> 1 | I26: 0 | J26: 0 | K26: 0 | L26: =$J26/hátizsák!$H$10 -> 0 | R26: 22 | S26: tüske | T26: 0.03 | U26: 0 | V26: típus: lövedék (szúró), sebzés: 1d3
B27: 0 | D27: 23. | E27: 14 | F27: sünmedve tüske | G27: =INDEX($R$5:U2071,$E27,3) -> 0.03 | H27: =INDEX($R$5:V2071,$E27,4) -> 1 | I27: 0 | J27: 0 | K27: 0 | L27: =$J27/hátizsák!$H$10 -> 0 | R27: 23 | S27: mérgezett tüske | T27: 0.03 | U27: 1 | V27: típus: lövedék (szúró), sebzés: 1d3+4
B28: 0 | D28: 24. | E28: 14 | F28: sünmedve tüske | G28: =INDEX($R$5:U2072,$E28,3) -> 0.03 | H28: =INDEX($R$5:V2072,$E28,4) -> 1 | I28: 0 | J28: 0 | K28: 0 | L28: =$J28/hátizsák!$H$10 -> 0 | R28: 24 | S28: kavadu lebeny | T28: 0.2 | U28: 2 | V28: -
B29: 0 | D29: 25. | E29: 14 | F29: sünmedve tüske | G29: =INDEX($R$5:U2073,$E29,3) -> 0.03 | H29: =INDEX($R$5:V2073,$E29,4) -> 1 | I29: 0 | J29: 0 | K29: 0 | L29: =$J29/hátizsák!$H$10 -> 0 | R29: 25 | S29: kavadu iszák | T29: 0.1 | U29: 2 | V29: 10 gyenge méreg tárolására
B30: 0 | D30: 26. | E30: 14 | F30: sünmedve tüske | G30: =INDEX($R$5:U2074,$E30,3) -> 0.03 | H30: =INDEX($R$5:V2074,$E30,4) -> 1 | I30: 0 | J30: 0 | K30: 0 | L30: =$J30/hátizsák!$H$10 -> 0 | R30: 26 | S30: gyenge méreg | T30: 0.01 | U30: 1 | V30: áldozati tárgy Dornodonnak
B31: 0 | D31: 27. | E31: 14 | F31: sünmedve tüske | G31: =INDEX($R$5:U2075,$E31,3) -> 0.03 | H31: =INDEX($R$5:V2075,$E31,4) -> 1 | I31: 0 | J31: 0 | K31: 0 | L31: =$J31/hátizsák!$H$10 -> 0 | R31: 27 | S31: víz | T31: 0.01 | U31: 0 | V31: -
B32: 0 | D32: 28. | E32: 14 | F32: sünmedve tüske | G32: =INDEX($R$5:U2076,$E32,3) -> 0.03 | H32: =INDEX($R$5:V2076,$E32,4) -> 1 | I32: 0 | J32: 0 | K32: 0 | L32: =$J32/hátizsák!$H$10 -> 0 | R32: 28 | S32: ököl | T32: - | U32: 0 | V32: típus: ütő, sebzés: 1d3
B33: 0 | D33: 29. | E33: 14 | F33: sünmedve tüske | G33: =INDEX($R$5:U2077,$E33,3) -> 0.03 | H33: =INDEX($R$5:V2077,$E33,4) -> 1 | I33: 0 | J33: 0 | K33: 0 | L33: =$J33/hátizsák!$H$10 -> 0 | R33: 29 | S33: smirglilevél | T33: 0.05 | U33: 0 | V33: -
B34: 0 | D34: 30. | E34: 14 | F34: sünmedve tüske | G34: =INDEX($R$5:U2078,$E34,3) -> 0.03 | H34: =INDEX($R$5:V2078,$E34,4) -> 1 | I34: 0 | J34: 0 | K34: 0 | L34: =$J34/hátizsák!$H$10 -> 0 | R34: 30 | S34: varányszem | T34: 0.02 | U34: 1 | V34: -
B35: 0 | D35: 31. | E35: 14 | F35: sünmedve tüske | G35: =INDEX($R$5:U2079,$E35,3) -> 0.03 | H35: =INDEX($R$5:V2079,$E35,4) -> 1 | I35: 0 | J35: 0 | K35: 0 | L35: =$J35/hátizsák!$H$10 -> 0 | R35: 31 | S35: smirglibokor | T35: - | U35: 0 | V35: -
B36: 0 | D36: 32. | E36: 14 | F36: sünmedve tüske | G36: =INDEX($R$5:U2080,$E36,3) -> 0.03 | H36: =INDEX($R$5:V2080,$E36,4) -> 1 | I36: 0 | J36: 0 | K36: 0 | L36: =$J36/hátizsák!$H$10 -> 0 | R36: 32 | S36: szeksztáns | T36: 0.2 | U36: 20 | V36: abszolút koordináta meghatározására
B37: 0 | D37: 33. | E37: 14 | F37: sünmedve tüske | G37: =INDEX($R$5:U2081,$E37,3) -> 0.03 | H37: =INDEX($R$5:V2081,$E37,4) -> 1 | I37: 0 | J37: 0 | K37: 0 | L37: =$J37/hátizsák!$H$10 -> 0 | R37: 33 | S37: lapockacsont | T37: 1 | U37: 4 | V37: -
B38: 0 | D38: 34. | E38: 14 | F38: sünmedve tüske | G38: =INDEX($R$5:U2082,$E38,3) -> 0.03 | H38: =INDEX($R$5:V2082,$E38,4) -> 1 | I38: 0 | J38: 0 | K38: 0 | L38: =$J38/hátizsák!$H$10 -> 0 | R38: 34 | S38: ásó | T38: 3 | U38: 5 | V38: típus: ütő, sebzés: 1d2
B39: 0 | D39: 35. | E39: 14 | F39: sünmedve tüske | G39: =INDEX($R$5:U2083,$E39,3) -> 0.03 | H39: =INDEX($R$5:V2083,$E39,4) -> 1 | I39: 0 | J39: 0 | K39: 0 | L39: =$J39/hátizsák!$H$10 -> 0 | R39: 35 | S39: tűzbokor | T39: - | U39: 0 | V39: -
B40: 0 | D40: 36. | E40: 14 | F40: =INDEX($R$5:$U$2046,$E40,2) -> sünmedve tüske | G40: =INDEX($R$5:U2084,$E40,3) -> 0.03 | H40: =INDEX($R$5:V2084,$E40,4) -> 1 | I40: 0 | J40: 0 | K40: 0 | L40: =$J40/hátizsák!$H$10 -> 0 | R40: 36 | S40: fáklya | T40: 0.3 | U40: 0 | V40: áldozati tárgy Tharrnak
B41: 0 | D41: 37. | E41: 14 | F41: sünmedve tüske | G41: =INDEX($R$5:U2085,$E41,3) -> 0.03 | H41: =INDEX($R$5:V2085,$E41,4) -> 1 | I41: 0 | J41: 0 | K41: 0 | L41: =$J41/hátizsák!$H$10 -> 0 | R41: 37 | S41: drótszőr | T41: 0.05 | U41: 2 | V41: -
B42: 0 | D42: 38. | E42: 14 | F42: sünmedve tüske | G42: =INDEX($R$5:U2086,$E42,3) -> 0.03 | H42: =INDEX($R$5:V2086,$E42,4) -> 1 | I42: 0 | J42: 0 | K42: 0 | L42: =$J42/hátizsák!$H$10 -> 0 | R42: 38 | S42: gumifa | T42: - | U42: 0 | V42: -
B43: =IF(I43>0,1,IF(I43=0,0)) -> 0 | D43: 39. | E43: 14 | F43: =INDEX($R$5:$U$2046,$E43,2) -> sünmedve tüske | G43: =INDEX($R$5:U2087,$E43,3) -> 0.03 | H43: =INDEX($R$5:V2087,$E43,4) -> 1 | I43: 0 | J43: =G43*I43 -> 0 | K43: =H43*I43 -> 0 | L43: =$J43/hátizsák!$H$10 -> 0 | R43: 39 | S43: zárnyitó készlet | T43: 0.2 | U43: 12 | V43: -
B44: =IF(I44>0,1,IF(I44=0,0)) -> 0 | D44: 40. | E44: 14 | F44: sünmedve tüske | G44: =INDEX($R$5:U2088,$E44,3) -> 0.03 | H44: =INDEX($R$5:V2088,$E44,4) -> 1 | I44: 0 | J44: =G44*I44 -> 0 | K44: =H44*I44 -> 0 | L44: =$J44/hátizsák!$H$10 -> 0 | R44: 40 | S44: kis vaskulcs | T44: 0.08 | U44: 3 | V44: -
B45: =IF(I45>0,1,IF(I45=0,0)) -> 0 | D45: 41. | E45: 14 | F45: sünmedve tüske | G45: =INDEX($R$5:U2089,$E45,3) -> 0.03 | H45: =INDEX($R$5:V2089,$E45,4) -> 1 | I45: 0 | J45: 0 | K45: 0 | L45: =$J45/hátizsák!$H$10 -> 0 | R45: 41 | S45: grákóbőr | T45: 0.1 | U45: 3 | V45: -
B46: 0 | D46: 42. | E46: 14 | F46: sünmedve tüske | G46: =INDEX($R$5:U2090,$E46,3) -> 0.03 | H46: =INDEX($R$5:V2090,$E46,4) -> 1 | I46: 0 | J46: 0 | K46: 0 | L46: =$J46/hátizsák!$H$10 -> 0 | R46: 42 | S46: távcső | T46: 0.2 | U46: 16 | V46: -
B47: 0 | D47: 43. | E47: 14 | F47: sünmedve tüske | G47: =INDEX($R$5:U2091,$E47,3) -> 0.03 | H47: =INDEX($R$5:V2091,$E47,4) -> 1 | I47: 0 | J47: 0 | K47: 0 | L47: =$J47/hátizsák!$H$10 -> 0 | R47: 43 | S47: tükör | T47: 0.3 | U47: 0 | V47: -
B48: 0 | D48: 44. | E48: 14 | F48: sünmedve tüske | G48: =INDEX($R$5:U2092,$E48,3) -> 0.03 | H48: =INDEX($R$5:V2092,$E48,4) -> 1 | I48: 0 | J48: 0 | K48: 0 | L48: =$J48/hátizsák!$H$10 -> 0 | R48: 44 | S48: királygyík bőr | T48: 1 | U48: 3 | V48: -
B49: 0 | D49: 45. | E49: 14 | F49: sünmedve tüske | G49: =INDEX($R$5:U2093,$E49,3) -> 0.03 | H49: =INDEX($R$5:V2093,$E49,4) -> 1 | I49: 0 | J49: 0 | K49: 0 | L49: =$J49/hátizsák!$H$10 -> 0 | R49: 45 | S49: kis bőrpajzs | T49: 2 | U49: 5 | V49: +1 AC
B50: 0 | D50: 46. | E50: 14 | F50: sünmedve tüske | G50: =INDEX($R$5:U2094,$E50,3) -> 0.03 | H50: =INDEX($R$5:V2094,$E50,4) -> 1 | I50: 0 | J50: 0 | K50: 0 | L50: =$J50/hátizsák!$H$10 -> 0 | R50: 46 | S50: krómkaktusz | T50: - | U50: 0 | V50: -
B51: 0 | D51: 47. | E51: 14 | F51: sünmedve tüske | G51: =INDEX($R$5:U2095,$E51,3) -> 0.03 | H51: =INDEX($R$5:V2095,$E51,4) -> 1 | I51: 0 | J51: 0 | K51: 0 | L51: =$J51/hátizsák!$H$10 -> 0 | R51: 47 | S51: surranó kígyó bőr | T51: 0.2 | U51: 2 | V51: -
B52: 0 | D52: 48. | E52: 14 | F52: sünmedve tüske | G52: =INDEX($R$5:U2096,$E52,3) -> 0.03 | H52: =INDEX($R$5:V2096,$E52,4) -> 1 | I52: 0 | J52: 0 | K52: 0 | L52: =$J52/hátizsák!$H$10 -> 0 | R52: 48 | S52: antilopbőr | T52: 2 | U52: 3 | V52: -
B53: 0 | D53: 49. | E53: 14 | F53: sünmedve tüske | G53: =INDEX($R$5:U2097,$E53,3) -> 0.03 | H53: =INDEX($R$5:V2097,$E53,4) -> 1 | I53: 0 | J53: 0 | K53: 0 | L53: =$J53/hátizsák!$H$10 -> 0 | R53: 49 | S53: kígyóbőr kesztyű | T53: 0.3 | U53: 5 | V53: +1 AC
B54: 0 | D54: 50. | E54: 14 | F54: sünmedve tüske | G54: =INDEX($R$5:U2098,$E54,3) -> 0.03 | H54: =INDEX($R$5:V2098,$E54,4) -> 1 | I54: 0 | J54: 0 | K54: 0 | L54: =$J54/hátizsák!$H$10 -> 0 | R54: 50 | S54: arany | T54: 0 | U54: 0 | V54: -
B55: 0 | D55: 51. | E55: 14 | F55: sünmedve tüske | G55: =INDEX($R$5:U2099,$E55,3) -> 0.03 | H55: =INDEX($R$5:V2099,$E55,4) -> 1 | I55: 0 | J55: 0 | K55: 0 | L55: =$J55/hátizsák!$H$10 -> 0 | R55: 51 | S55: bőrpáncél | T55: 3 | U55: 5 | V55: +2 AC
B56: 0 | D56: 52. | E56: 14 | F56: sünmedve tüske | G56: =INDEX($R$5:U2100,$E56,3) -> 0.03 | H56: =INDEX($R$5:V2100,$E56,4) -> 1 | I56: 0 | J56: 0 | K56: 0 | L56: =$J56/hátizsák!$H$10 -> 0 | R56: 52 | S56: patak | T56: - | U56: 0 | V56: -
B57: 0 | D57: 53. | E57: 14 | F57: sünmedve tüske | G57: =INDEX($R$5:U2101,$E57,3) -> 0.03 | H57: =INDEX($R$5:V2101,$E57,4) -> 1 | I57: 0 | J57: 0 | K57: 0 | L57: =$J57/hátizsák!$H$10 -> 0 | R57: 53 | S57: tavacska | T57: - | U57: 0 | V57: -
B58: 0 | D58: 54. | E58: 14 | F58: sünmedve tüske | G58: =INDEX($R$5:U2102,$E58,3) -> 0.03 | H58: =INDEX($R$5:V2102,$E58,4) -> 1 | I58: 0 | J58: 0 | K58: 0 | L58: =$J58/hátizsák!$H$10 -> 0 | R58: 54 | S58: szökőkút | T58: - | U58: 0 | V58: -
B59: 0 | D59: 55. | E59: 14 | F59: sünmedve tüske | G59: =INDEX($R$5:U2103,$E59,3) -> 0.03 | H59: =INDEX($R$5:V2103,$E59,4) -> 1 | I59: 0 | J59: 0 | K59: 0 | L59: =$J59/hátizsák!$H$10 -> 0 | R59: 55 | S59: mákrózsa bokor | T59: - | U59: 0 | V59: -
B60: 0 | D60: 56. | E60: 14 | F60: sünmedve tüske | G60: =INDEX($R$5:U2104,$E60,3) -> 0.03 | H60: =INDEX($R$5:V2104,$E60,4) -> 1 | I60: 0 | J60: 0 | K60: 0 | L60: =$J60/hátizsák!$H$10 -> 0 | R60: 56 | S60: mákrózsa virág | T60: 0.2 | U60: 0 | V60: áldozati tárgy Eleniosnak
B61: 0 | D61: 57. | E61: 14 | F61: =INDEX($R$5:$U$2046,$E61,2) -> sünmedve tüske | G61: =INDEX($R$5:U2105,$E61,3) -> 0.03 | H61: =INDEX($R$5:V2105,$E61,4) -> 1 | I61: 0 | J61: 0 | K61: 0 | L61: =$J61/hátizsák!$H$10 -> 0 | R61: 57 | S61: bőrsisak | T61: 1 | U61: 5 | V61: +1 AC
B62: 0 | D62: 58. | E62: 14 | F62: sünmedve tüske | G62: =INDEX($R$5:U2106,$E62,3) -> 0.03 | H62: =INDEX($R$5:V2106,$E62,4) -> 1 | I62: 0 | J62: 0 | K62: 0 | L62: =$J62/hátizsák!$H$10 -> 0 | R62: 58 | S62: ködmangócserje | T62: - | U62: 0 | V62: -
B63: 0 | D63: 59. | E63: 14 | F63: sünmedve tüske | G63: =INDEX($R$5:U2107,$E63,3) -> 0.03 | H63: =INDEX($R$5:V2107,$E63,4) -> 1 | I63: 0 | J63: 0 | K63: 0 | L63: =$J63/hátizsák!$H$10 -> 0 | R63: 59 | S63: ködmangó | T63: - | U63: 0 | V63: -
B64: 0 | D64: 60. | E64: 14 | F64: sünmedve tüske | G64: =INDEX($R$5:U2108,$E64,3) -> 0.03 | H64: =INDEX($R$5:V2108,$E64,4) -> 1 | I64: 0 | J64: 0 | K64: 0 | L64: =$J64/hátizsák!$H$10 -> 0 | R64: 60 | S64: ködkapu | T64: - | U64: 0 | V64: -
B65: 0 | D65: 61. | E65: 14 | F65: sünmedve tüske | G65: =INDEX($R$5:U2109,$E65,3) -> 0.03 | H65: =INDEX($R$5:V2109,$E65,4) -> 1 | I65: 0 | J65: 0 | K65: 0 | L65: =$J65/hátizsák!$H$10 -> 0 | R65: 61 | S65: árnyéksár | T65: - | U65: 0 | V65: -
B66: 0 | D66: 62. | E66: 14 | F66: sünmedve tüske | G66: =INDEX($R$5:U2110,$E66,3) -> 0.03 | H66: =INDEX($R$5:V2110,$E66,4) -> 1 | I66: 0 | J66: 0 | K66: 0 | L66: =$J66/hátizsák!$H$10 -> 0 | R66: 62 | S66: ködcsillag | T66: - | U66: 0 | V66: -
B67: 0 | D67: 63. | E67: 14 | F67: sünmedve tüske | G67: =INDEX($R$5:U2111,$E67,3) -> 0.03 | H67: =INDEX($R$5:V2111,$E67,4) -> 1 | I67: 0 | J67: 0 | K67: 0 | L67: =$J67/hátizsák!$H$10 -> 0 | R67: 63 | S67: tigroszlán fog | T67: 0.05 | U67: 1 | V67: -
B68: 0 | D68: 64. | E68: 14 | F68: sünmedve tüske | G68: =INDEX($R$5:U2112,$E68,3) -> 0.03 | H68: =INDEX($R$5:V2112,$E68,4) -> 1 | I68: 0 | J68: 0 | K68: 0 | L68: =$J68/hátizsák!$H$10 -> 0 | R68: 64 | S68: csontszablya | T68: 1.5 | U68: 2 | V68: típus: vágó (balkezes), sebzés: 1d8, áldozati tárgy Dornodonnak
B69: 0 | D69: 65. | E69: 14 | F69: sünmedve tüske | G69: =INDEX($R$5:U2113,$E69,3) -> 0.03 | H69: =INDEX($R$5:V2113,$E69,4) -> 1 | I69: 0 | J69: 0 | K69: 0 | L69: =$J69/hátizsák!$H$10 -> 0 | R69: 65 | S69: szöges páncél | T69: 3.4 | U69: 24 | V69: +4 AC
B70: 0 | D70: 66. | E70: 14 | F70: sünmedve tüske | G70: =INDEX($R$5:U2114,$E70,3) -> 0.03 | H70: =INDEX($R$5:V2114,$E70,4) -> 1 | I70: 0 | J70: 0 | K70: 0 | L70: =$J70/hátizsák!$H$10 -> 0 | R70: 66 | S70: szöges bőrpajzs | T70: 2.2 | U70: 16 | V70: +2 AC
B71: 0 | D71: 67. | E71: 14 | F71: sünmedve tüske | G71: =INDEX($R$5:U2115,$E71,3) -> 0.03 | H71: =INDEX($R$5:V2115,$E71,4) -> 1 | I71: 0 | J71: 0 | K71: 0 | L71: =$J71/hátizsák!$H$10 -> 0 | R71: 67 | S71: kék orchideacserje | T71: - | U71: 0 | V71: -
B72: 0 | D72: 68. | E72: 14 | F72: sünmedve tüske | G72: =INDEX($R$5:U2116,$E72,3) -> 0.03 | H72: =INDEX($R$5:V2116,$E72,4) -> 1 | I72: 0 | J72: 0 | K72: 0 | L72: =$J72/hátizsák!$H$10 -> 0 | R72: 68 | S72: kék orchidea | T72: 0.08 | U72: 4 | V72: -
B73: 0 | D73: 69. | E73: 14 | F73: sünmedve tüske | G73: =INDEX($R$5:U2117,$E73,3) -> 0.03 | H73: =INDEX($R$5:V2117,$E73,4) -> 1 | I73: 0 | J73: 0 | K73: 0 | L73: =$J73/hátizsák!$H$10 -> 0 | R73: 69 | S73: szárnyas hernyó | T73: 0.1 | U73: 2 | V73: áldozati tárgy Sherannak
B74: 0 | D74: 70. | E74: 14 | F74: sünmedve tüske | G74: =INDEX($R$5:U2118,$E74,3) -> 0.03 | H74: =INDEX($R$5:V2118,$E74,4) -> 1 | I74: 0 | J74: 0 | K74: 0 | L74: =$J74/hátizsák!$H$10 -> 0 | R74: 70 | S74: rézdarab | T74: 0.3 | U74: 1 | V74: -
B75: 0 | D75: 71. | E75: 14 | F75: sünmedve tüske | G75: =INDEX($R$5:U2119,$E75,3) -> 0.03 | H75: =INDEX($R$5:V2119,$E75,4) -> 1 | I75: 0 | J75: 0 | K75: 0 | L75: =$J75/hátizsák!$H$10 -> 0 | R75: 71 | S75: rézpáncél | T75: 5.4 | U75: 24 | V75: +5 AC
B76: 0 | D76: 72. | E76: 14 | F76: sünmedve tüske | G76: =INDEX($R$5:U2120,$E76,3) -> 0.03 | H76: =INDEX($R$5:V2120,$E76,4) -> 1 | I76: 0 | J76: 0 | K76: 0 | L76: =$J76/hátizsák!$H$10 -> 0 | R76: 72 | S76: rézsisak | T76: 0.9 | U76: 7 | V76: +2 AC
B77: 0 | D77: 73. | E77: 14 | F77: sünmedve tüske | G77: =INDEX($R$5:U2121,$E77,3) -> 0.03 | H77: =INDEX($R$5:V2121,$E77,4) -> 1 | I77: 0 | J77: 0 | K77: 0 | L77: =$J77/hátizsák!$H$10 -> 0 | R77: 73 | S77: rézpajzs | T77: 1.5 | U77: 14 | V77: +3 AC
B78: 0 | D78: 74. | E78: 14 | F78: sünmedve tüske | G78: =INDEX($R$5:U2122,$E78,3) -> 0.03 | H78: =INDEX($R$5:V2122,$E78,4) -> 1 | I78: 0 | J78: 0 | K78: 0 | L78: =$J78/hátizsák!$H$10 -> 0 | R78: 74 | S78: csontkulcs | T78: 0.06 | U78: 4 | V78: -
B79: 0 | D79: 75. | E79: 14 | F79: sünmedve tüske | G79: =INDEX($R$5:U2123,$E79,3) -> 0.03 | H79: =INDEX($R$5:V2123,$E79,4) -> 1 | I79: 0 | J79: 0 | K79: 0 | L79: =$J79/hátizsák!$H$10 -> 0 | R79: 75 | S79: rézkulcs | T79: 0.08 | U79: 6 | V79: -
B80: 0 | D80: 76. | E80: 14 | F80: sünmedve tüske | G80: =INDEX($R$5:U2124,$E80,3) -> 0.03 | H80: =INDEX($R$5:V2124,$E80,4) -> 1 | I80: 0 | J80: 0 | K80: 0 | L80: =$J80/hátizsák!$H$10 -> 0 | R80: 76 | S80: bronzkulcs | T80: 0.1 | U80: 9 | V80: -
B81: 0 | D81: 77. | E81: 14 | F81: sünmedve tüske | G81: =INDEX($R$5:U2125,$E81,3) -> 0.03 | H81: =INDEX($R$5:V2125,$E81,4) -> 1 | I81: 0 | J81: 0 | K81: 0 | L81: =$J81/hátizsák!$H$10 -> 0 | R81: 77 | S81: rát-fa | T81: - | U81: 0 | V81: másznivaló, min. mászás: 0
B82: 0 | D82: 78. | E82: 14 | F82: sünmedve tüske | G82: =INDEX($R$5:U2126,$E82,3) -> 0.03 | H82: =INDEX($R$5:V2126,$E82,4) -> 1 | I82: 0 | J82: 0 | K82: 0 | L82: =$J82/hátizsák!$H$10 -> 0 | R82: 78 | S82: mászókarom | T82: 0.2 | U82: 10 | V82: +4 sebzés ököllel
B83: 0 | D83: 79. | E83: 14 | F83: sünmedve tüske | G83: =INDEX($R$5:U2127,$E83,3) -> 0.03 | H83: =INDEX($R$5:V2127,$E83,4) -> 1 | I83: 0 | J83: 0 | K83: 0 | L83: =$J83/hátizsák!$H$10 -> 0 | R83: 79 | S83: korongfa | T83: - | U83: 0 | V83: másznivaló, min. mászás: ?
B84: 0 | D84: 80. | E84: 14 | F84: sünmedve tüske | G84: =INDEX($R$5:U2128,$E84,3) -> 0.03 | H84: =INDEX($R$5:V2128,$E84,4) -> 1 | I84: 0 | J84: 0 | K84: 0 | L84: =$J84/hátizsák!$H$10 -> 0 | R84: 80 | S84: lapkorong | T84: 0.08 | U84: 2 | V84: -
B85: 0 | D85: 81. | E85: 14 | F85: sünmedve tüske | G85: =INDEX($R$5:U2129,$E85,3) -> 0.03 | H85: =INDEX($R$5:V2129,$E85,4) -> 1 | I85: 0 | J85: 0 | K85: 0 | L85: =$J85/hátizsák!$H$10 -> 0 | R85: 81 | S85: mérleg | T85: 0.24 | U85: 8 | V85: áldozati tárgy Fairlightnak
B86: 0 | D86: 82. | E86: 14 | F86: sünmedve tüske | G86: =INDEX($R$5:U2130,$E86,3) -> 0.03 | H86: =INDEX($R$5:V2130,$E86,4) -> 1 | I86: 0 | J86: 0 | K86: 0 | L86: =$J86/hátizsák!$H$10 -> 0 | R86: 82 | S86: zöld üveg | T86: 0.1 | U86: 3 | V86: 20 ragasztó tárolására
B87: 0 | D87: 83. | E87: 14 | F87: sünmedve tüske | G87: =INDEX($R$5:U2131,$E87,3) -> 0.03 | H87: =INDEX($R$5:V2131,$E87,4) -> 1 | I87: 0 | J87: 0 | K87: 0 | L87: =$J87/hátizsák!$H$10 -> 0 | R87: 83 | S87: ragasztó | T87: 0.01 | U87: 1 | V87: áldozati tárgy Eleniosnak
B88: 0 | D88: 84. | E88: 14 | F88: sünmedve tüske | G88: =INDEX($R$5:U2132,$E88,3) -> 0.03 | H88: =INDEX($R$5:V2132,$E88,4) -> 1 | I88: 0 | J88: 0 | K88: 0 | L88: =$J88/hátizsák!$H$10 -> 0 | R88: 84 | S88: díszes rézpajzs | T88: 3 | U88: 2 | V88: +4 AC
B89: 0 | D89: 85. | E89: 14 | F89: sünmedve tüske | G89: =INDEX($R$5:U2133,$E89,3) -> 0.03 | H89: =INDEX($R$5:V2133,$E89,4) -> 1 | I89: 0 | J89: 0 | K89: 0 | L89: =$J89/hátizsák!$H$10 -> 0 | R89: 85 | S89: óndarab | T89: 0.3 | U89: 0 | V89: -
B90: 0 | D90: 86. | E90: 14 | F90: sünmedve tüske | G90: =INDEX($R$5:U2134,$E90,3) -> 0.03 | H90: =INDEX($R$5:V2134,$E90,4) -> 1 | I90: 0 | J90: 0 | K90: 0 | L90: =$J90/hátizsák!$H$10 -> 0 | R90: 86 | S90: olvasztókemence | T90: - | U90: 0 | V90: -
B91: 0 | D91: 87. | E91: 14 | F91: sünmedve tüske | G91: =INDEX($R$5:U2135,$E91,3) -> 0.03 | H91: =INDEX($R$5:V2135,$E91,4) -> 1 | I91: 0 | J91: 0 | K91: 0 | L91: =$J91/hátizsák!$H$10 -> 0 | R91: 87 | S91: bronzhegyű lándzsa | T91: 3 | U91: 10 | V91: típus: szúró, sebzés: 3d6+3
B92: 0 | D92: 88. | E92: 14 | F92: sünmedve tüske | G92: =INDEX($R$5:U2136,$E92,3) -> 0.03 | H92: =INDEX($R$5:V2136,$E92,4) -> 1 | I92: 0 | J92: 0 | K92: 0 | L92: =$J92/hátizsák!$H$10 -> 0 | R92: 88 | S92: bronzsisak | T92: 1.2 | U92: 9 | V92: +3 AC
B93: 0 | D93: 89. | E93: 14 | F93: sünmedve tüske | G93: =INDEX($R$5:U2137,$E93,3) -> 0.03 | H93: =INDEX($R$5:V2137,$E93,4) -> 1 | I93: 0 | J93: 0 | K93: 0 | L93: =$J93/hátizsák!$H$10 -> 0 | R93: 89 | S93: bronzpajzs | T93: 2 | U93: 16 | V93: +5 AC
B94: 0 | D94: 90. | E94: 14 | F94: sünmedve tüske | G94: =INDEX($R$5:U2138,$E94,3) -> 0.03 | H94: =INDEX($R$5:V2138,$E94,4) -> 1 | I94: 0 | J94: 0 | K94: 0 | L94: =$J94/hátizsák!$H$10 -> 0 | R94: 90 | S94: bronzpáncél | T94: 7 | U94: 32 | V94: +7 AC
B95: 0 | D95: 91. | E95: 14 | F95: sünmedve tüske | G95: =INDEX($R$5:U2139,$E95,3) -> 0.03 | H95: =INDEX($R$5:V2139,$E95,4) -> 1 | I95: 0 | J95: 0 | K95: 0 | L95: =$J95/hátizsák!$H$10 -> 0 | R95: 91 | S95: manilla-fa | T95: - | U95: 0 | V95: -
B96: 0 | D96: 92. | E96: 14 | F96: sünmedve tüske | G96: =INDEX($R$5:U2140,$E96,3) -> 0.03 | H96: =INDEX($R$5:V2140,$E96,4) -> 1 | I96: 0 | J96: 0 | K96: 0 | L96: =$J96/hátizsák!$H$10 -> 0 | R96: 92 | S96: kötél | T96: 1 | U96: 1 | V96: -
B97: 0 | D97: 93. | E97: 14 | F97: sünmedve tüske | G97: =INDEX($R$5:U2141,$E97,3) -> 0.03 | H97: =INDEX($R$5:V2141,$E97,4) -> 1 | I97: 0 | J97: 0 | K97: 0 | L97: =$J97/hátizsák!$H$10 -> 0 | R97: 93 | S97: mély kút | T97: - | U97: 0 | V97: másznivaló, min. mászás: 2
B98: 0 | D98: 94. | E98: 14 | F98: sünmedve tüske | G98: =INDEX($R$5:U2142,$E98,3) -> 0.03 | H98: =INDEX($R$5:V2142,$E98,4) -> 1 | I98: 0 | J98: 0 | K98: 0 | L98: =$J98/hátizsák!$H$10 -> 0 | R98: 94 | S98: bronzhegyű nyíl | T98: 0.08 | U98: 5 | V98: típus: lövedék (szúró), sebzés: 2d6+4
B99: 0 | D99: 95. | E99: 14 | F99: sünmedve tüske | G99: =INDEX($R$5:U2143,$E99,3) -> 0.03 | H99: =INDEX($R$5:V2143,$E99,4) -> 1 | I99: 0 | J99: 0 | K99: 0 | L99: =$J99/hátizsák!$H$10 -> 0 | R99: 95 | S99: bakkura bőr | T99: 0.4 | U99: 2 | V99: -
B100: 0 | D100: 96. | E100: 14 | F100: sünmedve tüske | G100: =INDEX($R$5:U2144,$E100,3) -> 0.03 | H100: =INDEX($R$5:V2144,$E100,4) -> 1 | I100: 0 | J100: 0 | K100: 0 | L100: =$J100/hátizsák!$H$10 -> 0 | R100: 96 | S100: bakkura csizma | T100: 1.2 | U100: 11 | V100: +2 AC
B101: 0 | D101: 97. | E101: 14 | F101: sünmedve tüske | G101: =INDEX($R$5:U2145,$E101,3) -> 0.03 | H101: =INDEX($R$5:V2145,$E101,4) -> 1 | I101: 0 | J101: 0 | K101: 0 | L101: =$J101/hátizsák!$H$10 -> 0 | R101: 97 | S101: rákpáncél | T101: 0.4 | U101: 4 | V101: -
B102: 0 | D102: 98. | E102: 14 | F102: sünmedve tüske | G102: =INDEX($R$5:U2146,$E102,3) -> 0.03 | H102: =INDEX($R$5:V2146,$E102,4) -> 1 | I102: 0 | J102: 0 | K102: 0 | L102: =$J102/hátizsák!$H$10 -> 0 | R102: 98 | S102: rákpajzs | T102: 0.8 | U102: 10 | V102: +4 AC
B103: 0 | D103: 99. | E103: 14 | F103: sünmedve tüske | G103: =INDEX($R$5:U2147,$E103,3) -> 0.03 | H103: =INDEX($R$5:V2147,$E103,4) -> 1 | I103: 0 | J103: 0 | K103: 0 | L103: =$J103/hátizsák!$H$10 -> 0 | R103: 99 | S103: fekete gyöngy | T103: 0.01 | U103: 6 | V103: áldozati tárgy Leahnak
B104: 0 | D104: 100. | E104: 14 | F104: sünmedve tüske | G104: =INDEX($R$5:U2148,$E104,3) -> 0.03 | H104: =INDEX($R$5:V2148,$E104,4) -> 1 | I104: 0 | J104: 0 | K104: 0 | L104: =$J104/hátizsák!$H$10 -> 0 | R104: 100 | S104: aranyló ugarhéj | T104: 0.1 | U104: 4 | V104: 10 tinta tárolására, áldozati tárgy Raiának
F105: ÖSSZESEN | G105: lefoglalt tárhely: | I105: =SUM(B5:B104) -> 11 | J105: =SUM(J5:J44) -> 111.8 | K105: =SUM(K5:K44) -> 677 | L105: =SUM(L5:L44) -> 0.8944 | R105: 101 | S105: tinta | T105: 0.01 | U105: 1 | V105: -
R106: 102 | S106: vízionár szem | T106: 0.03 | U106: 3 | V106: áldozati tárgy Eleniosnak
R107: 103 | S107: magszim bél | T107: 0.08 | U107: 5 | V107: -
R108: 104 | S108: fémrúd | T108: 2 | U108: 8 | V108: -
R109: 105 | S109: evaporőr háj | T109: 0.2 | U109: 5 | V109: -
R110: 106 | S110: fabontó | T110: 0.1 | U110: 5 | V110: -
R111: 107 | S111: rövid íj | T111: 1 | U111: 8 | V111: típus: lőfegyver, +2 vadászat
R112: 108 | S112: nyílvessző | T112: 0.1 | U112: 1 | V112: típus: lövedék (szúró), sebzés: 1d8+2
R113: 109 | S113: vapárcserje | T113: - | U113: 0 | V113: -
R114: 110 | S114: vapárág | T114: 2 | U114: 10 | V114: -
R115: 111 | S115: hosszú íj | T115: 2 | U115: 20 | V115: típus: lőfegyver, +2 támadás
R116: 112 | S116: madártoll | T116: 0.01 | U116: 1 | V116: áldozati tárgy Raiának
R117: 113 | S117: xantusz-kaktusz | T117: - | U117: 0 | V117: -
R118: 114 | S118: kaktusztüske | T118: 0.02 | U118: 0 | V118: áldozati tárgy Fairlightnak
R119: 115 | S119: móricserje | T119: - | U119: 0 | V119: -
R120: 116 | S120: móri gyümölcs | T120: 0.1 | U120: 0 | V120: áldozati tárgy Sherannak
R121: 117 | S121: ezüst nyaklánc | T121: 0.1 | U121: 10 | V121: ékszer
R122: 118 | S122: púderszikla | T122: - | U122: 0 | V122: -
R123: 119 | S123: púderkő | T123: 0.1 | U123: 0 | V123: áldozati tárgy Raiának
R124: 120 | S124: tábla | T124: - | U124: 10 | V124: maximum 70 betűnyi szöveg
R125: 121 | S125: jellempróba | T125: - | U125: 0 | V125: -
R126: 122 | S126: dözmöng szív | T126: 0.08 | U126: 3 | V126: -
R127: 123 | S127: göcsörtös bunkó | T127: 3.5 | U127: 8 | V127: típus: ütő, sebzés: 2d8+4, min. fsz.: 5
R128: 124 | S128: rókafarok | T128: 0.5 | U128: 3 | V128: áldozati tárgy Sherannak
R129: 125 | S129: mandibulapenge | T129: 0.5 | U129: 3 | V129: -
R130: 126 | S130: bronzpenge | T130: 2 | U130: 12 | V130: típus: vágó, sebzés: 2d6+2
R131: 127 | S131: mandibulakasza | T131: 3.5 | U131: 25 | V131: típus: vágó, sebzés: 3d6+3
R132: 128 | S132: sallank karom | T132: 0.15 | U132: 2 | V132: áldozati tárgy Tharrnak
R133: 129 | S133: sallank nyíl | T133: 0.25 | U133: 3 | V133: típus: lövedék (szúró), sebzés: 2d8+2
R134: 130 | S134: hebrencs állkapocs | T134: 0.4 | U134: 4 | V134: -
R135: 131 | S135: ubuk tüske | T135: 0.05 | U135: 1 | V135: típus: lövedék (szúró), sebzés: 1d8
R136: 132 | S136: hóhérbimbó | T136: - | U136: 0 | V136: -
R137: 133 | S137: csuklyavirág | T137: 0.05 | U137: 1 | V137: áldozati tárgy Leahnak
R138: 134 | S138: gyöngymangó bokor | T138: - | U138: 0 | V138: -
R139: 135 | S139: gyöngymangó | T139: 0.1 | U139: 2 | V139: -
R140: 136 | S140: rúnakő | T140: - | U140: 0 | V140: kapcsolat az istenekkel
R141: 137 | S141: mérgezett ubuktüske | T141: 0.05 | U141: 2 | V141: típus: lövedék (szúró), sebzés: 1d8+4
R142: 138 | S142: ubuk dobónyíl | T142: 0.15 | U142: 5 | V142: típus: dobó (szúró), sebzés: 1d8+6
R143: 139 | S143: koponya szimbólum | T143: 0.05 | U143: 10 | V143: csak Leah hívei hordhatják, +4 mentődobás halál és hideg ellen
R144: 140 | S144: denevér szimbólum | T144: 0.04 | U144: 10 | V144: csak Dornodon hívei hordhatják, +2 iq
R145: 141 | S145: nap szimbólum | T145: 0.05 | U145: 10 | V145: csak Raia hívei hordhatják, +4 mentődobás energia ellen
R146: 142 | S146: szem szimbólum | T146: 0.03 | U146: 12 | V146: csak Elenios hívei hordhatják, +4 mentődobás mentális támadás ellen
R147: 143 | S147: virág szimbólum | T147: 0.03 | U147: 8 | V147: csak Sheran hívei hordhatják, +2 eg.
R148: 144 | S148: két kard szimbólum | T148: 0.06 | U148: 10 | V148: csak Tharr hívei hordhatják, +2 erő
R149: 145 | S149: villám szimbólum | T149: 0.04 | U149: 10 | V149: csak Fairlight hívei hordhatják, +2 ügy.
R150: 146 | S150: oltár | T150: - | U150: 0 | V150: imádkozáshoz
R151: 147 | S151: hebrencs csapda | T151: 0.45 | U151: 15 | V151: -
R152: 148 | S152: mocsári penke | T152: 0.01 | U152: 1 | V152: -
R153: 149 | S153: grok-képződmény | T153: - | U153: 0 | V153: másznivaló, min. mászás: 3
R154: 150 | S154: szent jogar | T154: 0.08 | U154: 50 | V154: jó jelleműeket max. ép.-be gyógyít
R155: 151 | S155: szvó-ektoplazma | T155: 0.05 | U155: 10 | V155: -
R156: 152 | S156: vasérc | T156: 0.2 | U156: 2 | V156: -
R157: 153 | S157: pirkit | T157: 0.05 | U157: 2 | V157: -
R158: 154 | S158: mély szakadék | T158: - | U158: 0 | V158: másznivaló, min. mászás: 5
R159: 155 | S159: vaskohó | T159: - | U159: 0 | V159: -
R160: 156 | S160: világítótorony | T160: - | U160: 0 | V160: maximum 10 mező távolságra történő információ átadásra
R161: 157 | S161: nyu-shuriken | T161: 0.05 | U161: 12 | V161: típus: dobó (szúró), sebzés: 3d4+2, +3 támadás
R162: 158 | S162: ezüst karkötő | T162: 0.08 | U162: 14 | V162: ékszer
R163: 159 | S163: kis vaspajzs | T163: 2 | U163: 16 | V163: +6 AC, min. bányászat: 3
R164: 160 | S164: vassisak | T164: 0.6 | U164: 18 | V164: +4 AC, min. bányászat: 4
R165: 161 | S165: nagy vaspajzs | T165: 3.2 | U165: 22 | V165: +8 AC, min. bányászat: 3
R166: 162 | S166: borostyán függő | T166: 0.01 | U166: 6 | V166: ékszer
R167: 163 | S167: karócsapda | T167: 1 | U167: 12 | V167: -
R168: 164 | S168: vasvért | T168: 8 | U168: 60 | V168: +10 AC, min. bányászat: 6
R169: 165 | S169: mászókampó | T169: 0.4 | U169: 12 | V169: min. bányászat: 2
R170: 166 | S170: ugh méreg | T170: 0.01 | U170: 2 | V170: -
R171: 167 | S171: sziklafészek | T171: - | U171: 0 | V171: másznivaló, min. mászás: 6
R172: 168 | S172: sullár hólyag | T172: 0.08 | U172: 7 | V172: 20 spiritusz tárolására
R173: 169 | S173: uzbány csőr | T173: 0.15 | U173: 6 | V173: 12 ugh méreg tárolására
R174: 170 | S174: spiritusz | T174: 0.01 | U174: 1 | V174: -
R175: 171 | S175: rövid kard | T175: 1.5 | U175: 16 | V175: típus: vágó (balkezes), sebzés: 3d4+1, min. bányászat: 5
R176: 172 | S176: téfea-agy | T176: 0.3 | U176: 8 | V176: -
R177: 173 | S177: nekrofun | T177: - | U177: 0 | V177: duplázza a varázspont regenerálást
R178: 174 | S178: harci kalapács | T178: 2.2 | U178: 20 | V178: típus: ütő (balkezes), sebzés: 3d4+1, min. bányászat: 3
R179: 175 | S179: márványtorony | T179: - | U179: 0 | V179: másznivaló, min. mászás: 8
R180: 176 | S180: vashegyű nyíl | T180: 0.08 | U180: 5 | V180: típus: lövedék (szúró), sebzés: 3d6+1, min. bányászat: 2
R181: 177 | S181: szopógödör | T181: - | U181: 0 | V181: -
R182: 178 | S182: mínosz-kúp | T182: - | U182: 0 | V182: -
R183: 179 | S183: grifftojás | T183: 0.4 | U183: 10 | V183: -
R184: 180 | S184: ezüst gyűrű | T184: 0.01 | U184: 6 | V184: ékszer
R185: 181 | S185: vasalt bunkó | T185: 4.5 | U185: 35 | V185: típus: ütő, sebzés: 4d6+4, min. fsz.: 10, min. bányászat: 4
R186: 182 | S186: vashegyű lándzsa | T186: 2 | U186: 18 | V186: típus: szúró, sebzés: 4d6+1, min. fsz.: 10, +2 támadás, min. bányászat: 2
R187: 183 | S187: vaskulcs | T187: 0.08 | U187: 10 | V187: -
R188: 184 | S188: ezüst kulcs | T188: 0.04 | U188: 12 | V188: -
R189: 185 | S189: nagy bronzkulcs | T189: 0.12 | U189: 14 | V189: -
R190: 186 | S190: nagy vaskulcs | T190: 0.15 | U190: 16 | V190: -
R191: 187 | S191: mérgezett vashegyű nyíl | T191: 0.08 | U191: 8 | V191: típus: lövedék (szúró), sebzés: 3d6+7
R192: 188 | S192: mérgezett ubuk dobónyíl | T192: 0.15 | U192: 7 | V192: típus: dobó (szúró), sebzés: 1d8+10
R193: 189 | S193: vas dobónyíl | T193: 0.1 | U193: 7 | V193: típus: dobó (szúró), sebzés: 2d6+4, +2 támadás, min. bányászat: 3
R194: 190 | S194: mérgezett vas dobónyíl | T194: 0.1 | U194: 10 | V194: típus: dobó (szúró), sebzés: 2d6+10, +2 támadás
R195: 191 | S195: aranylánc | T195: 0.15 | U195: 20 | V195: ékszer
R196: 192 | S196: gyöngysor | T196: 0.25 | U196: 48 | V196: ékszer
R197: 193 | S197: aranygyűrű | T197: 0.02 | U197: 12 | V197: ékszer
R198: 194 | S198: arany karperec | T198: 0.12 | U198: 26 | V198: ékszer
R199: 195 | S199: obszidián függő | T199: 0.01 | U199: 10 | V199: ékszer
R200: 196 | S200: trófea nyaklánc | T200: 0.38 | U200: 30 | V200: ékszer
R201: 197 | S201: igazgyöngy fülbevaló | T201: 0.02 | U201: 20 | V201: ékszer
R202: 198 | S202: trikornis szarv | T202: 0.2 | U202: 12 | V202: -
... 1844 more rows
